Workbook

Sheet Stavba
C2: Položkový rozpočet stavby cenové nabídky | H2: Datum:
C5: Stavba : | D5: 3236 | E5: Bytová zóna Hruštice - Károvsko - Etapa VII.
C7: Objednatel : | D7: Město TURNOV | H7: IČO : | I7: 00276227
D8: Antonína Dvořáka 335 | H8: DIČ : | I8: CZ00276227
C9: 51122 | D9: Turnov
C11: Zhotovitel : | D11: . | H11: IČO :
H12: DIČ :
C14: Za zhotovitele : | H14: Za objednatele :
C16: _______________ | H16: _______________
J18: Rozpočtové náklady
B19: Základ pro DPH | D19: 15 | E19: % | I19: =ROUND(G41,0) -> 0
B20: DPH | D20: =SazbaDPH1 -> 15 | E20: % | I20: =ROUND(I19*D20/100,0) -> 0
B21: Základ pro DPH | D21: 21 | E21: % | I21: =ROUND(H41,0) -> 150000
B22: DPH | D22: =SazbaDPH2 -> 21 | E22: % | I22: =ROUND(I21*D21/100,0) -> 31500
B23: Cena celkem za stavbu | I23: =SUM(I19:I22) -> 181500
B25: Rekapitulace stavebních objektů a provozních souborů
B27: Číslo a název objektu / provozního souboru | F27: Cena celkem | G27: =CONCATENATE("Základ DPH ",SazbaDPH1," %") -> Základ DPH 15 % | H27: =CONCATENATE("Základ DPH ",SazbaDPH2," %") -> Základ DPH 21 % | I27: DPH celkem | J27: %
B28: 100 | C28: Příprava území | F28: =G28+H28+I28 -> 0 | G28: 0 | H28: =SUM(H46) -> 0 | I28: =(G28*SazbaDPH1)/100+(H28*SazbaDPH2)/100 -> 0 | J28: =IF(CelkemObjekty=0,"",F28/CelkemObjekty*100) -> 0
B29: 101 | C29: Komunikace č.1 | F29: =G29+H29+I29 -> 0 | G29: 0 | H29: 0 | I29: 0 | J29: 0
B30: 102 | C30: Komunikace č.2 | F30: 0 | G30: 0 | H30: 0 | I30: 0 | J30: 0
B31: 301 | C31: Přeložka jednotné kanalizace | F31: 0 | G31: 0 | H31: 0 | I31: 0 | J31: 0
B32: 302 | C32: Přeložka vodovodu TLT DN250 | F32: 0 | G32: 0 | H32: 0 | I32: 0 | J32: 0
B33: 303 | C33: Přeložka vodovodu TLT DN100 | F33: 0 | G33: 0 | H33: 0 | I33: 0 | J33: 0
B34: 304 | C34: Jednotná kanalizace, přípojky | F34: 0 | G34: 0 | H34: =SUM(H52:H53) -> 0 | I34: 0 | J34: 0
B35: 305 | C35: Odvodnění komunikace | F35: 0 | G35: 0 | H35: =SUM(H54) -> 0 | I35: 0 | J35: 0
B36: 306 | C36: Prodloužení vodovodu, přípojky | F36: 0 | G36: 0 | H36: =SUM(H55:H56) -> 0 | I36: 0 | J36: 0
B37: 401 | C37: Veřejné osvětlení | F37: 0 | G37: 0 | H37: =SUM(H57) -> 0 | I37: 0 | J37: 0
B38: 501 | C38: Prodloužení STL plynovodu, přípojky | F38: 0 | G38: 0 | H38: =SUM(H58) -> 0 | I38: 0 | J38: 0
B39: ONS | C39: Ostatní náklady stavby | F39: 0 | G39: 0 | H39: =SUM(ONS!G25) -> 0 | I39: 0 | J39: 0
B40: PV | C40: Povinná rezerva pro 301 až 304 a 306 | F40: 181500 | G40: 0 | H40: 150000 | I40: 31500 | J40: 100
B41: Celkem za stavbu | F41: =SUM(F28:F40) -> 181500 | G41: =SUM(G28:G40) -> 0 | H41: =SUM(H28:H40) -> 150000 | I41: =SUM(I28:I40) -> 31500 | J41: =IF(CelkemObjekty=0,"",F41/CelkemObjekty*100) -> 100
B43: Rekapitulace stavebních rozpočtů
B45: Číslo objektu | C45: Číslo a název rozpočtu | F45: Cena celkem | G45: =CONCATENATE("Základ DPH ",SazbaDPH1," %") -> Základ DPH 15 % | H45: =CONCATENATE("Základ DPH ",SazbaDPH2," %") -> Základ DPH 21 % | I45: DPH celkem | J45: %
B46: 100 | C46: 3236/100 Příprava území | F46: =G46+H46+I46 -> 0 | G46: 0 | H46: =SUM('100 3236100 KL'!C23) -> 0 | I46: =(G46*SazbaDPH1)/100+(H46*SazbaDPH2)/100 -> 0 | J46: =IF(CelkemObjekty=0,"",F46/CelkemObjekty*100) -> 0
B47: 101 | C47: 3236/101 Komunikace č.1 - 1.etapa | F47: =G47+H47+I47 -> 0 | G47: 0 | H47: =SUM('101 3236101 KL'!C23) -> 0 | I47: 0 | J47: 0
B48: 102 | C48: 3236/102 Komunikace č.2 - 1.etapa | F48: 0 | G48: 0 | H48: =SUM('102 3236102 KL'!C23) -> 0 | I48: 0 | J48: 0
B49: 301 | C49: 3236/301 Přeložka jednotné kanalizace | F49: 0 | G49: 0 | H49: =SUM('301 3236301 KL'!C23) -> 0 | I49: 0 | J49: 0
B50: 302 | C50: 3236/302 Přeložka vodovodu TLT DN250 | F50: 0 | G50: 0 | H50: =SUM('302 3236302 KL'!C23) -> 0 | I50: 0 | J50: 0
B51: 303 | C51: 3236/303 Přeložka vodovodu TLT DN100 | F51: 0 | G51: 0 | H51: =SUM('303 3236303 KL'!C23) -> 0 | I51: 0 | J51: 0
B52: 304 | C52: 3236/304.1 Jednotná kanalizace | F52: 0 | G52: 0 | H52: =SUM('304 3236304.1 KL'!C23) -> 0 | I52: 0 | J52: 0
B53: 304 | C53: 3236/304.2 Jednotná kanalizace - přípojky | F53: 0 | G53: 0 | H53: =SUM('304 3236304.2 KL'!C23) -> 0 | I53: 0 | J53: 0
B54: 305 | C54: 3236/305 Odvodnění komunikace | F54: 0 | G54: 0 | H54: =SUM('305 3236305 KL'!C23) -> 0 | I54: 0 | J54: 0
B55: 306 | C55: 3236/306.1 Prodloužení vodovodu | F55: 0 | G55: 0 | H55: =SUM('306 3236306.1 KL'!C23) -> 0 | I55: 0 | J55: 0
B56: 306 | C56: 3236/306.2 Prodloužení vodovodu - přípojky | F56: 0 | G56: 0 | H56: =SUM('306 3236306.2 KL'!C23) -> 0 | I56: 0 | J56: 0
B57: 401 | C57: 3236/401 Veřejné osvětlení | F57: 0 | G57: 0 | H57: =SUM('401 3236401 KL'!C23) -> 0 | I57: 0 | J57: 0
B58: 501 | C58: 3236/501 Prodloužení STL plynovodu, přípojky | F58: 0 | G58: 0 | H58: =SUM('501 3236501 KL'!C23) -> 0 | I58: 0 | J58: 0
B59: Celkem za stavbu | F59: =SUM(F46:F58) -> 0 | G59: =SUM(G46:G58) -> 0 | H59: =SUM(H46:H58) -> 0 | I59: =SUM(I46:I58) -> 0 | J59: =IF(CelkemObjekty=0,"",F59/CelkemObjekty*100) -> 0

Sheet 100 3236100 KL
A1: POLOŽKOVÝ ROZPOČET
A2: Rozpočet | C2: 3236/100 | D2: Příprava území | F2: JKSO | G2: 823
A4: Objekt | F4: SKP
A5: 100 | C5: Příprava území | F5: Měrná jednotka | G5: m2
A6: Stavba | F6: Počet jednotek | G6: 0
A7: 3236 | C7: Bytová zóna Hruštice - Károvsko - Etapa VII. | F7: Náklady na m.j. | G7: =IF(G6=0,,ROUND((F30+F32)/G6,1)) -> 0
A8: Projektant | C8: PROFES PROJEKT spol.s r.o. | F8: Typ rozpočtu
A9: Zpracovatel projektu
A10: Objednatel | C10: Město TURNOV
A11: Dodavatel | C11: . | F11: Zakázkové číslo
A12: Rozpočtoval | F12: Počet listů
A13: ROZPOČTOVÉ NÁKLADY
A14: Základní rozpočtové náklady
B15: HSV celkem | C15: ='100 3236100 Rek'!E8 -> 0
A16: Z | B16: PSV celkem | C16: ='100 3236100 Rek'!F8 -> 0
A17: R | B17: M práce celkem | C17: ='100 3236100 Rek'!H8 -> 0
A18: N | B18: M dodávky celkem | C18: ='100 3236100 Rek'!G8 -> 0
A19: ZRN celkem | C19: =SUM(C15:C18) -> 0
A21: HZS | C21: ='100 3236100 Rek'!I8 -> 0
A22: ZRN+HZS | C22: =C19+C21 -> 0
A23: ZRN+ost.náklady+HZS | C23: =C22+G23 -> 0
A24: Vypracoval | D24: Za zhotovitele | F24: Za objednatele
A25: Jméno : | D25: Jméno : | F25: Jméno :
A26: Datum : | D26: Datum : | F26: Datum :
A28: Podpis : | D28: Podpis: | F28: Podpis:
A30: Základ pro DPH | C30: 21 | D30: % | F30: =C23-F32 -> 0
A31: DPH | C31: =C30 -> 21 | D31: % | F31: =ROUND(PRODUCT(F30,C31/100),0) -> 0
A32: Základ pro DPH | C32: 0 | D32: % | F32: 0
A33: DPH | C33: =C32 -> 0 | D33: % | F33: =ROUND(PRODUCT(F32,C33/100),0) -> 0
A34: CENA ZA OBJEKT CELKEM | F34: =ROUND(SUM(F30:F33),0) -> 0
A36: Poznámka :

Sheet 100 3236100 Rek
A1: Stavba : | C1: 3236 Bytová zóna Hruštice - Károvsko - Etapa VII. | G1: Rozpočet : | H1: 3236/100
A2: Objekt : | C2: 100 Příprava území | G2: Příprava území
A4: REKAPITULACE STAVEBNÍCH DÍLŮ
B6: Stavební díl | E6: HSV | F6: PSV | G6: Dodávka | H6: Montáž | I6: HZS
A7: ='100 3236100 Pol'!B7 -> 1 | B7: ='100 3236100 Pol'!C7 -> Zemní práce | E7: ='100 3236100 Pol'!BA34 -> 0 | F7: ='100 3236100 Pol'!BB34 -> 0 | G7: ='100 3236100 Pol'!BC34 -> 0 | H7: ='100 3236100 Pol'!BD34 -> 0 | I7: ='100 3236100 Pol'!BE34 -> 0
B8: CELKEM OBJEKT | E8: =SUM(E7:E7) -> 0 | F8: =SUM(F7:F7) -> 0 | G8: =SUM(G7:G7) -> 0 | H8: =SUM(H7:H7) -> 0 | I8: =SUM(I7:I7) -> 0

Sheet 100 3236100 Pol
A1: Položkový rozpočet
A3: Stavba : | C3: 3236 Bytová zóna Hruštice - Károvsko - Etapa VII. | E3: Rozpočet: | F3: ='100 3236100 Rek'!H1 -> 3236/100
A4: Objekt : | C4: 100 Příprava území | E4: ='100 3236100 Rek'!G2 -> Příprava území
A6: P.č. | B6: Číslo položky | C6: Název položky | D6: MJ | E6: množství | F6: cena / MJ | G6: celkem (Kč) | H6: Jednotková hmotnost | I6: Celková hmotnost | J6: Jednotková dem.hmot. | K6: Celková dem.hmot.
A7: Díl: | B7: 1 | C7: Zemní práce | O7: 1
A8: 1 | B8: 121100001RAB | C8: Sejmutí ornice, naložení, odvoz a uložení odvoz do 5 km | D8: m3 | E8: 356.7 | G8: =E8*F8 -> 0 | H8: 0 | I8: =E8*H8 -> 0 | J8: 0 | K8: =E8*J8 -> 0 | O8: 2 | AA8: 1 | AB8: 1 | AC8: 1 | AZ8: 1 | BA8: =IF(AZ8=1,G8,0) -> 0 | BB8: =IF(AZ8=2,G8,0) -> 0 | BC8: =IF(AZ8=3,G8,0) -> 0 | BD8: =IF(AZ8=4,G8,0) -> 0 | BE8: =IF(AZ8=5,G8,0) -> 0 | CA8: 1 | CB8: 1
C9: Odvoz na skládku investora | L9: Odvoz na skládku investora | O9: 3
C10: Pro SO 101 Komunikace č.1 - 1. část:229,50 | E10: 229.5 | M10: Pro SO 101 Komunikace č.1 - 1. část:229,50
C11: Pro SO 101 Komunikace č.1 - 2.část:88,20 | E11: 88.2 | M11: Pro SO 101 Komunikace č.1 - 2.část:88,20
C12: Pro SO 102 Komunikace č.2:39,00 | E12: 39 | M12: Pro SO 102 Komunikace č.2:39,00
A13: 2 | B13: 122202202R00 | C13: Odkopávky pro silnice v hor. 3 do 1000 m3 | D13: m3 | E13: 713.3 | G13: =E13*F13 -> 0 | H13: 0 | I13: =E13*H13 -> 0 | J13: 0 | K13: =E13*J13 -> 0 | O13: 2 | AA13: 1 | AB13: 1 | AC13: 1 | AZ13: 1 | BA13: =IF(AZ13=1,G13,0) -> 0 | BB13: =IF(AZ13=2,G13,0) -> 0 | BC13: =IF(AZ13=3,G13,0) -> 0 | BD13: =IF(AZ13=4,G13,0) -> 0 | BE13: =IF(AZ13=5,G13,0) -> 0 | CA13: 1 | CB13: 1
C14: Odkopávky na úroveň pláně komunikací: | E14: 0 | M14: Odkopávky na úroveň pláně komunikací:
C15: Pro SO 101 Komunikace č.1 - 1. část:434,60 | E15: 434.6 | M15: Pro SO 101 Komunikace č.1 - 1. část:434,60
C16: Pro SO 101 Komunikace č.1 - 2.část:203,10 | E16: 203.1 | M16: Pro SO 101 Komunikace č.1 - 2.část:203,10
C17: Pro SO 102 Komunikace č.2:75,60 | E17: 75.6 | M17: Pro SO 102 Komunikace č.2:75,60
A18: 3 | B18: 122202209R00 | C18: Příplatek za lepivost - odkop. pro silnice v hor.3 | D18: m3 | E18: 356.65 | G18: =E18*F18 -> 0 | H18: 0 | I18: =E18*H18 -> 0 | J18: 0 | K18: =E18*J18 -> 0 | O18: 2 | AA18: 1 | AB18: 1 | AC18: 1 | AZ18: 1 | BA18: =IF(AZ18=1,G18,0) -> 0 | BB18: =IF(AZ18=2,G18,0) -> 0 | BC18: =IF(AZ18=3,G18,0) -> 0 | BD18: =IF(AZ18=4,G18,0) -> 0 | BE18: =IF(AZ18=5,G18,0) -> 0 | CA18: 1 | CB18: 1
C19: Pro SO 101 Komunikace č.1 - 1. část:434,60*0,5 | E19: 217.3 | M19: Pro SO 101 Komunikace č.1 - 1. část:434,60*0,5
C20: Pro SO 101 Komunikace č.1 - 2.část:203,10*0,5 | E20: 101.55 | M20: Pro SO 101 Komunikace č.1 - 2.část:203,10*0,5
C21: Pro SO 102 Komunikace č.2:75,60*0,5 | E21: 37.8 | M21: Pro SO 102 Komunikace č.2:75,60*0,5
A22: 4 | B22: 162701105RSZ | C22: Vodorovné přemístění výkopku z hor.1-7 na skládku zhotovitele | D22: m3 | E22: 713.3 | G22: =E22*F22 -> 0 | H22: 0 | I22: =E22*H22 -> 0 | J22: 0 | K22: =E22*J22 -> 0 | O22: 2 | AA22: 1 | AB22: 1 | AC22: 1 | AZ22: 1 | BA22: =IF(AZ22=1,G22,0) -> 0 | BB22: =IF(AZ22=2,G22,0) -> 0 | BC22: =IF(AZ22=3,G22,0) -> 0 | BD22: =IF(AZ22=4,G22,0) -> 0 | BE22: =IF(AZ22=5,G22,0) -> 0 | CA22: 1 | CB22: 1
C23: Pro SO 101 Komunikace č.1 - 1. část:434,60 | E23: 434.6 | M23: Pro SO 101 Komunikace č.1 - 1. část:434,60
C24: Pro SO 101 Komunikace č.1 - 2.část:203,10 | E24: 203.1 | M24: Pro SO 101 Komunikace č.1 - 2.část:203,10
C25: Pro SO 102 Komunikace č.2:75,60 | E25: 75.6 | M25: Pro SO 102 Komunikace č.2:75,60
A26: 5 | B26: 181101102R00 | C26: Úprava pláně v zářezech v hor. 1-4, se zhutněním | D26: m2 | E26: 2263 | G26: =E26*F26 -> 0 | H26: 0 | I26: =E26*H26 -> 0 | J26: 0 | K26: =E26*J26 -> 0 | O26: 2 | AA26: 1 | AB26: 1 | AC26: 1 | AZ26: 1 | BA26: =IF(AZ26=1,G26,0) -> 0 | BB26: =IF(AZ26=2,G26,0) -> 0 | BC26: =IF(AZ26=3,G26,0) -> 0 | BD26: =IF(AZ26=4,G26,0) -> 0 | BE26: =IF(AZ26=5,G26,0) -> 0 | CA26: 1 | CB26: 1
C27: Pro SO 101 Komunikace č.1 - 1. část:1445,00 | E27: 1445 | M27: Pro SO 101 Komunikace č.1 - 1. část:1445,00
C28: Pro SO 101 Komunikace č.1 - 2.část:558,00 | E28: 558 | M28: Pro SO 101 Komunikace č.1 - 2.část:558,00
C29: Pro SO 102 Komunikace č.2:260,00 | E29: 260 | M29: Pro SO 102 Komunikace č.2:260,00
A30: 6 | B30: 199000002R00 | C30: Poplatek za skládku horniny 1- 7 | D30: m3 | E30: 356.65 | G30: =E30*F30 -> 0 | H30: 0 | I30: =E30*H30 -> 0 | J30: 0 | K30: =E30*J30 -> 0 | O30: 2 | AA30: 1 | AB30: 1 | AC30: 1 | AZ30: 1 | BA30: =IF(AZ30=1,G30,0) -> 0 | BB30: =IF(AZ30=2,G30,0) -> 0 | BC30: =IF(AZ30=3,G30,0) -> 0 | BD30: =IF(AZ30=4,G30,0) -> 0 | BE30: =IF(AZ30=5,G30,0) -> 0 | CA30: 1 | CB30: 1
C31: Pro SO 101 Komunikace č.1 - 1. část:434,60*0,5 | E31: 217.3 | M31: Pro SO 101 Komunikace č.1 - 1. část:434,60*0,5
C32: Pro SO 101 Komunikace č.1 - 2.část:203,10*0,5 | E32: 101.55 | M32: Pro SO 101 Komunikace č.1 - 2.část:203,10*0,5
C33: Pro SO 102 Komunikace č.2:75,60*0,5 | E33: 37.8 | M33: Pro SO 102 Komunikace č.2:75,60*0,5
B34: Celkem za | C34: 1 Zemní práce | G34: =SUM(G7:G33) -> 0 | I34: =SUM(I7:I33) -> 0 | K34: =SUM(K7:K33) -> 0 | O34: 4 | BA34: =SUM(BA7:BA33) -> 0 | BB34: =SUM(BB7:BB33) -> 0 | BC34: =SUM(BC7:BC33) -> 0 | BD34: =SUM(BD7:BD33) -> 0 | BE34: =SUM(BE7:BE33) -> 0

Sheet 101 3236101 KL
A1: POLOŽKOVÝ ROZPOČET
A2: Rozpočet | C2: 3236/101 | D2: Komunikace č.1 - 1.etapa | F2: JKSO | G2: 822.27
A4: Objekt | F4: SKP
A5: 101 | C5: Komunikace č.1 | F5: Měrná jednotka | G5: m2
A6: Stavba | F6: Počet jednotek | G6: 0
A7: 3236 | C7: Bytová zóna Hruštice - Károvsko - Etapa VII. | F7: Náklady na m.j. | G7: =IF(G6=0,,ROUND((F30+F32)/G6,1)) -> 0
A8: Projektant | C8: PROFES PROJEKT spol.s r.o. | F8: Typ rozpočtu
A9: Zpracovatel projektu
A10: Objednatel | C10: Město TURNOV
A11: Dodavatel | C11: . | F11: Zakázkové číslo
A12: Rozpočtoval | F12: Počet listů
A13: ROZPOČTOVÉ NÁKLADY
A14: Základní rozpočtové náklady
B15: HSV celkem | C15: ='101 3236101 Rek'!E11 -> 0
A16: Z | B16: PSV celkem | C16: ='101 3236101 Rek'!F11 -> 0
A17: R | B17: M práce celkem | C17: ='101 3236101 Rek'!H11 -> 0
A18: N | B18: M dodávky celkem | C18: ='101 3236101 Rek'!G11 -> 0
A19: ZRN celkem | C19: =SUM(C15:C18) -> 0
A21: HZS | C21: ='101 3236101 Rek'!I11 -> 0
A22: ZRN+HZS | C22: =C19+C21 -> 0
A23: ZRN+ost.náklady+HZS | C23: =C22+G23 -> 0
A24: Vypracoval | D24: Za zhotovitele | F24: Za objednatele
A25: Jméno : | D25: Jméno : | F25: Jméno :
A26: Datum : | D26: Datum : | F26: Datum :
A28: Podpis : | D28: Podpis: | F28: Podpis:
A30: Základ pro DPH | C30: 21 | D30: % | F30: =C23-F32 -> 0
A31: DPH | C31: =C30 -> 21 | D31: % | F31: =ROUND(PRODUCT(F30,C31/100),0) -> 0
A32: Základ pro DPH | C32: 0 | D32: % | F32: 0
A33: DPH | C33: =C32 -> 0 | D33: % | F33: =ROUND(PRODUCT(F32,C33/100),0) -> 0
A34: CENA ZA OBJEKT CELKEM | F34: =ROUND(SUM(F30:F33),0) -> 0
A36: Poznámka :

Sheet 101 3236101 Rek
A1: Stavba : | C1: 3236 Bytová zóna Hruštice - Károvsko - Etapa VII. | G1: Rozpočet : | H1: 3236/101
A2: Objekt : | C2: 101 Komunikace č.1 | G2: Komunikace č.1 - 1.etapa
A4: REKAPITULACE STAVEBNÍCH DÍLŮ
B6: Stavební díl | E6: HSV | F6: PSV | G6: Dodávka | H6: Montáž | I6: HZS
A7: ='101 3236101 Pol'!B7 -> 1 | B7: ='101 3236101 Pol'!C7 -> Zemní práce | E7: ='101 3236101 Pol'!BA54 -> 0 | F7: ='101 3236101 Pol'!BB54 -> 0 | G7: ='101 3236101 Pol'!BC54 -> 0 | H7: ='101 3236101 Pol'!BD54 -> 0 | I7: ='101 3236101 Pol'!BE54 -> 0
A8: ='101 3236101 Pol'!B55 -> 2 | B8: ='101 3236101 Pol'!C55 -> Základy a zvláštní zakládání | E8: ='101 3236101 Pol'!BA60 -> 0 | F8: ='101 3236101 Pol'!BB60 -> 0 | G8: ='101 3236101 Pol'!BC60 -> 0 | H8: ='101 3236101 Pol'!BD60 -> 0 | I8: ='101 3236101 Pol'!BE60 -> 0
A9: ='101 3236101 Pol'!B61 -> 5 | B9: ='101 3236101 Pol'!C61 -> Komunikace | E9: ='101 3236101 Pol'!BA91 -> 0 | F9: ='101 3236101 Pol'!BB91 -> 0 | G9: ='101 3236101 Pol'!BC91 -> 0 | H9: ='101 3236101 Pol'!BD91 -> 0 | I9: ='101 3236101 Pol'!BE91 -> 0
A10: ='101 3236101 Pol'!B92 -> 99 | B10: ='101 3236101 Pol'!C92 -> Staveništní přesun hmot | E10: ='101 3236101 Pol'!BA94 -> 0 | F10: ='101 3236101 Pol'!BB94 -> 0 | G10: ='101 3236101 Pol'!BC94 -> 0 | H10: ='101 3236101 Pol'!BD94 -> 0 | I10: ='101 3236101 Pol'!BE94 -> 0
B11: CELKEM OBJEKT | E11: =SUM(E7:E10) -> 0 | F11: =SUM(F7:F10) -> 0 | G11: =SUM(G7:G10) -> 0 | H11: =SUM(H7:H10) -> 0 | I11: =SUM(I7:I10) -> 0

Sheet 101 3236101 Pol
A1: Položkový rozpočet
A3: Stavba : | C3: 3236 Bytová zóna Hruštice - Károvsko - Etapa VII. | E3: Rozpočet: | F3: ='101 3236101 Rek'!H1 -> 3236/101
A4: Objekt : | C4: 101 Komunikace č.1 | E4: ='101 3236101 Rek'!G2 -> Komunikace č.1 - 1.etapa
A6: P.č. | B6: Číslo položky | C6: Název položky | D6: MJ | E6: množství | F6: cena / MJ | G6: celkem (Kč) | H6: Jednotková hmotnost | I6: Celková hmotnost | J6: Jednotková dem.hmot. | K6: Celková dem.hmot.
A7: Díl: | B7: 1 | C7: Zemní práce | O7: 1
A8: 1 | B8: 122202202R00 | C8: Odkopávky pro silnice v hor. 3 do 1000 m3 | D8: m3 | E8: 413.8 | G8: =E8*F8 -> 0 | H8: 0 | I8: =E8*H8 -> 0 | J8: 0 | K8: =E8*J8 -> 0 | O8: 2 | AA8: 1 | AB8: 1 | AC8: 1 | AZ8: 1 | BA8: =IF(AZ8=1,G8,0) -> 0 | BB8: =IF(AZ8=2,G8,0) -> 0 | BC8: =IF(AZ8=3,G8,0) -> 0 | BD8: =IF(AZ8=4,G8,0) -> 0 | BE8: =IF(AZ8=5,G8,0) -> 0 | CA8: 1 | CB8: 1
C9: Od úrovně páně pro realizaci sanace: | E9: 0 | M9: Od úrovně páně pro realizaci sanace:
C10: Začátek provozního součtu | E10: 0 | M10: Začátek provozního součtu
C11: Komunikace č.1 - 1.část:170,00*8,80*0,40 | E11: 598.4 | M11: Komunikace č.1 - 1.část:170,00*8,80*0,40
C12: Komunikace č.1 - 2.část:(60,00*8,80+10,00*4,50)*0,40 | E12: 229.2 | M12: Komunikace č.1 - 2.část:(60,00*8,80+10,00*4,50)*0,40
C13: Konec provozního součtu | E13: 827.6 | M13: Konec provozního součtu
C14: V hornině tř. 3 - 50%:827,6000*0,5 | E14: 413.8 | M14: V hornině tř. 3 - 50%:827,6000*0,5
A15: 2 | B15: 122202209R00 | C15: Příplatek za lepivost - odkop. pro silnice v hor.3 | D15: m3 | E15: 206.9 | G15: =E15*F15 -> 0 | H15: 0 | I15: =E15*H15 -> 0 | J15: 0 | K15: =E15*J15 -> 0 | O15: 2 | AA15: 1 | AB15: 1 | AC15: 1 | AZ15: 1 | BA15: =IF(AZ15=1,G15,0) -> 0 | BB15: =IF(AZ15=2,G15,0) -> 0 | BC15: =IF(AZ15=3,G15,0) -> 0 | BD15: =IF(AZ15=4,G15,0) -> 0 | BE15: =IF(AZ15=5,G15,0) -> 0 | CA15: 1 | CB15: 1
C16: Od úrovně páně pro realizaci sanace: | E16: 0 | M16: Od úrovně páně pro realizaci sanace:
C17: Začátek provozního součtu | E17: 0 | M17: Začátek provozního součtu
C18: Komunikace č.1 - 1.část:170,00*8,80*0,40 | E18: 598.4 | M18: Komunikace č.1 - 1.část:170,00*8,80*0,40
C19: Komunikace č.1 - 2.část:(60,00*8,80+10,00*4,50)*0,40 | E19: 229.2 | M19: Komunikace č.1 - 2.část:(60,00*8,80+10,00*4,50)*0,40
C20: Konec provozního součtu | E20: 827.6 | M20: Konec provozního součtu
C21: V hornině tř. 3 - 50%:827,6000*0,5*0,5 | E21: 206.9 | M21: V hornině tř. 3 - 50%:827,6000*0,5*0,5
A22: 3 | B22: 122302202R00 | C22: Odkopávky pro silnice v hor. 4 do 1000 m3 | D22: m3 | E22: 413.8 | G22: =E22*F22 -> 0 | H22: 0 | I22: =E22*H22 -> 0 | J22: 0 | K22: =E22*J22 -> 0 | O22: 2 | AA22: 1 | AB22: 1 | AC22: 1 | AZ22: 1 | BA22: =IF(AZ22=1,G22,0) -> 0 | BB22: =IF(AZ22=2,G22,0) -> 0 | BC22: =IF(AZ22=3,G22,0) -> 0 | BD22: =IF(AZ22=4,G22,0) -> 0 | BE22: =IF(AZ22=5,G22,0) -> 0 | CA22: 1 | CB22: 1
C23: Od úrovně páně pro realizaci sanace: | E23: 0 | M23: Od úrovně páně pro realizaci sanace:
C24: Začátek provozního součtu | E24: 0 | M24: Začátek provozního součtu
C25: Komunikace č.1 - 1.část:170,00*8,80*0,40 | E25: 598.4 | M25: Komunikace č.1 - 1.část:170,00*8,80*0,40
C26: Komunikace č.1 - 2.část:(60,00*8,80+10,00*4,50)*0,40 | E26: 229.2 | M26: Komunikace č.1 - 2.část:(60,00*8,80+10,00*4,50)*0,40
C27: Konec provozního součtu | E27: 827.6 | M27: Konec provozního součtu
C28: V hornině tř. 4 - 50%:827,6000*0,5 | E28: 413.8 | M28: V hornině tř. 4 - 50%:827,6000*0,5
A29: 4 | B29: 122302209R00 | C29: Příplatek za lepivost - odkop pro silnice v hor. 4 | D29: m3 | E29: 206.9 | G29: =E29*F29 -> 0 | H29: 0 | I29: =E29*H29 -> 0 | J29: 0 | K29: =E29*J29 -> 0 | O29: 2 | AA29: 1 | AB29: 1 | AC29: 1 | AZ29: 1 | BA29: =IF(AZ29=1,G29,0) -> 0 | BB29: =IF(AZ29=2,G29,0) -> 0 | BC29: =IF(AZ29=3,G29,0) -> 0 | BD29: =IF(AZ29=4,G29,0) -> 0 | BE29: =IF(AZ29=5,G29,0) -> 0 | CA29: 1 | CB29: 1
C30: Od úrovně páně pro realizaci sanace: | E30: 0 | M30: Od úrovně páně pro realizaci sanace:
C31: Začátek provozního součtu | E31: 0 | M31: Začátek provozního součtu
C32: Komunikace č.1 - 1.část:170,00*8,80*0,40 | E32: 598.4 | M32: Komunikace č.1 - 1.část:170,00*8,80*0,40
C33: Komunikace č.1 - 2.část:(60,00*8,80+10,00*4,50)*0,40 | E33: 229.2 | M33: Komunikace č.1 - 2.část:(60,00*8,80+10,00*4,50)*0,40
C34: Konec provozního součtu | E34: 827.6 | M34: Konec provozního součtu
C35: V hornině tř. 4 - 50%:827,6000*0,5*0,5 | E35: 206.9 | M35: V hornině tř. 4 - 50%:827,6000*0,5*0,5
A36: 5 | B36: 162701105RSZ | C36: Vodorovné přemístění výkopku z hor.1-7 na skládku zhotovitele | D36: m3 | E36: 827.6 | G36: =E36*F36 -> 0 | H36: 0 | I36: =E36*H36 -> 0 | J36: 0 | K36: =E36*J36 -> 0 | O36: 2 | AA36: 1 | AB36: 1 | AC36: 1 | AZ36: 1 | BA36: =IF(AZ36=1,G36,0) -> 0 | BB36: =IF(AZ36=2,G36,0) -> 0 | BC36: =IF(AZ36=3,G36,0) -> 0 | BD36: =IF(AZ36=4,G36,0) -> 0 | BE36: =IF(AZ36=5,G36,0) -> 0 | CA36: 1 | CB36: 1
C37: Od úrovně páně pro realizaci sanace: | E37: 0 | M37: Od úrovně páně pro realizaci sanace:
C38: Začátek provozního součtu | E38: 0 | M38: Začátek provozního součtu
C39: Komunikace č.1 - 1.část:170,00*8,80*0,40 | E39: 598.4 | M39: Komunikace č.1 - 1.část:170,00*8,80*0,40
C40: Komunikace č.1 - 2.část:(60,00*8,80+10,00*4,50)*0,40 | E40: 229.2 | M40: Komunikace č.1 - 2.část:(60,00*8,80+10,00*4,50)*0,40
C41: Konec provozního součtu | E41: 827.6 | M41: Konec provozního součtu
C42: V hornině tř. 3 - 4:827,6000 | E42: 827.6 | M42: V hornině tř. 3 - 4:827,6000
A43: 6 | B43: 181101102R00 | C43: Úprava pláně v zářezech v hor. 1-4, se zhutněním | D43: m2 | E43: 2069 | G43: =E43*F43 -> 0 | H43: 0 | I43: =E43*H43 -> 0 | J43: 0 | K43: =E43*J43 -> 0 | O43: 2 | AA43: 1 | AB43: 1 | AC43: 1 | AZ43: 1 | BA43: =IF(AZ43=1,G43,0) -> 0 | BB43: =IF(AZ43=2,G43,0) -> 0 | BC43: =IF(AZ43=3,G43,0) -> 0 | BD43: =IF(AZ43=4,G43,0) -> 0 | BE43: =IF(AZ43=5,G43,0) -> 0 | CA43: 1 | CB43: 1
C44: Od úrovně páně pro realizaci sanace: | E44: 0 | M44: Od úrovně páně pro realizaci sanace:
C45: Komunikace č.1 - 1.část:170,00*8,80 | E45: 1496 | M45: Komunikace č.1 - 1.část:170,00*8,80
C46: Komunikace č.1 - 2.část:60,00*8,80+10,00*4,50 | E46: 573 | M46: Komunikace č.1 - 2.část:60,00*8,80+10,00*4,50
A47: 7 | B47: 199000002R00 | C47: Poplatek za skládku horniny 1- 7 | D47: m3 | E47: 827.6 | G47: =E47*F47 -> 0 | H47: 0 | I47: =E47*H47 -> 0 | J47: 0 | K47: =E47*J47 -> 0 | O47: 2 | AA47: 1 | AB47: 1 | AC47: 1 | AZ47: 1 | BA47: =IF(AZ47=1,G47,0) -> 0 | BB47: =IF(AZ47=2,G47,0) -> 0 | BC47: =IF(AZ47=3,G47,0) -> 0 | BD47: =IF(AZ47=4,G47,0) -> 0 | BE47: =IF(AZ47=5,G47,0) -> 0 | CA47: 1 | CB47: 1
C48: Od úrovně páně pro realizaci sanace: | E48: 0 | M48: Od úrovně páně pro realizaci sanace:
C49: Začátek provozního součtu | E49: 0 | M49: Začátek provozního součtu
C50: Komunikace č.1 - 1.část:170,00*8,80*0,40 | E50: 598.4 | M50: Komunikace č.1 - 1.část:170,00*8,80*0,40
C51: Komunikace č.1 - 2.část:(60,00*8,80+10,00*4,50)*0,40 | E51: 229.2 | M51: Komunikace č.1 - 2.část:(60,00*8,80+10,00*4,50)*0,40
C52: Konec provozního součtu | E52: 827.6 | M52: Konec provozního součtu
C53: V hornině tř. 3 - 4:827,6000 | E53: 827.6 | M53: V hornině tř. 3 - 4:827,6000
B54: Celkem za | C54: 1 Zemní práce | G54: =SUM(G7:G53) -> 0 | I54: =SUM(I7:I53) -> 0 | K54: =SUM(K7:K53) -> 0 | O54: 4 | BA54: =SUM(BA7:BA53) -> 0 | BB54: =SUM(BB7:BB53) -> 0 | BC54: =SUM(BC7:BC53) -> 0 | BD54: =SUM(BD7:BD53) -> 0 | BE54: =SUM(BE7:BE53) -> 0
A55: Díl: | B55: 2 | C55: Základy a zvláštní zakládání | O55: 1
A56: 8 | B56: 212810010RAD | C56: Trativody z PVC drenážních flexibilních trubek lože štěrkopísek a obsyp kamenivo, trubky d 160 mm | D56: m | E56: 230 | G56: =E56*F56 -> 0 | H56: 0.43683 | I56: =E56*H56 -> 100.4709 | J56: 0 | K56: =E56*J56 -> 0 | O56: 2 | AA56: 1 | AB56: 1 | AC56: 1 | AZ56: 1 | BA56: =IF(AZ56=1,G56,0) -> 0 | BB56: =IF(AZ56=2,G56,0) -> 0 | BC56: =IF(AZ56=3,G56,0) -> 0 | BD56: =IF(AZ56=4,G56,0) -> 0 | BE56: =IF(AZ56=5,G56,0) -> 0 | CA56: 1 | CB56: 1
C57: Součástí položky je i obalení drenáže separační geotextílií | L57: Součástí položky je i obalení drenáže separační geotextílií | O57: 3
C58: Komunikace č.1 - 1.část:170,00 | E58: 170 | M58: Komunikace č.1 - 1.část:170,00
C59: Komunikace č.1 - 2.část:60,00 | E59: 60 | M59: Komunikace č.1 - 2.část:60,00
B60: Celkem za | C60: 2 Základy a zvláštní zakládání | G60: =SUM(G55:G59) -> 0 | I60: =SUM(I55:I59) -> 100.4709 | K60: =SUM(K55:K59) -> 0 | O60: 4 | BA60: =SUM(BA55:BA59) -> 0 | BB60: =SUM(BB55:BB59) -> 0 | BC60: =SUM(BC55:BC59) -> 0 | BD60: =SUM(BD55:BD59) -> 0 | BE60: =SUM(BE55:BE59) -> 0
A61: Díl: | B61: 5 | C61: Komunikace | O61: 1
A62: 9 | B62: 564661111R00 | C62: Podklad z kameniva drceného 63-125 mm, tl. 20 cm | D62: m2 | E62: 2069 | G62: =E62*F62 -> 0 | H62: 0.43 | I62: =E62*H62 -> 889.67 | J62: 0 | K62: =E62*J62 -> 0 | O62: 2 | AA62: 1 | AB62: 1 | AC62: 1 | AZ62: 1 | BA62: =IF(AZ62=1,G62,0) -> 0 | BB62: =IF(AZ62=2,G62,0) -> 0 | BC62: =IF(AZ62=3,G62,0) -> 0 | BD62: =IF(AZ62=4,G62,0) -> 0 | BE62: =IF(AZ62=5,G62,0) -> 0 | CA62: 1 | CB62: 1
C63: Od úrovně páně pro realizaci sanace: | E63: 0 | M63: Od úrovně páně pro realizaci sanace:
C64: Komunikace č.1 - 1.část:170,00*8,80 | E64: 1496 | M64: Komunikace č.1 - 1.část:170,00*8,80
C65: Komunikace č.1 - 2.část:60,00*8,80+10,00*4,50 | E65: 573 | M65: Komunikace č.1 - 2.část:60,00*8,80+10,00*4,50
A66: 10 | B66: 564761111R00 | C66: Podklad z kameniva drceného vel.32-63 mm,tl. 20 cm | D66: m2 | E66: 2069 | G66: =E66*F66 -> 0 | H66: 0.43 | I66: =E66*H66 -> 889.67 | J66: 0 | K66: =E66*J66 -> 0 | O66: 2 | AA66: 1 | AB66: 1 | AC66: 1 | AZ66: 1 | BA66: =IF(AZ66=1,G66,0) -> 0 | BB66: =IF(AZ66=2,G66,0) -> 0 | BC66: =IF(AZ66=3,G66,0) -> 0 | BD66: =IF(AZ66=4,G66,0) -> 0 | BE66: =IF(AZ66=5,G66,0) -> 0 | CA66: 1 | CB66: 1
C67: Od úrovně páně pro realizaci sanace: | E67: 0 | M67: Od úrovně páně pro realizaci sanace:
C68: Komunikace č.1 - 1.část:170,00*8,80 | E68: 1496 | M68: Komunikace č.1 - 1.část:170,00*8,80
C69: Komunikace č.1 - 2.část:60,00*8,80+10,00*4,50 | E69: 573 | M69: Komunikace č.1 - 2.část:60,00*8,80+10,00*4,50
A70: 11 | B70: 564861111RT2 | C70: Podklad ze štěrkodrti po zhutnění tloušťky 20 cm štěrkodrť frakce 0-32 mm | D70: m2 | E70: 2036.5 | G70: =E70*F70 -> 0 | H70: 0.441 | I70: =E70*H70 -> 898.0965 | J70: 0 | K70: =E70*J70 -> 0 | O70: 2 | AA70: 1 | AB70: 1 | AC70: 1 | AZ70: 1 | BA70: =IF(AZ70=1,G70,0) -> 0 | BB70: =IF(AZ70=2,G70,0) -> 0 | BC70: =IF(AZ70=3,G70,0) -> 0 | BD70: =IF(AZ70=4,G70,0) -> 0 | BE70: =IF(AZ70=5,G70,0) -> 0 | CA70: 1 | CB70: 1
C71: Nad úrovní pláně: | E71: 0 | M71: Nad úrovní pláně:
C72: Komunikace č.1 - 1.část:170,00*8,80 | E72: 1496 | M72: Komunikace č.1 - 1.část:170,00*8,80
C73: Komunikace č.1 - 2.část:60,00*8,80+12,50 | E73: 540.5 | M73: Komunikace č.1 - 2.část:60,00*8,80+12,50
A74: 12 | B74: 564871111RT2 | C74: Podklad ze štěrkodrti po zhutnění tloušťky 25 cm štěrkodrť frakce 0-32 mm | D74: m2 | E74: 45 | G74: =E74*F74 -> 0 | H74: 0.55125 | I74: =E74*H74 -> 24.80625 | J74: 0 | K74: =E74*J74 -> 0 | O74: 2 | AA74: 1 | AB74: 1 | AC74: 1 | AZ74: 1 | BA74: =IF(AZ74=1,G74,0) -> 0 | BB74: =IF(AZ74=2,G74,0) -> 0 | BC74: =IF(AZ74=3,G74,0) -> 0 | BD74: =IF(AZ74=4,G74,0) -> 0 | BE74: =IF(AZ74=5,G74,0) -> 0 | CA74: 1 | CB74: 1
C75: Nad úrovní pláně: | E75: 0 | M75: Nad úrovní pláně:
C76: Komunikace č.1 - 2.část - obratiště:10,00*4,50 | E76: 45 | M76: Komunikace č.1 - 2.část - obratiště:10,00*4,50
A77: 13 | B77: 565151211R00 | C77: Podklad z obal kam.ACP 16+,nad 3 m,tl.7 cm | D77: m2 | E77: 2081.5 | G77: =E77*F77 -> 0 | H77: 0.18463 | I77: =E77*H77 -> 384.307345 | J77: 0 | K77: =E77*J77 -> 0 | O77: 2 | AA77: 1 | AB77: 1 | AC77: 1 | AZ77: 1 | BA77: =IF(AZ77=1,G77,0) -> 0 | BB77: =IF(AZ77=2,G77,0) -> 0 | BC77: =IF(AZ77=3,G77,0) -> 0 | BD77: =IF(AZ77=4,G77,0) -> 0 | BE77: =IF(AZ77=5,G77,0) -> 0 | CA77: 1 | CB77: 1
C78: Nad úrovní pláně: | E78: 0 | M78: Nad úrovní pláně:
C79: Komunikace č.1 - 1.část:170,00*8,80 | E79: 1496 | M79: Komunikace č.1 - 1.část:170,00*8,80
C80: Komunikace č.1 - 2.část:60,00*8,80+12,50 | E80: 540.5 | M80: Komunikace č.1 - 2.část:60,00*8,80+12,50
C81: Komunikace č.1 - 2.část - obratiště:10,00*4,50 | E81: 45 | M81: Komunikace č.1 - 2.část - obratiště:10,00*4,50
A82: 14 | B82: 567122111R00 | C82: Podklad z kameniva zpev.cementem SC C8/10 tl.12 cm | D82: m2 | E82: 1852.5 | G82: =E82*F82 -> 0 | H82: 0.30651 | I82: =E82*H82 -> 567.809775 | J82: 0 | K82: =E82*J82 -> 0 | O82: 2 | AA82: 1 | AB82: 1 | AC82: 1 | AZ82: 1 | BA82: =IF(AZ82=1,G82,0) -> 0 | BB82: =IF(AZ82=2,G82,0) -> 0 | BC82: =IF(AZ82=3,G82,0) -> 0 | BD82: =IF(AZ82=4,G82,0) -> 0 | BE82: =IF(AZ82=5,G82,0) -> 0 | CA82: 1 | CB82: 1
C83: Nad úrovní pláně: | E83: 0 | M83: Nad úrovní pláně:
C84: Komunikace č.1 - 1.část:170,00*8,00 | E84: 1360 | M84: Komunikace č.1 - 1.část:170,00*8,00
C85: Komunikace č.1 - 2.část:60,00*8,00+12,50 | E85: 492.5 | M85: Komunikace č.1 - 2.část:60,00*8,00+12,50
A86: 15 | B86: 573231111R00 | C86: Postřik živičný spojovací z emulze 0,5-0,7 kg/m2 | D86: m2 | E86: 2081.5 | G86: =E86*F86 -> 0 | H86: 0.00071 | I86: =E86*H86 -> 1.477865 | J86: 0 | K86: =E86*J86 -> 0 | O86: 2 | AA86: 1 | AB86: 1 | AC86: 1 | AZ86: 1 | BA86: =IF(AZ86=1,G86,0) -> 0 | BB86: =IF(AZ86=2,G86,0) -> 0 | BC86: =IF(AZ86=3,G86,0) -> 0 | BD86: =IF(AZ86=4,G86,0) -> 0 | BE86: =IF(AZ86=5,G86,0) -> 0 | CA86: 1 | CB86: 1
C87: Nad úrovní pláně: | E87: 0 | M87: Nad úrovní pláně:
C88: Komunikace č.1 - 1.část:170,00*8,80 | E88: 1496 | M88: Komunikace č.1 - 1.část:170,00*8,80
C89: Komunikace č.1 - 2.část:60,00*8,80+12,50 | E89: 540.5 | M89: Komunikace č.1 - 2.část:60,00*8,80+12,50
C90: Komunikace č.1 - 2.část - obratiště:10,00*4,50 | E90: 45 | M90: Komunikace č.1 - 2.část - obratiště:10,00*4,50
B91: Celkem za | C91: 5 Komunikace | G91: =SUM(G61:G90) -> 0 | I91: =SUM(I61:I90) -> 3655.837735 | K91: =SUM(K61:K90) -> 0 | O91: 4 | BA91: =SUM(BA61:BA90) -> 0 | BB91: =SUM(BB61:BB90) -> 0 | BC91: =SUM(BC61:BC90) -> 0 | BD91: =SUM(BD61:BD90) -> 0 | BE91: =SUM(BE61:BE90) -> 0
A92: Díl: | B92: 99 | C92: Staveništní přesun hmot | O92: 1
A93: 16 | B93: 998225111R00 | C93: Přesun hmot, pozemní komunikace, kryt živičný | D93: t | E93: 3756.308635 | G93: =E93*F93 -> 0 | H93: 0 | I93: =E93*H93 -> 0 | K93: =E93*J93 -> 0 | O93: 2 | AA93: 7 | AB93: 1 | AC93: 2 | AZ93: 1 | BA93: =IF(AZ93=1,G93,0) -> 0 | BB93: =IF(AZ93=2,G93,0) -> 0 | BC93: =IF(AZ93=3,G93,0) -> 0 | BD93: =IF(AZ93=4,G93,0) -> 0 | BE93: =IF(AZ93=5,G93,0) -> 0 | CA93: 7 | CB93: 1
B94: Celkem za | C94: 99 Staveništní přesun hmot | G94: =SUM(G92:G93) -> 0 | I94: =SUM(I92:I93) -> 0 | K94: =SUM(K92:K93) -> 0 | O94: 4 | BA94: =SUM(BA92:BA93) -> 0 | BB94: =SUM(BB92:BB93) -> 0 | BC94: =SUM(BC92:BC93) -> 0 | BD94: =SUM(BD92:BD93) -> 0 | BE94: =SUM(BE92:BE93) -> 0

Sheet 102 3236102 KL
A1: POLOŽKOVÝ ROZPOČET
A2: Rozpočet | C2: 3236/102 | D2: Komunikace č.2 - 1.etapa | F2: JKSO | G2: 822.27
A4: Objekt | F4: SKP
A5: 102 | C5: Komunikace č.2 | F5: Měrná jednotka | G5: m2
A6: Stavba | F6: Počet jednotek | G6: 0
A7: 3236 | C7: Bytová zóna Hruštice - Károvsko - Etapa VII. | F7: Náklady na m.j. | G7: =IF(G6=0,,ROUND((F30+F32)/G6,1)) -> 0
A8: Projektant | C8: PROFES PROJEKT spol.s r.o. | F8: Typ rozpočtu
A9: Zpracovatel projektu
A10: Objednatel | C10: Město TURNOV
A11: Dodavatel | C11: . | F11: Zakázkové číslo
A12: Rozpočtoval | F12: Počet listů
A13: ROZPOČTOVÉ NÁKLADY
A14: Základní rozpočtové náklady
B15: HSV celkem | C15: ='102 3236102 Rek'!E11 -> 0
A16: Z | B16: PSV celkem | C16: ='102 3236102 Rek'!F11 -> 0
A17: R | B17: M práce celkem | C17: ='102 3236102 Rek'!H11 -> 0
A18: N | B18: M dodávky celkem | C18: ='102 3236102 Rek'!G11 -> 0
A19: ZRN celkem | C19: =SUM(C15:C18) -> 0
A21: HZS | C21: ='102 3236102 Rek'!I11 -> 0
A22: ZRN+HZS | C22: =C19+C21 -> 0
A23: ZRN+ost.náklady+HZS | C23: =C22+G23 -> 0
A24: Vypracoval | D24: Za zhotovitele | F24: Za objednatele
A25: Jméno : | D25: Jméno : | F25: Jméno :
A26: Datum : | D26: Datum : | F26: Datum :
A28: Podpis : | D28: Podpis: | F28: Podpis:
A30: Základ pro DPH | C30: 21 | D30: % | F30: =C23-F32 -> 0
A31: DPH | C31: =C30 -> 21 | D31: % | F31: =ROUND(PRODUCT(F30,C31/100),0) -> 0
A32: Základ pro DPH | C32: 0 | D32: % | F32: 0
A33: DPH | C33: =C32 -> 0 | D33: % | F33: =ROUND(PRODUCT(F32,C33/100),0) -> 0
A34: CENA ZA OBJEKT CELKEM | F34: =ROUND(SUM(F30:F33),0) -> 0
A36: Poznámka :

Sheet 102 3236102 Rek
A1: Stavba : | C1: 3236 Bytová zóna Hruštice - Károvsko - Etapa VII. | G1: Rozpočet : | H1: 3236/102
A2: Objekt : | C2: 102 Komunikace č.2 | G2: Komunikace č.2 - 1.etapa
A4: REKAPITULACE STAVEBNÍCH DÍLŮ
B6: Stavební díl | E6: HSV | F6: PSV | G6: Dodávka | H6: Montáž | I6: HZS
A7: ='102 3236102 Pol'!B7 -> 1 | B7: ='102 3236102 Pol'!C7 -> Zemní práce | E7: ='102 3236102 Pol'!BA47 -> 0 | F7: ='102 3236102 Pol'!BB47 -> 0 | G7: ='102 3236102 Pol'!BC47 -> 0 | H7: ='102 3236102 Pol'!BD47 -> 0 | I7: ='102 3236102 Pol'!BE47 -> 0
A8: ='102 3236102 Pol'!B48 -> 2 | B8: ='102 3236102 Pol'!C48 -> Základy a zvláštní zakládání | E8: ='102 3236102 Pol'!BA52 -> 0 | F8: ='102 3236102 Pol'!BB52 -> 0 | G8: ='102 3236102 Pol'!BC52 -> 0 | H8: ='102 3236102 Pol'!BD52 -> 0 | I8: ='102 3236102 Pol'!BE52 -> 0
A9: ='102 3236102 Pol'!B53 -> 5 | B9: ='102 3236102 Pol'!C53 -> Komunikace | E9: ='102 3236102 Pol'!BA72 -> 0 | F9: ='102 3236102 Pol'!BB72 -> 0 | G9: ='102 3236102 Pol'!BC72 -> 0 | H9: ='102 3236102 Pol'!BD72 -> 0 | I9: ='102 3236102 Pol'!BE72 -> 0
A10: ='102 3236102 Pol'!B73 -> 99 | B10: ='102 3236102 Pol'!C73 -> Staveništní přesun hmot | E10: ='102 3236102 Pol'!BA75 -> 0 | F10: ='102 3236102 Pol'!BB75 -> 0 | G10: ='102 3236102 Pol'!BC75 -> 0 | H10: ='102 3236102 Pol'!BD75 -> 0 | I10: ='102 3236102 Pol'!BE75 -> 0
B11: CELKEM OBJEKT | E11: =SUM(E7:E10) -> 0 | F11: =SUM(F7:F10) -> 0 | G11: =SUM(G7:G10) -> 0 | H11: =SUM(H7:H10) -> 0 | I11: =SUM(I7:I10) -> 0

Sheet 102 3236102 Pol
A1: Položkový rozpočet
A3: Stavba : | C3: 3236 Bytová zóna Hruštice - Károvsko - Etapa VII. | E3: Rozpočet: | F3: ='102 3236102 Rek'!H1 -> 3236/102
A4: Objekt : | C4: 102 Komunikace č.2 | E4: ='102 3236102 Rek'!G2 -> Komunikace č.2 - 1.etapa
A6: P.č. | B6: Číslo položky | C6: Název položky | D6: MJ | E6: množství | F6: cena / MJ | G6: celkem (Kč) | H6: Jednotková hmotnost | I6: Celková hmotnost | J6: Jednotková dem.hmot. | K6: Celková dem.hmot.
A7: Díl: | B7: 1 | C7: Zemní práce | O7: 1
A8: 1 | B8: 122202202R00 | C8: Odkopávky pro silnice v hor. 3 do 1000 m3 | D8: m3 | E8: 52 | G8: =E8*F8 -> 0 | H8: 0 | I8: =E8*H8 -> 0 | J8: 0 | K8: =E8*J8 -> 0 | O8: 2 | AA8: 1 | AB8: 1 | AC8: 1 | AZ8: 1 | BA8: =IF(AZ8=1,G8,0) -> 0 | BB8: =IF(AZ8=2,G8,0) -> 0 | BC8: =IF(AZ8=3,G8,0) -> 0 | BD8: =IF(AZ8=4,G8,0) -> 0 | BE8: =IF(AZ8=5,G8,0) -> 0 | CA8: 1 | CB8: 1
C9: Od úrovně páně pro realizaci sanace: | E9: 0 | M9: Od úrovně páně pro realizaci sanace:
C10: Začátek provozního součtu | E10: 0 | M10: Začátek provozního součtu
C11: Komunikace č.2:50,00*5,20*0,40 | E11: 104 | M11: Komunikace č.2:50,00*5,20*0,40
C12: Konec provozního součtu | E12: 104 | M12: Konec provozního součtu
C13: V hornině tř. 3 - 50%:104,0000*0,5 | E13: 52 | M13: V hornině tř. 3 - 50%:104,0000*0,5
A14: 2 | B14: 122202209R00 | C14: Příplatek za lepivost - odkop. pro silnice v hor.3 | D14: m3 | E14: 26 | G14: =E14*F14 -> 0 | H14: 0 | I14: =E14*H14 -> 0 | J14: 0 | K14: =E14*J14 -> 0 | O14: 2 | AA14: 1 | AB14: 1 | AC14: 1 | AZ14: 1 | BA14: =IF(AZ14=1,G14,0) -> 0 | BB14: =IF(AZ14=2,G14,0) -> 0 | BC14: =IF(AZ14=3,G14,0) -> 0 | BD14: =IF(AZ14=4,G14,0) -> 0 | BE14: =IF(AZ14=5,G14,0) -> 0 | CA14: 1 | CB14: 1
C15: Od úrovně páně pro realizaci sanace: | E15: 0 | M15: Od úrovně páně pro realizaci sanace:
C16: Začátek provozního součtu | E16: 0 | M16: Začátek provozního součtu
C17: Komunikace č.2:50,00*5,20*0,40 | E17: 104 | M17: Komunikace č.2:50,00*5,20*0,40
C18: Konec provozního součtu | E18: 104 | M18: Konec provozního součtu
C19: V hornině tř. 3 - 50%:104,0000*0,5*0,5 | E19: 26 | M19: V hornině tř. 3 - 50%:104,0000*0,5*0,5
A20: 3 | B20: 122302202R00 | C20: Odkopávky pro silnice v hor. 4 do 1000 m3 | D20: m3 | E20: 52 | G20: =E20*F20 -> 0 | H20: 0 | I20: =E20*H20 -> 0 | J20: 0 | K20: =E20*J20 -> 0 | O20: 2 | AA20: 1 | AB20: 1 | AC20: 1 | AZ20: 1 | BA20: =IF(AZ20=1,G20,0) -> 0 | BB20: =IF(AZ20=2,G20,0) -> 0 | BC20: =IF(AZ20=3,G20,0) -> 0 | BD20: =IF(AZ20=4,G20,0) -> 0 | BE20: =IF(AZ20=5,G20,0) -> 0 | CA20: 1 | CB20: 1
C21: Od úrovně páně pro realizaci sanace: | E21: 0 | M21: Od úrovně páně pro realizaci sanace:
C22: Začátek provozního součtu | E22: 0 | M22: Začátek provozního součtu
C23: Komunikace č.2:50,00*5,20*0,40 | E23: 104 | M23: Komunikace č.2:50,00*5,20*0,40
C24: Konec provozního součtu | E24: 104 | M24: Konec provozního součtu
C25: V hornině tř. 4 - 50%:104,0000*0,5 | E25: 52 | M25: V hornině tř. 4 - 50%:104,0000*0,5
A26: 4 | B26: 122302209R00 | C26: Příplatek za lepivost - odkop pro silnice v hor. 4 | D26: m3 | E26: 26 | G26: =E26*F26 -> 0 | H26: 0 | I26: =E26*H26 -> 0 | J26: 0 | K26: =E26*J26 -> 0 | O26: 2 | AA26: 1 | AB26: 1 | AC26: 1 | AZ26: 1 | BA26: =IF(AZ26=1,G26,0) -> 0 | BB26: =IF(AZ26=2,G26,0) -> 0 | BC26: =IF(AZ26=3,G26,0) -> 0 | BD26: =IF(AZ26=4,G26,0) -> 0 | BE26: =IF(AZ26=5,G26,0) -> 0 | CA26: 1 | CB26: 1
C27: Od úrovně páně pro realizaci sanace: | E27: 0 | M27: Od úrovně páně pro realizaci sanace:
C28: Začátek provozního součtu | E28: 0 | M28: Začátek provozního součtu
C29: Komunikace č.2:50,00*5,20*0,40 | E29: 104 | M29: Komunikace č.2:50,00*5,20*0,40
C30: Konec provozního součtu | E30: 104 | M30: Konec provozního součtu
C31: V hornině tř. 4 - 50%:104,0000*0,5*0,5 | E31: 26 | M31: V hornině tř. 4 - 50%:104,0000*0,5*0,5
A32: 5 | B32: 162701105RSZ | C32: Vodorovné přemístění výkopku z hor.1-7 na skládku zhotovitele | D32: m3 | E32: 104 | G32: =E32*F32 -> 0 | H32: 0 | I32: =E32*H32 -> 0 | J32: 0 | K32: =E32*J32 -> 0 | O32: 2 | AA32: 1 | AB32: 1 | AC32: 1 | AZ32: 1 | BA32: =IF(AZ32=1,G32,0) -> 0 | BB32: =IF(AZ32=2,G32,0) -> 0 | BC32: =IF(AZ32=3,G32,0) -> 0 | BD32: =IF(AZ32=4,G32,0) -> 0 | BE32: =IF(AZ32=5,G32,0) -> 0 | CA32: 1 | CB32: 1
C33: Od úrovně páně pro realizaci sanace: | E33: 0 | M33: Od úrovně páně pro realizaci sanace:
C34: Začátek provozního součtu | E34: 0 | M34: Začátek provozního součtu
C35: Komunikace č.2:50,00*5,20*0,40 | E35: 104 | M35: Komunikace č.2:50,00*5,20*0,40
C36: Konec provozního součtu | E36: 104 | M36: Konec provozního součtu
C37: V hornině tř. 3 - 4:104,0000 | E37: 104 | M37: V hornině tř. 3 - 4:104,0000
A38: 6 | B38: 181101102R00 | C38: Úprava pláně v zářezech v hor. 1-4, se zhutněním | D38: m2 | E38: 260 | G38: =E38*F38 -> 0 | H38: 0 | I38: =E38*H38 -> 0 | J38: 0 | K38: =E38*J38 -> 0 | O38: 2 | AA38: 1 | AB38: 1 | AC38: 1 | AZ38: 1 | BA38: =IF(AZ38=1,G38,0) -> 0 | BB38: =IF(AZ38=2,G38,0) -> 0 | BC38: =IF(AZ38=3,G38,0) -> 0 | BD38: =IF(AZ38=4,G38,0) -> 0 | BE38: =IF(AZ38=5,G38,0) -> 0 | CA38: 1 | CB38: 1
C39: Od úrovně páně pro realizaci sanace: | E39: 0 | M39: Od úrovně páně pro realizaci sanace:
C40: Komunikace č.2:50,00*5,20 | E40: 260 | M40: Komunikace č.2:50,00*5,20
A41: 7 | B41: 199000002R00 | C41: Poplatek za skládku horniny 1- 7 | D41: m3 | E41: 104 | G41: =E41*F41 -> 0 | H41: 0 | I41: =E41*H41 -> 0 | J41: 0 | K41: =E41*J41 -> 0 | O41: 2 | AA41: 1 | AB41: 1 | AC41: 1 | AZ41: 1 | BA41: =IF(AZ41=1,G41,0) -> 0 | BB41: =IF(AZ41=2,G41,0) -> 0 | BC41: =IF(AZ41=3,G41,0) -> 0 | BD41: =IF(AZ41=4,G41,0) -> 0 | BE41: =IF(AZ41=5,G41,0) -> 0 | CA41: 1 | CB41: 1
C42: Od úrovně páně pro realizaci sanace: | E42: 0 | M42: Od úrovně páně pro realizaci sanace:
C43: Začátek provozního součtu | E43: 0 | M43: Začátek provozního součtu
C44: Komunikace č.2:50,00*5,20*0,40 | E44: 104 | M44: Komunikace č.2:50,00*5,20*0,40
C45: Konec provozního součtu | E45: 104 | M45: Konec provozního součtu
C46: V hornině tř. 3 - 4:104,0000 | E46: 104 | M46: V hornině tř. 3 - 4:104,0000
B47: Celkem za | C47: 1 Zemní práce | G47: =SUM(G7:G46) -> 0 | I47: =SUM(I7:I46) -> 0 | K47: =SUM(K7:K46) -> 0 | O47: 4 | BA47: =SUM(BA7:BA46) -> 0 | BB47: =SUM(BB7:BB46) -> 0 | BC47: =SUM(BC7:BC46) -> 0 | BD47: =SUM(BD7:BD46) -> 0 | BE47: =SUM(BE7:BE46) -> 0
A48: Díl: | B48: 2 | C48: Základy a zvláštní zakládání | O48: 1
A49: 8 | B49: 212810010RAD | C49: Trativody z PVC drenážních flexibilních trubek lože štěrkopísek a obsyp kamenivo, trubky d 160 mm | D49: m | E49: 50 | G49: =E49*F49 -> 0 | H49: 0.43683 | I49: =E49*H49 -> 21.8415 | J49: 0 | K49: =E49*J49 -> 0 | O49: 2 | AA49: 1 | AB49: 1 | AC49: 1 | AZ49: 1 | BA49: =IF(AZ49=1,G49,0) -> 0 | BB49: =IF(AZ49=2,G49,0) -> 0 | BC49: =IF(AZ49=3,G49,0) -> 0 | BD49: =IF(AZ49=4,G49,0) -> 0 | BE49: =IF(AZ49=5,G49,0) -> 0 | CA49: 1 | CB49: 1
C50: Součástí položky je i obalení drenáže separační geotextílií | L50: Součástí položky je i obalení drenáže separační geotextílií | O50: 3
C51: Komunikace č.2 - 1.část:50,00 | E51: 50 | M51: Komunikace č.2 - 1.část:50,00
B52: Celkem za | C52: 2 Základy a zvláštní zakládání | G52: =SUM(G48:G51) -> 0 | I52: =SUM(I48:I51) -> 21.8415 | K52: =SUM(K48:K51) -> 0 | O52: 4 | BA52: =SUM(BA48:BA51) -> 0 | BB52: =SUM(BB48:BB51) -> 0 | BC52: =SUM(BC48:BC51) -> 0 | BD52: =SUM(BD48:BD51) -> 0 | BE52: =SUM(BE48:BE51) -> 0
A53: Díl: | B53: 5 | C53: Komunikace | O53: 1
A54: 9 | B54: 564661111R00 | C54: Podklad z kameniva drceného 63-125 mm, tl. 20 cm | D54: m2 | E54: 26 | G54: =E54*F54 -> 0 | H54: 0.43 | I54: =E54*H54 -> 11.18 | J54: 0 | K54: =E54*J54 -> 0 | O54: 2 | AA54: 1 | AB54: 1 | AC54: 1 | AZ54: 1 | BA54: =IF(AZ54=1,G54,0) -> 0 | BB54: =IF(AZ54=2,G54,0) -> 0 | BC54: =IF(AZ54=3,G54,0) -> 0 | BD54: =IF(AZ54=4,G54,0) -> 0 | BE54: =IF(AZ54=5,G54,0) -> 0 | CA54: 1 | CB54: 1
C55: Od úrovně páně pro realizaci sanace: | E55: 0 | M55: Od úrovně páně pro realizaci sanace:
C56: Komunikace č.2:5,00*5,20 | E56: 26 | M56: Komunikace č.2:5,00*5,20
A57: 10 | B57: 564761111R00 | C57: Podklad z kameniva drceného vel.32-63 mm,tl. 20 cm | D57: m2 | E57: 260 | G57: =E57*F57 -> 0 | H57: 0.43 | I57: =E57*H57 -> 111.8 | J57: 0 | K57: =E57*J57 -> 0 | O57: 2 | AA57: 1 | AB57: 1 | AC57: 1 | AZ57: 1 | BA57: =IF(AZ57=1,G57,0) -> 0 | BB57: =IF(AZ57=2,G57,0) -> 0 | BC57: =IF(AZ57=3,G57,0) -> 0 | BD57: =IF(AZ57=4,G57,0) -> 0 | BE57: =IF(AZ57=5,G57,0) -> 0 | CA57: 1 | CB57: 1
C58: Od úrovně páně pro realizaci sanace: | E58: 0 | M58: Od úrovně páně pro realizaci sanace:
C59: Komunikace č.2:50,00*5,20 | E59: 260 | M59: Komunikace č.2:50,00*5,20
A60: 11 | B60: 564861111RT2 | C60: Podklad ze štěrkodrti po zhutnění tloušťky 20 cm štěrkodrť frakce 0-32 mm | D60: m2 | E60: 217.8 | G60: =E60*F60 -> 0 | H60: 0.441 | I60: =E60*H60 -> 96.0498 | J60: 0 | K60: =E60*J60 -> 0 | O60: 2 | AA60: 1 | AB60: 1 | AC60: 1 | AZ60: 1 | BA60: =IF(AZ60=1,G60,0) -> 0 | BB60: =IF(AZ60=2,G60,0) -> 0 | BC60: =IF(AZ60=3,G60,0) -> 0 | BD60: =IF(AZ60=4,G60,0) -> 0 | BE60: =IF(AZ60=5,G60,0) -> 0 | CA60: 1 | CB60: 1
C61: Nad úrovní pláně: | E61: 0 | M61: Nad úrovní pláně:
C62: Komunikace č.2:50,00*4,20+6,50*1,20 | E62: 217.8 | M62: Komunikace č.2:50,00*4,20+6,50*1,20
A63: 12 | B63: 565151211R00 | C63: Podklad z obal kam.ACP 16+,nad 3 m,tl.7 cm | D63: m2 | E63: 198.4 | G63: =E63*F63 -> 0 | H63: 0.18463 | I63: =E63*H63 -> 36.630592 | J63: 0 | K63: =E63*J63 -> 0 | O63: 2 | AA63: 1 | AB63: 1 | AC63: 1 | AZ63: 1 | BA63: =IF(AZ63=1,G63,0) -> 0 | BB63: =IF(AZ63=2,G63,0) -> 0 | BC63: =IF(AZ63=3,G63,0) -> 0 | BD63: =IF(AZ63=4,G63,0) -> 0 | BE63: =IF(AZ63=5,G63,0) -> 0 | CA63: 1 | CB63: 1
C64: Nad úrovní pláně: | E64: 0 | M64: Nad úrovní pláně:
C65: Komunikace č.2:50,00*3,80+6,00*1,40 | E65: 198.4 | M65: Komunikace č.2:50,00*3,80+6,00*1,40
A66: 13 | B66: 567122111R00 | C66: Podklad z kameniva zpev.cementem SC C8/10 tl.12 cm | D66: m2 | E66: 198.4 | G66: =E66*F66 -> 0 | H66: 0.30651 | I66: =E66*H66 -> 60.811584 | J66: 0 | K66: =E66*J66 -> 0 | O66: 2 | AA66: 1 | AB66: 1 | AC66: 1 | AZ66: 1 | BA66: =IF(AZ66=1,G66,0) -> 0 | BB66: =IF(AZ66=2,G66,0) -> 0 | BC66: =IF(AZ66=3,G66,0) -> 0 | BD66: =IF(AZ66=4,G66,0) -> 0 | BE66: =IF(AZ66=5,G66,0) -> 0 | CA66: 1 | CB66: 1
C67: Nad úrovní pláně: | E67: 0 | M67: Nad úrovní pláně:
C68: Komunikace č.2:50,00*3,80+6,00*1,40 | E68: 198.4 | M68: Komunikace č.2:50,00*3,80+6,00*1,40
A69: 14 | B69: 573231111R00 | C69: Postřik živičný spojovací z emulze 0,5-0,7 kg/m2 | D69: m2 | E69: 198.4 | G69: =E69*F69 -> 0 | H69: 0.00071 | I69: =E69*H69 -> 0.140864 | J69: 0 | K69: =E69*J69 -> 0 | O69: 2 | AA69: 1 | AB69: 1 | AC69: 1 | AZ69: 1 | BA69: =IF(AZ69=1,G69,0) -> 0 | BB69: =IF(AZ69=2,G69,0) -> 0 | BC69: =IF(AZ69=3,G69,0) -> 0 | BD69: =IF(AZ69=4,G69,0) -> 0 | BE69: =IF(AZ69=5,G69,0) -> 0 | CA69: 1 | CB69: 1
C70: Nad úrovní pláně: | E70: 0 | M70: Nad úrovní pláně:
C71: Komunikace č.2:50,00*3,80+6,00*1,40 | E71: 198.4 | M71: Komunikace č.2:50,00*3,80+6,00*1,40
B72: Celkem za | C72: 5 Komunikace | G72: =SUM(G53:G71) -> 0 | I72: =SUM(I53:I71) -> 316.61284 | K72: =SUM(K53:K71) -> 0 | O72: 4 | BA72: =SUM(BA53:BA71) -> 0 | BB72: =SUM(BB53:BB71) -> 0 | BC72: =SUM(BC53:BC71) -> 0 | BD72: =SUM(BD53:BD71) -> 0 | BE72: =SUM(BE53:BE71) -> 0
A73: Díl: | B73: 99 | C73: Staveništní přesun hmot | O73: 1
A74: 15 | B74: 998225111R00 | C74: Přesun hmot, pozemní komunikace, kryt živičný | D74: t | E74: 338.45434 | G74: =E74*F74 -> 0 | H74: 0 | I74: =E74*H74 -> 0 | K74: =E74*J74 -> 0 | O74: 2 | AA74: 7 | AB74: 1 | AC74: 2 | AZ74: 1 | BA74: =IF(AZ74=1,G74,0) -> 0 | BB74: =IF(AZ74=2,G74,0) -> 0 | BC74: =IF(AZ74=3,G74,0) -> 0 | BD74: =IF(AZ74=4,G74,0) -> 0 | BE74: =IF(AZ74=5,G74,0) -> 0 | CA74: 7 | CB74: 1
B75: Celkem za | C75: 99 Staveništní přesun hmot | G75: =SUM(G73:G74) -> 0 | I75: =SUM(I73:I74) -> 0 | K75: =SUM(K73:K74) -> 0 | O75: 4 | BA75: =SUM(BA73:BA74) -> 0 | BB75: =SUM(BB73:BB74) -> 0 | BC75: =SUM(BC73:BC74) -> 0 | BD75: =SUM(BD73:BD74) -> 0 | BE75: =SUM(BE73:BE74) -> 0

Sheet 301 3236301 KL
A1: POLOŽKOVÝ ROZPOČET
A2: Rozpočet | C2: 3236/301 | D2: Přeložka jednotné kanalizace | F2: JKSO | G2: 827.21.A4
A4: Objekt | F4: SKP
A5: 301 | C5: Přeložka jednotné kanalizace | F5: Měrná jednotka | G5: m
A6: Stavba | F6: Počet jednotek | G6: 0
A7: 3236 | C7: Bytová zóna Hruštice - Károvsko - Etapa VII. | F7: Náklady na m.j. | G7: =IF(G6=0,,ROUND((F30+F32)/G6,1)) -> 0
A8: Projektant | C8: PROFES PROJEKT spol.s r.o. | F8: Typ rozpočtu
A9: Zpracovatel projektu
A10: Objednatel | C10: Město TURNOV
A11: Dodavatel | C11: . | F11: Zakázkové číslo
A12: Rozpočtoval | F12: Počet listů
A13: ROZPOČTOVÉ NÁKLADY
A14: Základní rozpočtové náklady
B15: HSV celkem | C15: ='301 3236301 Rek'!E11 -> 0
A16: Z | B16: PSV celkem | C16: ='301 3236301 Rek'!F11 -> 0
A17: R | B17: M práce celkem | C17: ='301 3236301 Rek'!H11 -> 0
A18: N | B18: M dodávky celkem | C18: ='301 3236301 Rek'!G11 -> 0
A19: ZRN celkem | C19: =SUM(C15:C18) -> 0
A21: HZS | C21: ='301 3236301 Rek'!I11 -> 0
A22: ZRN+HZS | C22: =C19+C21 -> 0
A23: ZRN+ost.náklady+HZS | C23: =C22+G23 -> 0
A24: Vypracoval | D24: Za zhotovitele | F24: Za objednatele
A25: Jméno : | D25: Jméno : | F25: Jméno :
A26: Datum : | D26: Datum : | F26: Datum :
A28: Podpis : | D28: Podpis: | F28: Podpis:
A30: Základ pro DPH | C30: 21 | D30: % | F30: =C23-F32 -> 0
A31: DPH | C31: =C30 -> 21 | D31: % | F31: =ROUND(PRODUCT(F30,C31/100),0) -> 0
A32: Základ pro DPH | C32: 0 | D32: % | F32: 0
A33: DPH | C33: =C32 -> 0 | D33: % | F33: =ROUND(PRODUCT(F32,C33/100),0) -> 0
A34: CENA ZA OBJEKT CELKEM | F34: =ROUND(SUM(F30:F33),0) -> 0
A36: Poznámka :

Sheet 301 3236301 Rek
A1: Stavba : | C1: 3236 Bytová zóna Hruštice - Károvsko - Etapa VII. | G1: Rozpočet : | H1: 3236/301
A2: Objekt : | C2: 301 Přeložka jednotné kanalizace | G2: Přeložka jednotné kanalizace
A4: REKAPITULACE STAVEBNÍCH DÍLŮ
B6: Stavební díl | E6: HSV | F6: PSV | G6: Dodávka | H6: Montáž | I6: HZS
A7: ='301 3236301 Pol'!B7 -> 1 | B7: ='301 3236301 Pol'!C7 -> Zemní práce | E7: ='301 3236301 Pol'!BA109 -> 0 | F7: ='301 3236301 Pol'!BB109 -> 0 | G7: ='301 3236301 Pol'!BC109 -> 0 | H7: ='301 3236301 Pol'!BD109 -> 0 | I7: ='301 3236301 Pol'!BE109 -> 0
A8: ='301 3236301 Pol'!B110 -> 45 | B8: ='301 3236301 Pol'!C110 -> Podkladní a vedlejší konstrukce | E8: ='301 3236301 Pol'!BA127 -> 0 | F8: ='301 3236301 Pol'!BB127 -> 0 | G8: ='301 3236301 Pol'!BC127 -> 0 | H8: ='301 3236301 Pol'!BD127 -> 0 | I8: ='301 3236301 Pol'!BE127 -> 0
A9: ='301 3236301 Pol'!B128 -> 8 | B9: ='301 3236301 Pol'!C128 -> Trubní vedení | E9: ='301 3236301 Pol'!BA292 -> 0 | F9: ='301 3236301 Pol'!BB292 -> 0 | G9: ='301 3236301 Pol'!BC292 -> 0 | H9: ='301 3236301 Pol'!BD292 -> 0 | I9: ='301 3236301 Pol'!BE292 -> 0
A10: ='301 3236301 Pol'!B293 -> 99 | B10: ='301 3236301 Pol'!C293 -> Staveništní přesun hmot | E10: ='301 3236301 Pol'!BA296 -> 0 | F10: ='301 3236301 Pol'!BB296 -> 0 | G10: ='301 3236301 Pol'!BC296 -> 0 | H10: ='301 3236301 Pol'!BD296 -> 0 | I10: ='301 3236301 Pol'!BE296 -> 0
B11: CELKEM OBJEKT | E11: =SUM(E7:E10) -> 0 | F11: =SUM(F7:F10) -> 0 | G11: =SUM(G7:G10) -> 0 | H11: =SUM(H7:H10) -> 0 | I11: =SUM(I7:I10) -> 0

Sheet 301 3236301 Pol
A1: Položkový rozpočet
A3: Stavba : | C3: 3236 Bytová zóna Hruštice - Károvsko - Etapa VII. | E3: Rozpočet: | F3: ='301 3236301 Rek'!H1 -> 3236/301
A4: Objekt : | C4: 301 Přeložka jednotné kanalizace | E4: ='301 3236301 Rek'!G2 -> Přeložka jednotné kanalizace
A6: P.č. | B6: Číslo položky | C6: Název položky | D6: MJ | E6: množství | F6: cena / MJ | G6: celkem (Kč) | H6: Jednotková hmotnost | I6: Celková hmotnost | J6: Jednotková dem.hmot. | K6: Celková dem.hmot.
A7: Díl: | B7: 1 | C7: Zemní práce | O7: 1
A8: 1 | B8: 120001101RRX | C8: Příplatek za ztížení vykopávky v blízkosti vedení | D8: m3 | E8: 14.9405 | G8: =E8*F8 -> 0 | H8: 0 | I8: =E8*H8 -> 0 | J8: 0 | K8: =E8*J8 -> 0 | O8: 2 | AA8: 1 | AB8: 1 | AC8: 1 | AZ8: 1 | BA8: =IF(AZ8=1,G8,0) -> 0 | BB8: =IF(AZ8=2,G8,0) -> 0 | BC8: =IF(AZ8=3,G8,0) -> 0 | BD8: =IF(AZ8=4,G8,0) -> 0 | BE8: =IF(AZ8=5,G8,0) -> 0 | CA8: 1 | CB8: 1
C9: Včetně ruční dokopávky a ručního výkopu. | L9: Včetně ruční dokopávky a ručního výkopu. | O9: 3
C10: Součástí položky je i případná potřeba dočasnéhon zajištění potrubí a kabelových vedení ve výkopu. | L10: Součástí položky je i případná potřeba dočasnéhon zajištění potrubí a kabelových vedení ve výkopu. | O10: 3
C11: Výkopy: | E11: 0 | M11: Výkopy:
C12: Začátek provozního součtu | E12: 0 | M12: Začátek provozního součtu
C13: Přeložka stoky PVC DN400:54,20*1,10*((2,05+2,18)/2-0,40) | E13: 102.2483 | M13: Přeložka stoky PVC DN400:54,20*1,10*((2,05+2,18)/2-0,40)
C14: Prohloubení pro RŠ:1,60*1,60*0,20*4 | E14: 2.048 | M14: Prohloubení pro RŠ:1,60*1,60*0,20*4
C15: Rozšíření pro RŠ:1,60*(1,60-1,10)*(1,95+2,06+2,08+2,05-0,40*4) | E15: 5.232 | M15: Rozšíření pro RŠ:1,60*(1,60-1,10)*(1,95+2,06+2,08+2,05-0,40*4)
C16: PKS10 PVC DN150:4,10*0,80*((2,10+1,90)/2-0,40) | E16: 5.248 | M16: PKS10 PVC DN150:4,10*0,80*((2,10+1,90)/2-0,40)
C17: PKS11 PVC DN150:4,70*0,80*((2,10+1,90)/2-0,40) | E17: 6.016 | M17: PKS11 PVC DN150:4,70*0,80*((2,10+1,90)/2-0,40)
C18: PKS12 PVC DN150:2,90*0,80*((2,10+1,90)/2-0,40) | E18: 3.712 | M18: PKS12 PVC DN150:2,90*0,80*((2,10+1,90)/2-0,40)
C19: Konec provozního součtu | E19: 124.5043 | M19: Konec provozního součtu
C20: V hornině tř. 3 - 4 - 12%:124,5043*0,12 | E20: 14.9405 | M20: V hornině tř. 3 - 4 - 12%:124,5043*0,12
A21: 2 | B21: 132201211RRX | C21: Hloubení rýh š.do 200 cm hor.3 do 100 m3,STROJNĚ | D21: m3 | E21: 62.2522 | G21: =E21*F21 -> 0 | H21: 0 | I21: =E21*H21 -> 0 | J21: 0 | K21: =E21*J21 -> 0 | O21: 2 | AA21: 1 | AB21: 1 | AC21: 1 | AZ21: 1 | BA21: =IF(AZ21=1,G21,0) -> 0 | BB21: =IF(AZ21=2,G21,0) -> 0 | BC21: =IF(AZ21=3,G21,0) -> 0 | BD21: =IF(AZ21=4,G21,0) -> 0 | BE21: =IF(AZ21=5,G21,0) -> 0 | CA21: 1 | CB21: 1
C22: Položka obsahuje hloubení rýh traktorbagrem, naložení výkopku na dopravní prostředek pro svislé, nebo vodorovné přemístění, popř. přemístění výkopku do 3 m (po povrchu území), případné zajištění rypadel polštáři, udržování pracoviště a ochranu výkopiště proti stékání srážkové vody z okolního terénu i s jejím odvodněním, nebo odvedením, přesekání a odstranění kořenů ve výkopišti, odstranění napadávek, urovnání dna výkopu. | L22: Položka obsahuje hloubení rýh traktorbagrem, naložení výkopku na dopravní prostředek pro svislé, nebo vodorovné přemístění, popř. přemístění výkopku do 3 m (po povrchu území), případné zajištění rypadel polštáři, udržování pracoviště a ochranu výkopiště proti stékání srážkové vody z okolního terénu i s jejím odvodněním, nebo odvedením, přesekání a odstranění kořenů ve výkopišti, odstranění napadávek, urovnání dna výkopu. | O22: 3
C23: Součástí položky je i zřízení a odstranění pažení rýhy v souladu s předpisy BOZP. | L23: Součástí položky je i zřízení a odstranění pažení rýhy v souladu s předpisy BOZP. | O23: 3
C24: Začátek provozního součtu | E24: 0 | M24: Začátek provozního součtu
C25: Přeložka stoky PVC DN400:54,20*1,10*((2,05+2,18)/2-0,40) | E25: 102.2483 | M25: Přeložka stoky PVC DN400:54,20*1,10*((2,05+2,18)/2-0,40)
C26: Prohloubení pro RŠ:1,60*1,60*0,20*4 | E26: 2.048 | M26: Prohloubení pro RŠ:1,60*1,60*0,20*4
C27: Rozšíření pro RŠ:1,60*(1,60-1,10)*(1,95+2,06+2,08+2,05-0,40*4) | E27: 5.232 | M27: Rozšíření pro RŠ:1,60*(1,60-1,10)*(1,95+2,06+2,08+2,05-0,40*4)
C28: PKS10 PVC DN150:4,10*0,80*((2,10+1,90)/2-0,40) | E28: 5.248 | M28: PKS10 PVC DN150:4,10*0,80*((2,10+1,90)/2-0,40)
C29: PKS11 PVC DN150:4,70*0,80*((2,10+1,90)/2-0,40) | E29: 6.016 | M29: PKS11 PVC DN150:4,70*0,80*((2,10+1,90)/2-0,40)
C30: PKS12 PVC DN150:2,90*0,80*((2,10+1,90)/2-0,40) | E30: 3.712 | M30: PKS12 PVC DN150:2,90*0,80*((2,10+1,90)/2-0,40)
C31: Konec provozního součtu | E31: 124.5043 | M31: Konec provozního součtu
C32: V hornině tř. 3 - 50%:124,5043*0,5 | E32: 62.2522 | M32: V hornině tř. 3 - 50%:124,5043*0,5
A33: 3 | B33: 132201219R00 | C33: Přípl.za lepivost,hloubení rýh 200cm,hor.3,STROJNĚ | D33: m3 | E33: 31.1261 | G33: =E33*F33 -> 0 | H33: 0 | I33: =E33*H33 -> 0 | J33: 0 | K33: =E33*J33 -> 0 | O33: 2 | AA33: 1 | AB33: 1 | AC33: 1 | AZ33: 1 | BA33: =IF(AZ33=1,G33,0) -> 0 | BB33: =IF(AZ33=2,G33,0) -> 0 | BC33: =IF(AZ33=3,G33,0) -> 0 | BD33: =IF(AZ33=4,G33,0) -> 0 | BE33: =IF(AZ33=5,G33,0) -> 0 | CA33: 1 | CB33: 1
C34: Začátek provozního součtu | E34: 0 | M34: Začátek provozního součtu
C35: Přeložka stoky PVC DN400:54,20*1,10*((2,05+2,18)/2-0,40) | E35: 102.2483 | M35: Přeložka stoky PVC DN400:54,20*1,10*((2,05+2,18)/2-0,40)
C36: Prohloubení pro RŠ:1,60*1,60*0,20*4 | E36: 2.048 | M36: Prohloubení pro RŠ:1,60*1,60*0,20*4
C37: Rozšíření pro RŠ:1,60*(1,60-1,10)*(1,95+2,06+2,08+2,05-0,40*4) | E37: 5.232 | M37: Rozšíření pro RŠ:1,60*(1,60-1,10)*(1,95+2,06+2,08+2,05-0,40*4)
C38: PKS10 PVC DN150:4,10*0,80*((2,10+1,90)/2-0,40) | E38: 5.248 | M38: PKS10 PVC DN150:4,10*0,80*((2,10+1,90)/2-0,40)
C39: PKS11 PVC DN150:4,70*0,80*((2,10+1,90)/2-0,40) | E39: 6.016 | M39: PKS11 PVC DN150:4,70*0,80*((2,10+1,90)/2-0,40)
C40: PKS12 PVC DN150:2,90*0,80*((2,10+1,90)/2-0,40) | E40: 3.712 | M40: PKS12 PVC DN150:2,90*0,80*((2,10+1,90)/2-0,40)
C41: Konec provozního součtu | E41: 124.5043 | M41: Konec provozního součtu
C42: V hornině tř. 3 - 50%:124,5043*0,5*0,5 | E42: 31.1261 | M42: V hornině tř. 3 - 50%:124,5043*0,5*0,5
A43: 4 | B43: 132301211RRX | C43: Hloubení rýh š.do 200 cm hor.4 do 100 m3, STROJNĚ | D43: m3 | E43: 62.2522 | G43: =E43*F43 -> 0 | H43: 0 | I43: =E43*H43 -> 0 | J43: 0 | K43: =E43*J43 -> 0 | O43: 2 | AA43: 1 | AB43: 1 | AC43: 1 | AZ43: 1 | BA43: =IF(AZ43=1,G43,0) -> 0 | BB43: =IF(AZ43=2,G43,0) -> 0 | BC43: =IF(AZ43=3,G43,0) -> 0 | BD43: =IF(AZ43=4,G43,0) -> 0 | BE43: =IF(AZ43=5,G43,0) -> 0 | CA43: 1 | CB43: 1
C44: Položka obsahuje hloubení rýh traktorbagrem, naložení výkopku na dopravní prostředek pro svislé, nebo vodorovné přemístění, popř. přemístění výkopku do 3 m (po povrchu území), případné zajištění rypadel polštáři, udržování pracoviště a ochranu výkopiště proti stékání srážkové vody z okolního terénu i s jejím odvodněním, nebo odvedením, přesekání a odstranění kořenů ve výkopišti, odstranění napadávek, urovnání dna výkopu. | L44: Položka obsahuje hloubení rýh traktorbagrem, naložení výkopku na dopravní prostředek pro svislé, nebo vodorovné přemístění, popř. přemístění výkopku do 3 m (po povrchu území), případné zajištění rypadel polštáři, udržování pracoviště a ochranu výkopiště proti stékání srážkové vody z okolního terénu i s jejím odvodněním, nebo odvedením, přesekání a odstranění kořenů ve výkopišti, odstranění napadávek, urovnání dna výkopu. | O44: 3
C45: Součástí položky je i zřízení a odstranění pažení rýhy v souladu s předpisy BOZP. | L45: Součástí položky je i zřízení a odstranění pažení rýhy v souladu s předpisy BOZP. | O45: 3
C46: Začátek provozního součtu | E46: 0 | M46: Začátek provozního součtu
C47: Přeložka stoky PVC DN400:54,20*1,10*((2,05+2,18)/2-0,40) | E47: 102.2483 | M47: Přeložka stoky PVC DN400:54,20*1,10*((2,05+2,18)/2-0,40)
C48: Prohloubení pro RŠ:1,60*1,60*0,20*4 | E48: 2.048 | M48: Prohloubení pro RŠ:1,60*1,60*0,20*4
C49: Rozšíření pro RŠ:1,60*(1,60-1,10)*(1,95+2,06+2,08+2,05-0,40*4) | E49: 5.232 | M49: Rozšíření pro RŠ:1,60*(1,60-1,10)*(1,95+2,06+2,08+2,05-0,40*4)
C50: PKS10 PVC DN150:4,10*0,80*((2,10+1,90)/2-0,40) | E50: 5.248 | M50: PKS10 PVC DN150:4,10*0,80*((2,10+1,90)/2-0,40)
C51: PKS11 PVC DN150:4,70*0,80*((2,10+1,90)/2-0,40) | E51: 6.016 | M51: PKS11 PVC DN150:4,70*0,80*((2,10+1,90)/2-0,40)
C52: PKS12 PVC DN150:2,90*0,80*((2,10+1,90)/2-0,40) | E52: 3.712 | M52: PKS12 PVC DN150:2,90*0,80*((2,10+1,90)/2-0,40)
C53: Konec provozního součtu | E53: 124.5043 | M53: Konec provozního součtu
C54: V hornině tř. 4 - 50%:124,5043*0,5 | E54: 62.2522 | M54: V hornině tř. 4 - 50%:124,5043*0,5
A55: 5 | B55: 132301219R00 | C55: Přípl.za lepivost,hloubení rýh 200cm,hor.4,STROJNĚ | D55: m3 | E55: 31.1261 | G55: =E55*F55 -> 0 | H55: 0 | I55: =E55*H55 -> 0 | J55: 0 | K55: =E55*J55 -> 0 | O55: 2 | AA55: 1 | AB55: 1 | AC55: 1 | AZ55: 1 | BA55: =IF(AZ55=1,G55,0) -> 0 | BB55: =IF(AZ55=2,G55,0) -> 0 | BC55: =IF(AZ55=3,G55,0) -> 0 | BD55: =IF(AZ55=4,G55,0) -> 0 | BE55: =IF(AZ55=5,G55,0) -> 0 | CA55: 1 | CB55: 1
C56: Začátek provozního součtu | E56: 0 | M56: Začátek provozního součtu
C57: Přeložka stoky PVC DN400:54,20*1,10*((2,05+2,18)/2-0,40) | E57: 102.2483 | M57: Přeložka stoky PVC DN400:54,20*1,10*((2,05+2,18)/2-0,40)
C58: Prohloubení pro RŠ:1,60*1,60*0,20*4 | E58: 2.048 | M58: Prohloubení pro RŠ:1,60*1,60*0,20*4
C59: Rozšíření pro RŠ:1,60*(1,60-1,10)*(1,95+2,06+2,08+2,05-0,40*4) | E59: 5.232 | M59: Rozšíření pro RŠ:1,60*(1,60-1,10)*(1,95+2,06+2,08+2,05-0,40*4)
C60: PKS10 PVC DN150:4,10*0,80*((2,10+1,90)/2-0,40) | E60: 5.248 | M60: PKS10 PVC DN150:4,10*0,80*((2,10+1,90)/2-0,40)
C61: PKS11 PVC DN150:4,70*0,80*((2,10+1,90)/2-0,40) | E61: 6.016 | M61: PKS11 PVC DN150:4,70*0,80*((2,10+1,90)/2-0,40)
C62: PKS12 PVC DN150:2,90*0,80*((2,10+1,90)/2-0,40) | E62: 3.712 | M62: PKS12 PVC DN150:2,90*0,80*((2,10+1,90)/2-0,40)
C63: Konec provozního součtu | E63: 124.5043 | M63: Konec provozního součtu
C64: V hornině tř. 4 - 50%:124,5043*0,5*0,5 | E64: 31.1261 | M64: V hornině tř. 4 - 50%:124,5043*0,5*0,5
A65: 6 | B65: 162701105RSZ | C65: Vodorovné přemístění výkopku z hor.1-7 na skládku zhotovitele | D65: m3 | E65: 96.0963 | G65: =E65*F65 -> 0 | H65: 0 | I65: =E65*H65 -> 0 | J65: 0 | K65: =E65*J65 -> 0 | O65: 2 | AA65: 1 | AB65: 1 | AC65: 1 | AZ65: 1 | BA65: =IF(AZ65=1,G65,0) -> 0 | BB65: =IF(AZ65=2,G65,0) -> 0 | BC65: =IF(AZ65=3,G65,0) -> 0 | BD65: =IF(AZ65=4,G65,0) -> 0 | BE65: =IF(AZ65=5,G65,0) -> 0 | CA65: 1 | CB65: 1
C66: Výkopy: | E66: 0 | M66: Výkopy:
C67: Začátek provozního součtu | E67: 0 | M67: Začátek provozního součtu
C68: Přeložka stoky PVC DN400:54,20*1,10*((2,05+2,18)/2-0,40) | E68: 102.2483 | M68: Přeložka stoky PVC DN400:54,20*1,10*((2,05+2,18)/2-0,40)
C69: Prohloubení pro RŠ:1,60*1,60*0,20*4 | E69: 2.048 | M69: Prohloubení pro RŠ:1,60*1,60*0,20*4
C70: Rozšíření pro RŠ:1,60*(1,60-1,10)*(1,95+2,06+2,08+2,05-0,40*4) | E70: 5.232 | M70: Rozšíření pro RŠ:1,60*(1,60-1,10)*(1,95+2,06+2,08+2,05-0,40*4)
C71: PKS10 PVC DN150:4,10*0,80*((2,10+1,90)/2-0,40) | E71: 5.248 | M71: PKS10 PVC DN150:4,10*0,80*((2,10+1,90)/2-0,40)
C72: PKS11 PVC DN150:4,70*0,80*((2,10+1,90)/2-0,40) | E72: 6.016 | M72: PKS11 PVC DN150:4,70*0,80*((2,10+1,90)/2-0,40)
C73: PKS12 PVC DN150:2,90*0,80*((2,10+1,90)/2-0,40) | E73: 3.712 | M73: PKS12 PVC DN150:2,90*0,80*((2,10+1,90)/2-0,40)
C74: Konec provozního součtu | E74: 124.5043 | M74: Konec provozního součtu
C75: V hornině tř. 3 - 4 :124,5043 | E75: 124.5043 | M75: V hornině tř. 3 - 4 :124,5043
C76: Odpočet zásypů zeminou:-28,4080 | E76: -28.408 | M76: Odpočet zásypů zeminou:-28,4080
A77: 7 | B77: 174100050RAA | C77: Zásyp jam,rýh a šachet štěrkodrtí fr. 0-63 mm včetně dovozu štěrkodrtě | D77: m3 | E77: 43.0694 | G77: =E77*F77 -> 0 | H77: 1.873 | I77: =E77*H77 -> 80.6689862 | J77: 0 | K77: =E77*J77 -> 0 | O77: 2 | AA77: 1 | AB77: 1 | AC77: 1 | AZ77: 1 | BA77: =IF(AZ77=1,G77,0) -> 0 | BB77: =IF(AZ77=2,G77,0) -> 0 | BC77: =IF(AZ77=3,G77,0) -> 0 | BD77: =IF(AZ77=4,G77,0) -> 0 | BE77: =IF(AZ77=5,G77,0) -> 0 | CA77: 1 | CB77: 1
C78: Přeložka stoky PVC DN400:54,20*1,10*((2,05+2,18)/2-0,40-0,10-0,40-0,30-0,30) | E78: 36.6663 | M78: Přeložka stoky PVC DN400:54,20*1,10*((2,05+2,18)/2-0,40-0,10-0,40-0,30-0,30)
C79: Prohloubení pro RŠ:1,60*1,60*0,20*4 | E79: 2.048 | M79: Prohloubení pro RŠ:1,60*1,60*0,20*4
C80: Rozšíření pro RŠ:1,60*(1,60-1,10)*(1,95+2,06+2,08+2,05-0,40*4) | E80: 5.232 | M80: Rozšíření pro RŠ:1,60*(1,60-1,10)*(1,95+2,06+2,08+2,05-0,40*4)
C81: Odpočet objemu RŠ:-7,8969 | E81: -7.8969 | M81: Odpočet objemu RŠ:-7,8969
C82: PKS10 PVC DN150:4,10*0,80*((2,10+1,90)/2-0,40-0,10-0,15-0,30-0,30) | E82: 2.46 | M82: PKS10 PVC DN150:4,10*0,80*((2,10+1,90)/2-0,40-0,10-0,15-0,30-0,30)
C83: PKS11 PVC DN150:4,70*0,80*((2,10+1,90)/2-0,40-0,10-0,15-0,30-0,30) | E83: 2.82 | M83: PKS11 PVC DN150:4,70*0,80*((2,10+1,90)/2-0,40-0,10-0,15-0,30-0,30)
C84: PKS12 PVC DN150:2,90*0,80*((2,10+1,90)/2-0,40-0,10-0,15-0,30-0,30) | E84: 1.74 | M84: PKS12 PVC DN150:2,90*0,80*((2,10+1,90)/2-0,40-0,10-0,15-0,30-0,30)
A85: 8 | B85: 174101101R00 | C85: Zásyp jam, rýh, šachet se zhutněním | D85: m3 | E85: 28.408 | G85: =E85*F85 -> 0 | H85: 0 | I85: =E85*H85 -> 0 | J85: 0 | K85: =E85*J85 -> 0 | O85: 2 | AA85: 1 | AB85: 1 | AC85: 1 | AZ85: 1 | BA85: =IF(AZ85=1,G85,0) -> 0 | BB85: =IF(AZ85=2,G85,0) -> 0 | BC85: =IF(AZ85=3,G85,0) -> 0 | BD85: =IF(AZ85=4,G85,0) -> 0 | BE85: =IF(AZ85=5,G85,0) -> 0 | CA85: 1 | CB85: 1
C86: včetně strojního přemístění materiálu pro zásyp ze vzdálenosti do 10 m od okraje zásypu | L86: včetně strojního přemístění materiálu pro zásyp ze vzdálenosti do 10 m od okraje zásypu | O86: 3
C87: Přeložka stoky PVC DN400:54,20*1,10*0,40 | E87: 23.848 | M87: Přeložka stoky PVC DN400:54,20*1,10*0,40
C88: Rozšíření pro RŠ:1,60*(1,60-1,10)*0,40*4 | E88: 1.28 | M88: Rozšíření pro RŠ:1,60*(1,60-1,10)*0,40*4
C89: PKS10 PVC DN150:4,10*0,80*0,40 | E89: 1.312 | M89: PKS10 PVC DN150:4,10*0,80*0,40
C90: PKS11 PVC DN150:4,70*0,80*0,40 | E90: 1.504 | M90: PKS11 PVC DN150:4,70*0,80*0,40
C91: PKS12 PVC DN150:2,90*0,40*0,40 | E91: 0.464 | M91: PKS12 PVC DN150:2,90*0,40*0,40
A92: 9 | B92: 175100020RAA | C92: Obsyp potrubí štěrkopískem včetně dovozu štěrkopísku | D92: m3 | E92: 38.9283 | G92: =E92*F92 -> 0 | H92: 1.873 | I92: =E92*H92 -> 72.9127059 | J92: 0 | K92: =E92*J92 -> 0 | O92: 2 | AA92: 1 | AB92: 1 | AC92: 1 | AZ92: 1 | BA92: =IF(AZ92=1,G92,0) -> 0 | BB92: =IF(AZ92=2,G92,0) -> 0 | BC92: =IF(AZ92=3,G92,0) -> 0 | BD92: =IF(AZ92=4,G92,0) -> 0 | BE92: =IF(AZ92=5,G92,0) -> 0 | CA92: 1 | CB92: 1
C93: Přeložka stoky PVC DN400:54,20*(1,10*(0,40+0,30)-0,20^2*Pi) | E93: 34.923 | M93: Přeložka stoky PVC DN400:54,20*(1,10*(0,40+0,30)-0,20^2*Pi)
C94: PKS10 PVC DN150:4,10*(0,80*(0,15+0,30)-0,075^2*Pi) | E94: 1.4035 | M94: PKS10 PVC DN150:4,10*(0,80*(0,15+0,30)-0,075^2*Pi)
C95: PKS11 PVC DN150:4,70*(0,80*(0,15+0,30)-0,075^2*Pi) | E95: 1.6089 | M95: PKS11 PVC DN150:4,70*(0,80*(0,15+0,30)-0,075^2*Pi)
C96: PKS12 PVC DN150:2,90*(0,80*(0,15+0,30)-0,075^2*Pi) | E96: 0.9928 | M96: PKS12 PVC DN150:2,90*(0,80*(0,15+0,30)-0,075^2*Pi)
A97: 10 | B97: 199000002R00 | C97: Poplatek za skládku horniny 1- 7 | D97: m3 | E97: 96.0963 | G97: =E97*F97 -> 0 | H97: 0 | I97: =E97*H97 -> 0 | J97: 0 | K97: =E97*J97 -> 0 | O97: 2 | AA97: 1 | AB97: 1 | AC97: 1 | AZ97: 1 | BA97: =IF(AZ97=1,G97,0) -> 0 | BB97: =IF(AZ97=2,G97,0) -> 0 | BC97: =IF(AZ97=3,G97,0) -> 0 | BD97: =IF(AZ97=4,G97,0) -> 0 | BE97: =IF(AZ97=5,G97,0) -> 0 | CA97: 1 | CB97: 1
C98: Výkopy: | E98: 0 | M98: Výkopy:
C99: Začátek provozního součtu | E99: 0 | M99: Začátek provozního součtu
C100: Přeložka stoky PVC DN400:54,20*1,10*((2,05+2,18)/2-0,40) | E100: 102.2483 | M100: Přeložka stoky PVC DN400:54,20*1,10*((2,05+2,18)/2-0,40)
C101: Prohloubení pro RŠ:1,60*1,60*0,20*4 | E101: 2.048 | M101: Prohloubení pro RŠ:1,60*1,60*0,20*4
C102: Rozšíření pro RŠ:1,60*(1,60-1,10)*(1,95+2,06+2,08+2,05-0,40*4) | E102: 5.232 | M102: Rozšíření pro RŠ:1,60*(1,60-1,10)*(1,95+2,06+2,08+2,05-0,40*4)
C103: PKS10 PVC DN150:4,10*0,80*((2,10+1,90)/2-0,40) | E103: 5.248 | M103: PKS10 PVC DN150:4,10*0,80*((2,10+1,90)/2-0,40)
C104: PKS11 PVC DN150:4,70*0,80*((2,10+1,90)/2-0,40) | E104: 6.016 | M104: PKS11 PVC DN150:4,70*0,80*((2,10+1,90)/2-0,40)
C105: PKS12 PVC DN150:2,90*0,80*((2,10+1,90)/2-0,40) | E105: 3.712 | M105: PKS12 PVC DN150:2,90*0,80*((2,10+1,90)/2-0,40)
C106: Konec provozního součtu | E106: 124.5043 | M106: Konec provozního součtu
C107: V hornině tř. 3 - 4 :124,5043 | E107: 124.5043 | M107: V hornině tř. 3 - 4 :124,5043
C108: Odpočet zásypů zeminou:-28,4080 | E108: -28.408 | M108: Odpočet zásypů zeminou:-28,4080
B109: Celkem za | C109: 1 Zemní práce | G109: =SUM(G7:G108) -> 0 | I109: =SUM(I7:I108) -> 153.5816921 | K109: =SUM(K7:K108) -> 0 | O109: 4 | BA109: =SUM(BA7:BA108) -> 0 | BB109: =SUM(BB7:BB108) -> 0 | BC109: =SUM(BC7:BC108) -> 0 | BD109: =SUM(BD7:BD108) -> 0 | BE109: =SUM(BE7:BE108) -> 0
A110: Díl: | B110: 45 | C110: Podkladní a vedlejší konstrukce | O110: 1
A111: 11 | B111: 451572111R00 | C111: Lože pod potrubí z kameniva těženého 0 - 4 mm | D111: m3 | E111: 6.782 | G111: =E111*F111 -> 0 | H111: 0.43051 | I111: =E111*H111 -> 2.91971882 | J111: 0 | K111: =E111*J111 -> 0 | O111: 2 | AA111: 1 | AB111: 1 | AC111: 1 | AZ111: 1 | BA111: =IF(AZ111=1,G111,0) -> 0 | BB111: =IF(AZ111=2,G111,0) -> 0 | BC111: =IF(AZ111=3,G111,0) -> 0 | BD111: =IF(AZ111=4,G111,0) -> 0 | BE111: =IF(AZ111=5,G111,0) -> 0 | CA111: 1 | CB111: 1
C112: Přeložka stoky PVC DN400:54,20*1,10*0,10 | E112: 5.962 | M112: Přeložka stoky PVC DN400:54,20*1,10*0,10
C113: PKS10 PVC DN150:4,10*0,80*0,10 | E113: 0.328 | M113: PKS10 PVC DN150:4,10*0,80*0,10
C114: PKS11 PVC DN150:4,70*0,80*0,10 | E114: 0.376 | M114: PKS11 PVC DN150:4,70*0,80*0,10
C115: PKS12 PVC DN150:2,90*0,40*0,10 | E115: 0.116 | M115: PKS12 PVC DN150:2,90*0,40*0,10
A116: 12 | B116: 452112111R00 | C116: Osazení beton. prstenců pod poklopy,výšky do100 mm | D116: kus | E116: 7 | G116: =E116*F116 -> 0 | H116: 0.0066 | I116: =E116*H116 -> 0.0462 | J116: 0 | K116: =E116*J116 -> 0 | O116: 2 | AA116: 1 | AB116: 1 | AC116: 1 | AZ116: 1 | BA116: =IF(AZ116=1,G116,0) -> 0 | BB116: =IF(AZ116=2,G116,0) -> 0 | BC116: =IF(AZ116=3,G116,0) -> 0 | BD116: =IF(AZ116=4,G116,0) -> 0 | BE116: =IF(AZ116=5,G116,0) -> 0 | CA116: 1 | CB116: 1
C117: Volba položky se řídí výškou prstence nebo rámu. V položkách nejsou zakalkulovány náklady na dodávku betonových výrobků; | L117: Volba položky se řídí výškou prstence nebo rámu. V položkách nejsou zakalkulovány náklady na dodávku betonových výrobků; | O117: 3
C118: Přeložka stoky PVC DN400: | E118: 0 | M118: Přeložka stoky PVC DN400:
C119: VP H6:1 | E119: 1 | M119: VP H6:1
C120: VP H10:6 | E120: 6 | M120: VP H10:6
A121: 13 | B121: 59224346.B | C121: Prstenec vyrovn šachetní TBW-Q 60/625/120 | D121: kus | E121: 1.01 | G121: =E121*F121 -> 0 | H121: 0.04 | I121: =E121*H121 -> 0.0404 | K121: =E121*J121 -> 0 | O121: 2 | AA121: 3 | AB121: 1 | AC121: 59224346.B | AZ121: 1 | BA121: =IF(AZ121=1,G121,0) -> 0 | BB121: =IF(AZ121=2,G121,0) -> 0 | BC121: =IF(AZ121=3,G121,0) -> 0 | BD121: =IF(AZ121=4,G121,0) -> 0 | BE121: =IF(AZ121=5,G121,0) -> 0 | CA121: 3 | CB121: 1
C122: Přeložka stoky PVC DN400: | E122: 0 | M122: Přeložka stoky PVC DN400:
C123: VP H6:1*1,01 | E123: 1.01 | M123: VP H6:1*1,01
A124: 14 | B124: 59224348.B | C124: Prstenec vyrovn šachetní TBW-Q 100/625/120 | D124: kus | E124: 6.06 | G124: =E124*F124 -> 0 | H124: 0.068 | I124: =E124*H124 -> 0.41208 | K124: =E124*J124 -> 0 | O124: 2 | AA124: 3 | AB124: 1 | AC124: 59224348.B | AZ124: 1 | BA124: =IF(AZ124=1,G124,0) -> 0 | BB124: =IF(AZ124=2,G124,0) -> 0 | BC124: =IF(AZ124=3,G124,0) -> 0 | BD124: =IF(AZ124=4,G124,0) -> 0 | BE124: =IF(AZ124=5,G124,0) -> 0 | CA124: 3 | CB124: 1
C125: Přeložka stoky PVC DN400: | E125: 0 | M125: Přeložka stoky PVC DN400:
C126: VP H10:6*1,01 | E126: 6.06 | M126: VP H10:6*1,01
B127: Celkem za | C127: 45 Podkladní a vedlejší konstrukce | G127: =SUM(G110:G126) -> 0 | I127: =SUM(I110:I126) -> 3.41839882 | K127: =SUM(K110:K126) -> 0 | O127: 4 | BA127: =SUM(BA110:BA126) -> 0 | BB127: =SUM(BB110:BB126) -> 0 | BC127: =SUM(BC110:BC126) -> 0 | BD127: =SUM(BD110:BD126) -> 0 | BE127: =SUM(BE110:BE126) -> 0
A128: Díl: | B128: 8 | C128: Trubní vedení | O128: 1
A129: 15 | B129: 831350124RAA | C129: Propojení PVC potrubí DN400 na stávající šachtu | D129: soubor | E129: 1 | G129: =E129*F129 -> 0 | H129: 2.04681 | I129: =E129*H129 -> 2.04681 | J129: 0 | K129: =E129*J129 -> 0 | O129: 2 | AA129: 1 | AB129: 1 | AC129: 1 | AZ129: 1 | BA129: =IF(AZ129=1,G129,0) -> 0 | BB129: =IF(AZ129=2,G129,0) -> 0 | BC129: =IF(AZ129=3,G129,0) -> 0 | BD129: =IF(AZ129=4,G129,0) -> 0 | BE129: =IF(AZ129=5,G129,0) -> 0 | CA129: 1 | CB129: 1
C130: Součástí položky je: | L130: Součástí položky je: | O130: 3
C131: - úprava kynety revizní šachty | L131: - úprava kynety revizní šachty | O131: 3
C132: - vyvrtání otvoru pro osazení šachtové vložky DN500 | L132: - vyvrtání otvoru pro osazení šachtové vložky DN500 | O132: 3
C133: - začištění otvoru | L133: - začištění otvoru | O133: 3
A134: 16 | B134: 831350223RAA | C134: Propojení PP potrubí DN400 na novou šachtu | D134: soubor | E134: 1 | G134: =E134*F134 -> 0 | H134: 2.04681 | I134: =E134*H134 -> 2.04681 | J134: 0 | K134: =E134*J134 -> 0 | O134: 2 | AA134: 1 | AB134: 1 | AC134: 1 | AZ134: 1 | BA134: =IF(AZ134=1,G134,0) -> 0 | BB134: =IF(AZ134=2,G134,0) -> 0 | BC134: =IF(AZ134=3,G134,0) -> 0 | BD134: =IF(AZ134=4,G134,0) -> 0 | BE134: =IF(AZ134=5,G134,0) -> 0 | CA134: 1 | CB134: 1
C135: Součástí položky je: | L135: Součástí položky je: | O135: 3
C136: - úprava stávajícího potrubí | L136: - úprava stávajícího potrubí | O136: 3
C137: - propojení na novou RŠ včetně dodávky a montáže příslušných propojovacích prvků a potrubí | L137: - propojení na novou RŠ včetně dodávky a montáže příslušných propojovacích prvků a potrubí | O137: 3
O138: 3
A139: 17 | B139: 871311111RRX | C139: Montáž trubek z PVC/PP ve výkopu DN 150 mm | D139: m | E139: 11.7 | G139: =E139*F139 -> 0 | H139: 0.0001 | I139: =E139*H139 -> 0.00117 | J139: 0 | K139: =E139*J139 -> 0 | O139: 2 | AA139: 1 | AB139: 0 | AC139: 0 | AZ139: 1 | BA139: =IF(AZ139=1,G139,0) -> 0 | BB139: =IF(AZ139=2,G139,0) -> 0 | BC139: =IF(AZ139=3,G139,0) -> 0 | BD139: =IF(AZ139=4,G139,0) -> 0 | BE139: =IF(AZ139=5,G139,0) -> 0 | CA139: 1 | CB139: 0
C140: Položka je určena pro montáž potrubí z PVC nabo PP těsněných gumovým kroužkem. Volba položky se řídí vnějším průměrem trubky. V položce jsou zakalkulovány i náklady na montáž tvarovek. V položce nejsou zakalkulovány náklady na dodání trubek a tvarovek; tyto materiály se oceňují ve specifikaci. | L140: Položka je určena pro montáž potrubí z PVC nabo PP těsněných gumovým kroužkem. Volba položky se řídí vnějším průměrem trubky. V položce jsou zakalkulovány i náklady na montáž tvarovek. V položce nejsou zakalkulovány náklady na dodání trubek a tvarovek; tyto materiály se oceňují ve specifikaci. | O140: 3
C141: Přeložka stoky PVC DN400: | E141: 0 | M141: Přeložka stoky PVC DN400:
C142: PKS10 PVC DN150:4,10 | E142: 4.1 | M142: PKS10 PVC DN150:4,10
C143: PKS11 PVC DN150:4,70 | E143: 4.7 | M143: PKS11 PVC DN150:4,70
C144: PKS12 PVC DN150:2,90 | E144: 2.9 | M144: PKS12 PVC DN150:2,90
A145: 18 | B145: 871393121RRX | C145: Montáž trubek z PVC/PP ve výkopu DN 400 mm | D145: m | E145: 54.2 | G145: =E145*F145 -> 0 | H145: 1e-05 | I145: =E145*H145 -> 0.000542 | J145: 0 | K145: =E145*J145 -> 0 | O145: 2 | AA145: 1 | AB145: 1 | AC145: 1 | AZ145: 1 | BA145: =IF(AZ145=1,G145,0) -> 0 | BB145: =IF(AZ145=2,G145,0) -> 0 | BC145: =IF(AZ145=3,G145,0) -> 0 | BD145: =IF(AZ145=4,G145,0) -> 0 | BE145: =IF(AZ145=5,G145,0) -> 0 | CA145: 1 | CB145: 1
C146: Položka je určena pro montáž potrubí PVC těsněných gumovým kroužkem. Volba položky se řídí vnějším průměrem trubky. V položce jsou zakalkulovány i náklady na montáž tvarovek. . | L146: Položka je určena pro montáž potrubí PVC těsněných gumovým kroužkem. Volba položky se řídí vnějším průměrem trubky. V položce jsou zakalkulovány i náklady na montáž tvarovek. . | O146: 3
C147: Přeložka stoky PVC DN400:54,20 | E147: 54.2 | M147: Přeložka stoky PVC DN400:54,20
A148: 19 | B148: 892571111R00 | C148: Zkouška těsnosti kanalizace DN do 200, vodou | D148: m | E148: 11.7 | G148: =E148*F148 -> 0 | H148: 0 | I148: =E148*H148 -> 0 | J148: 0 | K148: =E148*J148 -> 0 | O148: 2 | AA148: 1 | AB148: 1 | AC148: 1 | AZ148: 1 | BA148: =IF(AZ148=1,G148,0) -> 0 | BB148: =IF(AZ148=2,G148,0) -> 0 | BC148: =IF(AZ148=3,G148,0) -> 0 | BD148: =IF(AZ148=4,G148,0) -> 0 | BE148: =IF(AZ148=5,G148,0) -> 0 | CA148: 1 | CB148: 1
C149: V položce jsou zakalkulovány náklady na napuštění vodou a dodání vody pro zkoušku těsnosti. | L149: V položce jsou zakalkulovány náklady na napuštění vodou a dodání vody pro zkoušku těsnosti. | O149: 3
C150: Přeložka stoky PVC DN400: | E150: 0 | M150: Přeložka stoky PVC DN400:
C151: PKS10 PVC DN150:4,10 | E151: 4.1 | M151: PKS10 PVC DN150:4,10
C152: PKS11 PVC DN150:4,70 | E152: 4.7 | M152: PKS11 PVC DN150:4,70
C153: PKS12 PVC DN150:2,90 | E153: 2.9 | M153: PKS12 PVC DN150:2,90
A154: 20 | B154: 892591111R00 | C154: Zkouška těsnosti kanalizace DN do 400, vodou | D154: m | E154: 54.2 | G154: =E154*F154 -> 0 | H154: 0 | I154: =E154*H154 -> 0 | J154: 0 | K154: =E154*J154 -> 0 | O154: 2 | AA154: 1 | AB154: 1 | AC154: 1 | AZ154: 1 | BA154: =IF(AZ154=1,G154,0) -> 0 | BB154: =IF(AZ154=2,G154,0) -> 0 | BC154: =IF(AZ154=3,G154,0) -> 0 | BD154: =IF(AZ154=4,G154,0) -> 0 | BE154: =IF(AZ154=5,G154,0) -> 0 | CA154: 1 | CB154: 1
C155: V položce jsou zakalkulovány náklady na napuštění vodou a dodání vody pro zkoušku těsnosti včetně zavakování potrubí dle zvolené technologie zhotovitele. | L155: V položce jsou zakalkulovány náklady na napuštění vodou a dodání vody pro zkoušku těsnosti včetně zavakování potrubí dle zvolené technologie zhotovitele. | O155: 3
C156: Přeložka stoky PVC DN400:54,20 | E156: 54.2 | M156: Přeložka stoky PVC DN400:54,20
A157: 21 | B157: 892601121R00 | C157: Čištění kanalizační stoky do DN 200, do 15 m | D157: úsek | E157: 3 | G157: =E157*F157 -> 0 | H157: 0 | I157: =E157*H157 -> 0 | J157: 0 | K157: =E157*J157 -> 0 | O157: 2 | AA157: 1 | AB157: 1 | AC157: 1 | AZ157: 1 | BA157: =IF(AZ157=1,G157,0) -> 0 | BB157: =IF(AZ157=2,G157,0) -> 0 | BC157: =IF(AZ157=3,G157,0) -> 0 | BD157: =IF(AZ157=4,G157,0) -> 0 | BE157: =IF(AZ157=5,G157,0) -> 0 | CA157: 1 | CB157: 1
C158: V položce je zakalkulováno: | L158: V položce je zakalkulováno: | O158: 3
C159: a) otevření a uzavření revizních šachet a čisticích kusů | L159: a) otevření a uzavření revizních šachet a čisticích kusů | O159: 3
C160: b) natažení vysokotlakých hadic k místu odkud se bude kanalizace čistit | L160: b) natažení vysokotlakých hadic k místu odkud se bude kanalizace čistit | O160: 3
C161: c) vyčištění potrubí tlakovou vodou nebo motorovým pérem. | L161: c) vyčištění potrubí tlakovou vodou nebo motorovým pérem. | O161: 3
C162: Přeložka stoky PVC DN400: | E162: 0 | M162: Přeložka stoky PVC DN400:
C163: PKS10 PVC DN150:1 | E163: 1 | M163: PKS10 PVC DN150:1
C164: PKS11 PVC DN150:1 | E164: 1 | M164: PKS11 PVC DN150:1
C165: PKS12 PVC DN150:1 | E165: 1 | M165: PKS12 PVC DN150:1
A166: 22 | B166: 892601153R00 | C166: Čištění kanalizační stoky do DN 500, do 100 m | D166: m | E166: 54.2 | G166: =E166*F166 -> 0 | H166: 0 | I166: =E166*H166 -> 0 | J166: 0 | K166: =E166*J166 -> 0 | O166: 2 | AA166: 1 | AB166: 1 | AC166: 1 | AZ166: 1 | BA166: =IF(AZ166=1,G166,0) -> 0 | BB166: =IF(AZ166=2,G166,0) -> 0 | BC166: =IF(AZ166=3,G166,0) -> 0 | BD166: =IF(AZ166=4,G166,0) -> 0 | BE166: =IF(AZ166=5,G166,0) -> 0 | CA166: 1 | CB166: 1
C167: V položce je zakalkulováno: | L167: V položce je zakalkulováno: | O167: 3
C168: a) otevření a uzavření revizních šachet a čisticích kusů | L168: a) otevření a uzavření revizních šachet a čisticích kusů | O168: 3
C169: b) natažení vysokotlakých hadic k místu odkud se bude kanalizace čistit | L169: b) natažení vysokotlakých hadic k místu odkud se bude kanalizace čistit | O169: 3
C170: c) vyčištění potrubí tlakovou vodou nebo motorovým pérem. | L170: c) vyčištění potrubí tlakovou vodou nebo motorovým pérem. | O170: 3
C171: Přeložka stoky PVC DN400:54,20 | E171: 54.2 | M171: Přeložka stoky PVC DN400:54,20
A172: 23 | B172: 892855113R00 | C172: Kontrola kanalizace TV kamerou do 100 m | D172: m | E172: 54.2 | G172: =E172*F172 -> 0 | H172: 0 | I172: =E172*H172 -> 0 | J172: 0 | K172: =E172*J172 -> 0 | O172: 2 | AA172: 1 | AB172: 1 | AC172: 1 | AZ172: 1 | BA172: =IF(AZ172=1,G172,0) -> 0 | BB172: =IF(AZ172=2,G172,0) -> 0 | BC172: =IF(AZ172=3,G172,0) -> 0 | BD172: =IF(AZ172=4,G172,0) -> 0 | BE172: =IF(AZ172=5,G172,0) -> 0 | CA172: 1 | CB172: 1
C173: Provedení kaberové prohlídky včetně dodání elektronického záznamu na CD zadavateli a tištěné dokumentace průběhu kamerové prohlídky | L173: Provedení kaberové prohlídky včetně dodání elektronického záznamu na CD zadavateli a tištěné dokumentace průběhu kamerové prohlídky | O173: 3
C174: Přeložka stoky PVC DN400:54,20 | E174: 54.2 | M174: Přeložka stoky PVC DN400:54,20
A175: 24 | B175: 892916111R00 | C175: Utěsnění přípojek do DN 200 při zkoušce kanal. | D175: sada | E175: 3 | G175: =E175*F175 -> 0 | H175: 2e-05 | I175: =E175*H175 -> 6e-05 | J175: 0 | K175: =E175*J175 -> 0 | O175: 2 | AA175: 1 | AB175: 1 | AC175: 1 | AZ175: 1 | BA175: =IF(AZ175=1,G175,0) -> 0 | BB175: =IF(AZ175=2,G175,0) -> 0 | BC175: =IF(AZ175=3,G175,0) -> 0 | BD175: =IF(AZ175=4,G175,0) -> 0 | BE175: =IF(AZ175=5,G175,0) -> 0 | CA175: 1 | CB175: 1
C176: Položka je určena pro utěsnění přípojek z jakéholiv druhu potrubí při zkoušce těsnosti vzduchem nebo vodou. V položce jsou zakalkulovány náklady na osazení a odstranění těsnicích uzávěrů, naplnění vzduchem a po provedení zkoušky vypuštění vzduchu. | L176: Položka je určena pro utěsnění přípojek z jakéholiv druhu potrubí při zkoušce těsnosti vzduchem nebo vodou. V položce jsou zakalkulovány náklady na osazení a odstranění těsnicích uzávěrů, naplnění vzduchem a po provedení zkoušky vypuštění vzduchu. | O176: 3
C177: Přeložka stoky PVC DN400: | E177: 0 | M177: Přeložka stoky PVC DN400:
C178: PKS10 PVC DN150:1 | E178: 1 | M178: PKS10 PVC DN150:1
C179: PKS11 PVC DN150:1 | E179: 1 | M179: PKS11 PVC DN150:1
C180: PKS12 PVC DN150:1 | E180: 1 | M180: PKS12 PVC DN150:1
A181: 25 | B181: 894421111RT1 | C181: Osazení betonových dílců šachet skruže rovné, na kroužek, do 0,5 t | D181: kus | E181: 4 | G181: =E181*F181 -> 0 | H181: 0 | I181: =E181*H181 -> 0 | J181: 0 | K181: =E181*J181 -> 0 | O181: 2 | AA181: 1 | AB181: 1 | AC181: 1 | AZ181: 1 | BA181: =IF(AZ181=1,G181,0) -> 0 | BB181: =IF(AZ181=2,G181,0) -> 0 | BC181: =IF(AZ181=3,G181,0) -> 0 | BD181: =IF(AZ181=4,G181,0) -> 0 | BE181: =IF(AZ181=5,G181,0) -> 0 | CA181: 1 | CB181: 1
C182: Položka je určena pro osazení betonových dílců šachet dle DIN 4034, skruže rovné na kroužek, hmotnost do 0,5 t. | L182: Položka je určena pro osazení betonových dílců šachet dle DIN 4034, skruže rovné na kroužek, hmotnost do 0,5 t. | O182: 3
C183: V položce nejsou zakalkulovány náklady na dodání betonových dílců; dílce se oceňují ve specifikaci. | L183: V položce nejsou zakalkulovány náklady na dodání betonových dílců; dílce se oceňují ve specifikaci. | O183: 3
C184: Přeložka stoky PVC DN400: | E184: 0 | M184: Přeložka stoky PVC DN400:
C185: Skruž H25:4 | E185: 4 | M185: Skruž H25:4
A186: 26 | B186: 894422111RT1 | C186: Osazení betonových dílců šachet skruže přechodové, na kroužek | D186: kus | E186: 4 | G186: =E186*F186 -> 0 | H186: 0 | I186: =E186*H186 -> 0 | J186: 0 | K186: =E186*J186 -> 0 | O186: 2 | AA186: 1 | AB186: 1 | AC186: 1 | AZ186: 1 | BA186: =IF(AZ186=1,G186,0) -> 0 | BB186: =IF(AZ186=2,G186,0) -> 0 | BC186: =IF(AZ186=3,G186,0) -> 0 | BD186: =IF(AZ186=4,G186,0) -> 0 | BE186: =IF(AZ186=5,G186,0) -> 0 | CA186: 1 | CB186: 1
C187: Položka je určena pro osazení betonových dílců šachet dle DIN 4034, skruže přechodové na kroužek. | L187: Položka je určena pro osazení betonových dílců šachet dle DIN 4034, skruže přechodové na kroužek. | O187: 3
C188: V položce nejsou zakalkulovány náklady na dodání betonových dílců | L188: V položce nejsou zakalkulovány náklady na dodání betonových dílců | O188: 3
C189: Přeložka stoky PVC DN400: | E189: 0 | M189: Přeložka stoky PVC DN400:
C190: Kónus H60:4 | E190: 4 | M190: Kónus H60:4
A191: 27 | B191: 894423111RT1 | C191: Osazení betonových dílců šachet do 2,0 t šachtová dna, na kroužek, do 2,0 t | D191: kus | E191: 4 | G191: =E191*F191 -> 0 | H191: 0 | I191: =E191*H191 -> 0 | J191: 0 | K191: =E191*J191 -> 0 | O191: 2 | AA191: 1 | AB191: 1 | AC191: 1 | AZ191: 1 | BA191: =IF(AZ191=1,G191,0) -> 0 | BB191: =IF(AZ191=2,G191,0) -> 0 | BC191: =IF(AZ191=3,G191,0) -> 0 | BD191: =IF(AZ191=4,G191,0) -> 0 | BE191: =IF(AZ191=5,G191,0) -> 0 | CA191: 1 | CB191: 1
C192: Položka je určena pro osazení betonových dílců šachet dle DIN 4034, šachtová dna na kroužek, hmotnost do 3,0 t. | L192: Položka je určena pro osazení betonových dílců šachet dle DIN 4034, šachtová dna na kroužek, hmotnost do 3,0 t. | O192: 3
C193: V položce nejsou zakalkulovány náklady na dodání betonových dílců; | L193: V položce nejsou zakalkulovány náklady na dodání betonových dílců; | O193: 3
C194: Přeložka stoky PVC DN400: | E194: 0 | M194: Přeložka stoky PVC DN400:
C195: ŠD DN400-885:4 | E195: 4 | M195: ŠD DN400-885:4
A196: 28 | B196: 894432112R00 | C196: Osazení plastové šachty revizní prům.425 mm | D196: kus | E196: 3 | G196: =E196*F196 -> 0 | H196: 0 | I196: =E196*H196 -> 0 | J196: 0 | K196: =E196*J196 -> 0 | O196: 2 | AA196: 1 | AB196: 1 | AC196: 1 | AZ196: 1 | BA196: =IF(AZ196=1,G196,0) -> 0 | BB196: =IF(AZ196=2,G196,0) -> 0 | BC196: =IF(AZ196=3,G196,0) -> 0 | BD196: =IF(AZ196=4,G196,0) -> 0 | BE196: =IF(AZ196=5,G196,0) -> 0 | CA196: 1 | CB196: 1
C197: Položka je určena pro osazení plastových revizních šachet, tvořených dnem z PP nebo PE se vtoky a výtoky a šachtovou rourou korugovanou (zvlněnou) na připravený podklad. Dno z PP se používá pro potrubí o průměru 110 - 200 mm, dno z PE pro potrubí 250 - 400 mm. | L197: Položka je určena pro osazení plastových revizních šachet, tvořených dnem z PP nebo PE se vtoky a výtoky a šachtovou rourou korugovanou (zvlněnou) na připravený podklad. Dno z PP se používá pro potrubí o průměru 110 - 200 mm, dno z PE pro potrubí 250 - 400 mm. | O197: 3
C198: V položce nejsou zakalkulovány náklady na dodání plastových dílců; dílce se oceňují ve specifikaci. Ztratné se nedoporučuje. | L198: V položce nejsou zakalkulovány náklady na dodání plastových dílců; dílce se oceňují ve specifikaci. Ztratné se nedoporučuje. | O198: 3
C199: Přeložka stoky PVC DN400: | E199: 0 | M199: Přeložka stoky PVC DN400:
C200: PKS10 PVC DN150:1 | E200: 1 | M200: PKS10 PVC DN150:1
C201: PKS11 PVC DN150:1 | E201: 1 | M201: PKS11 PVC DN150:1
C202: PKS12 PVC DN150:1 | E202: 1 | M202: PKS12 PVC DN150:1
... 94 more rows

Sheet 302 3236302 KL
A1: POLOŽKOVÝ ROZPOČET
A2: Rozpočet | C2: 3236/302 | D2: Přeložka vodovodu TLT DN250 | F2: JKSO | G2: 827.11.A3
A4: Objekt | F4: SKP
A5: 302 | C5: Přeložka vodovodu TLT DN250 | F5: Měrná jednotka | G5: m
A6: Stavba | F6: Počet jednotek | G6: 0
A7: 3236 | C7: Bytová zóna Hruštice - Károvsko - Etapa VII. | F7: Náklady na m.j. | G7: =IF(G6=0,,ROUND((F30+F32)/G6,1)) -> 0
A8: Projektant | C8: PROFES PROJEKT spol.s r.o. | F8: Typ rozpočtu
A9: Zpracovatel projektu
A10: Objednatel | C10: Město TURNOV
A11: Dodavatel | C11: . | F11: Zakázkové číslo
A12: Rozpočtoval | F12: Počet listů
A13: ROZPOČTOVÉ NÁKLADY
A14: Základní rozpočtové náklady
B15: HSV celkem | C15: ='302 3236302 Rek'!E11 -> 0
A16: Z | B16: PSV celkem | C16: ='302 3236302 Rek'!F11 -> 0
A17: R | B17: M práce celkem | C17: ='302 3236302 Rek'!H11 -> 0
A18: N | B18: M dodávky celkem | C18: ='302 3236302 Rek'!G11 -> 0
A19: ZRN celkem | C19: =SUM(C15:C18) -> 0
A21: HZS | C21: ='302 3236302 Rek'!I11 -> 0
A22: ZRN+HZS | C22: =C19+C21 -> 0
A23: ZRN+ost.náklady+HZS | C23: =C22+G23 -> 0
A24: Vypracoval | D24: Za zhotovitele | F24: Za objednatele
A25: Jméno : | D25: Jméno : | F25: Jméno :
A26: Datum : | D26: Datum : | F26: Datum :
A28: Podpis : | D28: Podpis: | F28: Podpis:
A30: Základ pro DPH | C30: 21 | D30: % | F30: =C23-F32 -> 0
A31: DPH | C31: =C30 -> 21 | D31: % | F31: =ROUND(PRODUCT(F30,C31/100),0) -> 0
A32: Základ pro DPH | C32: 0 | D32: % | F32: 0
A33: DPH | C33: =C32 -> 0 | D33: % | F33: =ROUND(PRODUCT(F32,C33/100),0) -> 0
A34: CENA ZA OBJEKT CELKEM | F34: =ROUND(SUM(F30:F33),0) -> 0
A36: Poznámka :

Sheet 302 3236302 Rek
A1: Stavba : | C1: 3236 Bytová zóna Hruštice - Károvsko - Etapa VII. | G1: Rozpočet : | H1: 3236/302
A2: Objekt : | C2: 302 Přeložka vodovodu TLT DN250 | G2: Přeložka vodovodu TLT DN250
A4: REKAPITULACE STAVEBNÍCH DÍLŮ
B6: Stavební díl | E6: HSV | F6: PSV | G6: Dodávka | H6: Montáž | I6: HZS
A7: ='302 3236302 Pol'!B7 -> 1 | B7: ='302 3236302 Pol'!C7 -> Zemní práce | E7: ='302 3236302 Pol'!BA58 -> 0 | F7: ='302 3236302 Pol'!BB58 -> 0 | G7: ='302 3236302 Pol'!BC58 -> 0 | H7: ='302 3236302 Pol'!BD58 -> 0 | I7: ='302 3236302 Pol'!BE58 -> 0
A8: ='302 3236302 Pol'!B59 -> 45 | B8: ='302 3236302 Pol'!C59 -> Podkladní a vedlejší konstrukce | E8: ='302 3236302 Pol'!BA63 -> 0 | F8: ='302 3236302 Pol'!BB63 -> 0 | G8: ='302 3236302 Pol'!BC63 -> 0 | H8: ='302 3236302 Pol'!BD63 -> 0 | I8: ='302 3236302 Pol'!BE63 -> 0
A9: ='302 3236302 Pol'!B64 -> 8 | B9: ='302 3236302 Pol'!C64 -> Trubní vedení | E9: ='302 3236302 Pol'!BA103 -> 0 | F9: ='302 3236302 Pol'!BB103 -> 0 | G9: ='302 3236302 Pol'!BC103 -> 0 | H9: ='302 3236302 Pol'!BD103 -> 0 | I9: ='302 3236302 Pol'!BE103 -> 0
A10: ='302 3236302 Pol'!B104 -> 99 | B10: ='302 3236302 Pol'!C104 -> Staveništní přesun hmot | E10: ='302 3236302 Pol'!BA107 -> 0 | F10: ='302 3236302 Pol'!BB107 -> 0 | G10: ='302 3236302 Pol'!BC107 -> 0 | H10: ='302 3236302 Pol'!BD107 -> 0 | I10: ='302 3236302 Pol'!BE107 -> 0
B11: CELKEM OBJEKT | E11: =SUM(E7:E10) -> 0 | F11: =SUM(F7:F10) -> 0 | G11: =SUM(G7:G10) -> 0 | H11: =SUM(H7:H10) -> 0 | I11: =SUM(I7:I10) -> 0

Sheet 302 3236302 Pol
A1: Položkový rozpočet
A3: Stavba : | C3: 3236 Bytová zóna Hruštice - Károvsko - Etapa VII. | E3: Rozpočet: | F3: ='302 3236302 Rek'!H1 -> 3236/302
A4: Objekt : | C4: 302 Přeložka vodovodu TLT DN250 | E4: ='302 3236302 Rek'!G2 -> Přeložka vodovodu TLT DN250
A6: P.č. | B6: Číslo položky | C6: Název položky | D6: MJ | E6: množství | F6: cena / MJ | G6: celkem (Kč) | H6: Jednotková hmotnost | I6: Celková hmotnost | J6: Jednotková dem.hmot. | K6: Celková dem.hmot.
A7: Díl: | B7: 1 | C7: Zemní práce | O7: 1
A8: 1 | B8: 120001101RRX | C8: Příplatek za ztížení vykopávky v blízkosti vedení | D8: m3 | E8: 8.8033 | G8: =E8*F8 -> 0 | H8: 0 | I8: =E8*H8 -> 0 | J8: 0 | K8: =E8*J8 -> 0 | O8: 2 | AA8: 1 | AB8: 1 | AC8: 1 | AZ8: 1 | BA8: =IF(AZ8=1,G8,0) -> 0 | BB8: =IF(AZ8=2,G8,0) -> 0 | BC8: =IF(AZ8=3,G8,0) -> 0 | BD8: =IF(AZ8=4,G8,0) -> 0 | BE8: =IF(AZ8=5,G8,0) -> 0 | CA8: 1 | CB8: 1
C9: Včetně ruční dokopávky a ručního výkopu. | L9: Včetně ruční dokopávky a ručního výkopu. | O9: 3
C10: Součástí položky je i případná potřeba dočasnéhon zajištění potrubí a kabelových vedení ve výkopu. | L10: Součástí položky je i případná potřeba dočasnéhon zajištění potrubí a kabelových vedení ve výkopu. | O10: 3
C11: Začátek provozního součtu | E11: 0 | M11: Začátek provozního součtu
C12: Přeložka řadu TLT DN250:58,30*1,00*((1,88+1,94)/2-0,40) | E12: 88.033 | M12: Přeložka řadu TLT DN250:58,30*1,00*((1,88+1,94)/2-0,40)
C13: Konec provozního součtu | E13: 88.033 | M13: Konec provozního součtu
C14: V hornině tř. 3 - 4 - 20%:88,0330*0,1 | E14: 8.8033 | M14: V hornině tř. 3 - 4 - 20%:88,0330*0,1
A15: 2 | B15: 132201211RRX | C15: Hloubení rýh š.do 200 cm hor.3 do 100 m3,STROJNĚ | D15: m3 | E15: 44.0165 | G15: =E15*F15 -> 0 | H15: 0 | I15: =E15*H15 -> 0 | J15: 0 | K15: =E15*J15 -> 0 | O15: 2 | AA15: 1 | AB15: 1 | AC15: 1 | AZ15: 1 | BA15: =IF(AZ15=1,G15,0) -> 0 | BB15: =IF(AZ15=2,G15,0) -> 0 | BC15: =IF(AZ15=3,G15,0) -> 0 | BD15: =IF(AZ15=4,G15,0) -> 0 | BE15: =IF(AZ15=5,G15,0) -> 0 | CA15: 1 | CB15: 1
C16: Položka obsahuje hloubení rýh traktorbagrem, naložení výkopku na dopravní prostředek pro svislé, nebo vodorovné přemístění, popř. přemístění výkopku do 3 m (po povrchu území), případné zajištění rypadel polštáři, udržování pracoviště a ochranu výkopiště proti stékání srážkové vody z okolního terénu i s jejím odvodněním, nebo odvedením, přesekání a odstranění kořenů ve výkopišti, odstranění napadávek, urovnání dna výkopu. | L16: Položka obsahuje hloubení rýh traktorbagrem, naložení výkopku na dopravní prostředek pro svislé, nebo vodorovné přemístění, popř. přemístění výkopku do 3 m (po povrchu území), případné zajištění rypadel polštáři, udržování pracoviště a ochranu výkopiště proti stékání srážkové vody z okolního terénu i s jejím odvodněním, nebo odvedením, přesekání a odstranění kořenů ve výkopišti, odstranění napadávek, urovnání dna výkopu. | O16: 3
C17: Součástí položky je i zřízení a odstranění pažení rýhy v souladu s předpisy BOZP. | L17: Součástí položky je i zřízení a odstranění pažení rýhy v souladu s předpisy BOZP. | O17: 3
C18: Začátek provozního součtu | E18: 0 | M18: Začátek provozního součtu
C19: Přeložka řadu TLT DN250:58,30*1,00*((1,88+1,94)/2-0,40) | E19: 88.033 | M19: Přeložka řadu TLT DN250:58,30*1,00*((1,88+1,94)/2-0,40)
C20: Konec provozního součtu | E20: 88.033 | M20: Konec provozního součtu
C21: V hornině tř. 3 - 50%:88,0330*0,5 | E21: 44.0165 | M21: V hornině tř. 3 - 50%:88,0330*0,5
A22: 3 | B22: 132201219R00 | C22: Přípl.za lepivost,hloubení rýh 200cm,hor.3,STROJNĚ | D22: m3 | E22: 22.0083 | G22: =E22*F22 -> 0 | H22: 0 | I22: =E22*H22 -> 0 | J22: 0 | K22: =E22*J22 -> 0 | O22: 2 | AA22: 1 | AB22: 1 | AC22: 1 | AZ22: 1 | BA22: =IF(AZ22=1,G22,0) -> 0 | BB22: =IF(AZ22=2,G22,0) -> 0 | BC22: =IF(AZ22=3,G22,0) -> 0 | BD22: =IF(AZ22=4,G22,0) -> 0 | BE22: =IF(AZ22=5,G22,0) -> 0 | CA22: 1 | CB22: 1
C23: Začátek provozního součtu | E23: 0 | M23: Začátek provozního součtu
C24: Přeložka řadu TLT DN250:58,30*1,00*((1,88+1,94)/2-0,40) | E24: 88.033 | M24: Přeložka řadu TLT DN250:58,30*1,00*((1,88+1,94)/2-0,40)
C25: Konec provozního součtu | E25: 88.033 | M25: Konec provozního součtu
C26: V hornině tř. 3 - 50%:88,0330*0,5*0,5 | E26: 22.0083 | M26: V hornině tř. 3 - 50%:88,0330*0,5*0,5
A27: 4 | B27: 132301211RRX | C27: Hloubení rýh š.do 200 cm hor.4 do 100 m3, STROJNĚ | D27: m3 | E27: 44.0165 | G27: =E27*F27 -> 0 | H27: 0 | I27: =E27*H27 -> 0 | J27: 0 | K27: =E27*J27 -> 0 | O27: 2 | AA27: 1 | AB27: 1 | AC27: 1 | AZ27: 1 | BA27: =IF(AZ27=1,G27,0) -> 0 | BB27: =IF(AZ27=2,G27,0) -> 0 | BC27: =IF(AZ27=3,G27,0) -> 0 | BD27: =IF(AZ27=4,G27,0) -> 0 | BE27: =IF(AZ27=5,G27,0) -> 0 | CA27: 1 | CB27: 1
C28: Položka obsahuje hloubení rýh traktorbagrem, naložení výkopku na dopravní prostředek pro svislé, nebo vodorovné přemístění, popř. přemístění výkopku do 3 m (po povrchu území), případné zajištění rypadel polštáři, udržování pracoviště a ochranu výkopiště proti stékání srážkové vody z okolního terénu i s jejím odvodněním, nebo odvedením, přesekání a odstranění kořenů ve výkopišti, odstranění napadávek, urovnání dna výkopu. | L28: Položka obsahuje hloubení rýh traktorbagrem, naložení výkopku na dopravní prostředek pro svislé, nebo vodorovné přemístění, popř. přemístění výkopku do 3 m (po povrchu území), případné zajištění rypadel polštáři, udržování pracoviště a ochranu výkopiště proti stékání srážkové vody z okolního terénu i s jejím odvodněním, nebo odvedením, přesekání a odstranění kořenů ve výkopišti, odstranění napadávek, urovnání dna výkopu. | O28: 3
C29: Součástí položky je i zřízení a odstranění pažení rýhy v souladu s předpisy BOZP. | L29: Součástí položky je i zřízení a odstranění pažení rýhy v souladu s předpisy BOZP. | O29: 3
C30: Začátek provozního součtu | E30: 0 | M30: Začátek provozního součtu
C31: Přeložka řadu TLT DN250:58,30*1,00*((1,88+1,94)/2-0,40) | E31: 88.033 | M31: Přeložka řadu TLT DN250:58,30*1,00*((1,88+1,94)/2-0,40)
C32: Konec provozního součtu | E32: 88.033 | M32: Konec provozního součtu
C33: V hornině tř. 4 - 50%:88,0330*0,5 | E33: 44.0165 | M33: V hornině tř. 4 - 50%:88,0330*0,5
A34: 5 | B34: 132301219R00 | C34: Přípl.za lepivost,hloubení rýh 200cm,hor.4,STROJNĚ | D34: m3 | E34: 22.0083 | G34: =E34*F34 -> 0 | H34: 0 | I34: =E34*H34 -> 0 | J34: 0 | K34: =E34*J34 -> 0 | O34: 2 | AA34: 1 | AB34: 1 | AC34: 1 | AZ34: 1 | BA34: =IF(AZ34=1,G34,0) -> 0 | BB34: =IF(AZ34=2,G34,0) -> 0 | BC34: =IF(AZ34=3,G34,0) -> 0 | BD34: =IF(AZ34=4,G34,0) -> 0 | BE34: =IF(AZ34=5,G34,0) -> 0 | CA34: 1 | CB34: 1
C35: Začátek provozního součtu | E35: 0 | M35: Začátek provozního součtu
C36: Přeložka řadu TLT DN250:58,30*1,00*((1,88+1,94)/2-0,40) | E36: 88.033 | M36: Přeložka řadu TLT DN250:58,30*1,00*((1,88+1,94)/2-0,40)
C37: Konec provozního součtu | E37: 88.033 | M37: Konec provozního součtu
C38: V hornině tř. 4 - 50%:88,0330*0,5*0,5 | E38: 22.0083 | M38: V hornině tř. 4 - 50%:88,0330*0,5*0,5
A39: 6 | B39: 162701105RSZ | C39: Vodorovné přemístění výkopku z hor.1-7 na skládku zhotovitele | D39: m3 | E39: 64.713 | G39: =E39*F39 -> 0 | H39: 0 | I39: =E39*H39 -> 0 | J39: 0 | K39: =E39*J39 -> 0 | O39: 2 | AA39: 1 | AB39: 1 | AC39: 1 | AZ39: 1 | BA39: =IF(AZ39=1,G39,0) -> 0 | BB39: =IF(AZ39=2,G39,0) -> 0 | BC39: =IF(AZ39=3,G39,0) -> 0 | BD39: =IF(AZ39=4,G39,0) -> 0 | BE39: =IF(AZ39=5,G39,0) -> 0 | CA39: 1 | CB39: 1
C40: Začátek provozního součtu | E40: 0 | M40: Začátek provozního součtu
C41: Přeložka řadu TLT DN250:58,30*1,00*((1,88+1,94)/2-0,40) | E41: 88.033 | M41: Přeložka řadu TLT DN250:58,30*1,00*((1,88+1,94)/2-0,40)
C42: Konec provozního součtu | E42: 88.033 | M42: Konec provozního součtu
C43: V hornině tř. 3 - 4:88,0330 | E43: 88.033 | M43: V hornině tř. 3 - 4:88,0330
C44: Odpočet zásypů zeminou:-23,3200 | E44: -23.32 | M44: Odpočet zásypů zeminou:-23,3200
A45: 7 | B45: 174100050RAA | C45: Zásyp jam,rýh a šachet štěrkodrtí fr. 0-63 mm včetně dovozu štěrkodrtě | D45: m3 | E45: 55.968 | G45: =E45*F45 -> 0 | H45: 1.873 | I45: =E45*H45 -> 104.828064 | J45: 0 | K45: =E45*J45 -> 0 | O45: 2 | AA45: 1 | AB45: 1 | AC45: 1 | AZ45: 1 | BA45: =IF(AZ45=1,G45,0) -> 0 | BB45: =IF(AZ45=2,G45,0) -> 0 | BC45: =IF(AZ45=3,G45,0) -> 0 | BD45: =IF(AZ45=4,G45,0) -> 0 | BE45: =IF(AZ45=5,G45,0) -> 0 | CA45: 1 | CB45: 1
C46: Přeložka řadu TLT DN250:58,30*1,00*((1,88+1,94)/2-0,10-0,25-0,30-0,30) | E46: 55.968 | M46: Přeložka řadu TLT DN250:58,30*1,00*((1,88+1,94)/2-0,10-0,25-0,30-0,30)
A47: 8 | B47: 174101101R00 | C47: Zásyp jam, rýh, šachet se zhutněním | D47: m3 | E47: 23.32 | G47: =E47*F47 -> 0 | H47: 0 | I47: =E47*H47 -> 0 | J47: 0 | K47: =E47*J47 -> 0 | O47: 2 | AA47: 1 | AB47: 1 | AC47: 1 | AZ47: 1 | BA47: =IF(AZ47=1,G47,0) -> 0 | BB47: =IF(AZ47=2,G47,0) -> 0 | BC47: =IF(AZ47=3,G47,0) -> 0 | BD47: =IF(AZ47=4,G47,0) -> 0 | BE47: =IF(AZ47=5,G47,0) -> 0 | CA47: 1 | CB47: 1
C48: včetně strojního přemístění materiálu pro zásyp ze vzdálenosti do 10 m od okraje zásypu | L48: včetně strojního přemístění materiálu pro zásyp ze vzdálenosti do 10 m od okraje zásypu | O48: 3
C49: Přeložka řadu TLT DN250:58,30*1,00*0,40 | E49: 23.32 | M49: Přeložka řadu TLT DN250:58,30*1,00*0,40
A50: 9 | B50: 175100020RAA | C50: Obsyp potrubí štěrkopískem včetně dovozu štěrkopísku | D50: m3 | E50: 29.2032 | G50: =E50*F50 -> 0 | H50: 1.873 | I50: =E50*H50 -> 54.6975936 | J50: 0 | K50: =E50*J50 -> 0 | O50: 2 | AA50: 1 | AB50: 1 | AC50: 1 | AZ50: 1 | BA50: =IF(AZ50=1,G50,0) -> 0 | BB50: =IF(AZ50=2,G50,0) -> 0 | BC50: =IF(AZ50=3,G50,0) -> 0 | BD50: =IF(AZ50=4,G50,0) -> 0 | BE50: =IF(AZ50=5,G50,0) -> 0 | CA50: 1 | CB50: 1
C51: Přeložka řadu TLT DN250:58,30*(1,00*(0,25+0,30)-0,125^2*Pi) | E51: 29.2032 | M51: Přeložka řadu TLT DN250:58,30*(1,00*(0,25+0,30)-0,125^2*Pi)
A52: 10 | B52: 199000002R00 | C52: Poplatek za skládku horniny 1- 7 | D52: m3 | E52: 64.713 | G52: =E52*F52 -> 0 | H52: 0 | I52: =E52*H52 -> 0 | J52: 0 | K52: =E52*J52 -> 0 | O52: 2 | AA52: 1 | AB52: 1 | AC52: 1 | AZ52: 1 | BA52: =IF(AZ52=1,G52,0) -> 0 | BB52: =IF(AZ52=2,G52,0) -> 0 | BC52: =IF(AZ52=3,G52,0) -> 0 | BD52: =IF(AZ52=4,G52,0) -> 0 | BE52: =IF(AZ52=5,G52,0) -> 0 | CA52: 1 | CB52: 1
C53: Začátek provozního součtu | E53: 0 | M53: Začátek provozního součtu
C54: Přeložka řadu TLT DN250:58,30*1,00*((1,88+1,94)/2-0,40) | E54: 88.033 | M54: Přeložka řadu TLT DN250:58,30*1,00*((1,88+1,94)/2-0,40)
C55: Konec provozního součtu | E55: 88.033 | M55: Konec provozního součtu
C56: V hornině tř. 3 - 4:88,0330 | E56: 88.033 | M56: V hornině tř. 3 - 4:88,0330
C57: Odpočet zásypů zeminou:-23,3200 | E57: -23.32 | M57: Odpočet zásypů zeminou:-23,3200
B58: Celkem za | C58: 1 Zemní práce | G58: =SUM(G7:G57) -> 0 | I58: =SUM(I7:I57) -> 159.5256576 | K58: =SUM(K7:K57) -> 0 | O58: 4 | BA58: =SUM(BA7:BA57) -> 0 | BB58: =SUM(BB7:BB57) -> 0 | BC58: =SUM(BC7:BC57) -> 0 | BD58: =SUM(BD7:BD57) -> 0 | BE58: =SUM(BE7:BE57) -> 0
A59: Díl: | B59: 45 | C59: Podkladní a vedlejší konstrukce | O59: 1
A60: 11 | B60: 451572111R00 | C60: Lože pod potrubí z kameniva těženého 0 - 4 mm | D60: m3 | E60: 5.83 | G60: =E60*F60 -> 0 | H60: 0.43051 | I60: =E60*H60 -> 2.5098733 | J60: 0 | K60: =E60*J60 -> 0 | O60: 2 | AA60: 1 | AB60: 1 | AC60: 1 | AZ60: 1 | BA60: =IF(AZ60=1,G60,0) -> 0 | BB60: =IF(AZ60=2,G60,0) -> 0 | BC60: =IF(AZ60=3,G60,0) -> 0 | BD60: =IF(AZ60=4,G60,0) -> 0 | BE60: =IF(AZ60=5,G60,0) -> 0 | CA60: 1 | CB60: 1
C61: Přeložka řadu TLT DN250:58,30*1,00*0,10 | E61: 5.83 | M61: Přeložka řadu TLT DN250:58,30*1,00*0,10
A62: 12 | B62: 452313131R00 | C62: Bloky pro potrubí z betonu C 12/15 | D62: m3 | E62: 1.65 | G62: =E62*F62 -> 0 | H62: 2.5 | I62: =E62*H62 -> 4.125 | J62: 0 | K62: =E62*J62 -> 0 | O62: 2 | AA62: 1 | AB62: 1 | AC62: 1 | AZ62: 1 | BA62: =IF(AZ62=1,G62,0) -> 0 | BB62: =IF(AZ62=2,G62,0) -> 0 | BC62: =IF(AZ62=3,G62,0) -> 0 | BD62: =IF(AZ62=4,G62,0) -> 0 | BE62: =IF(AZ62=5,G62,0) -> 0 | CA62: 1 | CB62: 1
B63: Celkem za | C63: 45 Podkladní a vedlejší konstrukce | G63: =SUM(G59:G62) -> 0 | I63: =SUM(I59:I62) -> 6.6348733 | K63: =SUM(K59:K62) -> 0 | O63: 4 | BA63: =SUM(BA59:BA62) -> 0 | BB63: =SUM(BB59:BB62) -> 0 | BC63: =SUM(BC59:BC62) -> 0 | BD63: =SUM(BD59:BD62) -> 0 | BE63: =SUM(BE59:BE62) -> 0
A64: Díl: | B64: 8 | C64: Trubní vedení | O64: 1
A65: 13 | B65: 850365121R00 | C65: Výřez nebo výsek na potrubí litinovém DN 250 | D65: kus | E65: 2 | G65: =E65*F65 -> 0 | H65: 0 | I65: =E65*H65 -> 0 | J65: 0 | K65: =E65*J65 -> 0 | O65: 2 | AA65: 1 | AB65: 1 | AC65: 1 | AZ65: 1 | BA65: =IF(AZ65=1,G65,0) -> 0 | BB65: =IF(AZ65=2,G65,0) -> 0 | BC65: =IF(AZ65=3,G65,0) -> 0 | BD65: =IF(AZ65=4,G65,0) -> 0 | BE65: =IF(AZ65=5,G65,0) -> 0 | CA65: 1 | CB65: 1
C66: Položky výřezu nebo výseku na potrubí z trub litinových tlakových jsou určeny pro dva řezy nebo seky prováděné na potrubí dodatečně. V položkách jsou zakalkulovány náklady na | L66: Položky výřezu nebo výseku na potrubí z trub litinových tlakových jsou určeny pro dva řezy nebo seky prováděné na potrubí dodatečně. V položkách jsou zakalkulovány náklady na | O66: 3
C67: - ohlášení uzavírání vody | L67: - ohlášení uzavírání vody | O67: 3
C68: - uzavření a otevření šoupat | L68: - uzavření a otevření šoupat | O68: 3
C69: - vypuštění a napuštění vody | L69: - vypuštění a napuštění vody | O69: 3
C70: - odvzdušnění potrubí | L70: - odvzdušnění potrubí | O70: 3
C71: - strojní nebo ruční výřez potrubí | L71: - strojní nebo ruční výřez potrubí | O71: 3
C72: - nutné úpravy výkopu v prostoru provádění | L72: - nutné úpravy výkopu v prostoru provádění | O72: 3
C73: - montáž tvarovky | L73: - montáž tvarovky | O73: 3
A74: 14 | B74: 851601106RT1 | C74: Montáž potrubí tlakového, tvárná litina DN 250 hrdlové, pružný spoj, ve výkopu | D74: m | E74: 58.3 | G74: =E74*F74 -> 0 | H74: 0 | I74: =E74*H74 -> 0 | J74: 0 | K74: =E74*J74 -> 0 | O74: 2 | AA74: 1 | AB74: 1 | AC74: 1 | AZ74: 1 | BA74: =IF(AZ74=1,G74,0) -> 0 | BB74: =IF(AZ74=2,G74,0) -> 0 | BC74: =IF(AZ74=3,G74,0) -> 0 | BD74: =IF(AZ74=4,G74,0) -> 0 | BE74: =IF(AZ74=5,G74,0) -> 0 | CA74: 1 | CB74: 1
C75: Přeložka řadu TLT DN250:58,30 | E75: 58.3 | M75: Přeložka řadu TLT DN250:58,30
A76: 15 | B76: 857601106R00 | C76: Montáž tvarovek jednoosých, tvárná litina DN 250 | D76: kus | E76: 5 | G76: =E76*F76 -> 0 | H76: 0 | I76: =E76*H76 -> 0 | J76: 0 | K76: =E76*J76 -> 0 | O76: 2 | AA76: 1 | AB76: 1 | AC76: 1 | AZ76: 1 | BA76: =IF(AZ76=1,G76,0) -> 0 | BB76: =IF(AZ76=2,G76,0) -> 0 | BC76: =IF(AZ76=3,G76,0) -> 0 | BD76: =IF(AZ76=4,G76,0) -> 0 | BE76: =IF(AZ76=5,G76,0) -> 0 | CA76: 1 | CB76: 1
C77: Přeložka řadu TLT DN250: | E77: 0 | M77: Přeložka řadu TLT DN250:
C78: MMK 11° DN250:2 | E78: 2 | M78: MMK 11° DN250:2
C79: MMK 22° DN250:1 | E79: 1 | M79: MMK 22° DN250:1
C80: Synoflex DN250:2 | E80: 2 | M80: Synoflex DN250:2
A81: 16 | B81: 892381111RRX | C81: Tlaková zkouška vodovodního potrubí DN 350 včetně zajištění konců potrubí | D81: m | E81: 58.3 | G81: =E81*F81 -> 0 | H81: 0 | I81: =E81*H81 -> 0 | J81: 0 | K81: =E81*J81 -> 0 | O81: 2 | AA81: 1 | AB81: 1 | AC81: 1 | AZ81: 1 | BA81: =IF(AZ81=1,G81,0) -> 0 | BB81: =IF(AZ81=2,G81,0) -> 0 | BC81: =IF(AZ81=3,G81,0) -> 0 | BD81: =IF(AZ81=4,G81,0) -> 0 | BE81: =IF(AZ81=5,G81,0) -> 0 | CA81: 1 | CB81: 1
C82: V položce jsou započteny náklady na přísun, montáž, demontáž a odsun zkoušecího čerpadla, napuštění tlakovou vodou a dodání vody pro tlakovou zkoušku. | L82: V položce jsou započteny náklady na přísun, montáž, demontáž a odsun zkoušecího čerpadla, napuštění tlakovou vodou a dodání vody pro tlakovou zkoušku. | O82: 3
C83: Přeložka řadu TLT DN250:58,30 | E83: 58.3 | M83: Přeložka řadu TLT DN250:58,30
A84: 17 | B84: 892383111R00 | C84: Desinfekce vodovodního potrubí DN 350 | D84: m | E84: 58.3 | G84: =E84*F84 -> 0 | H84: 0 | I84: =E84*H84 -> 0 | J84: 0 | K84: =E84*J84 -> 0 | O84: 2 | AA84: 1 | AB84: 1 | AC84: 1 | AZ84: 1 | BA84: =IF(AZ84=1,G84,0) -> 0 | BB84: =IF(AZ84=2,G84,0) -> 0 | BC84: =IF(AZ84=3,G84,0) -> 0 | BD84: =IF(AZ84=4,G84,0) -> 0 | BE84: =IF(AZ84=5,G84,0) -> 0 | CA84: 1 | CB84: 1
C85: Položka obsahuje strojní přemístění materiálu pro zásyp ze vzdálenosti do 10 m od okraje zásypu | L85: Položka obsahuje strojní přemístění materiálu pro zásyp ze vzdálenosti do 10 m od okraje zásypu | O85: 3
C86: Přeložka řadu TLT DN250:58,30 | E86: 58.3 | M86: Přeložka řadu TLT DN250:58,30
A87: 18 | B87: 899711122R00 | C87: Fólie výstražná z PVC, šířka 30 cm | D87: m | E87: 58.3 | G87: =E87*F87 -> 0 | H87: 0 | I87: =E87*H87 -> 0 | J87: 0 | K87: =E87*J87 -> 0 | O87: 2 | AA87: 1 | AB87: 1 | AC87: 1 | AZ87: 1 | BA87: =IF(AZ87=1,G87,0) -> 0 | BB87: =IF(AZ87=2,G87,0) -> 0 | BC87: =IF(AZ87=3,G87,0) -> 0 | BD87: =IF(AZ87=4,G87,0) -> 0 | BE87: =IF(AZ87=5,G87,0) -> 0 | CA87: 1 | CB87: 1
C88: Přeložka řadu TLT DN250:58,30 | E88: 58.3 | M88: Přeložka řadu TLT DN250:58,30
A89: 19 | B89: 899731114R00 | C89: Vodič signalizační CYY 6 mm2 | D89: m | E89: 58.3 | G89: =E89*F89 -> 0 | H89: 8e-05 | I89: =E89*H89 -> 0.004664 | J89: 0 | K89: =E89*J89 -> 0 | O89: 2 | AA89: 1 | AB89: 1 | AC89: 1 | AZ89: 1 | BA89: =IF(AZ89=1,G89,0) -> 0 | BB89: =IF(AZ89=2,G89,0) -> 0 | BC89: =IF(AZ89=3,G89,0) -> 0 | BD89: =IF(AZ89=4,G89,0) -> 0 | BE89: =IF(AZ89=5,G89,0) -> 0 | CA89: 1 | CB89: 1
C90: Součástí položky je zajištění proměření vodiče a výchozí revize. | L90: Součástí položky je zajištění proměření vodiče a výchozí revize. | O90: 3
C91: Přeložka řadu TLT DN250:58,30 | E91: 58.3 | M91: Přeložka řadu TLT DN250:58,30
A92: 20 | B92: 42207974.6 | C92: Synoflex spojka DN250 (265-310) | D92: kus | E92: 2 | G92: =E92*F92 -> 0 | H92: 0.0486 | I92: =E92*H92 -> 0.0972 | K92: =E92*J92 -> 0 | O92: 2 | AA92: 3 | AB92: 1 | AC92: 42207974.6 | AZ92: 1 | BA92: =IF(AZ92=1,G92,0) -> 0 | BB92: =IF(AZ92=2,G92,0) -> 0 | BC92: =IF(AZ92=3,G92,0) -> 0 | BD92: =IF(AZ92=4,G92,0) -> 0 | BE92: =IF(AZ92=5,G92,0) -> 0 | CA92: 3 | CB92: 1
C93: Přeložka řadu TLT DN250: | E93: 0 | M93: Přeložka řadu TLT DN250:
C94: Synoflex DN250:2 | E94: 2 | M94: Synoflex DN250:2
A95: 21 | B95: 55251111 | C95: Trouba vod.lit.tlak.DN 250 mm spoj TYTON | D95: m | E95: 58.883 | G95: =E95*F95 -> 0 | H95: 0.048 | I95: =E95*H95 -> 2.826384 | K95: =E95*J95 -> 0 | O95: 2 | AA95: 3 | AB95: 1 | AC95: 55251111 | AZ95: 1 | BA95: =IF(AZ95=1,G95,0) -> 0 | BB95: =IF(AZ95=2,G95,0) -> 0 | BC95: =IF(AZ95=3,G95,0) -> 0 | BD95: =IF(AZ95=4,G95,0) -> 0 | BE95: =IF(AZ95=5,G95,0) -> 0 | CA95: 3 | CB95: 1
C96: Přeložka řadu TLT DN250:58,30*1,01 | E96: 58.883 | M96: Přeložka řadu TLT DN250:58,30*1,01
A97: 22 | B97: 55259416 | C97: Koleno hrdlové MMK DN250-11 1/4° | D97: kus | E97: 2 | G97: =E97*F97 -> 0 | H97: 0.0275 | I97: =E97*H97 -> 0.055 | K97: =E97*J97 -> 0 | O97: 2 | AA97: 3 | AB97: 1 | AC97: 55259416 | AZ97: 1 | BA97: =IF(AZ97=1,G97,0) -> 0 | BB97: =IF(AZ97=2,G97,0) -> 0 | BC97: =IF(AZ97=3,G97,0) -> 0 | BD97: =IF(AZ97=4,G97,0) -> 0 | BE97: =IF(AZ97=5,G97,0) -> 0 | CA97: 3 | CB97: 1
C98: Přeložka řadu TLT DN250: | E98: 0 | M98: Přeložka řadu TLT DN250:
C99: MMK 11° DN250:2 | E99: 2 | M99: MMK 11° DN250:2
A100: 23 | B100: 55259436 | C100: Koleno hrdlové MMK DN250-22 1/2° | D100: kus | E100: 1 | G100: =E100*F100 -> 0 | H100: 0.03 | I100: =E100*H100 -> 0.03 | K100: =E100*J100 -> 0 | O100: 2 | AA100: 3 | AB100: 1 | AC100: 55259436 | AZ100: 1 | BA100: =IF(AZ100=1,G100,0) -> 0 | BB100: =IF(AZ100=2,G100,0) -> 0 | BC100: =IF(AZ100=3,G100,0) -> 0 | BD100: =IF(AZ100=4,G100,0) -> 0 | BE100: =IF(AZ100=5,G100,0) -> 0 | CA100: 3 | CB100: 1
C101: Přeložka řadu TLT DN250: | E101: 0 | M101: Přeložka řadu TLT DN250:
C102: MMK 22° DN250:1 | E102: 1 | M102: MMK 22° DN250:1
B103: Celkem za | C103: 8 Trubní vedení | G103: =SUM(G64:G102) -> 0 | I103: =SUM(I64:I102) -> 3.013248 | K103: =SUM(K64:K102) -> 0 | O103: 4 | BA103: =SUM(BA64:BA102) -> 0 | BB103: =SUM(BB64:BB102) -> 0 | BC103: =SUM(BC64:BC102) -> 0 | BD103: =SUM(BD64:BD102) -> 0 | BE103: =SUM(BE64:BE102) -> 0
A104: Díl: | B104: 99 | C104: Staveništní přesun hmot | O104: 1
A105: 24 | B105: 998273101R00 | C105: Přesun hmot, trubní vedení litinové, otevř. výkop | D105: t | E105: 169.1737789 | G105: =E105*F105 -> 0 | H105: 0 | I105: =E105*H105 -> 0 | K105: =E105*J105 -> 0 | O105: 2 | AA105: 7 | AB105: 1 | AC105: 2 | AZ105: 1 | BA105: =IF(AZ105=1,G105,0) -> 0 | BB105: =IF(AZ105=2,G105,0) -> 0 | BC105: =IF(AZ105=3,G105,0) -> 0 | BD105: =IF(AZ105=4,G105,0) -> 0 | BE105: =IF(AZ105=5,G105,0) -> 0 | CA105: 7 | CB105: 1
C106: Položka je určena pro trubní vedení (vodovod nebo kanalizace) hloubené nebo ražené z trub litinových včetně drobných objektů. Platnost položky je vymezena pro nejmenší skladovací plochu 100 m2 + 0,24 m2/t, pro největší dopravní vzdálenost 15 m od hrany výkopu na povrchu nebo 15 m od okraje šachty k těžišti skládek na povrchu. | L106: Položka je určena pro trubní vedení (vodovod nebo kanalizace) hloubené nebo ražené z trub litinových včetně drobných objektů. Platnost položky je vymezena pro nejmenší skladovací plochu 100 m2 + 0,24 m2/t, pro největší dopravní vzdálenost 15 m od hrany výkopu na povrchu nebo 15 m od okraje šachty k těžišti skládek na povrchu. | O106: 3
B107: Celkem za | C107: 99 Staveništní přesun hmot | G107: =SUM(G104:G106) -> 0 | I107: =SUM(I104:I106) -> 0 | K107: =SUM(K104:K106) -> 0 | O107: 4 | BA107: =SUM(BA104:BA106) -> 0 | BB107: =SUM(BB104:BB106) -> 0 | BC107: =SUM(BC104:BC106) -> 0 | BD107: =SUM(BD104:BD106) -> 0 | BE107: =SUM(BE104:BE106) -> 0

Sheet 303 3236303 KL
A1: POLOŽKOVÝ ROZPOČET
A2: Rozpočet | C2: 3236/303 | D2: Přeložka vodovodu TLT DN100 | F2: JKSO | G2: 827.11.A1
A4: Objekt | F4: SKP
A5: 303 | C5: Přeložka vodovodu TLT DN100 | F5: Měrná jednotka | G5: m
A6: Stavba | F6: Počet jednotek | G6: 0
A7: 3236 | C7: Bytová zóna Hruštice - Károvsko - Etapa VII. | F7: Náklady na m.j. | G7: =IF(G6=0,,ROUND((F30+F32)/G6,1)) -> 0
A8: Projektant | C8: PROFES PROJEKT spol.s r.o. | F8: Typ rozpočtu
A9: Zpracovatel projektu
A10: Objednatel | C10: Město TURNOV
A11: Dodavatel | C11: . | F11: Zakázkové číslo
A12: Rozpočtoval | F12: Počet listů
A13: ROZPOČTOVÉ NÁKLADY
A14: Základní rozpočtové náklady
B15: HSV celkem | C15: ='303 3236303 Rek'!E11 -> 0
A16: Z | B16: PSV celkem | C16: ='303 3236303 Rek'!F11 -> 0
A17: R | B17: M práce celkem | C17: ='303 3236303 Rek'!H11 -> 0
A18: N | B18: M dodávky celkem | C18: ='303 3236303 Rek'!G11 -> 0
A19: ZRN celkem | C19: =SUM(C15:C18) -> 0
A21: HZS | C21: ='303 3236303 Rek'!I11 -> 0
A22: ZRN+HZS | C22: =C19+C21 -> 0
A23: ZRN+ost.náklady+HZS | C23: =C22+G23 -> 0
A24: Vypracoval | D24: Za zhotovitele | F24: Za objednatele
A25: Jméno : | D25: Jméno : | F25: Jméno :
A26: Datum : | D26: Datum : | F26: Datum :
A28: Podpis : | D28: Podpis: | F28: Podpis:
A30: Základ pro DPH | C30: 21 | D30: % | F30: =C23-F32 -> 0
A31: DPH | C31: =C30 -> 21 | D31: % | F31: =ROUND(PRODUCT(F30,C31/100),0) -> 0
A32: Základ pro DPH | C32: 0 | D32: % | F32: 0
A33: DPH | C33: =C32 -> 0 | D33: % | F33: =ROUND(PRODUCT(F32,C33/100),0) -> 0
A34: CENA ZA OBJEKT CELKEM | F34: =ROUND(SUM(F30:F33),0) -> 0
A36: Poznámka :

Sheet 303 3236303 Rek
A1: Stavba : | C1: 3236 Bytová zóna Hruštice - Károvsko - Etapa VII. | G1: Rozpočet : | H1: 3236/303
A2: Objekt : | C2: 303 Přeložka vodovodu TLT DN100 | G2: Přeložka vodovodu TLT DN100
A4: REKAPITULACE STAVEBNÍCH DÍLŮ
B6: Stavební díl | E6: HSV | F6: PSV | G6: Dodávka | H6: Montáž | I6: HZS
A7: ='303 3236303 Pol'!B7 -> 1 | B7: ='303 3236303 Pol'!C7 -> Zemní práce | E7: ='303 3236303 Pol'!BA88 -> 0 | F7: ='303 3236303 Pol'!BB88 -> 0 | G7: ='303 3236303 Pol'!BC88 -> 0 | H7: ='303 3236303 Pol'!BD88 -> 0 | I7: ='303 3236303 Pol'!BE88 -> 0
A8: ='303 3236303 Pol'!B89 -> 45 | B8: ='303 3236303 Pol'!C89 -> Podkladní a vedlejší konstrukce | E8: ='303 3236303 Pol'!BA94 -> 0 | F8: ='303 3236303 Pol'!BB94 -> 0 | G8: ='303 3236303 Pol'!BC94 -> 0 | H8: ='303 3236303 Pol'!BD94 -> 0 | I8: ='303 3236303 Pol'!BE94 -> 0
A9: ='303 3236303 Pol'!B95 -> 8 | B9: ='303 3236303 Pol'!C95 -> Trubní vedení | E9: ='303 3236303 Pol'!BA235 -> 0 | F9: ='303 3236303 Pol'!BB235 -> 0 | G9: ='303 3236303 Pol'!BC235 -> 0 | H9: ='303 3236303 Pol'!BD235 -> 0 | I9: ='303 3236303 Pol'!BE235 -> 0
A10: ='303 3236303 Pol'!B236 -> 99 | B10: ='303 3236303 Pol'!C236 -> Staveništní přesun hmot | E10: ='303 3236303 Pol'!BA239 -> 0 | F10: ='303 3236303 Pol'!BB239 -> 0 | G10: ='303 3236303 Pol'!BC239 -> 0 | H10: ='303 3236303 Pol'!BD239 -> 0 | I10: ='303 3236303 Pol'!BE239 -> 0
B11: CELKEM OBJEKT | E11: =SUM(E7:E10) -> 0 | F11: =SUM(F7:F10) -> 0 | G11: =SUM(G7:G10) -> 0 | H11: =SUM(H7:H10) -> 0 | I11: =SUM(I7:I10) -> 0

Sheet 303 3236303 Pol
A1: Položkový rozpočet
A3: Stavba : | C3: 3236 Bytová zóna Hruštice - Károvsko - Etapa VII. | E3: Rozpočet: | F3: ='303 3236303 Rek'!H1 -> 3236/303
A4: Objekt : | C4: 303 Přeložka vodovodu TLT DN100 | E4: ='303 3236303 Rek'!G2 -> Přeložka vodovodu TLT DN100
A6: P.č. | B6: Číslo položky | C6: Název položky | D6: MJ | E6: množství | F6: cena / MJ | G6: celkem (Kč) | H6: Jednotková hmotnost | I6: Celková hmotnost | J6: Jednotková dem.hmot. | K6: Celková dem.hmot.
A7: Díl: | B7: 1 | C7: Zemní práce | O7: 1
A8: 1 | B8: 120001101RRX | C8: Příplatek za ztížení vykopávky v blízkosti vedení | D8: m3 | E8: 4.7149 | G8: =E8*F8 -> 0 | H8: 0 | I8: =E8*H8 -> 0 | J8: 0 | K8: =E8*J8 -> 0 | O8: 2 | AA8: 1 | AB8: 1 | AC8: 1 | AZ8: 1 | BA8: =IF(AZ8=1,G8,0) -> 0 | BB8: =IF(AZ8=2,G8,0) -> 0 | BC8: =IF(AZ8=3,G8,0) -> 0 | BD8: =IF(AZ8=4,G8,0) -> 0 | BE8: =IF(AZ8=5,G8,0) -> 0 | CA8: 1 | CB8: 1
C9: Včetně ruční dokopávky a ručního výkopu. | L9: Včetně ruční dokopávky a ručního výkopu. | O9: 3
C10: Součástí položky je i případná potřeba dočasnéhon zajištění potrubí a kabelových vedení ve výkopu. | L10: Součástí položky je i případná potřeba dočasnéhon zajištění potrubí a kabelových vedení ve výkopu. | O10: 3
C11: Výkopy: | E11: 0 | M11: Výkopy:
C12: Začátek provozního součtu | E12: 0 | M12: Začátek provozního součtu
C13: Přeložka řadu "V" TLT DN100:30,80*0,80*(1,63-0,40) | E13: 30.3072 | M13: Přeložka řadu "V" TLT DN100:30,80*0,80*(1,63-0,40)
C14: VP1 PE D 32x3,0 mm:11,30*0,80*(1,60-0,40)+1,80*1,80*(2,00-0,15) | E14: 16.842 | M14: VP1 PE D 32x3,0 mm:11,30*0,80*(1,60-0,40)+1,80*1,80*(2,00-0,15)
C15: Konec provozního součtu | E15: 47.1492 | M15: Konec provozního součtu
C16: V hornině tř. 3 - 4 - 10%:47,1492*0,1 | E16: 4.7149 | M16: V hornině tř. 3 - 4 - 10%:47,1492*0,1
A17: 2 | B17: 121100002RAA | C17: Sejmutí ornice a uložení na deponii zpětný přesun, rozprostření v tl. 15 cm | D17: m3 | E17: 1.35 | G17: =E17*F17 -> 0 | H17: 0 | I17: =E17*H17 -> 0 | J17: 0 | K17: =E17*J17 -> 0 | O17: 2 | AA17: 1 | AB17: 1 | AC17: 1 | AZ17: 1 | BA17: =IF(AZ17=1,G17,0) -> 0 | BB17: =IF(AZ17=2,G17,0) -> 0 | BC17: =IF(AZ17=3,G17,0) -> 0 | BD17: =IF(AZ17=4,G17,0) -> 0 | BE17: =IF(AZ17=5,G17,0) -> 0 | CA17: 1 | CB17: 1
C18: Přeložka řadu "V" TLT DN100: | E18: 0 | M18: Přeložka řadu "V" TLT DN100:
C19: VP1 PE D 32x3,0 mm:3,00*3,00*0,15 | E19: 1.35 | M19: VP1 PE D 32x3,0 mm:3,00*3,00*0,15
A20: 3 | B20: 132201210RRX | C20: Hloubení rýh š.do 200 cm hor.3 do 50 m3,STROJNĚ | D20: m3 | E20: 23.5746 | G20: =E20*F20 -> 0 | H20: 0 | I20: =E20*H20 -> 0 | J20: 0 | K20: =E20*J20 -> 0 | O20: 2 | AA20: 1 | AB20: 1 | AC20: 1 | AZ20: 1 | BA20: =IF(AZ20=1,G20,0) -> 0 | BB20: =IF(AZ20=2,G20,0) -> 0 | BC20: =IF(AZ20=3,G20,0) -> 0 | BD20: =IF(AZ20=4,G20,0) -> 0 | BE20: =IF(AZ20=5,G20,0) -> 0 | CA20: 1 | CB20: 1
C21: Položka obsahuje hloubení rýh traktorbagrem, naložení výkopku na dopravní prostředek pro svislé, nebo vodorovné přemístění, popř. přemístění výkopku do 3 m (po povrchu území), případné zajištění rypadel polštáři, udržování pracoviště a ochranu výkopiště proti stékání srážkové vody z okolního terénu i s jejím odvodněním, nebo odvedením, přesekání a odstranění kořenů ve výkopišti, odstranění napadávek, urovnání dna výkopu. | L21: Položka obsahuje hloubení rýh traktorbagrem, naložení výkopku na dopravní prostředek pro svislé, nebo vodorovné přemístění, popř. přemístění výkopku do 3 m (po povrchu území), případné zajištění rypadel polštáři, udržování pracoviště a ochranu výkopiště proti stékání srážkové vody z okolního terénu i s jejím odvodněním, nebo odvedením, přesekání a odstranění kořenů ve výkopišti, odstranění napadávek, urovnání dna výkopu. | O21: 3
C22: Součástí položky je i zřízení a odstranění pažení rýhy v souladu s předpisy BOZP. | L22: Součástí položky je i zřízení a odstranění pažení rýhy v souladu s předpisy BOZP. | O22: 3
C23: Začátek provozního součtu | E23: 0 | M23: Začátek provozního součtu
C24: Přeložka řadu "V" TLT DN100:30,80*0,80*(1,63-0,40) | E24: 30.3072 | M24: Přeložka řadu "V" TLT DN100:30,80*0,80*(1,63-0,40)
C25: VP1 PE D 32x3,0 mm:11,30*0,80*(1,60-0,40)+1,80*1,80*(2,00-0,15) | E25: 16.842 | M25: VP1 PE D 32x3,0 mm:11,30*0,80*(1,60-0,40)+1,80*1,80*(2,00-0,15)
C26: Konec provozního součtu | E26: 47.1492 | M26: Konec provozního součtu
C27: V hornině tř. 3 - 50%:47,1492*0,5 | E27: 23.5746 | M27: V hornině tř. 3 - 50%:47,1492*0,5
A28: 4 | B28: 132201219R00 | C28: Přípl.za lepivost,hloubení rýh 200cm,hor.3,STROJNĚ | D28: m3 | E28: 11.7873 | G28: =E28*F28 -> 0 | H28: 0 | I28: =E28*H28 -> 0 | J28: 0 | K28: =E28*J28 -> 0 | O28: 2 | AA28: 1 | AB28: 1 | AC28: 1 | AZ28: 1 | BA28: =IF(AZ28=1,G28,0) -> 0 | BB28: =IF(AZ28=2,G28,0) -> 0 | BC28: =IF(AZ28=3,G28,0) -> 0 | BD28: =IF(AZ28=4,G28,0) -> 0 | BE28: =IF(AZ28=5,G28,0) -> 0 | CA28: 1 | CB28: 1
C29: Začátek provozního součtu | E29: 0 | M29: Začátek provozního součtu
C30: Přeložka řadu "V" TLT DN100:30,80*0,80*(1,63-0,40) | E30: 30.3072 | M30: Přeložka řadu "V" TLT DN100:30,80*0,80*(1,63-0,40)
C31: VP1 PE D 32x3,0 mm:11,30*0,80*(1,60-0,40)+1,80*1,80*(2,00-0,15) | E31: 16.842 | M31: VP1 PE D 32x3,0 mm:11,30*0,80*(1,60-0,40)+1,80*1,80*(2,00-0,15)
C32: Konec provozního součtu | E32: 47.1492 | M32: Konec provozního součtu
C33: V hornině tř. 3 - 50%:47,1492*0,5*0,5 | E33: 11.7873 | M33: V hornině tř. 3 - 50%:47,1492*0,5*0,5
A34: 5 | B34: 132301210RRX | C34: Hloubení rýh š.do 200 cm hor.4 do 50 m3, STROJNĚ | D34: m3 | E34: 23.5746 | G34: =E34*F34 -> 0 | H34: 0 | I34: =E34*H34 -> 0 | J34: 0 | K34: =E34*J34 -> 0 | O34: 2 | AA34: 1 | AB34: 1 | AC34: 1 | AZ34: 1 | BA34: =IF(AZ34=1,G34,0) -> 0 | BB34: =IF(AZ34=2,G34,0) -> 0 | BC34: =IF(AZ34=3,G34,0) -> 0 | BD34: =IF(AZ34=4,G34,0) -> 0 | BE34: =IF(AZ34=5,G34,0) -> 0 | CA34: 1 | CB34: 1
C35: Položka obsahuje hloubení rýh traktorbagrem, naložení výkopku na dopravní prostředek pro svislé, nebo vodorovné přemístění, popř. přemístění výkopku do 3 m (po povrchu území), případné zajištění rypadel polštáři, udržování pracoviště a ochranu výkopiště proti stékání srážkové vody z okolního terénu i s jejím odvodněním, nebo odvedením, přesekání a odstranění kořenů ve výkopišti, odstranění napadávek, urovnání dna výkopu. | L35: Položka obsahuje hloubení rýh traktorbagrem, naložení výkopku na dopravní prostředek pro svislé, nebo vodorovné přemístění, popř. přemístění výkopku do 3 m (po povrchu území), případné zajištění rypadel polštáři, udržování pracoviště a ochranu výkopiště proti stékání srážkové vody z okolního terénu i s jejím odvodněním, nebo odvedením, přesekání a odstranění kořenů ve výkopišti, odstranění napadávek, urovnání dna výkopu. | O35: 3
C36: Součástí položky je i zřízení a odstranění pažení rýhy v souladu s předpisy BOZP. | L36: Součástí položky je i zřízení a odstranění pažení rýhy v souladu s předpisy BOZP. | O36: 3
C37: Začátek provozního součtu | E37: 0 | M37: Začátek provozního součtu
C38: Přeložka řadu "V" TLT DN100:30,80*0,80*(1,63-0,40) | E38: 30.3072 | M38: Přeložka řadu "V" TLT DN100:30,80*0,80*(1,63-0,40)
C39: VP1 PE D 32x3,0 mm:11,30*0,80*(1,60-0,40)+1,80*1,80*(2,00-0,15) | E39: 16.842 | M39: VP1 PE D 32x3,0 mm:11,30*0,80*(1,60-0,40)+1,80*1,80*(2,00-0,15)
C40: Konec provozního součtu | E40: 47.1492 | M40: Konec provozního součtu
C41: V hornině tř. 4 - 50%:47,1492*0,5 | E41: 23.5746 | M41: V hornině tř. 4 - 50%:47,1492*0,5
A42: 6 | B42: 132301219R00 | C42: Přípl.za lepivost,hloubení rýh 200cm,hor.4,STROJNĚ | D42: m3 | E42: 11.7873 | G42: =E42*F42 -> 0 | H42: 0 | I42: =E42*H42 -> 0 | J42: 0 | K42: =E42*J42 -> 0 | O42: 2 | AA42: 1 | AB42: 1 | AC42: 1 | AZ42: 1 | BA42: =IF(AZ42=1,G42,0) -> 0 | BB42: =IF(AZ42=2,G42,0) -> 0 | BC42: =IF(AZ42=3,G42,0) -> 0 | BD42: =IF(AZ42=4,G42,0) -> 0 | BE42: =IF(AZ42=5,G42,0) -> 0 | CA42: 1 | CB42: 1
C43: Začátek provozního součtu | E43: 0 | M43: Začátek provozního součtu
C44: Přeložka řadu "V" TLT DN100:30,80*0,80*(1,63-0,40) | E44: 30.3072 | M44: Přeložka řadu "V" TLT DN100:30,80*0,80*(1,63-0,40)
C45: VP1 PE D 32x3,0 mm:11,30*0,80*(1,60-0,40)+1,80*1,80*(2,00-0,15) | E45: 16.842 | M45: VP1 PE D 32x3,0 mm:11,30*0,80*(1,60-0,40)+1,80*1,80*(2,00-0,15)
C46: Konec provozního součtu | E46: 47.1492 | M46: Konec provozního součtu
C47: V hornině tř. 4 - 50%:47,1492*0,5*0,5 | E47: 11.7873 | M47: V hornině tř. 4 - 50%:47,1492*0,5*0,5
A48: 7 | B48: 162701105RSZ | C48: Vodorovné přemístění výkopku z hor.1-7 na skládku zhotovitele | D48: m3 | E48: 30.0919 | G48: =E48*F48 -> 0 | H48: 0 | I48: =E48*H48 -> 0 | J48: 0 | K48: =E48*J48 -> 0 | O48: 2 | AA48: 1 | AB48: 1 | AC48: 1 | AZ48: 1 | BA48: =IF(AZ48=1,G48,0) -> 0 | BB48: =IF(AZ48=2,G48,0) -> 0 | BC48: =IF(AZ48=3,G48,0) -> 0 | BD48: =IF(AZ48=4,G48,0) -> 0 | BE48: =IF(AZ48=5,G48,0) -> 0 | CA48: 1 | CB48: 1
C49: Výkopy: | E49: 0 | M49: Výkopy:
C50: Začátek provozního součtu | E50: 0 | M50: Začátek provozního součtu
C51: Přeložka řadu "V" TLT DN100:30,80*0,80*(1,63-0,40) | E51: 30.3072 | M51: Přeložka řadu "V" TLT DN100:30,80*0,80*(1,63-0,40)
C52: VP1 PE D 32x3,0 mm:11,30*0,80*(1,60-0,40)+1,80*1,80*(2,00-0,15) | E52: 16.842 | M52: VP1 PE D 32x3,0 mm:11,30*0,80*(1,60-0,40)+1,80*1,80*(2,00-0,15)
C53: Konec provozního součtu | E53: 47.1492 | M53: Konec provozního součtu
C54: V hornině tř. 3 - 4 :47,1492 | E54: 47.1492 | M54: V hornině tř. 3 - 4 :47,1492
C55: Odpočet zásypů zeminou:-17,0573 | E55: -17.0573 | M55: Odpočet zásypů zeminou:-17,0573
A56: 8 | B56: 174100050RAA | C56: Zásyp jam,rýh a šachet štěrkodrtí fr. 0-63 mm včetně dovozu štěrkodrtě | D56: m3 | E56: 12.8573 | G56: =E56*F56 -> 0 | H56: 1.873 | I56: =E56*H56 -> 24.0817229 | J56: 0 | K56: =E56*J56 -> 0 | O56: 2 | AA56: 1 | AB56: 1 | AC56: 1 | AZ56: 1 | BA56: =IF(AZ56=1,G56,0) -> 0 | BB56: =IF(AZ56=2,G56,0) -> 0 | BC56: =IF(AZ56=3,G56,0) -> 0 | BD56: =IF(AZ56=4,G56,0) -> 0 | BE56: =IF(AZ56=5,G56,0) -> 0 | CA56: 1 | CB56: 1
C57: Výkopy: | E57: 0 | M57: Výkopy:
C58: Začátek provozního součtu | E58: 0 | M58: Začátek provozního součtu
C59: Přeložka řadu "V" TLT DN100:30,80*0,80*(1,63-0,40) | E59: 30.3072 | M59: Přeložka řadu "V" TLT DN100:30,80*0,80*(1,63-0,40)
C60: VP1 PE D 32x3,0 mm:11,30*0,80*(1,60-0,40) | E60: 10.848 | M60: VP1 PE D 32x3,0 mm:11,30*0,80*(1,60-0,40)
C61: Konec provozního součtu | E61: 41.1552 | M61: Konec provozního součtu
C62: V hornině tř. 3 - 4 :41,1552 | E62: 41.1552 | M62: V hornině tř. 3 - 4 :41,1552
C63: Odpočet lože, potrubí a obsyů: | E63: 0 | M63: Odpočet lože, potrubí a obsyů:
C64: Přeložka řadu "V" TLT DN100:-30,80*0,80*(1,63-0,30-0,10-0,10-0,30) | E64: -20.4512 | M64: Přeložka řadu "V" TLT DN100:-30,80*0,80*(1,63-0,30-0,10-0,10-0,30)
C65: VP1 PE D 32x3,0 mm:-11,30*0,80*(1,60-0,30-0,10-0,032-0,30) | E65: -7.8467 | M65: VP1 PE D 32x3,0 mm:-11,30*0,80*(1,60-0,30-0,10-0,032-0,30)
A66: 9 | B66: 174101101R00 | C66: Zásyp jam, rýh, šachet se zhutněním | D66: m3 | E66: 17.0573 | G66: =E66*F66 -> 0 | H66: 0 | I66: =E66*H66 -> 0 | J66: 0 | K66: =E66*J66 -> 0 | O66: 2 | AA66: 1 | AB66: 1 | AC66: 1 | AZ66: 1 | BA66: =IF(AZ66=1,G66,0) -> 0 | BB66: =IF(AZ66=2,G66,0) -> 0 | BC66: =IF(AZ66=3,G66,0) -> 0 | BD66: =IF(AZ66=4,G66,0) -> 0 | BE66: =IF(AZ66=5,G66,0) -> 0 | CA66: 1 | CB66: 1
C67: včetně strojního přemístění materiálu pro zásyp ze vzdálenosti do 10 m od okraje zásypu | L67: včetně strojního přemístění materiálu pro zásyp ze vzdálenosti do 10 m od okraje zásypu | O67: 3
C68: Výkopy: | E68: 0 | M68: Výkopy:
C69: Začátek provozního součtu | E69: 0 | M69: Začátek provozního součtu
C70: Přeložka řadu "V" TLT DN100: | E70: 0 | M70: Přeložka řadu "V" TLT DN100:
C71: VP1 PE D 32x3,0 mm:1,80*1,80*(2,00-0,15) | E71: 5.994 | M71: VP1 PE D 32x3,0 mm:1,80*1,80*(2,00-0,15)
C72: Konec provozního součtu | E72: 5.994 | M72: Konec provozního součtu
C73: V hornině tř. 3 - 4:5,9940 | E73: 5.994 | M73: V hornině tř. 3 - 4:5,9940
C74: Odpočet objemu VŠ:-(1,80*1,80*0,15+0,60^2*Pi*(2,00-0,15*2)) | E74: -2.4087 | M74: Odpočet objemu VŠ:-(1,80*1,80*0,15+0,60^2*Pi*(2,00-0,15*2))
C75: Přeložka řadu "V" TLT DN100:30,80*0,80*0,40 | E75: 9.856 | M75: Přeložka řadu "V" TLT DN100:30,80*0,80*0,40
C76: VP1 PE D 32x3,0 mm:11,30*0,80*0,40 | E76: 3.616 | M76: VP1 PE D 32x3,0 mm:11,30*0,80*0,40
A77: 10 | B77: 175100020RAA | C77: Obsyp potrubí štěrkopískem včetně dovozu štěrkopísku | D77: m3 | E77: 12.6063 | G77: =E77*F77 -> 0 | H77: 1.873 | I77: =E77*H77 -> 23.6115999 | J77: 0 | K77: =E77*J77 -> 0 | O77: 2 | AA77: 1 | AB77: 1 | AC77: 1 | AZ77: 1 | BA77: =IF(AZ77=1,G77,0) -> 0 | BB77: =IF(AZ77=2,G77,0) -> 0 | BC77: =IF(AZ77=3,G77,0) -> 0 | BD77: =IF(AZ77=4,G77,0) -> 0 | BE77: =IF(AZ77=5,G77,0) -> 0 | CA77: 1 | CB77: 1
C78: Přeložka řadu "V" TLT DN100:30,80*(0,80*(0,10+0,30)-0,05^2*Pi) | E78: 9.6141 | M78: Přeložka řadu "V" TLT DN100:30,80*(0,80*(0,10+0,30)-0,05^2*Pi)
C79: VP1 PE D 32x3,0 mm:11,30*(0,80*(0,032+0,30)-0,016^2*Pi) | E79: 2.9922 | M79: VP1 PE D 32x3,0 mm:11,30*(0,80*(0,032+0,30)-0,016^2*Pi)
A80: 11 | B80: 199000002R00 | C80: Poplatek za skládku horniny 1- 7 | D80: m3 | E80: 30.0919 | G80: =E80*F80 -> 0 | H80: 0 | I80: =E80*H80 -> 0 | J80: 0 | K80: =E80*J80 -> 0 | O80: 2 | AA80: 1 | AB80: 1 | AC80: 1 | AZ80: 1 | BA80: =IF(AZ80=1,G80,0) -> 0 | BB80: =IF(AZ80=2,G80,0) -> 0 | BC80: =IF(AZ80=3,G80,0) -> 0 | BD80: =IF(AZ80=4,G80,0) -> 0 | BE80: =IF(AZ80=5,G80,0) -> 0 | CA80: 1 | CB80: 1
C81: Výkopy: | E81: 0 | M81: Výkopy:
C82: Začátek provozního součtu | E82: 0 | M82: Začátek provozního součtu
C83: Přeložka řadu "V" TLT DN100:30,80*0,80*(1,63-0,40) | E83: 30.3072 | M83: Přeložka řadu "V" TLT DN100:30,80*0,80*(1,63-0,40)
C84: VP1 PE D 32x3,0 mm:11,30*0,80*(1,60-0,40)+1,80*1,80*(2,00-0,15) | E84: 16.842 | M84: VP1 PE D 32x3,0 mm:11,30*0,80*(1,60-0,40)+1,80*1,80*(2,00-0,15)
C85: Konec provozního součtu | E85: 47.1492 | M85: Konec provozního součtu
C86: V hornině tř. 3 - 4 :47,1492 | E86: 47.1492 | M86: V hornině tř. 3 - 4 :47,1492
C87: Odpočet zásypů zeminou:-17,0573 | E87: -17.0573 | M87: Odpočet zásypů zeminou:-17,0573
B88: Celkem za | C88: 1 Zemní práce | G88: =SUM(G7:G87) -> 0 | I88: =SUM(I7:I87) -> 47.6933228 | K88: =SUM(K7:K87) -> 0 | O88: 4 | BA88: =SUM(BA7:BA87) -> 0 | BB88: =SUM(BB7:BB87) -> 0 | BC88: =SUM(BC7:BC87) -> 0 | BD88: =SUM(BD7:BD87) -> 0 | BE88: =SUM(BE7:BE87) -> 0
A89: Díl: | B89: 45 | C89: Podkladní a vedlejší konstrukce | O89: 1
A90: 12 | B90: 451572111R00 | C90: Lože pod potrubí z kameniva těženého 0 - 4 mm | D90: m3 | E90: 3.368 | G90: =E90*F90 -> 0 | H90: 0.43051 | I90: =E90*H90 -> 1.44995768 | J90: 0 | K90: =E90*J90 -> 0 | O90: 2 | AA90: 1 | AB90: 1 | AC90: 1 | AZ90: 1 | BA90: =IF(AZ90=1,G90,0) -> 0 | BB90: =IF(AZ90=2,G90,0) -> 0 | BC90: =IF(AZ90=3,G90,0) -> 0 | BD90: =IF(AZ90=4,G90,0) -> 0 | BE90: =IF(AZ90=5,G90,0) -> 0 | CA90: 1 | CB90: 1
C91: Přeložka řadu "V" TLT DN100:30,80*0,80*0,10 | E91: 2.464 | M91: Přeložka řadu "V" TLT DN100:30,80*0,80*0,10
C92: VP1 PE D 32x3,0 mm:11,30*0,80*0,10 | E92: 0.904 | M92: VP1 PE D 32x3,0 mm:11,30*0,80*0,10
A93: 13 | B93: 452313131R00 | C93: Bloky pro potrubí z betonu C 12/15 | D93: m3 | E93: 0.478 | G93: =E93*F93 -> 0 | H93: 2.5 | I93: =E93*H93 -> 1.195 | J93: 0 | K93: =E93*J93 -> 0 | O93: 2 | AA93: 1 | AB93: 1 | AC93: 1 | AZ93: 1 | BA93: =IF(AZ93=1,G93,0) -> 0 | BB93: =IF(AZ93=2,G93,0) -> 0 | BC93: =IF(AZ93=3,G93,0) -> 0 | BD93: =IF(AZ93=4,G93,0) -> 0 | BE93: =IF(AZ93=5,G93,0) -> 0 | CA93: 1 | CB93: 1
B94: Celkem za | C94: 45 Podkladní a vedlejší konstrukce | G94: =SUM(G89:G93) -> 0 | I94: =SUM(I89:I93) -> 2.64495768 | K94: =SUM(K89:K93) -> 0 | O94: 4 | BA94: =SUM(BA89:BA93) -> 0 | BB94: =SUM(BB89:BB93) -> 0 | BC94: =SUM(BC89:BC93) -> 0 | BD94: =SUM(BD89:BD93) -> 0 | BE94: =SUM(BE89:BE93) -> 0
A95: Díl: | B95: 8 | C95: Trubní vedení | O95: 1
A96: 14 | B96: 850265121R00 | C96: Výřez nebo výsek na potrubí litinovém DN 100 | D96: kus | E96: 2 | G96: =E96*F96 -> 0 | H96: 0 | I96: =E96*H96 -> 0 | J96: 0 | K96: =E96*J96 -> 0 | O96: 2 | AA96: 1 | AB96: 1 | AC96: 1 | AZ96: 1 | BA96: =IF(AZ96=1,G96,0) -> 0 | BB96: =IF(AZ96=2,G96,0) -> 0 | BC96: =IF(AZ96=3,G96,0) -> 0 | BD96: =IF(AZ96=4,G96,0) -> 0 | BE96: =IF(AZ96=5,G96,0) -> 0 | CA96: 1 | CB96: 1
C97: Položky výřezu nebo výseku na potrubí z trub litinových tlakových jsou určeny pro dva řezy nebo seky prováděné na potrubí dodatečně. V položkách jsou zakalkulovány náklady na | L97: Položky výřezu nebo výseku na potrubí z trub litinových tlakových jsou určeny pro dva řezy nebo seky prováděné na potrubí dodatečně. V položkách jsou zakalkulovány náklady na | O97: 3
C98: - ohlášení uzavírání vody | L98: - ohlášení uzavírání vody | O98: 3
C99: - uzavření a otevření šoupat | L99: - uzavření a otevření šoupat | O99: 3
C100: - vypuštění a napuštění vody | L100: - vypuštění a napuštění vody | O100: 3
C101: - odvzdušnění potrubí | L101: - odvzdušnění potrubí | O101: 3
C102: - strojní nebo ruční výřez potrubí | L102: - strojní nebo ruční výřez potrubí | O102: 3
C103: - nutné úpravy výkopu v prostoru provádění | L103: - nutné úpravy výkopu v prostoru provádění | O103: 3
C104: - montáž tvarovky | L104: - montáž tvarovky | O104: 3
A105: 15 | B105: 851601102RT1 | C105: Montáž potrubí tlakového, tvárná litina DN 100 hrdlové, pružný spoj, ve výkopu | D105: m | E105: 30.8 | G105: =E105*F105 -> 0 | H105: 0 | I105: =E105*H105 -> 0 | J105: 0 | K105: =E105*J105 -> 0 | O105: 2 | AA105: 1 | AB105: 1 | AC105: 1 | AZ105: 1 | BA105: =IF(AZ105=1,G105,0) -> 0 | BB105: =IF(AZ105=2,G105,0) -> 0 | BC105: =IF(AZ105=3,G105,0) -> 0 | BD105: =IF(AZ105=4,G105,0) -> 0 | BE105: =IF(AZ105=5,G105,0) -> 0 | CA105: 1 | CB105: 1
C106: Přeložka řadu "V" TLT DN100:30,80 | E106: 30.8 | M106: Přeložka řadu "V" TLT DN100:30,80
A107: 16 | B107: 857262121R00 | C107: Montáž tvarovek litin. jednoos. přír. výkop DN 100 | D107: kus | E107: 4 | G107: =E107*F107 -> 0 | H107: 0.00041 | I107: =E107*H107 -> 0.00164 | J107: 0 | K107: =E107*J107 -> 0 | O107: 2 | AA107: 1 | AB107: 1 | AC107: 1 | AZ107: 1 | BA107: =IF(AZ107=1,G107,0) -> 0 | BB107: =IF(AZ107=2,G107,0) -> 0 | BC107: =IF(AZ107=3,G107,0) -> 0 | BD107: =IF(AZ107=4,G107,0) -> 0 | BE107: =IF(AZ107=5,G107,0) -> 0 | CA107: 1 | CB107: 1
C108: Položka je určena pro montáž litinových tvarovek na potrubí litinovém tlakovém přírubovém jednoosých v otevřeném výkopu, v otevřeném kanálu nebo v šachtě. | L108: Položka je určena pro montáž litinových tvarovek na potrubí litinovém tlakovém přírubovém jednoosých v otevřeném výkopu, v otevřeném kanálu nebo v šachtě. | O108: 3
C109: Součástí položky je i dodávka nerezových spojovacích prvků (šrouby, podložky, matky) a kompletního obandážování spojů. | L109: Součástí položky je i dodávka nerezových spojovacích prvků (šrouby, podložky, matky) a kompletního obandážování spojů. | O109: 3
C110: Přeložka řadu "V" TLT DN100: | E110: 0 | M110: Přeložka řadu "V" TLT DN100:
C111: Synoflex spojka DN100:2 | E111: 2 | M111: Synoflex spojka DN100:2
C112: EU DN100:2 | E112: 2 | M112: EU DN100:2
A113: 17 | B113: 857264121R00 | C113: Montáž tvarovek litin. odboč. přír. výkop DN 100 | D113: kus | E113: 1 | G113: =E113*F113 -> 0 | H113: 0.00062 | I113: =E113*H113 -> 0.00062 | J113: 0 | K113: =E113*J113 -> 0 | O113: 2 | AA113: 1 | AB113: 1 | AC113: 1 | AZ113: 1 | BA113: =IF(AZ113=1,G113,0) -> 0 | BB113: =IF(AZ113=2,G113,0) -> 0 | BC113: =IF(AZ113=3,G113,0) -> 0 | BD113: =IF(AZ113=4,G113,0) -> 0 | BE113: =IF(AZ113=5,G113,0) -> 0 | CA113: 1 | CB113: 1
C114: Položka je určena pro montáž litinových tvarovek na potrubí litinovém tlakovém přírubovém odbočných v otevřeném výkopu, v otevřeném kanálu nebo v šachtě. | L114: Položka je určena pro montáž litinových tvarovek na potrubí litinovém tlakovém přírubovém odbočných v otevřeném výkopu, v otevřeném kanálu nebo v šachtě. | O114: 3
C115: Součástí položky je i dodávka nerezových spojovacích prvků (šrouby, podložky, matky) a kompletního obandážování spojů. | L115: Součástí položky je i dodávka nerezových spojovacích prvků (šrouby, podložky, matky) a kompletního obandážování spojů. | O115: 3
C116: Přeložka řadu "V" TLT DN100: | E116: 0 | M116: Přeložka řadu "V" TLT DN100:
C117: T DN100/100:1 | E117: 1 | M117: T DN100/100:1
A118: 18 | B118: 857601102R00 | C118: Montáž tvarovek jednoosých, tvárná litina DN 100 | D118: kus | E118: 3 | G118: =E118*F118 -> 0 | H118: 0 | I118: =E118*H118 -> 0 | J118: 0 | K118: =E118*J118 -> 0 | O118: 2 | AA118: 1 | AB118: 1 | AC118: 1 | AZ118: 1 | BA118: =IF(AZ118=1,G118,0) -> 0 | BB118: =IF(AZ118=2,G118,0) -> 0 | BC118: =IF(AZ118=3,G118,0) -> 0 | BD118: =IF(AZ118=4,G118,0) -> 0 | BE118: =IF(AZ118=5,G118,0) -> 0 | CA118: 1 | CB118: 1
C119: Přeložka řadu "V" TLT DN100: | E119: 0 | M119: Přeložka řadu "V" TLT DN100:
C120: MMK 11° DN100:1 | E120: 1 | M120: MMK 11° DN100:1
C121: MMK 22° DN100:2 | E121: 2 | M121: MMK 22° DN100:2
A122: 19 | B122: 857701102R00 | C122: Montáž tvarovek odbočných, tvárná litina DN 100 | D122: kus | E122: 1 | G122: =E122*F122 -> 0 | H122: 0.00021 | I122: =E122*H122 -> 0.00021 | J122: 0 | K122: =E122*J122 -> 0 | O122: 2 | AA122: 1 | AB122: 1 | AC122: 1 | AZ122: 1 | BA122: =IF(AZ122=1,G122,0) -> 0 | BB122: =IF(AZ122=2,G122,0) -> 0 | BC122: =IF(AZ122=3,G122,0) -> 0 | BD122: =IF(AZ122=4,G122,0) -> 0 | BE122: =IF(AZ122=5,G122,0) -> 0 | CA122: 1 | CB122: 1
C123: Přeložka řadu "V" TLT DN100: | E123: 0 | M123: Přeložka řadu "V" TLT DN100:
C124: MMA DN100/100:1 | E124: 1 | M124: MMA DN100/100:1
A125: 20 | B125: 871161121R00 | C125: Montáž trubek polyetylenových ve výkopu d 32 mm | D125: m | E125: 11.3 | G125: =E125*F125 -> 0 | H125: 0 | I125: =E125*H125 -> 0 | J125: 0 | K125: =E125*J125 -> 0 | O125: 2 | AA125: 1 | AB125: 1 | AC125: 1 | AZ125: 1 | BA125: =IF(AZ125=1,G125,0) -> 0 | BB125: =IF(AZ125=2,G125,0) -> 0 | BC125: =IF(AZ125=3,G125,0) -> 0 | BD125: =IF(AZ125=4,G125,0) -> 0 | BE125: =IF(AZ125=5,G125,0) -> 0 | CA125: 1 | CB125: 1
C126: V položce je uvažováno použití svitku. | L126: V položce je uvažováno použití svitku. | O126: 3
C127: Přeložka řadu "V" TLT DN100: | E127: 0 | M127: Přeložka řadu "V" TLT DN100:
C128: VP1 PE D 32x3,0 mm:11,30 | E128: 11.3 | M128: VP1 PE D 32x3,0 mm:11,30
A129: 21 | B129: 891163111R00 | C129: Montáž ventilů hlavních pro přípojky DN 25 | D129: kus | E129: 1 | G129: =E129*F129 -> 0 | H129: 2e-05 | I129: =E129*H129 -> 2e-05 | J129: 0 | K129: =E129*J129 -> 0 | O129: 2 | AA129: 1 | AB129: 1 | AC129: 1 | AZ129: 1 | BA129: =IF(AZ129=1,G129,0) -> 0 | BB129: =IF(AZ129=2,G129,0) -> 0 | BC129: =IF(AZ129=3,G129,0) -> 0 | BD129: =IF(AZ129=4,G129,0) -> 0 | BE129: =IF(AZ129=5,G129,0) -> 0 | CA129: 1 | CB129: 1
C130: Přeložka řadu "V" TLT DN100: | E130: 0 | M130: Přeložka řadu "V" TLT DN100:
C131: Pro VP1 PE D 32x3,0 mm:1 | E131: 1 | M131: Pro VP1 PE D 32x3,0 mm:1
A132: 22 | B132: 891261111R00 | C132: Montáž vodovodních šoupátek ve výkopu DN 100 | D132: kus | E132: 1 | G132: =E132*F132 -> 0 | H132: 0.00041 | I132: =E132*H132 -> 0.00041 | J132: 0 | K132: =E132*J132 -> 0 | O132: 2 | AA132: 1 | AB132: 1 | AC132: 1 | AZ132: 1 | BA132: =IF(AZ132=1,G132,0) -> 0 | BB132: =IF(AZ132=2,G132,0) -> 0 | BC132: =IF(AZ132=3,G132,0) -> 0 | BD132: =IF(AZ132=4,G132,0) -> 0 | BE132: =IF(AZ132=5,G132,0) -> 0 | CA132: 1 | CB132: 1
C133: Položka je určena pro montáž vodovodních šoupátek v otevřeném výkopu nebo v šachtách s osazením zemní soupravy (bez poklopů). V položce jsou zakalkulovány i náklady na vytvoření otvorů ve stropech šachet pro prostup zemních souprav šoupátek. | L133: Položka je určena pro montáž vodovodních šoupátek v otevřeném výkopu nebo v šachtách s osazením zemní soupravy (bez poklopů). V položce jsou zakalkulovány i náklady na vytvoření otvorů ve stropech šachet pro prostup zemních souprav šoupátek. | O133: 3
C134: Přeložka řadu "V" TLT DN100: | E134: 0 | M134: Přeložka řadu "V" TLT DN100:
C135: Š DN100:1 | E135: 1 | M135: Š DN100:1
A136: 23 | B136: 891269111R00 | C136: Montáž navrtávacích pasů DN 100 | D136: kus | E136: 1 | G136: =E136*F136 -> 0 | H136: 0 | I136: =E136*H136 -> 0 | J136: 0 | K136: =E136*J136 -> 0 | O136: 2 | AA136: 1 | AB136: 1 | AC136: 1 | AZ136: 1 | BA136: =IF(AZ136=1,G136,0) -> 0 | BB136: =IF(AZ136=2,G136,0) -> 0 | BC136: =IF(AZ136=3,G136,0) -> 0 | BD136: =IF(AZ136=4,G136,0) -> 0 | BE136: =IF(AZ136=5,G136,0) -> 0 | CA136: 1 | CB136: 1
C137: Položka je určena pro montáž navrtávacích pasů s ventilem na potrubí z trub osinkocementových, litinových, ocelových nebo plastckých hmot. | L137: Položka je určena pro montáž navrtávacích pasů s ventilem na potrubí z trub osinkocementových, litinových, ocelových nebo plastckých hmot. | O137: 3
C138: Přeložka řadu "V" TLT DN100: | E138: 0 | M138: Přeložka řadu "V" TLT DN100:
C139: Pro VP1 PE D 32x3,0 mm:1 | E139: 1 | M139: Pro VP1 PE D 32x3,0 mm:1
A140: 24 | B140: 892233111R00 | C140: Desinfekce vodovodního potrubí DN 70 | D140: m | E140: 11.3 | G140: =E140*F140 -> 0 | H140: 0 | I140: =E140*H140 -> 0 | J140: 0 | K140: =E140*J140 -> 0 | O140: 2 | AA140: 1 | AB140: 1 | AC140: 1 | AZ140: 1 | BA140: =IF(AZ140=1,G140,0) -> 0 | BB140: =IF(AZ140=2,G140,0) -> 0 | BC140: =IF(AZ140=3,G140,0) -> 0 | BD140: =IF(AZ140=4,G140,0) -> 0 | BE140: =IF(AZ140=5,G140,0) -> 0 | CA140: 1 | CB140: 1
C141: V položce jsou zakalkulovány náklady na napuštění a vypuštění vody, dodání vody a desinfekčního prostředku a na bakteriologický rozbor vody. | L141: V položce jsou zakalkulovány náklady na napuštění a vypuštění vody, dodání vody a desinfekčního prostředku a na bakteriologický rozbor vody. | O141: 3
C142: Přeložka řadu "V" TLT DN100: | E142: 0 | M142: Přeložka řadu "V" TLT DN100:
C143: VP1 PE D 32x3,0 mm:11,30 | E143: 11.3 | M143: VP1 PE D 32x3,0 mm:11,30
A144: 25 | B144: 892241111R00 | C144: Tlaková zkouška vodovodního potrubí DN 80 včetně zajištění konců potrubí | D144: m | E144: 11.3 | G144: =E144*F144 -> 0 | H144: 0 | I144: =E144*H144 -> 0 | J144: 0 | K144: =E144*J144 -> 0 | O144: 2 | AA144: 1 | AB144: 1 | AC144: 1 | AZ144: 1 | BA144: =IF(AZ144=1,G144,0) -> 0 | BB144: =IF(AZ144=2,G144,0) -> 0 | BC144: =IF(AZ144=3,G144,0) -> 0 | BD144: =IF(AZ144=4,G144,0) -> 0 | BE144: =IF(AZ144=5,G144,0) -> 0 | CA144: 1 | CB144: 1
C145: V položce jsou započteny náklady na přísun, montáž, demontáž a odsun zkoušecího čerpadla, napuštění tlakovou vodou a dodání vody pro tlakovou zkoušku. | L145: V položce jsou započteny náklady na přísun, montáž, demontáž a odsun zkoušecího čerpadla, napuštění tlakovou vodou a dodání vody pro tlakovou zkoušku. | O145: 3
C146: Přeložka řadu "V" TLT DN100: | E146: 0 | M146: Přeložka řadu "V" TLT DN100:
C147: VP1 PE D 32x3,0 mm:11,30 | E147: 11.3 | M147: VP1 PE D 32x3,0 mm:11,30
A148: 26 | B148: 892271111R00 | C148: Tlaková zkouška vodovodního potrubí DN 125 včetně zajištění konců potrubí | D148: m | E148: 30.8 | G148: =E148*F148 -> 0 | H148: 0 | I148: =E148*H148 -> 0 | J148: 0 | K148: =E148*J148 -> 0 | O148: 2 | AA148: 1 | AB148: 1 | AC148: 1 | AZ148: 1 | BA148: =IF(AZ148=1,G148,0) -> 0 | BB148: =IF(AZ148=2,G148,0) -> 0 | BC148: =IF(AZ148=3,G148,0) -> 0 | BD148: =IF(AZ148=4,G148,0) -> 0 | BE148: =IF(AZ148=5,G148,0) -> 0 | CA148: 1 | CB148: 1
C149: V položce jsou započteny náklady na přísun, montáž, demontáž a odsun zkoušecího čerpadla, napuštění tlakovou vodou a dodání vody pro tlakovou zkoušku. | L149: V položce jsou započteny náklady na přísun, montáž, demontáž a odsun zkoušecího čerpadla, napuštění tlakovou vodou a dodání vody pro tlakovou zkoušku. | O149: 3
C150: Přeložka řadu "V" TLT DN100:30,80 | E150: 30.8 | M150: Přeložka řadu "V" TLT DN100:30,80
A151: 27 | B151: 892273111R00 | C151: Desinfekce vodovodního potrubí DN 125 | D151: m | E151: 30.8 | G151: =E151*F151 -> 0 | H151: 0 | I151: =E151*H151 -> 0 | J151: 0 | K151: =E151*J151 -> 0 | O151: 2 | AA151: 1 | AB151: 1 | AC151: 1 | AZ151: 1 | BA151: =IF(AZ151=1,G151,0) -> 0 | BB151: =IF(AZ151=2,G151,0) -> 0 | BC151: =IF(AZ151=3,G151,0) -> 0 | BD151: =IF(AZ151=4,G151,0) -> 0 | BE151: =IF(AZ151=5,G151,0) -> 0 | CA151: 1 | CB151: 1
C152: V položce jsou zakalkulovány náklady na napuštění a vypuštění vody, dodání vody a desinfekčního prostředku a na bakteriologický rozbor vody. | L152: V položce jsou zakalkulovány náklady na napuštění a vypuštění vody, dodání vody a desinfekčního prostředku a na bakteriologický rozbor vody. | O152: 3
C153: Přeložka řadu "V" TLT DN100:30,80 | E153: 30.8 | M153: Přeložka řadu "V" TLT DN100:30,80
A154: 28 | B154: 893151111R00 | C154: Montáž šachty vodoměrné a revizní plastové kruhové | D154: kus | E154: 1 | G154: =E154*F154 -> 0 | H154: 0.51066 | I154: =E154*H154 -> 0.51066 | J154: 0 | K154: =E154*J154 -> 0 | O154: 2 | AA154: 1 | AB154: 1 | AC154: 1 | AZ154: 1 | BA154: =IF(AZ154=1,G154,0) -> 0 | BB154: =IF(AZ154=2,G154,0) -> 0 | BC154: =IF(AZ154=3,G154,0) -> 0 | BD154: =IF(AZ154=4,G154,0) -> 0 | BE154: =IF(AZ154=5,G154,0) -> 0 | CA154: 1 | CB154: 1
C155: Včetně zřízení podkladního betonu v tl. 15 cm | L155: Včetně zřízení podkladního betonu v tl. 15 cm | O155: 3
C156: Přeložka řadu "V" TLT DN100: | E156: 0 | M156: Přeložka řadu "V" TLT DN100:
C157: Pro VP1 PE D 32x3,0 mm:1 | E157: 1 | M157: Pro VP1 PE D 32x3,0 mm:1
A158: 29 | B158: 899401111R00 | C158: Osazení poklopů litinových ventilových | D158: kus | E158: 1 | G158: =E158*F158 -> 0 | H158: 0.06383 | I158: =E158*H158 -> 0.06383 | J158: 0 | K158: =E158*J158 -> 0 | O158: 2 | AA158: 1 | AB158: 1 | AC158: 1 | AZ158: 1 | BA158: =IF(AZ158=1,G158,0) -> 0 | BB158: =IF(AZ158=2,G158,0) -> 0 | BC158: =IF(AZ158=3,G158,0) -> 0 | BD158: =IF(AZ158=4,G158,0) -> 0 | BE158: =IF(AZ158=5,G158,0) -> 0 | CA158: 1 | CB158: 1
C159: V položkách osazení poklopů jsou zakalkulovány i náklady na jejich podezdění nebo osazení poklopů samonivelačních. | L159: V položkách osazení poklopů jsou zakalkulovány i náklady na jejich podezdění nebo osazení poklopů samonivelačních. | O159: 3
C160: Přeložka řadu "V" TLT DN100: | E160: 0 | M160: Přeložka řadu "V" TLT DN100:
C161: Pro VP1 PE D 32x3,0 mm:1 | E161: 1 | M161: Pro VP1 PE D 32x3,0 mm:1
A162: 30 | B162: 899401112R00 | C162: Osazení poklopů litinových šoupátkových | D162: kus | E162: 1 | G162: =E162*F162 -> 0 | H162: 0.11178 | I162: =E162*H162 -> 0.11178 | J162: 0 | K162: =E162*J162 -> 0 | O162: 2 | AA162: 1 | AB162: 1 | AC162: 1 | AZ162: 1 | BA162: =IF(AZ162=1,G162,0) -> 0 | BB162: =IF(AZ162=2,G162,0) -> 0 | BC162: =IF(AZ162=3,G162,0) -> 0 | BD162: =IF(AZ162=4,G162,0) -> 0 | BE162: =IF(AZ162=5,G162,0) -> 0 | CA162: 1 | CB162: 1
C163: V položkách osazení poklopů jsou zakalkulovány i náklady na jejich podezdění nebo osazení poklopů samonivelačních. | L163: V položkách osazení poklopů jsou zakalkulovány i náklady na jejich podezdění nebo osazení poklopů samonivelačních. | O163: 3
C164: Přeložka řadu "V" TLT DN100: | E164: 0 | M164: Přeložka řadu "V" TLT DN100:
C165: Pro Š DN100:1 | E165: 1 | M165: Pro Š DN100:1
A166: 31 | B166: 899711122R00 | C166: Fólie výstražná z PVC, šířka 30 cm | D166: m | E166: 42.1 | G166: =E166*F166 -> 0 | H166: 0 | I166: =E166*H166 -> 0 | J166: 0 | K166: =E166*J166 -> 0 | O166: 2 | AA166: 1 | AB166: 1 | AC166: 1 | AZ166: 1 | BA166: =IF(AZ166=1,G166,0) -> 0 | BB166: =IF(AZ166=2,G166,0) -> 0 | BC166: =IF(AZ166=3,G166,0) -> 0 | BD166: =IF(AZ166=4,G166,0) -> 0 | BE166: =IF(AZ166=5,G166,0) -> 0 | CA166: 1 | CB166: 1
C167: Přeložka řadu "V" TLT DN100:30,80 | E167: 30.8 | M167: Přeložka řadu "V" TLT DN100:30,80
C168: VP1 PE D 32x3,0 mm:11,30 | E168: 11.3 | M168: VP1 PE D 32x3,0 mm:11,30
A169: 32 | B169: 899713111RRX | C169: Orientační tabulky na sloupku ocelovém, betonovém | D169: kus | E169: 2 | G169: =E169*F169 -> 0 | H169: 0.00024 | I169: =E169*H169 -> 0.00048 | J169: 0 | K169: =E169*J169 -> 0 | O169: 2 | AA169: 1 | AB169: 1 | AC169: 1 | AZ169: 1 | BA169: =IF(AZ169=1,G169,0) -> 0 | BB169: =IF(AZ169=2,G169,0) -> 0 | BC169: =IF(AZ169=3,G169,0) -> 0 | BD169: =IF(AZ169=4,G169,0) -> 0 | BE169: =IF(AZ169=5,G169,0) -> 0 | CA169: 1 | CB169: 1
C170: Položka platí pro orientační tabulky na vodovodních a kanalizačních řadech. V položce jsou zakalkulovány náklady na dodání a připevnění tabulky a na osazení sloupku. V položce jsou zakalkulovány náklady na zemní práce a na dodání sloupků (betonových nebo ocelových s betonovými patkami) | L170: Položka platí pro orientační tabulky na vodovodních a kanalizačních řadech. V položce jsou zakalkulovány náklady na dodání a připevnění tabulky a na osazení sloupku. V položce jsou zakalkulovány náklady na zemní práce a na dodání sloupků (betonových nebo ocelových s betonovými patkami) | O170: 3
C171: Přeložka řadu "V" TLT DN100: | E171: 0 | M171: Přeložka řadu "V" TLT DN100:
C172: Pro Š DN100:1 | E172: 1 | M172: Pro Š DN100:1
C173: Pro VP1 PE D 32x3,0 mm:1 | E173: 1 | M173: Pro VP1 PE D 32x3,0 mm:1
A174: 33 | B174: 899731114R00 | C174: Vodič signalizační CYY 6 mm2 | D174: m | E174: 50.1 | G174: =E174*F174 -> 0 | H174: 8e-05 | I174: =E174*H174 -> 0.004008 | J174: 0 | K174: =E174*J174 -> 0 | O174: 2 | AA174: 1 | AB174: 1 | AC174: 1 | AZ174: 1 | BA174: =IF(AZ174=1,G174,0) -> 0 | BB174: =IF(AZ174=2,G174,0) -> 0 | BC174: =IF(AZ174=3,G174,0) -> 0 | BD174: =IF(AZ174=4,G174,0) -> 0 | BE174: =IF(AZ174=5,G174,0) -> 0 | CA174: 1 | CB174: 1
C175: Součástí položky je zajištění proměření vodiče a výchozí revize. | L175: Součástí položky je zajištění proměření vodiče a výchozí revize. | O175: 3
C176: Přeložka řadu "V" TLT DN100:30,80 | E176: 30.8 | M176: Přeložka řadu "V" TLT DN100:30,80
C177: VP1 PE D 32x3,0 mm:11,30 | E177: 11.3 | M177: VP1 PE D 32x3,0 mm:11,30
C178: Vyvedení : | E178: 0 | M178: Vyvedení :
C179: Pro Š DN100:2,00*2*1 | E179: 4 | M179: Pro Š DN100:2,00*2*1
C180: Pro VP1 PE D 32x3,0 mm:2,00*2*1 | E180: 4 | M180: Pro VP1 PE D 32x3,0 mm:2,00*2*1
A181: 34 | B181: 28613565 | C181: Trubka PE100RC2 SDR11 32x3,0 mm L 100 m | D181: m | E181: 11.4695 | G181: =E181*F181 -> 0 | H181: 0.00144 | I181: =E181*H181 -> 0.01651608 | K181: =E181*J181 -> 0 | O181: 2 | AA181: 3 | AB181: 1 | AC181: 28613565 | AZ181: 1 | BA181: =IF(AZ181=1,G181,0) -> 0 | BB181: =IF(AZ181=2,G181,0) -> 0 | BC181: =IF(AZ181=3,G181,0) -> 0 | BD181: =IF(AZ181=4,G181,0) -> 0 | BE181: =IF(AZ181=5,G181,0) -> 0 | CA181: 3 | CB181: 1
C182: Přeložka řadu "V" TLT DN100: | E182: 0 | M182: Přeložka řadu "V" TLT DN100:
C183: VP1 PE D 32x3,0 mm:11,30*1,015 | E183: 11.4695 | M183: VP1 PE D 32x3,0 mm:11,30*1,015
A184: 35 | B184: 28697268 | C184: Šachta vodoměrná samonosná H 180 cm, poklop DN 120 cm | D184: kus | E184: 1 | G184: =E184*F184 -> 0 | H184: 0.118 | I184: =E184*H184 -> 0.118 | K184: =E184*J184 -> 0 | O184: 2 | AA184: 3 | AB184: 1 | AC184: 28697268 | AZ184: 1 | BA184: =IF(AZ184=1,G184,0) -> 0 | BB184: =IF(AZ184=2,G184,0) -> 0 | BC184: =IF(AZ184=3,G184,0) -> 0 | BD184: =IF(AZ184=4,G184,0) -> 0 | BE184: =IF(AZ184=5,G184,0) -> 0 | CA184: 3 | CB184: 1
C185: Součástí dodávka VŠ je i zaslepení potrubí vodovodní přípojky. | L185: Součástí dodávka VŠ je i zaslepení potrubí vodovodní přípojky. | O185: 3
C186: Přeložka řadu "V" TLT DN100: | E186: 0 | M186: Přeložka řadu "V" TLT DN100:
C187: Pro VP1 PE D 32x3,0 mm:1 | E187: 1 | M187: Pro VP1 PE D 32x3,0 mm:1
A188: 36 | B188: 42200740.SN | C188: Poklop uliční těžký 1650 - voda + podkladová deska nebo samonivelační | D188: kus | E188: 1 | G188: =E188*F188 -> 0 | H188: 0.0065 | I188: =E188*H188 -> 0.0065 | K188: =E188*J188 -> 0 | O188: 2 | AA188: 3 | AB188: 1 | AC188: 42200740.SN | AZ188: 1 | BA188: =IF(AZ188=1,G188,0) -> 0 | BB188: =IF(AZ188=2,G188,0) -> 0 | BC188: =IF(AZ188=3,G188,0) -> 0 | BD188: =IF(AZ188=4,G188,0) -> 0 | BE188: =IF(AZ188=5,G188,0) -> 0 | CA188: 3 | CB188: 1
C189: Přeložka řadu "V" TLT DN100: | E189: 0 | M189: Přeložka řadu "V" TLT DN100:
C190: Pro VP1 PE D 32x3,0 mm:1 | E190: 1 | M190: Pro VP1 PE D 32x3,0 mm:1
A191: 37 | B191: 42200750.SN | C191: Poklop uliční šoupátkový 1750 - voda + podkladová deska nebo samonivelační | D191: kus | E191: 1 | G191: =E191*F191 -> 0 | H191: 0.0113 | I191: =E191*H191 -> 0.0113 | K191: =E191*J191 -> 0 | O191: 2 | AA191: 3 | AB191: 1 | AC191: 42200750.SN | AZ191: 1 | BA191: =IF(AZ191=1,G191,0) -> 0 | BB191: =IF(AZ191=2,G191,0) -> 0 | BC191: =IF(AZ191=3,G191,0) -> 0 | BD191: =IF(AZ191=4,G191,0) -> 0 | BE191: =IF(AZ191=5,G191,0) -> 0 | CA191: 3 | CB191: 1
C192: Přeložka řadu "V" TLT DN100: | E192: 0 | M192: Přeložka řadu "V" TLT DN100:
C193: Pro Š DN100:1 | E193: 1 | M193: Pro Š DN100:1
A194: 38 | B194: 42202681 | C194: Navrtávací ISO šoupátko č. 2681 DN 1" + ISO 6221 | D194: kus | E194: 1 | G194: =E194*F194 -> 0 | H194: 0.0026 | I194: =E194*H194 -> 0.0026 | K194: =E194*J194 -> 0 | O194: 2 | AA194: 3 | AB194: 1 | AC194: 42202681 | AZ194: 1 | BA194: =IF(AZ194=1,G194,0) -> 0 | BB194: =IF(AZ194=2,G194,0) -> 0 | BC194: =IF(AZ194=3,G194,0) -> 0 | BD194: =IF(AZ194=4,G194,0) -> 0 | BE194: =IF(AZ194=5,G194,0) -> 0 | CA194: 3 | CB194: 1
C195: Přeložka řadu "V" TLT DN100: | E195: 0 | M195: Přeložka řadu "V" TLT DN100:
C196: Pro VP1 PE D 32x3,0 mm:1 | E196: 1 | M196: Pro VP1 PE D 32x3,0 mm:1
A197: 39 | B197: 42203370.08 | C197: Pás navrtávací Hacom č.3370 DN 100/2" | D197: kus | E197: 1 | G197: =E197*F197 -> 0 | H197: 0.0088 | I197: =E197*H197 -> 0.0088 | K197: =E197*J197 -> 0 | O197: 2 | AA197: 3 | AB197: 1 | AC197: 42203370.08 | AZ197: 1 | BA197: =IF(AZ197=1,G197,0) -> 0 | BB197: =IF(AZ197=2,G197,0) -> 0 | BC197: =IF(AZ197=3,G197,0) -> 0 | BD197: =IF(AZ197=4,G197,0) -> 0 | BE197: =IF(AZ197=5,G197,0) -> 0 | CA197: 3 | CB197: 1
C198: Přeložka řadu "V" TLT DN100: | E198: 0 | M198: Přeložka řadu "V" TLT DN100:
C199: Pro VP1 PE D 32x3,0 mm:1 | E199: 1 | M199: Pro VP1 PE D 32x3,0 mm:1
A200: 40 | B200: 42207994.06 | C200: Synoflex spojka DN100 (D104-132) | D200: kus | E200: 2 | G200: =E200*F200 -> 0 | H200: 0.0062 | I200: =E200*H200 -> 0.0124 | K200: =E200*J200 -> 0 | O200: 2 | AA200: 3 | AB200: 1 | AC200: 42207994.06 | AZ200: 1 | BA200: =IF(AZ200=1,G200,0) -> 0 | BB200: =IF(AZ200=2,G200,0) -> 0 | BC200: =IF(AZ200=3,G200,0) -> 0 | BD200: =IF(AZ200=4,G200,0) -> 0 | BE200: =IF(AZ200=5,G200,0) -> 0 | CA200: 3 | CB200: 1
C201: Přeložka řadu "V" TLT DN100: | E201: 0 | M201: Přeložka řadu "V" TLT DN100:
C202: Synoflex spojka DN100:2 | E202: 2 | M202: Synoflex spojka DN100:2
... 37 more rows

Sheet 304 3236304.1 KL
A1: POLOŽKOVÝ ROZPOČET
A2: Rozpočet | C2: 3236/304.1 | D2: Jednotná kanalizace | F2: JKSO | G2: 827.29.A2
A4: Objekt | F4: SKP
A5: 304 | C5: Jednotná kanalizace, přípojky | F5: Měrná jednotka | G5: m
A6: Stavba | F6: Počet jednotek | G6: 0
A7: 3236 | C7: Bytová zóna Hruštice - Károvsko - Etapa VII. | F7: Náklady na m.j. | G7: =IF(G6=0,,ROUND((F30+F32)/G6,1)) -> 0
A8: Projektant | C8: PROFES PROJEKT spol.s r.o. | F8: Typ rozpočtu
A9: Zpracovatel projektu
A10: Objednatel | C10: Město TURNOV
A11: Dodavatel | C11: . | F11: Zakázkové číslo
A12: Rozpočtoval | F12: Počet listů
A13: ROZPOČTOVÉ NÁKLADY
A14: Základní rozpočtové náklady
B15: HSV celkem | C15: ='304 3236304.1 Rek'!E11 -> 0
A16: Z | B16: PSV celkem | C16: ='304 3236304.1 Rek'!F11 -> 0
A17: R | B17: M práce celkem | C17: ='304 3236304.1 Rek'!H11 -> 0
A18: N | B18: M dodávky celkem | C18: ='304 3236304.1 Rek'!G11 -> 0
A19: ZRN celkem | C19: =SUM(C15:C18) -> 0
A21: HZS | C21: ='304 3236304.1 Rek'!I11 -> 0
A22: ZRN+HZS | C22: =C19+C21 -> 0
A23: ZRN+ost.náklady+HZS | C23: =C22+G23 -> 0
A24: Vypracoval | D24: Za zhotovitele | F24: Za objednatele
A25: Jméno : | D25: Jméno : | F25: Jméno :
A26: Datum : | D26: Datum : | F26: Datum :
A28: Podpis : | D28: Podpis: | F28: Podpis:
A30: Základ pro DPH | C30: 21 | D30: % | F30: =C23-F32 -> 0
A31: DPH | C31: =C30 -> 21 | D31: % | F31: =ROUND(PRODUCT(F30,C31/100),0) -> 0
A32: Základ pro DPH | C32: 0 | D32: % | F32: 0
A33: DPH | C33: =C32 -> 0 | D33: % | F33: =ROUND(PRODUCT(F32,C33/100),0) -> 0
A34: CENA ZA OBJEKT CELKEM | F34: =ROUND(SUM(F30:F33),0) -> 0
A36: Poznámka :

Sheet 304 3236304.1 Rek
A1: Stavba : | C1: 3236 Bytová zóna Hruštice - Károvsko - Etapa VII. | G1: Rozpočet : | H1: 3236/304.1
A2: Objekt : | C2: 304 Jednotná kanalizace, přípojky | G2: Jednotná kanalizace
A4: REKAPITULACE STAVEBNÍCH DÍLŮ
B6: Stavební díl | E6: HSV | F6: PSV | G6: Dodávka | H6: Montáž | I6: HZS
A7: ='304 3236304.1 Pol'!B7 -> 1 | B7: ='304 3236304.1 Pol'!C7 -> Zemní práce | E7: ='304 3236304.1 Pol'!BA88 -> 0 | F7: ='304 3236304.1 Pol'!BB88 -> 0 | G7: ='304 3236304.1 Pol'!BC88 -> 0 | H7: ='304 3236304.1 Pol'!BD88 -> 0 | I7: ='304 3236304.1 Pol'!BE88 -> 0
A8: ='304 3236304.1 Pol'!B89 -> 45 | B8: ='304 3236304.1 Pol'!C89 -> Podkladní a vedlejší konstrukce | E8: ='304 3236304.1 Pol'!BA100 -> 0 | F8: ='304 3236304.1 Pol'!BB100 -> 0 | G8: ='304 3236304.1 Pol'!BC100 -> 0 | H8: ='304 3236304.1 Pol'!BD100 -> 0 | I8: ='304 3236304.1 Pol'!BE100 -> 0
A9: ='304 3236304.1 Pol'!B101 -> 8 | B9: ='304 3236304.1 Pol'!C101 -> Trubní vedení | E9: ='304 3236304.1 Pol'!BA205 -> 0 | F9: ='304 3236304.1 Pol'!BB205 -> 0 | G9: ='304 3236304.1 Pol'!BC205 -> 0 | H9: ='304 3236304.1 Pol'!BD205 -> 0 | I9: ='304 3236304.1 Pol'!BE205 -> 0
A10: ='304 3236304.1 Pol'!B206 -> 99 | B10: ='304 3236304.1 Pol'!C206 -> Staveništní přesun hmot | E10: ='304 3236304.1 Pol'!BA209 -> 0 | F10: ='304 3236304.1 Pol'!BB209 -> 0 | G10: ='304 3236304.1 Pol'!BC209 -> 0 | H10: ='304 3236304.1 Pol'!BD209 -> 0 | I10: ='304 3236304.1 Pol'!BE209 -> 0
B11: CELKEM OBJEKT | E11: =SUM(E7:E10) -> 0 | F11: =SUM(F7:F10) -> 0 | G11: =SUM(G7:G10) -> 0 | H11: =SUM(H7:H10) -> 0 | I11: =SUM(I7:I10) -> 0

Sheet 304 3236304.1 Pol
A1: Položkový rozpočet
A3: Stavba : | C3: 3236 Bytová zóna Hruštice - Károvsko - Etapa VII. | E3: Rozpočet: | F3: ='304 3236304.1 Rek'!H1 -> 3236/304.1
A4: Objekt : | C4: 304 Jednotná kanalizace, přípojky | E4: ='304 3236304.1 Rek'!G2 -> Jednotná kanalizace
A6: P.č. | B6: Číslo položky | C6: Název položky | D6: MJ | E6: množství | F6: cena / MJ | G6: celkem (Kč) | H6: Jednotková hmotnost | I6: Celková hmotnost | J6: Jednotková dem.hmot. | K6: Celková dem.hmot.
A7: Díl: | B7: 1 | C7: Zemní práce | O7: 1
A8: 1 | B8: 120001101RRX | C8: Příplatek za ztížení vykopávky v blízkosti vedení | D8: m3 | E8: 26.7828 | G8: =E8*F8 -> 0 | H8: 0 | I8: =E8*H8 -> 0 | J8: 0 | K8: =E8*J8 -> 0 | O8: 2 | AA8: 1 | AB8: 1 | AC8: 1 | AZ8: 1 | BA8: =IF(AZ8=1,G8,0) -> 0 | BB8: =IF(AZ8=2,G8,0) -> 0 | BC8: =IF(AZ8=3,G8,0) -> 0 | BD8: =IF(AZ8=4,G8,0) -> 0 | BE8: =IF(AZ8=5,G8,0) -> 0 | CA8: 1 | CB8: 1
C9: Včetně ruční dokopávky a ručního výkopu. | L9: Včetně ruční dokopávky a ručního výkopu. | O9: 3
C10: Součástí položky je i případná potřeba dočasnéhon zajištění potrubí a kabelových vedení ve výkopu. | L10: Součástí položky je i případná potřeba dočasnéhon zajištění potrubí a kabelových vedení ve výkopu. | O10: 3
C11: Výkopy: | E11: 0 | M11: Výkopy:
C12: Začátek provozního součtu | E12: 0 | M12: Začátek provozního součtu
C13: Stoka JK PVC DN300:2,50*1,00*(2,16-0,40) | E13: 4.4 | M13: Stoka JK PVC DN300:2,50*1,00*(2,16-0,40)
C14: Stoka JK PVC DN400:60,90*1,10*((2,16+2,03)/2-0,40) | E14: 113.5481 | M14: Stoka JK PVC DN400:60,90*1,10*((2,16+2,03)/2-0,40)
C15: Prohloubení pro RŠ:1,60*1,60*0,20*2 | E15: 1.024 | M15: Prohloubení pro RŠ:1,60*1,60*0,20*2
C16: Rozšíření pro RŠ:1,60*(1,60-1,10)*(2,16+2,10-0,40*2) | E16: 2.768 | M16: Rozšíření pro RŠ:1,60*(1,60-1,10)*(2,16+2,10-0,40*2)
C17: Konec provozního součtu | E17: 121.7401 | M17: Konec provozního součtu
C18: V hornině tř. 3 - 4 - 22%:121,7401*0,22 | E18: 26.7828 | M18: V hornině tř. 3 - 4 - 22%:121,7401*0,22
A19: 2 | B19: 132201211RRX | C19: Hloubení rýh š.do 200 cm hor.3 do 100 m3,STROJNĚ | D19: m3 | E19: 60.87 | G19: =E19*F19 -> 0 | H19: 0 | I19: =E19*H19 -> 0 | J19: 0 | K19: =E19*J19 -> 0 | O19: 2 | AA19: 1 | AB19: 1 | AC19: 1 | AZ19: 1 | BA19: =IF(AZ19=1,G19,0) -> 0 | BB19: =IF(AZ19=2,G19,0) -> 0 | BC19: =IF(AZ19=3,G19,0) -> 0 | BD19: =IF(AZ19=4,G19,0) -> 0 | BE19: =IF(AZ19=5,G19,0) -> 0 | CA19: 1 | CB19: 1
C20: Položka obsahuje hloubení rýh traktorbagrem, naložení výkopku na dopravní prostředek pro svislé, nebo vodorovné přemístění, popř. přemístění výkopku do 3 m (po povrchu území), případné zajištění rypadel polštáři, udržování pracoviště a ochranu výkopiště proti stékání srážkové vody z okolního terénu i s jejím odvodněním, nebo odvedením, přesekání a odstranění kořenů ve výkopišti, odstranění napadávek, urovnání dna výkopu. | L20: Položka obsahuje hloubení rýh traktorbagrem, naložení výkopku na dopravní prostředek pro svislé, nebo vodorovné přemístění, popř. přemístění výkopku do 3 m (po povrchu území), případné zajištění rypadel polštáři, udržování pracoviště a ochranu výkopiště proti stékání srážkové vody z okolního terénu i s jejím odvodněním, nebo odvedením, přesekání a odstranění kořenů ve výkopišti, odstranění napadávek, urovnání dna výkopu. | O20: 3
C21: Součástí položky je i zřízení a odstranění pažení rýhy v souladu s předpisy BOZP. | L21: Součástí položky je i zřízení a odstranění pažení rýhy v souladu s předpisy BOZP. | O21: 3
C22: Začátek provozního součtu | E22: 0 | M22: Začátek provozního součtu
C23: Stoka JK PVC DN300:2,50*1,00*(2,16-0,40) | E23: 4.4 | M23: Stoka JK PVC DN300:2,50*1,00*(2,16-0,40)
C24: Stoka JK PVC DN400:60,90*1,10*((2,16+2,03)/2-0,40) | E24: 113.5481 | M24: Stoka JK PVC DN400:60,90*1,10*((2,16+2,03)/2-0,40)
C25: Prohloubení pro RŠ:1,60*1,60*0,20*2 | E25: 1.024 | M25: Prohloubení pro RŠ:1,60*1,60*0,20*2
C26: Rozšíření pro RŠ:1,60*(1,60-1,10)*(2,16+2,10-0,40*2) | E26: 2.768 | M26: Rozšíření pro RŠ:1,60*(1,60-1,10)*(2,16+2,10-0,40*2)
C27: Konec provozního součtu | E27: 121.7401 | M27: Konec provozního součtu
C28: V hornině tř. 3 - 50%:121,7401*0,5 | E28: 60.87 | M28: V hornině tř. 3 - 50%:121,7401*0,5
A29: 3 | B29: 132201219R00 | C29: Přípl.za lepivost,hloubení rýh 200cm,hor.3,STROJNĚ | D29: m3 | E29: 30.435 | G29: =E29*F29 -> 0 | H29: 0 | I29: =E29*H29 -> 0 | J29: 0 | K29: =E29*J29 -> 0 | O29: 2 | AA29: 1 | AB29: 1 | AC29: 1 | AZ29: 1 | BA29: =IF(AZ29=1,G29,0) -> 0 | BB29: =IF(AZ29=2,G29,0) -> 0 | BC29: =IF(AZ29=3,G29,0) -> 0 | BD29: =IF(AZ29=4,G29,0) -> 0 | BE29: =IF(AZ29=5,G29,0) -> 0 | CA29: 1 | CB29: 1
C30: Začátek provozního součtu | E30: 0 | M30: Začátek provozního součtu
C31: Stoka JK PVC DN300:2,50*1,00*(2,16-0,40) | E31: 4.4 | M31: Stoka JK PVC DN300:2,50*1,00*(2,16-0,40)
C32: Stoka JK PVC DN400:60,90*1,10*((2,16+2,03)/2-0,40) | E32: 113.5481 | M32: Stoka JK PVC DN400:60,90*1,10*((2,16+2,03)/2-0,40)
C33: Prohloubení pro RŠ:1,60*1,60*0,20*2 | E33: 1.024 | M33: Prohloubení pro RŠ:1,60*1,60*0,20*2
C34: Rozšíření pro RŠ:1,60*(1,60-1,10)*(2,16+2,10-0,40*2) | E34: 2.768 | M34: Rozšíření pro RŠ:1,60*(1,60-1,10)*(2,16+2,10-0,40*2)
C35: Konec provozního součtu | E35: 121.7401 | M35: Konec provozního součtu
C36: V hornině tř. 3 - 50%:121,7401*0,5*0,5 | E36: 30.435 | M36: V hornině tř. 3 - 50%:121,7401*0,5*0,5
A37: 4 | B37: 132301211RRX | C37: Hloubení rýh š.do 200 cm hor.4 do 100 m3, STROJNĚ | D37: m3 | E37: 60.87 | G37: =E37*F37 -> 0 | H37: 0 | I37: =E37*H37 -> 0 | J37: 0 | K37: =E37*J37 -> 0 | O37: 2 | AA37: 1 | AB37: 1 | AC37: 1 | AZ37: 1 | BA37: =IF(AZ37=1,G37,0) -> 0 | BB37: =IF(AZ37=2,G37,0) -> 0 | BC37: =IF(AZ37=3,G37,0) -> 0 | BD37: =IF(AZ37=4,G37,0) -> 0 | BE37: =IF(AZ37=5,G37,0) -> 0 | CA37: 1 | CB37: 1
C38: Položka obsahuje hloubení rýh traktorbagrem, naložení výkopku na dopravní prostředek pro svislé, nebo vodorovné přemístění, popř. přemístění výkopku do 3 m (po povrchu území), případné zajištění rypadel polštáři, udržování pracoviště a ochranu výkopiště proti stékání srážkové vody z okolního terénu i s jejím odvodněním, nebo odvedením, přesekání a odstranění kořenů ve výkopišti, odstranění napadávek, urovnání dna výkopu. | L38: Položka obsahuje hloubení rýh traktorbagrem, naložení výkopku na dopravní prostředek pro svislé, nebo vodorovné přemístění, popř. přemístění výkopku do 3 m (po povrchu území), případné zajištění rypadel polštáři, udržování pracoviště a ochranu výkopiště proti stékání srážkové vody z okolního terénu i s jejím odvodněním, nebo odvedením, přesekání a odstranění kořenů ve výkopišti, odstranění napadávek, urovnání dna výkopu. | O38: 3
C39: Součástí položky je i zřízení a odstranění pažení rýhy v souladu s předpisy BOZP. | L39: Součástí položky je i zřízení a odstranění pažení rýhy v souladu s předpisy BOZP. | O39: 3
C40: Začátek provozního součtu | E40: 0 | M40: Začátek provozního součtu
C41: Stoka JK PVC DN300:2,50*1,00*(2,16-0,40) | E41: 4.4 | M41: Stoka JK PVC DN300:2,50*1,00*(2,16-0,40)
C42: Stoka JK PVC DN400:60,90*1,10*((2,16+2,03)/2-0,40) | E42: 113.5481 | M42: Stoka JK PVC DN400:60,90*1,10*((2,16+2,03)/2-0,40)
C43: Prohloubení pro RŠ:1,60*1,60*0,20*2 | E43: 1.024 | M43: Prohloubení pro RŠ:1,60*1,60*0,20*2
C44: Rozšíření pro RŠ:1,60*(1,60-1,10)*(2,16+2,10-0,40*2) | E44: 2.768 | M44: Rozšíření pro RŠ:1,60*(1,60-1,10)*(2,16+2,10-0,40*2)
C45: Konec provozního součtu | E45: 121.7401 | M45: Konec provozního součtu
C46: V hornině tř. 4 - 50%:121,7401*0,5 | E46: 60.87 | M46: V hornině tř. 4 - 50%:121,7401*0,5
A47: 5 | B47: 132301219R00 | C47: Přípl.za lepivost,hloubení rýh 200cm,hor.4,STROJNĚ | D47: m3 | E47: 30.435 | G47: =E47*F47 -> 0 | H47: 0 | I47: =E47*H47 -> 0 | J47: 0 | K47: =E47*J47 -> 0 | O47: 2 | AA47: 1 | AB47: 1 | AC47: 1 | AZ47: 1 | BA47: =IF(AZ47=1,G47,0) -> 0 | BB47: =IF(AZ47=2,G47,0) -> 0 | BC47: =IF(AZ47=3,G47,0) -> 0 | BD47: =IF(AZ47=4,G47,0) -> 0 | BE47: =IF(AZ47=5,G47,0) -> 0 | CA47: 1 | CB47: 1
C48: Začátek provozního součtu | E48: 0 | M48: Začátek provozního součtu
C49: Stoka JK PVC DN300:2,50*1,00*(2,16-0,40) | E49: 4.4 | M49: Stoka JK PVC DN300:2,50*1,00*(2,16-0,40)
C50: Stoka JK PVC DN400:60,90*1,10*((2,16+2,03)/2-0,40) | E50: 113.5481 | M50: Stoka JK PVC DN400:60,90*1,10*((2,16+2,03)/2-0,40)
C51: Prohloubení pro RŠ:1,60*1,60*0,20*2 | E51: 1.024 | M51: Prohloubení pro RŠ:1,60*1,60*0,20*2
C52: Rozšíření pro RŠ:1,60*(1,60-1,10)*(2,16+2,10-0,40*2) | E52: 2.768 | M52: Rozšíření pro RŠ:1,60*(1,60-1,10)*(2,16+2,10-0,40*2)
C53: Konec provozního součtu | E53: 121.7401 | M53: Konec provozního součtu
C54: V hornině tř. 4 - 50%:121,7401*0,5*0,5 | E54: 30.435 | M54: V hornině tř. 4 - 50%:121,7401*0,5*0,5
A55: 6 | B55: 162701105RSZ | C55: Vodorovné přemístění výkopku z hor.1-7 na skládku zhotovitele | D55: m3 | E55: 93.9441 | G55: =E55*F55 -> 0 | H55: 0 | I55: =E55*H55 -> 0 | J55: 0 | K55: =E55*J55 -> 0 | O55: 2 | AA55: 1 | AB55: 1 | AC55: 1 | AZ55: 1 | BA55: =IF(AZ55=1,G55,0) -> 0 | BB55: =IF(AZ55=2,G55,0) -> 0 | BC55: =IF(AZ55=3,G55,0) -> 0 | BD55: =IF(AZ55=4,G55,0) -> 0 | BE55: =IF(AZ55=5,G55,0) -> 0 | CA55: 1 | CB55: 1
C56: Výkopy: | E56: 0 | M56: Výkopy:
C57: Začátek provozního součtu | E57: 0 | M57: Začátek provozního součtu
C58: Stoka JK PVC DN300:2,50*1,00*(2,16-0,40) | E58: 4.4 | M58: Stoka JK PVC DN300:2,50*1,00*(2,16-0,40)
C59: Stoka JK PVC DN400:60,90*1,10*((2,16+2,03)/2-0,40) | E59: 113.5481 | M59: Stoka JK PVC DN400:60,90*1,10*((2,16+2,03)/2-0,40)
C60: Prohloubení pro RŠ:1,60*1,60*0,20*2 | E60: 1.024 | M60: Prohloubení pro RŠ:1,60*1,60*0,20*2
C61: Rozšíření pro RŠ:1,60*(1,60-1,10)*(2,16+2,10-0,40*2) | E61: 2.768 | M61: Rozšíření pro RŠ:1,60*(1,60-1,10)*(2,16+2,10-0,40*2)
C62: Konec provozního součtu | E62: 121.7401 | M62: Konec provozního součtu
C63: V hornině tř. 3 - 4 :121,7401 | E63: 121.7401 | M63: V hornině tř. 3 - 4 :121,7401
C64: Odpočet zásypů zeminou:-27,7960 | E64: -27.796 | M64: Odpočet zásypů zeminou:-27,7960
A65: 7 | B65: 174100050RAA | C65: Zásyp jam,rýh a šachet štěrkodrtí fr. 0-63 mm včetně dovozu štěrkodrtě | D65: m3 | E65: 40.4065 | G65: =E65*F65 -> 0 | H65: 1.873 | I65: =E65*H65 -> 75.6813745 | J65: 0 | K65: =E65*J65 -> 0 | O65: 2 | AA65: 1 | AB65: 1 | AC65: 1 | AZ65: 1 | BA65: =IF(AZ65=1,G65,0) -> 0 | BB65: =IF(AZ65=2,G65,0) -> 0 | BC65: =IF(AZ65=3,G65,0) -> 0 | BD65: =IF(AZ65=4,G65,0) -> 0 | BE65: =IF(AZ65=5,G65,0) -> 0 | CA65: 1 | CB65: 1
C66: Stoka JK PVC DN300:2,50*1,00*(2,16-0,40-0,10-0,30-0,30-0,30) | E66: 1.9 | M66: Stoka JK PVC DN300:2,50*1,00*(2,16-0,40-0,10-0,30-0,30-0,30)
C67: Stoka JK PVC DN400:60,90*1,10*((2,16+2,03)/2-0,40-0,10-0,40-0,30-0,30) | E67: 39.859 | M67: Stoka JK PVC DN400:60,90*1,10*((2,16+2,03)/2-0,40-0,10-0,40-0,30-0,30)
C68: Prohloubení pro RŠ:1,60*1,60*0,20*2 | E68: 1.024 | M68: Prohloubení pro RŠ:1,60*1,60*0,20*2
C69: Rozšíření pro RŠ:1,60*(1,60-1,10)*(2,16+2,10-0,40*2) | E69: 2.768 | M69: Rozšíření pro RŠ:1,60*(1,60-1,10)*(2,16+2,10-0,40*2)
C70: Odpočet objemu RŠ:-5,1445 | E70: -5.1445 | M70: Odpočet objemu RŠ:-5,1445
A71: 8 | B71: 174101101R00 | C71: Zásyp jam, rýh, šachet se zhutněním | D71: m3 | E71: 27.796 | G71: =E71*F71 -> 0 | H71: 0 | I71: =E71*H71 -> 0 | J71: 0 | K71: =E71*J71 -> 0 | O71: 2 | AA71: 1 | AB71: 1 | AC71: 1 | AZ71: 1 | BA71: =IF(AZ71=1,G71,0) -> 0 | BB71: =IF(AZ71=2,G71,0) -> 0 | BC71: =IF(AZ71=3,G71,0) -> 0 | BD71: =IF(AZ71=4,G71,0) -> 0 | BE71: =IF(AZ71=5,G71,0) -> 0 | CA71: 1 | CB71: 1
C72: včetně strojního přemístění materiálu pro zásyp ze vzdálenosti do 10 m od okraje zásypu | L72: včetně strojního přemístění materiálu pro zásyp ze vzdálenosti do 10 m od okraje zásypu | O72: 3
C73: Stoka JK PVC DN300:2,50*1,00*0,40 | E73: 1 | M73: Stoka JK PVC DN300:2,50*1,00*0,40
C74: Stoka JK PVC DN400:60,90*1,10*0,40 | E74: 26.796 | M74: Stoka JK PVC DN400:60,90*1,10*0,40
A75: 9 | B75: 175100020RAA | C75: Obsyp potrubí štěrkopískem včetně dovozu štěrkopísku | D75: m3 | E75: 40.5634 | G75: =E75*F75 -> 0 | H75: 1.873 | I75: =E75*H75 -> 75.9752482 | J75: 0 | K75: =E75*J75 -> 0 | O75: 2 | AA75: 1 | AB75: 1 | AC75: 1 | AZ75: 1 | BA75: =IF(AZ75=1,G75,0) -> 0 | BB75: =IF(AZ75=2,G75,0) -> 0 | BC75: =IF(AZ75=3,G75,0) -> 0 | BD75: =IF(AZ75=4,G75,0) -> 0 | BE75: =IF(AZ75=5,G75,0) -> 0 | CA75: 1 | CB75: 1
C76: Stoka JK PVC DN300:2,50*(1,00*(0,30+0,30)-0,15^2*Pi) | E76: 1.3233 | M76: Stoka JK PVC DN300:2,50*(1,00*(0,30+0,30)-0,15^2*Pi)
C77: Stoka JK PVC DN400:60,90*(1,10*(0,40+0,30)-0,20^2*Pi) | E77: 39.2401 | M77: Stoka JK PVC DN400:60,90*(1,10*(0,40+0,30)-0,20^2*Pi)
A78: 10 | B78: 199000002R00 | C78: Poplatek za skládku horniny 1- 7 | D78: m3 | E78: 93.9441 | G78: =E78*F78 -> 0 | H78: 0 | I78: =E78*H78 -> 0 | J78: 0 | K78: =E78*J78 -> 0 | O78: 2 | AA78: 1 | AB78: 1 | AC78: 1 | AZ78: 1 | BA78: =IF(AZ78=1,G78,0) -> 0 | BB78: =IF(AZ78=2,G78,0) -> 0 | BC78: =IF(AZ78=3,G78,0) -> 0 | BD78: =IF(AZ78=4,G78,0) -> 0 | BE78: =IF(AZ78=5,G78,0) -> 0 | CA78: 1 | CB78: 1
C79: Výkopy: | E79: 0 | M79: Výkopy:
C80: Začátek provozního součtu | E80: 0 | M80: Začátek provozního součtu
C81: Stoka JK PVC DN300:2,50*1,00*(2,16-0,40) | E81: 4.4 | M81: Stoka JK PVC DN300:2,50*1,00*(2,16-0,40)
C82: Stoka JK PVC DN400:60,90*1,10*((2,16+2,03)/2-0,40) | E82: 113.5481 | M82: Stoka JK PVC DN400:60,90*1,10*((2,16+2,03)/2-0,40)
C83: Prohloubení pro RŠ:1,60*1,60*0,20*2 | E83: 1.024 | M83: Prohloubení pro RŠ:1,60*1,60*0,20*2
C84: Rozšíření pro RŠ:1,60*(1,60-1,10)*(2,16+2,10-0,40*2) | E84: 2.768 | M84: Rozšíření pro RŠ:1,60*(1,60-1,10)*(2,16+2,10-0,40*2)
C85: Konec provozního součtu | E85: 121.7401 | M85: Konec provozního součtu
C86: V hornině tř. 3 - 4 :121,7401 | E86: 121.7401 | M86: V hornině tř. 3 - 4 :121,7401
C87: Odpočet zásypů zeminou:-27,7960 | E87: -27.796 | M87: Odpočet zásypů zeminou:-27,7960
B88: Celkem za | C88: 1 Zemní práce | G88: =SUM(G7:G87) -> 0 | I88: =SUM(I7:I87) -> 151.6566227 | K88: =SUM(K7:K87) -> 0 | O88: 4 | BA88: =SUM(BA7:BA87) -> 0 | BB88: =SUM(BB7:BB87) -> 0 | BC88: =SUM(BC7:BC87) -> 0 | BD88: =SUM(BD7:BD87) -> 0 | BE88: =SUM(BE7:BE87) -> 0
A89: Díl: | B89: 45 | C89: Podkladní a vedlejší konstrukce | O89: 1
A90: 11 | B90: 451572111R00 | C90: Lože pod potrubí z kameniva těženého 0 - 4 mm | D90: m3 | E90: 6.949 | G90: =E90*F90 -> 0 | H90: 0.43051 | I90: =E90*H90 -> 2.99161399 | J90: 0 | K90: =E90*J90 -> 0 | O90: 2 | AA90: 1 | AB90: 1 | AC90: 1 | AZ90: 1 | BA90: =IF(AZ90=1,G90,0) -> 0 | BB90: =IF(AZ90=2,G90,0) -> 0 | BC90: =IF(AZ90=3,G90,0) -> 0 | BD90: =IF(AZ90=4,G90,0) -> 0 | BE90: =IF(AZ90=5,G90,0) -> 0 | CA90: 1 | CB90: 1
C91: Stoka JK PVC DN300:2,50*1,00*0,10 | E91: 0.25 | M91: Stoka JK PVC DN300:2,50*1,00*0,10
C92: Stoka JK PVC DN400:60,90*1,10*0,10 | E92: 6.699 | M92: Stoka JK PVC DN400:60,90*1,10*0,10
A93: 12 | B93: 452112111R00 | C93: Osazení beton. prstenců pod poklopy,výšky do100 mm | D93: kus | E93: 4 | G93: =E93*F93 -> 0 | H93: 0.0066 | I93: =E93*H93 -> 0.0264 | J93: 0 | K93: =E93*J93 -> 0 | O93: 2 | AA93: 1 | AB93: 1 | AC93: 1 | AZ93: 1 | BA93: =IF(AZ93=1,G93,0) -> 0 | BB93: =IF(AZ93=2,G93,0) -> 0 | BC93: =IF(AZ93=3,G93,0) -> 0 | BD93: =IF(AZ93=4,G93,0) -> 0 | BE93: =IF(AZ93=5,G93,0) -> 0 | CA93: 1 | CB93: 1
C94: Volba položky se řídí výškou prstence nebo rámu. V položkách nejsou zakalkulovány náklady na dodávku betonových výrobků; | L94: Volba položky se řídí výškou prstence nebo rámu. V položkách nejsou zakalkulovány náklady na dodávku betonových výrobků; | O94: 3
C95: Stoka JK PVC DN400: | E95: 0 | M95: Stoka JK PVC DN400:
C96: VP H10:4 | E96: 4 | M96: VP H10:4
A97: 13 | B97: 59224348.B | C97: Prstenec vyrovn šachetní TBW-Q 100/625/120 | D97: kus | E97: 4.04 | G97: =E97*F97 -> 0 | H97: 0.068 | I97: =E97*H97 -> 0.27472 | K97: =E97*J97 -> 0 | O97: 2 | AA97: 3 | AB97: 1 | AC97: 59224348.B | AZ97: 1 | BA97: =IF(AZ97=1,G97,0) -> 0 | BB97: =IF(AZ97=2,G97,0) -> 0 | BC97: =IF(AZ97=3,G97,0) -> 0 | BD97: =IF(AZ97=4,G97,0) -> 0 | BE97: =IF(AZ97=5,G97,0) -> 0 | CA97: 3 | CB97: 1
C98: Stoka JK PVC DN400: | E98: 0 | M98: Stoka JK PVC DN400:
C99: VP H10:4*1,01 | E99: 4.04 | M99: VP H10:4*1,01
B100: Celkem za | C100: 45 Podkladní a vedlejší konstrukce | G100: =SUM(G89:G99) -> 0 | I100: =SUM(I89:I99) -> 3.29273399 | K100: =SUM(K89:K99) -> 0 | O100: 4 | BA100: =SUM(BA89:BA99) -> 0 | BB100: =SUM(BB89:BB99) -> 0 | BC100: =SUM(BC89:BC99) -> 0 | BD100: =SUM(BD89:BD99) -> 0 | BE100: =SUM(BE89:BE99) -> 0
A101: Díl: | B101: 8 | C101: Trubní vedení | O101: 1
A102: 14 | B102: 871371111RRX | C102: Montáž trubek z PVC/PP ve výkopu DN 250-300 mm | D102: m | E102: 2.5 | G102: =E102*F102 -> 0 | H102: 0.00016 | I102: =E102*H102 -> 0.0004 | J102: 0 | K102: =E102*J102 -> 0 | O102: 2 | AA102: 1 | AB102: 1 | AC102: 1 | AZ102: 1 | BA102: =IF(AZ102=1,G102,0) -> 0 | BB102: =IF(AZ102=2,G102,0) -> 0 | BC102: =IF(AZ102=3,G102,0) -> 0 | BD102: =IF(AZ102=4,G102,0) -> 0 | BE102: =IF(AZ102=5,G102,0) -> 0 | CA102: 1 | CB102: 1
C103: Položka je určena pro montáž potrubí PVC těsněných gumovým kroužkem. Volba položky se řídí vnějším průměrem trubky. V položce jsou zakalkulovány i náklady na montáž tvarovek. . | L103: Položka je určena pro montáž potrubí PVC těsněných gumovým kroužkem. Volba položky se řídí vnějším průměrem trubky. V položce jsou zakalkulovány i náklady na montáž tvarovek. . | O103: 3
C104: Stoka JK PVC DN300:2,50 | E104: 2.5 | M104: Stoka JK PVC DN300:2,50
A105: 15 | B105: 871393121RRX | C105: Montáž trubek z PVC/PP ve výkopu DN 400 mm | D105: m | E105: 60.9 | G105: =E105*F105 -> 0 | H105: 1e-05 | I105: =E105*H105 -> 0.000609 | J105: 0 | K105: =E105*J105 -> 0 | O105: 2 | AA105: 1 | AB105: 1 | AC105: 1 | AZ105: 1 | BA105: =IF(AZ105=1,G105,0) -> 0 | BB105: =IF(AZ105=2,G105,0) -> 0 | BC105: =IF(AZ105=3,G105,0) -> 0 | BD105: =IF(AZ105=4,G105,0) -> 0 | BE105: =IF(AZ105=5,G105,0) -> 0 | CA105: 1 | CB105: 1
C106: Položka je určena pro montáž potrubí PVC těsněných gumovým kroužkem. Volba položky se řídí vnějším průměrem trubky. V položce jsou zakalkulovány i náklady na montáž tvarovek. . | L106: Položka je určena pro montáž potrubí PVC těsněných gumovým kroužkem. Volba položky se řídí vnějším průměrem trubky. V položce jsou zakalkulovány i náklady na montáž tvarovek. . | O106: 3
C107: Stoka JK PVC DN400:60,90 | E107: 60.9 | M107: Stoka JK PVC DN400:60,90
A108: 16 | B108: 892591111R00 | C108: Zkouška těsnosti kanalizace DN do 400, vodou | D108: m | E108: 63.4 | G108: =E108*F108 -> 0 | H108: 0 | I108: =E108*H108 -> 0 | J108: 0 | K108: =E108*J108 -> 0 | O108: 2 | AA108: 1 | AB108: 1 | AC108: 1 | AZ108: 1 | BA108: =IF(AZ108=1,G108,0) -> 0 | BB108: =IF(AZ108=2,G108,0) -> 0 | BC108: =IF(AZ108=3,G108,0) -> 0 | BD108: =IF(AZ108=4,G108,0) -> 0 | BE108: =IF(AZ108=5,G108,0) -> 0 | CA108: 1 | CB108: 1
C109: V položce jsou zakalkulovány náklady na napuštění vodou a dodání vody pro zkoušku těsnosti včetně zavakování potrubí dle zvolené technologie zhotovitele. | L109: V položce jsou zakalkulovány náklady na napuštění vodou a dodání vody pro zkoušku těsnosti včetně zavakování potrubí dle zvolené technologie zhotovitele. | O109: 3
C110: Stoka JK PVC DN300:2,50 | E110: 2.5 | M110: Stoka JK PVC DN300:2,50
C111: Stoka JK PVC DN400:60,90 | E111: 60.9 | M111: Stoka JK PVC DN400:60,90
A112: 17 | B112: 892601153R00 | C112: Čištění kanalizační stoky do DN 500, do 100 m | D112: m | E112: 63.4 | G112: =E112*F112 -> 0 | H112: 0 | I112: =E112*H112 -> 0 | J112: 0 | K112: =E112*J112 -> 0 | O112: 2 | AA112: 1 | AB112: 1 | AC112: 1 | AZ112: 1 | BA112: =IF(AZ112=1,G112,0) -> 0 | BB112: =IF(AZ112=2,G112,0) -> 0 | BC112: =IF(AZ112=3,G112,0) -> 0 | BD112: =IF(AZ112=4,G112,0) -> 0 | BE112: =IF(AZ112=5,G112,0) -> 0 | CA112: 1 | CB112: 1
C113: V položce je zakalkulováno: | L113: V položce je zakalkulováno: | O113: 3
C114: a) otevření a uzavření revizních šachet a čisticích kusů | L114: a) otevření a uzavření revizních šachet a čisticích kusů | O114: 3
C115: b) natažení vysokotlakých hadic k místu odkud se bude kanalizace čistit | L115: b) natažení vysokotlakých hadic k místu odkud se bude kanalizace čistit | O115: 3
C116: c) vyčištění potrubí tlakovou vodou nebo motorovým pérem. | L116: c) vyčištění potrubí tlakovou vodou nebo motorovým pérem. | O116: 3
C117: Stoka JK PVC DN300:2,50 | E117: 2.5 | M117: Stoka JK PVC DN300:2,50
C118: Stoka JK PVC DN400:60,90 | E118: 60.9 | M118: Stoka JK PVC DN400:60,90
A119: 18 | B119: 892601154R00 | C119: Čištění kanalizační stoky do DN 500, nad 100 m | D119: m | E119: 167 | G119: =E119*F119 -> 0 | H119: 0 | I119: =E119*H119 -> 0 | J119: 0 | K119: =E119*J119 -> 0 | O119: 2 | AA119: 1 | AB119: 1 | AC119: 1 | AZ119: 1 | BA119: =IF(AZ119=1,G119,0) -> 0 | BB119: =IF(AZ119=2,G119,0) -> 0 | BC119: =IF(AZ119=3,G119,0) -> 0 | BD119: =IF(AZ119=4,G119,0) -> 0 | BE119: =IF(AZ119=5,G119,0) -> 0 | CA119: 1 | CB119: 1
C120: V položce je zakalkulováno: | L120: V položce je zakalkulováno: | O120: 3
C121: a) otevření a uzavření revizních šachet a čisticích kusů | L121: a) otevření a uzavření revizních šachet a čisticích kusů | O121: 3
C122: b) natažení vysokotlakých hadic k místu odkud se bude kanalizace čistit | L122: b) natažení vysokotlakých hadic k místu odkud se bude kanalizace čistit | O122: 3
C123: c) vyčištění potrubí tlakovou vodou nebo motorovým pérem. | L123: c) vyčištění potrubí tlakovou vodou nebo motorovým pérem. | O123: 3
C124: Stávající stoka PP DN400:167,00 | E124: 167 | M124: Stávající stoka PP DN400:167,00
A125: 19 | B125: 892855113R00 | C125: Kontrola kanalizace TV kamerou do 100 m | D125: m | E125: 230.4 | G125: =E125*F125 -> 0 | H125: 0 | I125: =E125*H125 -> 0 | J125: 0 | K125: =E125*J125 -> 0 | O125: 2 | AA125: 1 | AB125: 0 | AC125: 0 | AZ125: 1 | BA125: =IF(AZ125=1,G125,0) -> 0 | BB125: =IF(AZ125=2,G125,0) -> 0 | BC125: =IF(AZ125=3,G125,0) -> 0 | BD125: =IF(AZ125=4,G125,0) -> 0 | BE125: =IF(AZ125=5,G125,0) -> 0 | CA125: 1 | CB125: 0
C126: Provedení kaberové prohlídky včetně dodání elektronického záznamu na CD zadavateli a tištěné dokumentace průběhu kamerové prohlídky | L126: Provedení kaberové prohlídky včetně dodání elektronického záznamu na CD zadavateli a tištěné dokumentace průběhu kamerové prohlídky | O126: 3
C127: Stoka JK PVC DN300:2,50 | E127: 2.5 | M127: Stoka JK PVC DN300:2,50
C128: Stoka JK PVC DN400:60,90 | E128: 60.9 | M128: Stoka JK PVC DN400:60,90
C129: Stávající stoka PP DN400:167,00 | E129: 167 | M129: Stávající stoka PP DN400:167,00
A130: 20 | B130: 892916111R00 | C130: Utěsnění přípojek do DN 200 při zkoušce kanal. | D130: sada | E130: 12 | G130: =E130*F130 -> 0 | H130: 2e-05 | I130: =E130*H130 -> 0.00024 | J130: 0 | K130: =E130*J130 -> 0 | O130: 2 | AA130: 1 | AB130: 1 | AC130: 1 | AZ130: 1 | BA130: =IF(AZ130=1,G130,0) -> 0 | BB130: =IF(AZ130=2,G130,0) -> 0 | BC130: =IF(AZ130=3,G130,0) -> 0 | BD130: =IF(AZ130=4,G130,0) -> 0 | BE130: =IF(AZ130=5,G130,0) -> 0 | CA130: 1 | CB130: 1
C131: Položka je určena pro utěsnění přípojek z jakéholiv druhu potrubí při zkoušce těsnosti vzduchem nebo vodou. V položce jsou zakalkulovány náklady na osazení a odstranění těsnicích uzávěrů, naplnění vzduchem a po provedení zkoušky vypuštění vzduchu. | L131: Položka je určena pro utěsnění přípojek z jakéholiv druhu potrubí při zkoušce těsnosti vzduchem nebo vodou. V položce jsou zakalkulovány náklady na osazení a odstranění těsnicích uzávěrů, naplnění vzduchem a po provedení zkoušky vypuštění vzduchu. | O131: 3
C132: Stoka JK PVC DN400: | E132: 0 | M132: Stoka JK PVC DN400:
C133: PKS na nové stoce DN400: | E133: 0 | M133: PKS na nové stoce DN400:
C134: PKS14 PVC DN150:1 | E134: 1 | M134: PKS14 PVC DN150:1
C135: PKS15 PVC DN150:1 | E135: 1 | M135: PKS15 PVC DN150:1
C136: PKS na stávající stoce DN400: | E136: 0 | M136: PKS na stávající stoce DN400:
C137: PKS01 PVC DN150:1 | E137: 1 | M137: PKS01 PVC DN150:1
C138: PKS02 PVC DN150:1 | E138: 1 | M138: PKS02 PVC DN150:1
C139: PKS03 PVC DN150:1 | E139: 1 | M139: PKS03 PVC DN150:1
C140: PKS04 PVC DN150:1 | E140: 1 | M140: PKS04 PVC DN150:1
C141: PKS05 PVC DN150:1 | E141: 1 | M141: PKS05 PVC DN150:1
C142: PKS06 PVC DN150:1 | E142: 1 | M142: PKS06 PVC DN150:1
C143: PKS07 PVC DN150:1 | E143: 1 | M143: PKS07 PVC DN150:1
C144: PKS08 PVC DN150:1 | E144: 1 | M144: PKS08 PVC DN150:1
C145: PKS09 PVC DN150:1 | E145: 1 | M145: PKS09 PVC DN150:1
C146: PKS13 PVC DN150:1 | E146: 1 | M146: PKS13 PVC DN150:1
A147: 21 | B147: 894421111RT1 | C147: Osazení betonových dílců šachet skruže rovné, na kroužek, do 0,5 t | D147: kus | E147: 2 | G147: =E147*F147 -> 0 | H147: 0 | I147: =E147*H147 -> 0 | J147: 0 | K147: =E147*J147 -> 0 | O147: 2 | AA147: 1 | AB147: 1 | AC147: 1 | AZ147: 1 | BA147: =IF(AZ147=1,G147,0) -> 0 | BB147: =IF(AZ147=2,G147,0) -> 0 | BC147: =IF(AZ147=3,G147,0) -> 0 | BD147: =IF(AZ147=4,G147,0) -> 0 | BE147: =IF(AZ147=5,G147,0) -> 0 | CA147: 1 | CB147: 1
C148: Položka je určena pro osazení betonových dílců šachet dle DIN 4034, skruže rovné na kroužek, hmotnost do 0,5 t. | L148: Položka je určena pro osazení betonových dílců šachet dle DIN 4034, skruže rovné na kroužek, hmotnost do 0,5 t. | O148: 3
C149: V položce nejsou zakalkulovány náklady na dodání betonových dílců; dílce se oceňují ve specifikaci. | L149: V položce nejsou zakalkulovány náklady na dodání betonových dílců; dílce se oceňují ve specifikaci. | O149: 3
C150: Stoka JK PVC DN400: | E150: 0 | M150: Stoka JK PVC DN400:
C151: Skruž H25:2 | E151: 2 | M151: Skruž H25:2
A152: 22 | B152: 894422111RT1 | C152: Osazení betonových dílců šachet skruže přechodové, na kroužek | D152: kus | E152: 2 | G152: =E152*F152 -> 0 | H152: 0 | I152: =E152*H152 -> 0 | J152: 0 | K152: =E152*J152 -> 0 | O152: 2 | AA152: 1 | AB152: 1 | AC152: 1 | AZ152: 1 | BA152: =IF(AZ152=1,G152,0) -> 0 | BB152: =IF(AZ152=2,G152,0) -> 0 | BC152: =IF(AZ152=3,G152,0) -> 0 | BD152: =IF(AZ152=4,G152,0) -> 0 | BE152: =IF(AZ152=5,G152,0) -> 0 | CA152: 1 | CB152: 1
C153: Položka je určena pro osazení betonových dílců šachet dle DIN 4034, skruže přechodové na kroužek. | L153: Položka je určena pro osazení betonových dílců šachet dle DIN 4034, skruže přechodové na kroužek. | O153: 3
C154: V položce nejsou zakalkulovány náklady na dodání betonových dílců | L154: V položce nejsou zakalkulovány náklady na dodání betonových dílců | O154: 3
C155: Stoka JK PVC DN400: | E155: 0 | M155: Stoka JK PVC DN400:
C156: Kónus H60:2 | E156: 2 | M156: Kónus H60:2
A157: 23 | B157: 894423111RT1 | C157: Osazení betonových dílců šachet do 2,0 t šachtová dna, na kroužek, do 2,0 t | D157: kus | E157: 2 | G157: =E157*F157 -> 0 | H157: 0 | I157: =E157*H157 -> 0 | J157: 0 | K157: =E157*J157 -> 0 | O157: 2 | AA157: 1 | AB157: 1 | AC157: 1 | AZ157: 1 | BA157: =IF(AZ157=1,G157,0) -> 0 | BB157: =IF(AZ157=2,G157,0) -> 0 | BC157: =IF(AZ157=3,G157,0) -> 0 | BD157: =IF(AZ157=4,G157,0) -> 0 | BE157: =IF(AZ157=5,G157,0) -> 0 | CA157: 1 | CB157: 1
C158: Položka je určena pro osazení betonových dílců šachet dle DIN 4034, šachtová dna na kroužek, hmotnost do 3,0 t. | L158: Položka je určena pro osazení betonových dílců šachet dle DIN 4034, šachtová dna na kroužek, hmotnost do 3,0 t. | O158: 3
C159: V položce nejsou zakalkulovány náklady na dodání betonových dílců; | L159: V položce nejsou zakalkulovány náklady na dodání betonových dílců; | O159: 3
C160: Stoka JK PVC DN400: | E160: 0 | M160: Stoka JK PVC DN400:
C161: ŠD DN400-885:2 | E161: 2 | M161: ŠD DN400-885:2
A162: 24 | B162: 899104111RT2 | C162: Osazení poklopu s rámem nad 150 kg včetně dodávky poklopu šachtového lit. D 650 | D162: kus | E162: 2 | G162: =E162*F162 -> 0 | H162: 0.16502 | I162: =E162*H162 -> 0.33004 | J162: 0 | K162: =E162*J162 -> 0 | O162: 2 | AA162: 1 | AB162: 1 | AC162: 1 | AZ162: 1 | BA162: =IF(AZ162=1,G162,0) -> 0 | BB162: =IF(AZ162=2,G162,0) -> 0 | BC162: =IF(AZ162=3,G162,0) -> 0 | BD162: =IF(AZ162=4,G162,0) -> 0 | BE162: =IF(AZ162=5,G162,0) -> 0 | CA162: 1 | CB162: 1
C163: Poklop samonivelační dle PD | L163: Poklop samonivelační dle PD | O163: 3
C164: Stoka JK PVC DN400: | E164: 0 | M164: Stoka JK PVC DN400:
C165: Poklop:2 | E165: 2 | M165: Poklop:2
A166: 25 | B166: 286111933.A | C166: Trubka kanalizační PVC SN min. 12 DN 300 | D166: m | E166: 2.7325 | G166: =E166*F166 -> 0 | H166: 0.0102 | I166: =E166*H166 -> 0.0278715 | K166: =E166*J166 -> 0 | O166: 2 | AA166: 3 | AB166: 1 | AC166: 286111933.A | AZ166: 1 | BA166: =IF(AZ166=1,G166,0) -> 0 | BB166: =IF(AZ166=2,G166,0) -> 0 | BC166: =IF(AZ166=3,G166,0) -> 0 | BD166: =IF(AZ166=4,G166,0) -> 0 | BE166: =IF(AZ166=5,G166,0) -> 0 | CA166: 3 | CB166: 1
C167: Jedná se o plnostěnné kanalizační trubky DN 150 – DN 400, min. SN 12 kN/m2 , zvenčí i zevnitř hladké. Jsou opatřeny hrdlem, v němž je vložen vysoce elastický jazýčkový kroužek. konce trubek (dříků) jsou opatřeny zkosením pod úhlem 15°. Způsob použití trubek je „U“ dle normy ČSN EN 1401-1, tj. mimo budovy. Spolehlivá funkce těsnění je jištěna výztužným kroužkem z elastomeru. Je tak zamezeno vypad-nutí nebo vytlačení kroužku při manipulaci a montáži. Tento systém zaručuje při správné montáži | L167: Jedná se o plnostěnné kanalizační trubky DN 150 – DN 400, min. SN 12 kN/m2 , zvenčí i zevnitř hladké. Jsou opatřeny hrdlem, v němž je vložen vysoce elastický jazýčkový kroužek. konce trubek (dříků) jsou opatřeny zkosením pod úhlem 15°. Způsob použití trubek je „U“ dle normy ČSN EN 1401-1, tj. mimo budovy. Spolehlivá funkce těsnění je jištěna výztužným kroužkem z elastomeru. Je tak zamezeno vypad-nutí nebo vytlačení kroužku při manipulaci a montáži. Tento systém zaručuje při správné montáži | O167: 3
C168: dokonalou těsnost do výšky vodního sloupce 5 metrů. | L168: dokonalou těsnost do výšky vodního sloupce 5 metrů. | O168: 3
C169: Teplota při pokládce: min. -10 °C, max. 50 °C | L169: Teplota při pokládce: min. -10 °C, max. 50 °C | O169: 3
C170: Max. teplota média: trvale do 40 °C, krátkodobě do 60 °C | L170: Max. teplota média: trvale do 40 °C, krátkodobě do 60 °C | O170: 3
C171: Orientační výška krytí: min. 0,5 m, max. 10 m | L171: Orientační výška krytí: min. 0,5 m, max. 10 m | O171: 3
C172: Max. rychlost média: 12 m/s | L172: Max. rychlost média: 12 m/s | O172: 3
C173: Stoka JK PVC DN300:2,50*1,093 | E173: 2.7325 | M173: Stoka JK PVC DN300:2,50*1,093
A174: 26 | B174: 286111943.A | C174: Trubka kanalizační PVC SN min. 12 DN 400 | D174: m | E174: 66.5637 | G174: =E174*F174 -> 0 | H174: 0.0127 | I174: =E174*H174 -> 0.84535899 | K174: =E174*J174 -> 0 | O174: 2 | AA174: 3 | AB174: 1 | AC174: 286111943.A | AZ174: 1 | BA174: =IF(AZ174=1,G174,0) -> 0 | BB174: =IF(AZ174=2,G174,0) -> 0 | BC174: =IF(AZ174=3,G174,0) -> 0 | BD174: =IF(AZ174=4,G174,0) -> 0 | BE174: =IF(AZ174=5,G174,0) -> 0 | CA174: 3 | CB174: 1
C175: Jedná se o plnostěnné kanalizační trubky DN 150 – DN 400, min. SN 12 kN/m2 , zvenčí i zevnitř hladké. Jsou opatřeny hrdlem, v němž je vložen vysoce elastický jazýčkový kroužek. konce trubek (dříků) jsou opatřeny zkosením pod úhlem 15°. Způsob použití trubek je „U“ dle normy ČSN EN 1401-1, tj. mimo budovy. Spolehlivá funkce těsnění je jištěna výztužným kroužkem z elastomeru. Je tak zamezeno vypad-nutí nebo vytlačení kroužku při manipulaci a montáži. Tento systém zaručuje při správné montáži | L175: Jedná se o plnostěnné kanalizační trubky DN 150 – DN 400, min. SN 12 kN/m2 , zvenčí i zevnitř hladké. Jsou opatřeny hrdlem, v němž je vložen vysoce elastický jazýčkový kroužek. konce trubek (dříků) jsou opatřeny zkosením pod úhlem 15°. Způsob použití trubek je „U“ dle normy ČSN EN 1401-1, tj. mimo budovy. Spolehlivá funkce těsnění je jištěna výztužným kroužkem z elastomeru. Je tak zamezeno vypad-nutí nebo vytlačení kroužku při manipulaci a montáži. Tento systém zaručuje při správné montáži | O175: 3
C176: dokonalou těsnost do výšky vodního sloupce 5 metrů. | L176: dokonalou těsnost do výšky vodního sloupce 5 metrů. | O176: 3
C177: Teplota při pokládce: min. -10 °C, max. 50 °C | L177: Teplota při pokládce: min. -10 °C, max. 50 °C | O177: 3
C178: Max. teplota média: trvale do 40 °C, krátkodobě do 60 °C | L178: Max. teplota média: trvale do 40 °C, krátkodobě do 60 °C | O178: 3
C179: Orientační výška krytí: min. 0,5 m, max. 10 m | L179: Orientační výška krytí: min. 0,5 m, max. 10 m | O179: 3
C180: Max. rychlost média: 12 m/s | L180: Max. rychlost média: 12 m/s | O180: 3
C181: Stoka JK PVC DN400:60,90*1,093 | E181: 66.5637 | M181: Stoka JK PVC DN400:60,90*1,093
A182: 27 | B182: 286506141 | C182: Odbočka kanaliz. DN 400/150/45° | D182: kus | E182: 3.045 | G182: =E182*F182 -> 0 | H182: 0.013 | I182: =E182*H182 -> 0.039585 | K182: =E182*J182 -> 0 | O182: 2 | AA182: 3 | AB182: 1 | AC182: 286506141 | AZ182: 1 | BA182: =IF(AZ182=1,G182,0) -> 0 | BB182: =IF(AZ182=2,G182,0) -> 0 | BC182: =IF(AZ182=3,G182,0) -> 0 | BD182: =IF(AZ182=4,G182,0) -> 0 | BE182: =IF(AZ182=5,G182,0) -> 0 | CA182: 3 | CB182: 1
C183: Tvarovky kanalizačního systému PVC SDR 34 | L183: Tvarovky kanalizačního systému PVC SDR 34 | O183: 3
C184: Teplota při pokládce: min. -10 °C, max. 50 °C | L184: Teplota při pokládce: min. -10 °C, max. 50 °C | O184: 3
C185: Max. teplota média: trvale do 40 °C, krátkodobě do 60 °C | L185: Max. teplota média: trvale do 40 °C, krátkodobě do 60 °C | O185: 3
C186: Orientační výška krytí: min. 0,5 m, max. 10 m | L186: Orientační výška krytí: min. 0,5 m, max. 10 m | O186: 3
C187: Max. rychlost média: 12 m/s | L187: Max. rychlost média: 12 m/s | O187: 3
C188: Stoka JK PVC DN400: | E188: 0 | M188: Stoka JK PVC DN400:
C189: PKS na nové stoce DN400: | E189: 0 | M189: PKS na nové stoce DN400:
C190: PKS14 PVC DN150:1*1,015 | E190: 1.015 | M190: PKS14 PVC DN150:1*1,015
C191: PKS15 PVC DN150:1*1,015 | E191: 1.015 | M191: PKS15 PVC DN150:1*1,015
C192: Odbočka PVC DN400/150/45° pro napojení UV:1*1,015 | E192: 1.015 | M192: Odbočka PVC DN400/150/45° pro napojení UV:1*1,015
A193: 28 | B193: 59224353.B | C193: Konus šachetní TBR-Q 600/1000x625/120 SPK | D193: kus | E193: 2.02 | G193: =E193*F193 -> 0 | H193: 0.595 | I193: =E193*H193 -> 1.2019 | K193: =E193*J193 -> 0 | O193: 2 | AA193: 3 | AB193: 1 | AC193: 59224353.B | AZ193: 1 | BA193: =IF(AZ193=1,G193,0) -> 0 | BB193: =IF(AZ193=2,G193,0) -> 0 | BC193: =IF(AZ193=3,G193,0) -> 0 | BD193: =IF(AZ193=4,G193,0) -> 0 | BE193: =IF(AZ193=5,G193,0) -> 0 | CA193: 3 | CB193: 1
C194: Stoka JK PVC DN400: | E194: 0 | M194: Stoka JK PVC DN400:
C195: Kónus H60:2*1,01 | E195: 2.02 | M195: Kónus H60:2*1,01
A196: 29 | B196: 592243554.B | C196: Skruž šachetní TBS-Q 1000/250/120 SP | D196: kus | E196: 2.02 | G196: =E196*F196 -> 0 | H196: 0.24 | I196: =E196*H196 -> 0.4848 | K196: =E196*J196 -> 0 | O196: 2 | AA196: 3 | AB196: 1 | AC196: 592243554.B | AZ196: 1 | BA196: =IF(AZ196=1,G196,0) -> 0 | BB196: =IF(AZ196=2,G196,0) -> 0 | BC196: =IF(AZ196=3,G196,0) -> 0 | BD196: =IF(AZ196=4,G196,0) -> 0 | BE196: =IF(AZ196=5,G196,0) -> 0 | CA196: 3 | CB196: 1
C197: Stoka JK PVC DN400: | E197: 0 | M197: Stoka JK PVC DN400:
C198: Skruž H25:2*1,01 | E198: 2.02 | M198: Skruž H25:2*1,01
A199: 30 | B199: 59224369.B | C199: Dno šachetní TBZ-Q 400 - 885 včetně kynety dle PD | D199: kus | E199: 2.02 | G199: =E199*F199 -> 0 | H199: 1.83 | I199: =E199*H199 -> 3.6966 | K199: =E199*J199 -> 0 | O199: 2 | AA199: 3 | AB199: 1 | AC199: 59224369.B | AZ199: 1 | BA199: =IF(AZ199=1,G199,0) -> 0 | BB199: =IF(AZ199=2,G199,0) -> 0 | BC199: =IF(AZ199=3,G199,0) -> 0 | BD199: =IF(AZ199=4,G199,0) -> 0 | BE199: =IF(AZ199=5,G199,0) -> 0 | CA199: 3 | CB199: 1
C200: Stoka JK PVC DN400: | E200: 0 | M200: Stoka JK PVC DN400:
C201: ŠD DN400-885:2*1,01 | E201: 2.02 | M201: ŠD DN400-885:2*1,01
A202: 31 | B202: 59224373.A | C202: Těsnění elastom pro šach díly EMT 100/1.7 - DN1000 | D202: kus | E202: 4.04 | G202: =E202*F202 -> 0 | H202: 0.002 | I202: =E202*H202 -> 0.00808 | K202: =E202*J202 -> 0 | O202: 2 | AA202: 3 | AB202: 1 | AC202: 59224373.A | AZ202: 1 | BA202: =IF(AZ202=1,G202,0) -> 0 | BB202: =IF(AZ202=2,G202,0) -> 0 | BC202: =IF(AZ202=3,G202,0) -> 0 | BD202: =IF(AZ202=4,G202,0) -> 0 | BE202: =IF(AZ202=5,G202,0) -> 0 | CA202: 3 | CB202: 1
... 7 more rows

Sheet 304 3236304.2 KL
A1: POLOŽKOVÝ ROZPOČET
A2: Rozpočet | C2: 3236/304.2 | D2: Jednotná kanalizace - přípojky | F2: JKSO | G2: 827.29.A2
A4: Objekt | F4: SKP
A5: 304 | C5: Jednotná kanalizace, přípojky | F5: Měrná jednotka | G5: m
A6: Stavba | F6: Počet jednotek | G6: 0
A7: 3236 | C7: Bytová zóna Hruštice - Károvsko - Etapa VII. | F7: Náklady na m.j. | G7: =IF(G6=0,,ROUND((F30+F32)/G6,1)) -> 0
A8: Projektant | C8: PROFES PROJEKT spol.s r.o. | F8: Typ rozpočtu
A9: Zpracovatel projektu
A10: Objednatel | C10: Město TURNOV
A11: Dodavatel | C11: . | F11: Zakázkové číslo
A12: Rozpočtoval | F12: Počet listů
A13: ROZPOČTOVÉ NÁKLADY
A14: Základní rozpočtové náklady
B15: HSV celkem | C15: ='304 3236304.2 Rek'!E11 -> 0
A16: Z | B16: PSV celkem | C16: ='304 3236304.2 Rek'!F11 -> 0
A17: R | B17: M práce celkem | C17: ='304 3236304.2 Rek'!H11 -> 0
A18: N | B18: M dodávky celkem | C18: ='304 3236304.2 Rek'!G11 -> 0
A19: ZRN celkem | C19: =SUM(C15:C18) -> 0
A21: HZS | C21: ='304 3236304.2 Rek'!I11 -> 0
A22: ZRN+HZS | C22: =C19+C21 -> 0
A23: ZRN+ost.náklady+HZS | C23: =C22+G23 -> 0
A24: Vypracoval | D24: Za zhotovitele | F24: Za objednatele
A25: Jméno : | D25: Jméno : | F25: Jméno :
A26: Datum : | D26: Datum : | F26: Datum :
A28: Podpis : | D28: Podpis: | F28: Podpis:
A30: Základ pro DPH | C30: 21 | D30: % | F30: =C23-F32 -> 0
A31: DPH | C31: =C30 -> 21 | D31: % | F31: =ROUND(PRODUCT(F30,C31/100),0) -> 0
A32: Základ pro DPH | C32: 0 | D32: % | F32: 0
A33: DPH | C33: =C32 -> 0 | D33: % | F33: =ROUND(PRODUCT(F32,C33/100),0) -> 0
A34: CENA ZA OBJEKT CELKEM | F34: =ROUND(SUM(F30:F33),0) -> 0
A36: Poznámka :

Sheet 304 3236304.2 Rek
A1: Stavba : | C1: 3236 Bytová zóna Hruštice - Károvsko - Etapa VII. | G1: Rozpočet : | H1: 3236/304.2
A2: Objekt : | C2: 304 Jednotná kanalizace, přípojky | G2: Jednotná kanalizace - přípojky
A4: REKAPITULACE STAVEBNÍCH DÍLŮ
B6: Stavební díl | E6: HSV | F6: PSV | G6: Dodávka | H6: Montáž | I6: HZS
A7: ='304 3236304.2 Pol'!B7 -> 1 | B7: ='304 3236304.2 Pol'!C7 -> Zemní práce | E7: ='304 3236304.2 Pol'!BA191 -> 0 | F7: ='304 3236304.2 Pol'!BB191 -> 0 | G7: ='304 3236304.2 Pol'!BC191 -> 0 | H7: ='304 3236304.2 Pol'!BD191 -> 0 | I7: ='304 3236304.2 Pol'!BE191 -> 0
A8: ='304 3236304.2 Pol'!B192 -> 45 | B8: ='304 3236304.2 Pol'!C192 -> Podkladní a vedlejší konstrukce | E8: ='304 3236304.2 Pol'!BA208 -> 0 | F8: ='304 3236304.2 Pol'!BB208 -> 0 | G8: ='304 3236304.2 Pol'!BC208 -> 0 | H8: ='304 3236304.2 Pol'!BD208 -> 0 | I8: ='304 3236304.2 Pol'!BE208 -> 0
A9: ='304 3236304.2 Pol'!B209 -> 8 | B9: ='304 3236304.2 Pol'!C209 -> Trubní vedení | E9: ='304 3236304.2 Pol'!BA418 -> 0 | F9: ='304 3236304.2 Pol'!BB418 -> 0 | G9: ='304 3236304.2 Pol'!BC418 -> 0 | H9: ='304 3236304.2 Pol'!BD418 -> 0 | I9: ='304 3236304.2 Pol'!BE418 -> 0
A10: ='304 3236304.2 Pol'!B419 -> 99 | B10: ='304 3236304.2 Pol'!C419 -> Staveništní přesun hmot | E10: ='304 3236304.2 Pol'!BA422 -> 0 | F10: ='304 3236304.2 Pol'!BB422 -> 0 | G10: ='304 3236304.2 Pol'!BC422 -> 0 | H10: ='304 3236304.2 Pol'!BD422 -> 0 | I10: ='304 3236304.2 Pol'!BE422 -> 0
B11: CELKEM OBJEKT | E11: =SUM(E7:E10) -> 0 | F11: =SUM(F7:F10) -> 0 | G11: =SUM(G7:G10) -> 0 | H11: =SUM(H7:H10) -> 0 | I11: =SUM(I7:I10) -> 0

Sheet 304 3236304.2 Pol
A1: Položkový rozpočet
A3: Stavba : | C3: 3236 Bytová zóna Hruštice - Károvsko - Etapa VII. | E3: Rozpočet: | F3: ='304 3236304.2 Rek'!H1 -> 3236/304.2
A4: Objekt : | C4: 304 Jednotná kanalizace, přípojky | E4: ='304 3236304.2 Rek'!G2 -> Jednotná kanalizace - přípojky
A6: P.č. | B6: Číslo položky | C6: Název položky | D6: MJ | E6: množství | F6: cena / MJ | G6: celkem (Kč) | H6: Jednotková hmotnost | I6: Celková hmotnost | J6: Jednotková dem.hmot. | K6: Celková dem.hmot.
A7: Díl: | B7: 1 | C7: Zemní práce | O7: 1
A8: 1 | B8: 120001101RRX | C8: Příplatek za ztížení vykopávky v blízkosti vedení | D8: m3 | E8: 19.6416 | G8: =E8*F8 -> 0 | H8: 0 | I8: =E8*H8 -> 0 | J8: 0 | K8: =E8*J8 -> 0 | O8: 2 | AA8: 1 | AB8: 1 | AC8: 1 | AZ8: 1 | BA8: =IF(AZ8=1,G8,0) -> 0 | BB8: =IF(AZ8=2,G8,0) -> 0 | BC8: =IF(AZ8=3,G8,0) -> 0 | BD8: =IF(AZ8=4,G8,0) -> 0 | BE8: =IF(AZ8=5,G8,0) -> 0 | CA8: 1 | CB8: 1
C9: Včetně ruční dokopávky a ručního výkopu. | L9: Včetně ruční dokopávky a ručního výkopu. | O9: 3
C10: Součástí položky je i případná potřeba dočasnéhon zajištění potrubí a kabelových vedení ve výkopu. | L10: Součástí položky je i případná potřeba dočasnéhon zajištění potrubí a kabelových vedení ve výkopu. | O10: 3
C11: Výkopy: | E11: 0 | M11: Výkopy:
C12: Začátek provozního součtu | E12: 0 | M12: Začátek provozního součtu
C13: PKS na nové stoce DN400: | E13: 0 | M13: PKS na nové stoce DN400:
C14: PKS14 PVC DN150:4,40*((2,10+1,90)/2-0,40) | E14: 7.04 | M14: PKS14 PVC DN150:4,40*((2,10+1,90)/2-0,40)
C15: PKS15 PVC DN150:4,40*((2,10+1,90)/2-0,40) | E15: 7.04 | M15: PKS15 PVC DN150:4,40*((2,10+1,90)/2-0,40)
C16: PKS na stávající stoce DN400: | E16: 0 | M16: PKS na stávající stoce DN400:
C17: PKS01 PVC DN150:4,40*((2,10+1,90)/2-0,40) | E17: 7.04 | M17: PKS01 PVC DN150:4,40*((2,10+1,90)/2-0,40)
C18: PKS02 PVC DN150:4,40*((2,10+1,90)/2-0,40) | E18: 7.04 | M18: PKS02 PVC DN150:4,40*((2,10+1,90)/2-0,40)
C19: PKS03 PVC DN150:5,50*((2,10+1,90)/2-0,40) | E19: 8.8 | M19: PKS03 PVC DN150:5,50*((2,10+1,90)/2-0,40)
C20: PKS04 PVC DN150:4,40*((2,10+1,90)/2-0,40) | E20: 7.04 | M20: PKS04 PVC DN150:4,40*((2,10+1,90)/2-0,40)
C21: PKS05 PVC DN150:4,40*((2,10+1,90)/2-0,40) | E21: 7.04 | M21: PKS05 PVC DN150:4,40*((2,10+1,90)/2-0,40)
C22: PKS06 PVC DN150:6,00*((2,10+1,90)/2-0,40) | E22: 9.6 | M22: PKS06 PVC DN150:6,00*((2,10+1,90)/2-0,40)
C23: PKS07 PVC DN150:3,50*((2,10+1,90)/2-0,40) | E23: 5.6 | M23: PKS07 PVC DN150:3,50*((2,10+1,90)/2-0,40)
C24: PKS08 PVC DN150:5,10*((2,10+1,90)/2-0,40) | E24: 8.16 | M24: PKS08 PVC DN150:5,10*((2,10+1,90)/2-0,40)
C25: PKS09 PVC DN150:4,90*((2,10+1,90)/2-0,40) | E25: 7.84 | M25: PKS09 PVC DN150:4,90*((2,10+1,90)/2-0,40)
C26: PKS13 PVC DN150:4,40*((2,10+1,90)/2-0,40) | E26: 7.04 | M26: PKS13 PVC DN150:4,40*((2,10+1,90)/2-0,40)
C27: Konec provozního součtu | E27: 89.28 | M27: Konec provozního součtu
C28: V hornině tř. 3 - 4 - 22%:89,2800*0,22 | E28: 19.6416 | M28: V hornině tř. 3 - 4 - 22%:89,2800*0,22
A29: 2 | B29: 132201211RRX | C29: Hloubení rýh š.do 200 cm hor.3 do 100 m3,STROJNĚ | D29: m3 | E29: 44.64 | G29: =E29*F29 -> 0 | H29: 0 | I29: =E29*H29 -> 0 | J29: 0 | K29: =E29*J29 -> 0 | O29: 2 | AA29: 1 | AB29: 1 | AC29: 1 | AZ29: 1 | BA29: =IF(AZ29=1,G29,0) -> 0 | BB29: =IF(AZ29=2,G29,0) -> 0 | BC29: =IF(AZ29=3,G29,0) -> 0 | BD29: =IF(AZ29=4,G29,0) -> 0 | BE29: =IF(AZ29=5,G29,0) -> 0 | CA29: 1 | CB29: 1
C30: Položka obsahuje hloubení rýh traktorbagrem, naložení výkopku na dopravní prostředek pro svislé, nebo vodorovné přemístění, popř. přemístění výkopku do 3 m (po povrchu území), případné zajištění rypadel polštáři, udržování pracoviště a ochranu výkopiště proti stékání srážkové vody z okolního terénu i s jejím odvodněním, nebo odvedením, přesekání a odstranění kořenů ve výkopišti, odstranění napadávek, urovnání dna výkopu. | L30: Položka obsahuje hloubení rýh traktorbagrem, naložení výkopku na dopravní prostředek pro svislé, nebo vodorovné přemístění, popř. přemístění výkopku do 3 m (po povrchu území), případné zajištění rypadel polštáři, udržování pracoviště a ochranu výkopiště proti stékání srážkové vody z okolního terénu i s jejím odvodněním, nebo odvedením, přesekání a odstranění kořenů ve výkopišti, odstranění napadávek, urovnání dna výkopu. | O30: 3
C31: Součástí položky je i zřízení a odstranění pažení rýhy v souladu s předpisy BOZP. | L31: Součástí položky je i zřízení a odstranění pažení rýhy v souladu s předpisy BOZP. | O31: 3
C32: Začátek provozního součtu | E32: 0 | M32: Začátek provozního součtu
C33: PKS na nové stoce DN400: | E33: 0 | M33: PKS na nové stoce DN400:
C34: PKS14 PVC DN150:4,40*((2,10+1,90)/2-0,40) | E34: 7.04 | M34: PKS14 PVC DN150:4,40*((2,10+1,90)/2-0,40)
C35: PKS15 PVC DN150:4,40*((2,10+1,90)/2-0,40) | E35: 7.04 | M35: PKS15 PVC DN150:4,40*((2,10+1,90)/2-0,40)
C36: PKS na stávající stoce DN400: | E36: 0 | M36: PKS na stávající stoce DN400:
C37: PKS01 PVC DN150:4,40*((2,10+1,90)/2-0,40) | E37: 7.04 | M37: PKS01 PVC DN150:4,40*((2,10+1,90)/2-0,40)
C38: PKS02 PVC DN150:4,40*((2,10+1,90)/2-0,40) | E38: 7.04 | M38: PKS02 PVC DN150:4,40*((2,10+1,90)/2-0,40)
C39: PKS03 PVC DN150:5,50*((2,10+1,90)/2-0,40) | E39: 8.8 | M39: PKS03 PVC DN150:5,50*((2,10+1,90)/2-0,40)
C40: PKS04 PVC DN150:4,40*((2,10+1,90)/2-0,40) | E40: 7.04 | M40: PKS04 PVC DN150:4,40*((2,10+1,90)/2-0,40)
C41: PKS05 PVC DN150:4,40*((2,10+1,90)/2-0,40) | E41: 7.04 | M41: PKS05 PVC DN150:4,40*((2,10+1,90)/2-0,40)
C42: PKS06 PVC DN150:6,00*((2,10+1,90)/2-0,40) | E42: 9.6 | M42: PKS06 PVC DN150:6,00*((2,10+1,90)/2-0,40)
C43: PKS07 PVC DN150:3,50*((2,10+1,90)/2-0,40) | E43: 5.6 | M43: PKS07 PVC DN150:3,50*((2,10+1,90)/2-0,40)
C44: PKS08 PVC DN150:5,10*((2,10+1,90)/2-0,40) | E44: 8.16 | M44: PKS08 PVC DN150:5,10*((2,10+1,90)/2-0,40)
C45: PKS09 PVC DN150:4,90*((2,10+1,90)/2-0,40) | E45: 7.84 | M45: PKS09 PVC DN150:4,90*((2,10+1,90)/2-0,40)
C46: PKS13 PVC DN150:4,40*((2,10+1,90)/2-0,40) | E46: 7.04 | M46: PKS13 PVC DN150:4,40*((2,10+1,90)/2-0,40)
C47: Konec provozního součtu | E47: 89.28 | M47: Konec provozního součtu
C48: V hornině tř. 3 - 50%:89,2800*0,5 | E48: 44.64 | M48: V hornině tř. 3 - 50%:89,2800*0,5
A49: 3 | B49: 132201219R00 | C49: Přípl.za lepivost,hloubení rýh 200cm,hor.3,STROJNĚ | D49: m3 | E49: 22.32 | G49: =E49*F49 -> 0 | H49: 0 | I49: =E49*H49 -> 0 | J49: 0 | K49: =E49*J49 -> 0 | O49: 2 | AA49: 1 | AB49: 1 | AC49: 1 | AZ49: 1 | BA49: =IF(AZ49=1,G49,0) -> 0 | BB49: =IF(AZ49=2,G49,0) -> 0 | BC49: =IF(AZ49=3,G49,0) -> 0 | BD49: =IF(AZ49=4,G49,0) -> 0 | BE49: =IF(AZ49=5,G49,0) -> 0 | CA49: 1 | CB49: 1
C50: Začátek provozního součtu | E50: 0 | M50: Začátek provozního součtu
C51: PKS na nové stoce DN400: | E51: 0 | M51: PKS na nové stoce DN400:
C52: PKS14 PVC DN150:4,40*((2,10+1,90)/2-0,40) | E52: 7.04 | M52: PKS14 PVC DN150:4,40*((2,10+1,90)/2-0,40)
C53: PKS15 PVC DN150:4,40*((2,10+1,90)/2-0,40) | E53: 7.04 | M53: PKS15 PVC DN150:4,40*((2,10+1,90)/2-0,40)
C54: PKS na stávající stoce DN400: | E54: 0 | M54: PKS na stávající stoce DN400:
C55: PKS01 PVC DN150:4,40*((2,10+1,90)/2-0,40) | E55: 7.04 | M55: PKS01 PVC DN150:4,40*((2,10+1,90)/2-0,40)
C56: PKS02 PVC DN150:4,40*((2,10+1,90)/2-0,40) | E56: 7.04 | M56: PKS02 PVC DN150:4,40*((2,10+1,90)/2-0,40)
C57: PKS03 PVC DN150:5,50*((2,10+1,90)/2-0,40) | E57: 8.8 | M57: PKS03 PVC DN150:5,50*((2,10+1,90)/2-0,40)
C58: PKS04 PVC DN150:4,40*((2,10+1,90)/2-0,40) | E58: 7.04 | M58: PKS04 PVC DN150:4,40*((2,10+1,90)/2-0,40)
C59: PKS05 PVC DN150:4,40*((2,10+1,90)/2-0,40) | E59: 7.04 | M59: PKS05 PVC DN150:4,40*((2,10+1,90)/2-0,40)
C60: PKS06 PVC DN150:6,00*((2,10+1,90)/2-0,40) | E60: 9.6 | M60: PKS06 PVC DN150:6,00*((2,10+1,90)/2-0,40)
C61: PKS07 PVC DN150:3,50*((2,10+1,90)/2-0,40) | E61: 5.6 | M61: PKS07 PVC DN150:3,50*((2,10+1,90)/2-0,40)
C62: PKS08 PVC DN150:5,10*((2,10+1,90)/2-0,40) | E62: 8.16 | M62: PKS08 PVC DN150:5,10*((2,10+1,90)/2-0,40)
C63: PKS09 PVC DN150:4,90*((2,10+1,90)/2-0,40) | E63: 7.84 | M63: PKS09 PVC DN150:4,90*((2,10+1,90)/2-0,40)
C64: PKS13 PVC DN150:4,40*((2,10+1,90)/2-0,40) | E64: 7.04 | M64: PKS13 PVC DN150:4,40*((2,10+1,90)/2-0,40)
C65: Konec provozního součtu | E65: 89.28 | M65: Konec provozního součtu
C66: V hornině tř. 3 - 50%:89,2800*0,5*0,5 | E66: 22.32 | M66: V hornině tř. 3 - 50%:89,2800*0,5*0,5
A67: 4 | B67: 132301211RRX | C67: Hloubení rýh š.do 200 cm hor.4 do 100 m3, STROJNĚ | D67: m3 | E67: 44.64 | G67: =E67*F67 -> 0 | H67: 0 | I67: =E67*H67 -> 0 | J67: 0 | K67: =E67*J67 -> 0 | O67: 2 | AA67: 1 | AB67: 1 | AC67: 1 | AZ67: 1 | BA67: =IF(AZ67=1,G67,0) -> 0 | BB67: =IF(AZ67=2,G67,0) -> 0 | BC67: =IF(AZ67=3,G67,0) -> 0 | BD67: =IF(AZ67=4,G67,0) -> 0 | BE67: =IF(AZ67=5,G67,0) -> 0 | CA67: 1 | CB67: 1
C68: Položka obsahuje hloubení rýh traktorbagrem, naložení výkopku na dopravní prostředek pro svislé, nebo vodorovné přemístění, popř. přemístění výkopku do 3 m (po povrchu území), případné zajištění rypadel polštáři, udržování pracoviště a ochranu výkopiště proti stékání srážkové vody z okolního terénu i s jejím odvodněním, nebo odvedením, přesekání a odstranění kořenů ve výkopišti, odstranění napadávek, urovnání dna výkopu. | L68: Položka obsahuje hloubení rýh traktorbagrem, naložení výkopku na dopravní prostředek pro svislé, nebo vodorovné přemístění, popř. přemístění výkopku do 3 m (po povrchu území), případné zajištění rypadel polštáři, udržování pracoviště a ochranu výkopiště proti stékání srážkové vody z okolního terénu i s jejím odvodněním, nebo odvedením, přesekání a odstranění kořenů ve výkopišti, odstranění napadávek, urovnání dna výkopu. | O68: 3
C69: Součástí položky je i zřízení a odstranění pažení rýhy v souladu s předpisy BOZP. | L69: Součástí položky je i zřízení a odstranění pažení rýhy v souladu s předpisy BOZP. | O69: 3
C70: Začátek provozního součtu | E70: 0 | M70: Začátek provozního součtu
C71: PKS na nové stoce DN400: | E71: 0 | M71: PKS na nové stoce DN400:
C72: PKS14 PVC DN150:4,40*((2,10+1,90)/2-0,40) | E72: 7.04 | M72: PKS14 PVC DN150:4,40*((2,10+1,90)/2-0,40)
C73: PKS15 PVC DN150:4,40*((2,10+1,90)/2-0,40) | E73: 7.04 | M73: PKS15 PVC DN150:4,40*((2,10+1,90)/2-0,40)
C74: PKS na stávající stoce DN400: | E74: 0 | M74: PKS na stávající stoce DN400:
C75: PKS01 PVC DN150:4,40*((2,10+1,90)/2-0,40) | E75: 7.04 | M75: PKS01 PVC DN150:4,40*((2,10+1,90)/2-0,40)
C76: PKS02 PVC DN150:4,40*((2,10+1,90)/2-0,40) | E76: 7.04 | M76: PKS02 PVC DN150:4,40*((2,10+1,90)/2-0,40)
C77: PKS03 PVC DN150:5,50*((2,10+1,90)/2-0,40) | E77: 8.8 | M77: PKS03 PVC DN150:5,50*((2,10+1,90)/2-0,40)
C78: PKS04 PVC DN150:4,40*((2,10+1,90)/2-0,40) | E78: 7.04 | M78: PKS04 PVC DN150:4,40*((2,10+1,90)/2-0,40)
C79: PKS05 PVC DN150:4,40*((2,10+1,90)/2-0,40) | E79: 7.04 | M79: PKS05 PVC DN150:4,40*((2,10+1,90)/2-0,40)
C80: PKS06 PVC DN150:6,00*((2,10+1,90)/2-0,40) | E80: 9.6 | M80: PKS06 PVC DN150:6,00*((2,10+1,90)/2-0,40)
C81: PKS07 PVC DN150:3,50*((2,10+1,90)/2-0,40) | E81: 5.6 | M81: PKS07 PVC DN150:3,50*((2,10+1,90)/2-0,40)
C82: PKS08 PVC DN150:5,10*((2,10+1,90)/2-0,40) | E82: 8.16 | M82: PKS08 PVC DN150:5,10*((2,10+1,90)/2-0,40)
C83: PKS09 PVC DN150:4,90*((2,10+1,90)/2-0,40) | E83: 7.84 | M83: PKS09 PVC DN150:4,90*((2,10+1,90)/2-0,40)
C84: PKS13 PVC DN150:4,40*((2,10+1,90)/2-0,40) | E84: 7.04 | M84: PKS13 PVC DN150:4,40*((2,10+1,90)/2-0,40)
C85: Konec provozního součtu | E85: 89.28 | M85: Konec provozního součtu
C86: V hornině tř. 4 - 50%:89,2800*0,5 | E86: 44.64 | M86: V hornině tř. 4 - 50%:89,2800*0,5
A87: 5 | B87: 132301219R00 | C87: Přípl.za lepivost,hloubení rýh 200cm,hor.4,STROJNĚ | D87: m3 | E87: 22.32 | G87: =E87*F87 -> 0 | H87: 0 | I87: =E87*H87 -> 0 | J87: 0 | K87: =E87*J87 -> 0 | O87: 2 | AA87: 1 | AB87: 1 | AC87: 1 | AZ87: 1 | BA87: =IF(AZ87=1,G87,0) -> 0 | BB87: =IF(AZ87=2,G87,0) -> 0 | BC87: =IF(AZ87=3,G87,0) -> 0 | BD87: =IF(AZ87=4,G87,0) -> 0 | BE87: =IF(AZ87=5,G87,0) -> 0 | CA87: 1 | CB87: 1
C88: Začátek provozního součtu | E88: 0 | M88: Začátek provozního součtu
C89: PKS na nové stoce DN400: | E89: 0 | M89: PKS na nové stoce DN400:
C90: PKS14 PVC DN150:4,40*((2,10+1,90)/2-0,40) | E90: 7.04 | M90: PKS14 PVC DN150:4,40*((2,10+1,90)/2-0,40)
C91: PKS15 PVC DN150:4,40*((2,10+1,90)/2-0,40) | E91: 7.04 | M91: PKS15 PVC DN150:4,40*((2,10+1,90)/2-0,40)
C92: PKS na stávající stoce DN400: | E92: 0 | M92: PKS na stávající stoce DN400:
C93: PKS01 PVC DN150:4,40*((2,10+1,90)/2-0,40) | E93: 7.04 | M93: PKS01 PVC DN150:4,40*((2,10+1,90)/2-0,40)
C94: PKS02 PVC DN150:4,40*((2,10+1,90)/2-0,40) | E94: 7.04 | M94: PKS02 PVC DN150:4,40*((2,10+1,90)/2-0,40)
C95: PKS03 PVC DN150:5,50*((2,10+1,90)/2-0,40) | E95: 8.8 | M95: PKS03 PVC DN150:5,50*((2,10+1,90)/2-0,40)
C96: PKS04 PVC DN150:4,40*((2,10+1,90)/2-0,40) | E96: 7.04 | M96: PKS04 PVC DN150:4,40*((2,10+1,90)/2-0,40)
C97: PKS05 PVC DN150:4,40*((2,10+1,90)/2-0,40) | E97: 7.04 | M97: PKS05 PVC DN150:4,40*((2,10+1,90)/2-0,40)
C98: PKS06 PVC DN150:6,00*((2,10+1,90)/2-0,40) | E98: 9.6 | M98: PKS06 PVC DN150:6,00*((2,10+1,90)/2-0,40)
C99: PKS07 PVC DN150:3,50*((2,10+1,90)/2-0,40) | E99: 5.6 | M99: PKS07 PVC DN150:3,50*((2,10+1,90)/2-0,40)
C100: PKS08 PVC DN150:5,10*((2,10+1,90)/2-0,40) | E100: 8.16 | M100: PKS08 PVC DN150:5,10*((2,10+1,90)/2-0,40)
C101: PKS09 PVC DN150:4,90*((2,10+1,90)/2-0,40) | E101: 7.84 | M101: PKS09 PVC DN150:4,90*((2,10+1,90)/2-0,40)
C102: PKS13 PVC DN150:4,40*((2,10+1,90)/2-0,40) | E102: 7.04 | M102: PKS13 PVC DN150:4,40*((2,10+1,90)/2-0,40)
C103: Konec provozního součtu | E103: 89.28 | M103: Konec provozního součtu
C104: V hornině tř. 4 - 50%:89,2800*0,5*0,5 | E104: 22.32 | M104: V hornině tř. 4 - 50%:89,2800*0,5*0,5
A105: 6 | B105: 162701105RSZ | C105: Vodorovné přemístění výkopku z hor.1-7 na skládku zhotovitele | D105: m3 | E105: 71.424 | G105: =E105*F105 -> 0 | H105: 0 | I105: =E105*H105 -> 0 | J105: 0 | K105: =E105*J105 -> 0 | O105: 2 | AA105: 1 | AB105: 1 | AC105: 1 | AZ105: 1 | BA105: =IF(AZ105=1,G105,0) -> 0 | BB105: =IF(AZ105=2,G105,0) -> 0 | BC105: =IF(AZ105=3,G105,0) -> 0 | BD105: =IF(AZ105=4,G105,0) -> 0 | BE105: =IF(AZ105=5,G105,0) -> 0 | CA105: 1 | CB105: 1
C106: Výkopy: | E106: 0 | M106: Výkopy:
C107: Začátek provozního součtu | E107: 0 | M107: Začátek provozního součtu
C108: PKS na nové stoce DN400: | E108: 0 | M108: PKS na nové stoce DN400:
C109: PKS14 PVC DN150:4,40*((2,10+1,90)/2-0,40) | E109: 7.04 | M109: PKS14 PVC DN150:4,40*((2,10+1,90)/2-0,40)
C110: PKS15 PVC DN150:4,40*((2,10+1,90)/2-0,40) | E110: 7.04 | M110: PKS15 PVC DN150:4,40*((2,10+1,90)/2-0,40)
C111: PKS na stávající stoce DN400: | E111: 0 | M111: PKS na stávající stoce DN400:
C112: PKS01 PVC DN150:4,40*((2,10+1,90)/2-0,40) | E112: 7.04 | M112: PKS01 PVC DN150:4,40*((2,10+1,90)/2-0,40)
C113: PKS02 PVC DN150:4,40*((2,10+1,90)/2-0,40) | E113: 7.04 | M113: PKS02 PVC DN150:4,40*((2,10+1,90)/2-0,40)
C114: PKS03 PVC DN150:5,50*((2,10+1,90)/2-0,40) | E114: 8.8 | M114: PKS03 PVC DN150:5,50*((2,10+1,90)/2-0,40)
C115: PKS04 PVC DN150:4,40*((2,10+1,90)/2-0,40) | E115: 7.04 | M115: PKS04 PVC DN150:4,40*((2,10+1,90)/2-0,40)
C116: PKS05 PVC DN150:4,40*((2,10+1,90)/2-0,40) | E116: 7.04 | M116: PKS05 PVC DN150:4,40*((2,10+1,90)/2-0,40)
C117: PKS06 PVC DN150:6,00*((2,10+1,90)/2-0,40) | E117: 9.6 | M117: PKS06 PVC DN150:6,00*((2,10+1,90)/2-0,40)
C118: PKS07 PVC DN150:3,50*((2,10+1,90)/2-0,40) | E118: 5.6 | M118: PKS07 PVC DN150:3,50*((2,10+1,90)/2-0,40)
C119: PKS08 PVC DN150:5,10*((2,10+1,90)/2-0,40) | E119: 8.16 | M119: PKS08 PVC DN150:5,10*((2,10+1,90)/2-0,40)
C120: PKS09 PVC DN150:4,90*((2,10+1,90)/2-0,40) | E120: 7.84 | M120: PKS09 PVC DN150:4,90*((2,10+1,90)/2-0,40)
C121: PKS13 PVC DN150:4,40*((2,10+1,90)/2-0,40) | E121: 7.04 | M121: PKS13 PVC DN150:4,40*((2,10+1,90)/2-0,40)
C122: Konec provozního součtu | E122: 89.28 | M122: Konec provozního součtu
C123: V hornině tř. 3 - 4 :89,2800 | E123: 89.28 | M123: V hornině tř. 3 - 4 :89,2800
C124: Odpočet zásypů zeminou:-17,8560 | E124: -17.856 | M124: Odpočet zásypů zeminou:-17,8560
A125: 7 | B125: 174100050RAA | C125: Zásyp jam,rýh a šachet štěrkodrtí fr. 0-63 mm včetně dovozu štěrkodrtě | D125: m3 | E125: 41.85 | G125: =E125*F125 -> 0 | H125: 1.873 | I125: =E125*H125 -> 78.38505 | J125: 0 | K125: =E125*J125 -> 0 | O125: 2 | AA125: 1 | AB125: 1 | AC125: 1 | AZ125: 1 | BA125: =IF(AZ125=1,G125,0) -> 0 | BB125: =IF(AZ125=2,G125,0) -> 0 | BC125: =IF(AZ125=3,G125,0) -> 0 | BD125: =IF(AZ125=4,G125,0) -> 0 | BE125: =IF(AZ125=5,G125,0) -> 0 | CA125: 1 | CB125: 1
C126: PKS na nové stoce DN400: | E126: 0 | M126: PKS na nové stoce DN400:
C127: PKS14 PVC DN150:4,40*((2,10+1,90)/2-0,40-0,10-0,15-0,30-0,30) | E127: 3.3 | M127: PKS14 PVC DN150:4,40*((2,10+1,90)/2-0,40-0,10-0,15-0,30-0,30)
C128: PKS15 PVC DN150:4,40*((2,10+1,90)/2-0,40-0,10-0,15-0,30-0,30) | E128: 3.3 | M128: PKS15 PVC DN150:4,40*((2,10+1,90)/2-0,40-0,10-0,15-0,30-0,30)
C129: PKS na stávající stoce DN400: | E129: 0 | M129: PKS na stávající stoce DN400:
C130: PKS01 PVC DN150:4,40*((2,10+1,90)/2-0,40-0,10-0,15-0,30-0,30) | E130: 3.3 | M130: PKS01 PVC DN150:4,40*((2,10+1,90)/2-0,40-0,10-0,15-0,30-0,30)
C131: PKS02 PVC DN150:4,40*((2,10+1,90)/2-0,40-0,10-0,15-0,30-0,30) | E131: 3.3 | M131: PKS02 PVC DN150:4,40*((2,10+1,90)/2-0,40-0,10-0,15-0,30-0,30)
C132: PKS03 PVC DN150:5,50*((2,10+1,90)/2-0,40-0,10-0,15-0,30-0,30) | E132: 4.125 | M132: PKS03 PVC DN150:5,50*((2,10+1,90)/2-0,40-0,10-0,15-0,30-0,30)
C133: PKS04 PVC DN150:4,40*((2,10+1,90)/2-0,40-0,10-0,15-0,30-0,30) | E133: 3.3 | M133: PKS04 PVC DN150:4,40*((2,10+1,90)/2-0,40-0,10-0,15-0,30-0,30)
C134: PKS05 PVC DN150:4,40*((2,10+1,90)/2-0,40-0,10-0,15-0,30-0,30) | E134: 3.3 | M134: PKS05 PVC DN150:4,40*((2,10+1,90)/2-0,40-0,10-0,15-0,30-0,30)
C135: PKS06 PVC DN150:6,00*((2,10+1,90)/2-0,40-0,10-0,15-0,30-0,30) | E135: 4.5 | M135: PKS06 PVC DN150:6,00*((2,10+1,90)/2-0,40-0,10-0,15-0,30-0,30)
C136: PKS07 PVC DN150:3,50*((2,10+1,90)/2-0,40-0,10-0,15-0,30-0,30) | E136: 2.625 | M136: PKS07 PVC DN150:3,50*((2,10+1,90)/2-0,40-0,10-0,15-0,30-0,30)
C137: PKS08 PVC DN150:5,10*((2,10+1,90)/2-0,40-0,10-0,15-0,30-0,30) | E137: 3.825 | M137: PKS08 PVC DN150:5,10*((2,10+1,90)/2-0,40-0,10-0,15-0,30-0,30)
C138: PKS09 PVC DN150:4,90*((2,10+1,90)/2-0,40-0,10-0,15-0,30-0,30) | E138: 3.675 | M138: PKS09 PVC DN150:4,90*((2,10+1,90)/2-0,40-0,10-0,15-0,30-0,30)
C139: PKS13 PVC DN150:4,40*((2,10+1,90)/2-0,40-0,10-0,15-0,30-0,30) | E139: 3.3 | M139: PKS13 PVC DN150:4,40*((2,10+1,90)/2-0,40-0,10-0,15-0,30-0,30)
A140: 8 | B140: 174101101R00 | C140: Zásyp jam, rýh, šachet se zhutněním | D140: m3 | E140: 17.856 | G140: =E140*F140 -> 0 | H140: 0 | I140: =E140*H140 -> 0 | J140: 0 | K140: =E140*J140 -> 0 | O140: 2 | AA140: 1 | AB140: 1 | AC140: 1 | AZ140: 1 | BA140: =IF(AZ140=1,G140,0) -> 0 | BB140: =IF(AZ140=2,G140,0) -> 0 | BC140: =IF(AZ140=3,G140,0) -> 0 | BD140: =IF(AZ140=4,G140,0) -> 0 | BE140: =IF(AZ140=5,G140,0) -> 0 | CA140: 1 | CB140: 1
C141: včetně strojního přemístění materiálu pro zásyp ze vzdálenosti do 10 m od okraje zásypu | L141: včetně strojního přemístění materiálu pro zásyp ze vzdálenosti do 10 m od okraje zásypu | O141: 3
C142: PKS na nové stoce DN400: | E142: 0 | M142: PKS na nové stoce DN400:
C143: PKS14 PVC DN150:4,40*0,80*0,40 | E143: 1.408 | M143: PKS14 PVC DN150:4,40*0,80*0,40
C144: PKS15 PVC DN150:4,40*0,80*0,40 | E144: 1.408 | M144: PKS15 PVC DN150:4,40*0,80*0,40
C145: PKS na stávající stoce DN400: | E145: 0 | M145: PKS na stávající stoce DN400:
C146: PKS01 PVC DN150:4,40*0,80*0,40 | E146: 1.408 | M146: PKS01 PVC DN150:4,40*0,80*0,40
C147: PKS02 PVC DN150:4,40*0,80*0,40 | E147: 1.408 | M147: PKS02 PVC DN150:4,40*0,80*0,40
C148: PKS03 PVC DN150:5,50*0,80*0,40 | E148: 1.76 | M148: PKS03 PVC DN150:5,50*0,80*0,40
C149: PKS04 PVC DN150:4,40*0,80*0,40 | E149: 1.408 | M149: PKS04 PVC DN150:4,40*0,80*0,40
C150: PKS05 PVC DN150:4,40*0,80*0,40 | E150: 1.408 | M150: PKS05 PVC DN150:4,40*0,80*0,40
C151: PKS06 PVC DN150:6,00*0,80*0,40 | E151: 1.92 | M151: PKS06 PVC DN150:6,00*0,80*0,40
C152: PKS07 PVC DN150:3,50*0,80*0,40 | E152: 1.12 | M152: PKS07 PVC DN150:3,50*0,80*0,40
C153: PKS08 PVC DN150:5,10*0,80*0,40 | E153: 1.632 | M153: PKS08 PVC DN150:5,10*0,80*0,40
C154: PKS09 PVC DN150:4,90*0,80*0,40 | E154: 1.568 | M154: PKS09 PVC DN150:4,90*0,80*0,40
C155: PKS13 PVC DN150:4,40*0,80*0,40 | E155: 1.408 | M155: PKS13 PVC DN150:4,40*0,80*0,40
A156: 9 | B156: 175100020RAA | C156: Obsyp potrubí štěrkopískem včetně dovozu štěrkopísku | D156: m3 | E156: 19.1019 | G156: =E156*F156 -> 0 | H156: 1.873 | I156: =E156*H156 -> 35.7778587 | J156: 0 | K156: =E156*J156 -> 0 | O156: 2 | AA156: 1 | AB156: 1 | AC156: 1 | AZ156: 1 | BA156: =IF(AZ156=1,G156,0) -> 0 | BB156: =IF(AZ156=2,G156,0) -> 0 | BC156: =IF(AZ156=3,G156,0) -> 0 | BD156: =IF(AZ156=4,G156,0) -> 0 | BE156: =IF(AZ156=5,G156,0) -> 0 | CA156: 1 | CB156: 1
C157: PKS na nové stoce DN400: | E157: 0 | M157: PKS na nové stoce DN400:
C158: PKS14 PVC DN150:4,40*(0,80*(0,15+0,30)-0,075^2*Pi) | E158: 1.5062 | M158: PKS14 PVC DN150:4,40*(0,80*(0,15+0,30)-0,075^2*Pi)
C159: PKS15 PVC DN150:4,40*(0,80*(0,15+0,30)-0,075^2*Pi) | E159: 1.5062 | M159: PKS15 PVC DN150:4,40*(0,80*(0,15+0,30)-0,075^2*Pi)
C160: PKS na stávající stoce DN400: | E160: 0 | M160: PKS na stávající stoce DN400:
C161: PKS01 PVC DN150:4,40*(0,80*(0,15+0,30)-0,075^2*Pi) | E161: 1.5062 | M161: PKS01 PVC DN150:4,40*(0,80*(0,15+0,30)-0,075^2*Pi)
C162: PKS02 PVC DN150:4,40*(0,80*(0,15+0,30)-0,075^2*Pi) | E162: 1.5062 | M162: PKS02 PVC DN150:4,40*(0,80*(0,15+0,30)-0,075^2*Pi)
C163: PKS03 PVC DN150:5,50*(0,80*(0,15+0,30)-0,075^2*Pi) | E163: 1.8828 | M163: PKS03 PVC DN150:5,50*(0,80*(0,15+0,30)-0,075^2*Pi)
C164: PKS04 PVC DN150:4,40*(0,80*(0,15+0,30)-0,075^2*Pi) | E164: 1.5062 | M164: PKS04 PVC DN150:4,40*(0,80*(0,15+0,30)-0,075^2*Pi)
C165: PKS05 PVC DN150:4,40*(0,80*(0,15+0,30)-0,075^2*Pi) | E165: 1.5062 | M165: PKS05 PVC DN150:4,40*(0,80*(0,15+0,30)-0,075^2*Pi)
C166: PKS06 PVC DN150:6,00*(0,80*(0,15+0,30)-0,075^2*Pi) | E166: 2.054 | M166: PKS06 PVC DN150:6,00*(0,80*(0,15+0,30)-0,075^2*Pi)
C167: PKS07 PVC DN150:3,50*(0,80*(0,15+0,30)-0,075^2*Pi) | E167: 1.1981 | M167: PKS07 PVC DN150:3,50*(0,80*(0,15+0,30)-0,075^2*Pi)
C168: PKS08 PVC DN150:5,10*(0,80*(0,15+0,30)-0,075^2*Pi) | E168: 1.7459 | M168: PKS08 PVC DN150:5,10*(0,80*(0,15+0,30)-0,075^2*Pi)
C169: PKS09 PVC DN150:4,90*(0,80*(0,15+0,30)-0,075^2*Pi) | E169: 1.6774 | M169: PKS09 PVC DN150:4,90*(0,80*(0,15+0,30)-0,075^2*Pi)
C170: PKS13 PVC DN150:4,40*(0,80*(0,15+0,30)-0,075^2*Pi) | E170: 1.5062 | M170: PKS13 PVC DN150:4,40*(0,80*(0,15+0,30)-0,075^2*Pi)
A171: 10 | B171: 199000002R00 | C171: Poplatek za skládku horniny 1- 7 | D171: m3 | E171: 71.424 | G171: =E171*F171 -> 0 | H171: 0 | I171: =E171*H171 -> 0 | J171: 0 | K171: =E171*J171 -> 0 | O171: 2 | AA171: 1 | AB171: 1 | AC171: 1 | AZ171: 1 | BA171: =IF(AZ171=1,G171,0) -> 0 | BB171: =IF(AZ171=2,G171,0) -> 0 | BC171: =IF(AZ171=3,G171,0) -> 0 | BD171: =IF(AZ171=4,G171,0) -> 0 | BE171: =IF(AZ171=5,G171,0) -> 0 | CA171: 1 | CB171: 1
C172: Výkopy: | E172: 0 | M172: Výkopy:
C173: Začátek provozního součtu | E173: 0 | M173: Začátek provozního součtu
C174: PKS na nové stoce DN400: | E174: 0 | M174: PKS na nové stoce DN400:
C175: PKS14 PVC DN150:4,40*((2,10+1,90)/2-0,40) | E175: 7.04 | M175: PKS14 PVC DN150:4,40*((2,10+1,90)/2-0,40)
C176: PKS15 PVC DN150:4,40*((2,10+1,90)/2-0,40) | E176: 7.04 | M176: PKS15 PVC DN150:4,40*((2,10+1,90)/2-0,40)
C177: PKS na stávající stoce DN400: | E177: 0 | M177: PKS na stávající stoce DN400:
C178: PKS01 PVC DN150:4,40*((2,10+1,90)/2-0,40) | E178: 7.04 | M178: PKS01 PVC DN150:4,40*((2,10+1,90)/2-0,40)
C179: PKS02 PVC DN150:4,40*((2,10+1,90)/2-0,40) | E179: 7.04 | M179: PKS02 PVC DN150:4,40*((2,10+1,90)/2-0,40)
C180: PKS03 PVC DN150:5,50*((2,10+1,90)/2-0,40) | E180: 8.8 | M180: PKS03 PVC DN150:5,50*((2,10+1,90)/2-0,40)
C181: PKS04 PVC DN150:4,40*((2,10+1,90)/2-0,40) | E181: 7.04 | M181: PKS04 PVC DN150:4,40*((2,10+1,90)/2-0,40)
C182: PKS05 PVC DN150:4,40*((2,10+1,90)/2-0,40) | E182: 7.04 | M182: PKS05 PVC DN150:4,40*((2,10+1,90)/2-0,40)
C183: PKS06 PVC DN150:6,00*((2,10+1,90)/2-0,40) | E183: 9.6 | M183: PKS06 PVC DN150:6,00*((2,10+1,90)/2-0,40)
C184: PKS07 PVC DN150:3,50*((2,10+1,90)/2-0,40) | E184: 5.6 | M184: PKS07 PVC DN150:3,50*((2,10+1,90)/2-0,40)
C185: PKS08 PVC DN150:5,10*((2,10+1,90)/2-0,40) | E185: 8.16 | M185: PKS08 PVC DN150:5,10*((2,10+1,90)/2-0,40)
C186: PKS09 PVC DN150:4,90*((2,10+1,90)/2-0,40) | E186: 7.84 | M186: PKS09 PVC DN150:4,90*((2,10+1,90)/2-0,40)
C187: PKS13 PVC DN150:4,40*((2,10+1,90)/2-0,40) | E187: 7.04 | M187: PKS13 PVC DN150:4,40*((2,10+1,90)/2-0,40)
C188: Konec provozního součtu | E188: 89.28 | M188: Konec provozního součtu
C189: V hornině tř. 3 - 4 :89,2800 | E189: 89.28 | M189: V hornině tř. 3 - 4 :89,2800
C190: Odpočet zásypů zeminou:-17,8560 | E190: -17.856 | M190: Odpočet zásypů zeminou:-17,8560
B191: Celkem za | C191: 1 Zemní práce | G191: =SUM(G7:G190) -> 0 | I191: =SUM(I7:I190) -> 114.1629087 | K191: =SUM(K7:K190) -> 0 | O191: 4 | BA191: =SUM(BA7:BA190) -> 0 | BB191: =SUM(BB7:BB190) -> 0 | BC191: =SUM(BC7:BC190) -> 0 | BD191: =SUM(BD7:BD190) -> 0 | BE191: =SUM(BE7:BE190) -> 0
A192: Díl: | B192: 45 | C192: Podkladní a vedlejší konstrukce | O192: 1
A193: 11 | B193: 451572111R00 | C193: Lože pod potrubí z kameniva těženého 0 - 4 mm | D193: m3 | E193: 4.464 | G193: =E193*F193 -> 0 | H193: 0.43051 | I193: =E193*H193 -> 1.92179664 | J193: 0 | K193: =E193*J193 -> 0 | O193: 2 | AA193: 1 | AB193: 1 | AC193: 1 | AZ193: 1 | BA193: =IF(AZ193=1,G193,0) -> 0 | BB193: =IF(AZ193=2,G193,0) -> 0 | BC193: =IF(AZ193=3,G193,0) -> 0 | BD193: =IF(AZ193=4,G193,0) -> 0 | BE193: =IF(AZ193=5,G193,0) -> 0 | CA193: 1 | CB193: 1
C194: PKS na nové stoce DN400: | E194: 0 | M194: PKS na nové stoce DN400:
C195: PKS14 PVC DN150:4,40*0,80*0,10 | E195: 0.352 | M195: PKS14 PVC DN150:4,40*0,80*0,10
C196: PKS15 PVC DN150:4,40*0,80*0,10 | E196: 0.352 | M196: PKS15 PVC DN150:4,40*0,80*0,10
C197: PKS na stávající stoce DN400: | E197: 0 | M197: PKS na stávající stoce DN400:
C198: PKS01 PVC DN150:4,40*0,80*0,10 | E198: 0.352 | M198: PKS01 PVC DN150:4,40*0,80*0,10
C199: PKS02 PVC DN150:4,40*0,80*0,10 | E199: 0.352 | M199: PKS02 PVC DN150:4,40*0,80*0,10
C200: PKS03 PVC DN150:5,50*0,80*0,10 | E200: 0.44 | M200: PKS03 PVC DN150:5,50*0,80*0,10
C201: PKS04 PVC DN150:4,40*0,80*0,10 | E201: 0.352 | M201: PKS04 PVC DN150:4,40*0,80*0,10
C202: PKS05 PVC DN150:4,40*0,80*0,10 | E202: 0.352 | M202: PKS05 PVC DN150:4,40*0,80*0,10
... 220 more rows

Sheet 305 3236305 KL
A1: POLOŽKOVÝ ROZPOČET
A2: Rozpočet | C2: 3236/305 | D2: Odvodnění komunikace | F2: JKSO | G2: 827.29.A2
A4: Objekt | F4: SKP
A5: 305 | C5: Odvodnění komunikace | F5: Měrná jednotka | G5: m
A6: Stavba | F6: Počet jednotek | G6: 0
A7: 3236 | C7: Bytová zóna Hruštice - Károvsko - Etapa VII. | F7: Náklady na m.j. | G7: =IF(G6=0,,ROUND((F30+F32)/G6,1)) -> 0
A8: Projektant | C8: PROFES PROJEKT spol.s r.o. | F8: Typ rozpočtu
A9: Zpracovatel projektu
A10: Objednatel | C10: Město TURNOV
A11: Dodavatel | C11: . | F11: Zakázkové číslo
A12: Rozpočtoval | F12: Počet listů
A13: ROZPOČTOVÉ NÁKLADY
A14: Základní rozpočtové náklady
B15: HSV celkem | C15: ='305 3236305 Rek'!E12 -> 0
A16: Z | B16: PSV celkem | C16: ='305 3236305 Rek'!F12 -> 0
A17: R | B17: M práce celkem | C17: ='305 3236305 Rek'!H12 -> 0
A18: N | B18: M dodávky celkem | C18: ='305 3236305 Rek'!G12 -> 0
A19: ZRN celkem | C19: =SUM(C15:C18) -> 0
A21: HZS | C21: ='305 3236305 Rek'!I12 -> 0
A22: ZRN+HZS | C22: =C19+C21 -> 0
A23: ZRN+ost.náklady+HZS | C23: =C22+G23 -> 0
A24: Vypracoval | D24: Za zhotovitele | F24: Za objednatele
A25: Jméno : | D25: Jméno : | F25: Jméno :
A26: Datum : | D26: Datum : | F26: Datum :
A28: Podpis : | D28: Podpis: | F28: Podpis:
A30: Základ pro DPH | C30: 21 | D30: % | F30: =C23-F32 -> 0
A31: DPH | C31: =C30 -> 21 | D31: % | F31: =ROUND(PRODUCT(F30,C31/100),0) -> 0
A32: Základ pro DPH | C32: 0 | D32: % | F32: 0
A33: DPH | C33: =C32 -> 0 | D33: % | F33: =ROUND(PRODUCT(F32,C33/100),0) -> 0
A34: CENA ZA OBJEKT CELKEM | F34: =ROUND(SUM(F30:F33),0) -> 0
A36: Poznámka :

Sheet 305 3236305 Rek
A1: Stavba : | C1: 3236 Bytová zóna Hruštice - Károvsko - Etapa VII. | G1: Rozpočet : | H1: 3236/305
A2: Objekt : | C2: 305 Odvodnění komunikace | G2: Odvodnění komunikace
A4: REKAPITULACE STAVEBNÍCH DÍLŮ
B6: Stavební díl | E6: HSV | F6: PSV | G6: Dodávka | H6: Montáž | I6: HZS
A7: ='305 3236305 Pol'!B7 -> 1 | B7: ='305 3236305 Pol'!C7 -> Zemní práce | E7: ='305 3236305 Pol'!BA111 -> 0 | F7: ='305 3236305 Pol'!BB111 -> 0 | G7: ='305 3236305 Pol'!BC111 -> 0 | H7: ='305 3236305 Pol'!BD111 -> 0 | I7: ='305 3236305 Pol'!BE111 -> 0
A8: ='305 3236305 Pol'!B112 -> 45 | B8: ='305 3236305 Pol'!C112 -> Podkladní a vedlejší konstrukce | E8: ='305 3236305 Pol'!BA120 -> 0 | F8: ='305 3236305 Pol'!BB120 -> 0 | G8: ='305 3236305 Pol'!BC120 -> 0 | H8: ='305 3236305 Pol'!BD120 -> 0 | I8: ='305 3236305 Pol'!BE120 -> 0
A9: ='305 3236305 Pol'!B121 -> 5 | B9: ='305 3236305 Pol'!C121 -> Komunikace | E9: ='305 3236305 Pol'!BA127 -> 0 | F9: ='305 3236305 Pol'!BB127 -> 0 | G9: ='305 3236305 Pol'!BC127 -> 0 | H9: ='305 3236305 Pol'!BD127 -> 0 | I9: ='305 3236305 Pol'!BE127 -> 0
A10: ='305 3236305 Pol'!B128 -> 8 | B10: ='305 3236305 Pol'!C128 -> Trubní vedení | E10: ='305 3236305 Pol'!BA193 -> 0 | F10: ='305 3236305 Pol'!BB193 -> 0 | G10: ='305 3236305 Pol'!BC193 -> 0 | H10: ='305 3236305 Pol'!BD193 -> 0 | I10: ='305 3236305 Pol'!BE193 -> 0
A11: ='305 3236305 Pol'!B194 -> 99 | B11: ='305 3236305 Pol'!C194 -> Staveništní přesun hmot | E11: ='305 3236305 Pol'!BA197 -> 0 | F11: ='305 3236305 Pol'!BB197 -> 0 | G11: ='305 3236305 Pol'!BC197 -> 0 | H11: ='305 3236305 Pol'!BD197 -> 0 | I11: ='305 3236305 Pol'!BE197 -> 0
B12: CELKEM OBJEKT | E12: =SUM(E7:E11) -> 0 | F12: =SUM(F7:F11) -> 0 | G12: =SUM(G7:G11) -> 0 | H12: =SUM(H7:H11) -> 0 | I12: =SUM(I7:I11) -> 0

Sheet 305 3236305 Pol
A1: Položkový rozpočet
A3: Stavba : | C3: 3236 Bytová zóna Hruštice - Károvsko - Etapa VII. | E3: Rozpočet: | F3: ='305 3236305 Rek'!H1 -> 3236/305
A4: Objekt : | C4: 305 Odvodnění komunikace | E4: ='305 3236305 Rek'!G2 -> Odvodnění komunikace
A6: P.č. | B6: Číslo položky | C6: Název položky | D6: MJ | E6: množství | F6: cena / MJ | G6: celkem (Kč) | H6: Jednotková hmotnost | I6: Celková hmotnost | J6: Jednotková dem.hmot. | K6: Celková dem.hmot.
A7: Díl: | B7: 1 | C7: Zemní práce | O7: 1
A8: 1 | B8: 120001101RRX | C8: Příplatek za ztížení vykopávky v blízkosti vedení | D8: m3 | E8: 9.802 | G8: =E8*F8 -> 0 | H8: 0 | I8: =E8*H8 -> 0 | J8: 0 | K8: =E8*J8 -> 0 | O8: 2 | AA8: 1 | AB8: 1 | AC8: 1 | AZ8: 1 | BA8: =IF(AZ8=1,G8,0) -> 0 | BB8: =IF(AZ8=2,G8,0) -> 0 | BC8: =IF(AZ8=3,G8,0) -> 0 | BD8: =IF(AZ8=4,G8,0) -> 0 | BE8: =IF(AZ8=5,G8,0) -> 0 | CA8: 1 | CB8: 1
C9: Včetně ruční dokopávky a ručního výkopu. | L9: Včetně ruční dokopávky a ručního výkopu. | O9: 3
C10: Součástí položky je i případná potřeba dočasnéhon zajištění potrubí a kabelových vedení ve výkopu. | L10: Součástí položky je i případná potřeba dočasnéhon zajištění potrubí a kabelových vedení ve výkopu. | O10: 3
C11: Výkopy: | E11: 0 | M11: Výkopy:
C12: Začátek provozního součtu | E12: 0 | M12: Začátek provozního součtu
C13: Pro UV1:(1,80+0,50)*0,80*(1,85-0,40) | E13: 2.668 | M13: Pro UV1:(1,80+0,50)*0,80*(1,85-0,40)
C14: Pro UV2:(1,80+0,50)*0,80*(1,85-0,40) | E14: 2.668 | M14: Pro UV2:(1,80+0,50)*0,80*(1,85-0,40)
C15: Pro UV3:(2,50+0,50)*0,80*(1,85-0,40) | E15: 3.48 | M15: Pro UV3:(2,50+0,50)*0,80*(1,85-0,40)
C16: Pro UV4:(1,90+0,50)*0,80*(1,85-0,40) | E16: 2.784 | M16: Pro UV4:(1,90+0,50)*0,80*(1,85-0,40)
C17: Pro UV5:(4,40+0,50)*0,80*(1,85-0,40) | E17: 5.684 | M17: Pro UV5:(4,40+0,50)*0,80*(1,85-0,40)
C18: Pro ŽL1:2,00*0,80*(1,85-0,40) | E18: 2.32 | M18: Pro ŽL1:2,00*0,80*(1,85-0,40)
C19: Konec provozního součtu | E19: 19.604 | M19: Konec provozního součtu
C20: V hornině tř. 3 - 4 - 50%:19,6040*0,5 | E20: 9.802 | M20: V hornině tř. 3 - 4 - 50%:19,6040*0,5
A21: 2 | B21: 132201210RRX | C21: Hloubení rýh š.do 200 cm hor.3 do 50 m3,STROJNĚ | D21: m3 | E21: 9.802 | G21: =E21*F21 -> 0 | H21: 0 | I21: =E21*H21 -> 0 | J21: 0 | K21: =E21*J21 -> 0 | O21: 2 | AA21: 1 | AB21: 1 | AC21: 1 | AZ21: 1 | BA21: =IF(AZ21=1,G21,0) -> 0 | BB21: =IF(AZ21=2,G21,0) -> 0 | BC21: =IF(AZ21=3,G21,0) -> 0 | BD21: =IF(AZ21=4,G21,0) -> 0 | BE21: =IF(AZ21=5,G21,0) -> 0 | CA21: 1 | CB21: 1
C22: Položka obsahuje hloubení rýh traktorbagrem, naložení výkopku na dopravní prostředek pro svislé, nebo vodorovné přemístění, popř. přemístění výkopku do 3 m (po povrchu území), případné zajištění rypadel polštáři, udržování pracoviště a ochranu výkopiště proti stékání srážkové vody z okolního terénu i s jejím odvodněním, nebo odvedením, přesekání a odstranění kořenů ve výkopišti, odstranění napadávek, urovnání dna výkopu. | L22: Položka obsahuje hloubení rýh traktorbagrem, naložení výkopku na dopravní prostředek pro svislé, nebo vodorovné přemístění, popř. přemístění výkopku do 3 m (po povrchu území), případné zajištění rypadel polštáři, udržování pracoviště a ochranu výkopiště proti stékání srážkové vody z okolního terénu i s jejím odvodněním, nebo odvedením, přesekání a odstranění kořenů ve výkopišti, odstranění napadávek, urovnání dna výkopu. | O22: 3
C23: Součástí položky je i zřízení a odstranění pažení rýhy v souladu s předpisy BOZP. | L23: Součástí položky je i zřízení a odstranění pažení rýhy v souladu s předpisy BOZP. | O23: 3
C24: Začátek provozního součtu | E24: 0 | M24: Začátek provozního součtu
C25: Pro UV1:(1,80+0,50)*0,80*(1,85-0,40) | E25: 2.668 | M25: Pro UV1:(1,80+0,50)*0,80*(1,85-0,40)
C26: Pro UV2:(1,80+0,50)*0,80*(1,85-0,40) | E26: 2.668 | M26: Pro UV2:(1,80+0,50)*0,80*(1,85-0,40)
C27: Pro UV3:(2,50+0,50)*0,80*(1,85-0,40) | E27: 3.48 | M27: Pro UV3:(2,50+0,50)*0,80*(1,85-0,40)
C28: Pro UV4:(1,90+0,50)*0,80*(1,85-0,40) | E28: 2.784 | M28: Pro UV4:(1,90+0,50)*0,80*(1,85-0,40)
C29: Pro UV5:(4,40+0,50)*0,80*(1,85-0,40) | E29: 5.684 | M29: Pro UV5:(4,40+0,50)*0,80*(1,85-0,40)
C30: Pro ŽL1:2,00*0,80*(1,85-0,40) | E30: 2.32 | M30: Pro ŽL1:2,00*0,80*(1,85-0,40)
C31: Konec provozního součtu | E31: 19.604 | M31: Konec provozního součtu
C32: V hornině tř. 3 - 50%:19,6040*0,5 | E32: 9.802 | M32: V hornině tř. 3 - 50%:19,6040*0,5
A33: 3 | B33: 132201219R00 | C33: Přípl.za lepivost,hloubení rýh 200cm,hor.3,STROJNĚ | D33: m3 | E33: 4.901 | G33: =E33*F33 -> 0 | H33: 0 | I33: =E33*H33 -> 0 | J33: 0 | K33: =E33*J33 -> 0 | O33: 2 | AA33: 1 | AB33: 1 | AC33: 1 | AZ33: 1 | BA33: =IF(AZ33=1,G33,0) -> 0 | BB33: =IF(AZ33=2,G33,0) -> 0 | BC33: =IF(AZ33=3,G33,0) -> 0 | BD33: =IF(AZ33=4,G33,0) -> 0 | BE33: =IF(AZ33=5,G33,0) -> 0 | CA33: 1 | CB33: 1
C34: Začátek provozního součtu | E34: 0 | M34: Začátek provozního součtu
C35: Pro UV1:(1,80+0,50)*0,80*(1,85-0,40) | E35: 2.668 | M35: Pro UV1:(1,80+0,50)*0,80*(1,85-0,40)
C36: Pro UV2:(1,80+0,50)*0,80*(1,85-0,40) | E36: 2.668 | M36: Pro UV2:(1,80+0,50)*0,80*(1,85-0,40)
C37: Pro UV3:(2,50+0,50)*0,80*(1,85-0,40) | E37: 3.48 | M37: Pro UV3:(2,50+0,50)*0,80*(1,85-0,40)
C38: Pro UV4:(1,90+0,50)*0,80*(1,85-0,40) | E38: 2.784 | M38: Pro UV4:(1,90+0,50)*0,80*(1,85-0,40)
C39: Pro UV5:(4,40+0,50)*0,80*(1,85-0,40) | E39: 5.684 | M39: Pro UV5:(4,40+0,50)*0,80*(1,85-0,40)
C40: Pro ŽL1:2,00*0,80*(1,85-0,40) | E40: 2.32 | M40: Pro ŽL1:2,00*0,80*(1,85-0,40)
C41: Konec provozního součtu | E41: 19.604 | M41: Konec provozního součtu
C42: V hornině tř. 3 - 50%:19,6040*0,5*0,5 | E42: 4.901 | M42: V hornině tř. 3 - 50%:19,6040*0,5*0,5
A43: 4 | B43: 132301210RRX | C43: Hloubení rýh š.do 200 cm hor.4 do 50 m3, STROJNĚ | D43: m3 | E43: 9.802 | G43: =E43*F43 -> 0 | H43: 0 | I43: =E43*H43 -> 0 | J43: 0 | K43: =E43*J43 -> 0 | O43: 2 | AA43: 1 | AB43: 1 | AC43: 1 | AZ43: 1 | BA43: =IF(AZ43=1,G43,0) -> 0 | BB43: =IF(AZ43=2,G43,0) -> 0 | BC43: =IF(AZ43=3,G43,0) -> 0 | BD43: =IF(AZ43=4,G43,0) -> 0 | BE43: =IF(AZ43=5,G43,0) -> 0 | CA43: 1 | CB43: 1
C44: Položka obsahuje hloubení rýh traktorbagrem, naložení výkopku na dopravní prostředek pro svislé, nebo vodorovné přemístění, popř. přemístění výkopku do 3 m (po povrchu území), případné zajištění rypadel polštáři, udržování pracoviště a ochranu výkopiště proti stékání srážkové vody z okolního terénu i s jejím odvodněním, nebo odvedením, přesekání a odstranění kořenů ve výkopišti, odstranění napadávek, urovnání dna výkopu. | L44: Položka obsahuje hloubení rýh traktorbagrem, naložení výkopku na dopravní prostředek pro svislé, nebo vodorovné přemístění, popř. přemístění výkopku do 3 m (po povrchu území), případné zajištění rypadel polštáři, udržování pracoviště a ochranu výkopiště proti stékání srážkové vody z okolního terénu i s jejím odvodněním, nebo odvedením, přesekání a odstranění kořenů ve výkopišti, odstranění napadávek, urovnání dna výkopu. | O44: 3
C45: Součástí položky je i zřízení a odstranění pažení rýhy v souladu s předpisy BOZP. | L45: Součástí položky je i zřízení a odstranění pažení rýhy v souladu s předpisy BOZP. | O45: 3
C46: Začátek provozního součtu | E46: 0 | M46: Začátek provozního součtu
C47: Pro UV1:(1,80+0,50)*0,80*(1,85-0,40) | E47: 2.668 | M47: Pro UV1:(1,80+0,50)*0,80*(1,85-0,40)
C48: Pro UV2:(1,80+0,50)*0,80*(1,85-0,40) | E48: 2.668 | M48: Pro UV2:(1,80+0,50)*0,80*(1,85-0,40)
C49: Pro UV3:(2,50+0,50)*0,80*(1,85-0,40) | E49: 3.48 | M49: Pro UV3:(2,50+0,50)*0,80*(1,85-0,40)
C50: Pro UV4:(1,90+0,50)*0,80*(1,85-0,40) | E50: 2.784 | M50: Pro UV4:(1,90+0,50)*0,80*(1,85-0,40)
C51: Pro UV5:(4,40+0,50)*0,80*(1,85-0,40) | E51: 5.684 | M51: Pro UV5:(4,40+0,50)*0,80*(1,85-0,40)
C52: Pro ŽL1:2,00*0,80*(1,85-0,40) | E52: 2.32 | M52: Pro ŽL1:2,00*0,80*(1,85-0,40)
C53: Konec provozního součtu | E53: 19.604 | M53: Konec provozního součtu
C54: V hornině tř. 4 - 50%:19,6040*0,5 | E54: 9.802 | M54: V hornině tř. 4 - 50%:19,6040*0,5
A55: 5 | B55: 132301219R00 | C55: Přípl.za lepivost,hloubení rýh 200cm,hor.4,STROJNĚ | D55: m3 | E55: 4.901 | G55: =E55*F55 -> 0 | H55: 0 | I55: =E55*H55 -> 0 | J55: 0 | K55: =E55*J55 -> 0 | O55: 2 | AA55: 1 | AB55: 1 | AC55: 1 | AZ55: 1 | BA55: =IF(AZ55=1,G55,0) -> 0 | BB55: =IF(AZ55=2,G55,0) -> 0 | BC55: =IF(AZ55=3,G55,0) -> 0 | BD55: =IF(AZ55=4,G55,0) -> 0 | BE55: =IF(AZ55=5,G55,0) -> 0 | CA55: 1 | CB55: 1
C56: Začátek provozního součtu | E56: 0 | M56: Začátek provozního součtu
C57: Pro UV1:(1,80+0,50)*0,80*(1,85-0,40) | E57: 2.668 | M57: Pro UV1:(1,80+0,50)*0,80*(1,85-0,40)
C58: Pro UV2:(1,80+0,50)*0,80*(1,85-0,40) | E58: 2.668 | M58: Pro UV2:(1,80+0,50)*0,80*(1,85-0,40)
C59: Pro UV3:(2,50+0,50)*0,80*(1,85-0,40) | E59: 3.48 | M59: Pro UV3:(2,50+0,50)*0,80*(1,85-0,40)
C60: Pro UV4:(1,90+0,50)*0,80*(1,85-0,40) | E60: 2.784 | M60: Pro UV4:(1,90+0,50)*0,80*(1,85-0,40)
C61: Pro UV5:(4,40+0,50)*0,80*(1,85-0,40) | E61: 5.684 | M61: Pro UV5:(4,40+0,50)*0,80*(1,85-0,40)
C62: Pro ŽL1:2,00*0,80*(1,85-0,40) | E62: 2.32 | M62: Pro ŽL1:2,00*0,80*(1,85-0,40)
C63: Konec provozního součtu | E63: 19.604 | M63: Konec provozního součtu
C64: V hornině tř. 4 - 50%:19,6040*0,5*0,5 | E64: 4.901 | M64: V hornině tř. 4 - 50%:19,6040*0,5*0,5
A65: 6 | B65: 162701105RSZ | C65: Vodorovné přemístění výkopku z hor.1-7 na skládku zhotovitele | D65: m3 | E65: 14.196 | G65: =E65*F65 -> 0 | H65: 0 | I65: =E65*H65 -> 0 | J65: 0 | K65: =E65*J65 -> 0 | O65: 2 | AA65: 1 | AB65: 1 | AC65: 1 | AZ65: 1 | BA65: =IF(AZ65=1,G65,0) -> 0 | BB65: =IF(AZ65=2,G65,0) -> 0 | BC65: =IF(AZ65=3,G65,0) -> 0 | BD65: =IF(AZ65=4,G65,0) -> 0 | BE65: =IF(AZ65=5,G65,0) -> 0 | CA65: 1 | CB65: 1
C66: Výkopy: | E66: 0 | M66: Výkopy:
C67: Začátek provozního součtu | E67: 0 | M67: Začátek provozního součtu
C68: Pro UV1:(1,80+0,50)*0,80*(1,85-0,40) | E68: 2.668 | M68: Pro UV1:(1,80+0,50)*0,80*(1,85-0,40)
C69: Pro UV2:(1,80+0,50)*0,80*(1,85-0,40) | E69: 2.668 | M69: Pro UV2:(1,80+0,50)*0,80*(1,85-0,40)
C70: Pro UV3:(2,50+0,50)*0,80*(1,85-0,40) | E70: 3.48 | M70: Pro UV3:(2,50+0,50)*0,80*(1,85-0,40)
C71: Pro UV4:(1,90+0,50)*0,80*(1,85-0,40) | E71: 2.784 | M71: Pro UV4:(1,90+0,50)*0,80*(1,85-0,40)
C72: Pro UV5:(4,40+0,50)*0,80*(1,85-0,40) | E72: 5.684 | M72: Pro UV5:(4,40+0,50)*0,80*(1,85-0,40)
C73: Pro ŽL1:2,00*0,80*(1,85-0,40) | E73: 2.32 | M73: Pro ŽL1:2,00*0,80*(1,85-0,40)
C74: Konec provozního součtu | E74: 19.604 | M74: Konec provozního součtu
C75: V hornině tř. 3 - 4 :19,6040 | E75: 19.604 | M75: V hornině tř. 3 - 4 :19,6040
C76: Odpočet zásypů zeminou:-5,4080 | E76: -5.408 | M76: Odpočet zásypů zeminou:-5,4080
A77: 7 | B77: 174100050RAA | C77: Zásyp jam,rýh a šachet štěrkodrtí fr. 0-63 mm včetně dovozu štěrkodrtě | D77: m3 | E77: 8.112 | G77: =E77*F77 -> 0 | H77: 1.873 | I77: =E77*H77 -> 15.193776 | J77: 0 | K77: =E77*J77 -> 0 | O77: 2 | AA77: 1 | AB77: 1 | AC77: 1 | AZ77: 1 | BA77: =IF(AZ77=1,G77,0) -> 0 | BB77: =IF(AZ77=2,G77,0) -> 0 | BC77: =IF(AZ77=3,G77,0) -> 0 | BD77: =IF(AZ77=4,G77,0) -> 0 | BE77: =IF(AZ77=5,G77,0) -> 0 | CA77: 1 | CB77: 1
C78: Pro UV1:(1,80+0,50)*0,80*(1,85-0,10-0,15-0,30-0,30-0,40) | E78: 1.104 | M78: Pro UV1:(1,80+0,50)*0,80*(1,85-0,10-0,15-0,30-0,30-0,40)
C79: Pro UV2:(1,80+0,50)*0,80*(1,85-0,10-0,15-0,30-0,30-0,40) | E79: 1.104 | M79: Pro UV2:(1,80+0,50)*0,80*(1,85-0,10-0,15-0,30-0,30-0,40)
C80: Pro UV3:(2,50+0,50)*0,80*(1,85-0,10-0,15-0,30-0,30-0,40) | E80: 1.44 | M80: Pro UV3:(2,50+0,50)*0,80*(1,85-0,10-0,15-0,30-0,30-0,40)
C81: Pro UV4:(1,90+0,50)*0,80*(1,85-0,10-0,15-0,30-0,30-0,40) | E81: 1.152 | M81: Pro UV4:(1,90+0,50)*0,80*(1,85-0,10-0,15-0,30-0,30-0,40)
C82: Pro UV5:(4,40+0,50)*0,80*(1,85-0,10-0,15-0,30-0,30-0,40) | E82: 2.352 | M82: Pro UV5:(4,40+0,50)*0,80*(1,85-0,10-0,15-0,30-0,30-0,40)
C83: Pro ŽL1:2,00*0,80*(1,85-0,10-0,15-0,30-0,30-0,40) | E83: 0.96 | M83: Pro ŽL1:2,00*0,80*(1,85-0,10-0,15-0,30-0,30-0,40)
A84: 8 | B84: 174101101R00 | C84: Zásyp jam, rýh, šachet se zhutněním | D84: m3 | E84: 5.408 | G84: =E84*F84 -> 0 | H84: 0 | I84: =E84*H84 -> 0 | J84: 0 | K84: =E84*J84 -> 0 | O84: 2 | AA84: 1 | AB84: 1 | AC84: 1 | AZ84: 1 | BA84: =IF(AZ84=1,G84,0) -> 0 | BB84: =IF(AZ84=2,G84,0) -> 0 | BC84: =IF(AZ84=3,G84,0) -> 0 | BD84: =IF(AZ84=4,G84,0) -> 0 | BE84: =IF(AZ84=5,G84,0) -> 0 | CA84: 1 | CB84: 1
C85: včetně strojního přemístění materiálu pro zásyp ze vzdálenosti do 10 m od okraje zásypu | L85: včetně strojního přemístění materiálu pro zásyp ze vzdálenosti do 10 m od okraje zásypu | O85: 3
C86: Pro UV1:(1,80+0,50)*0,80*0,40 | E86: 0.736 | M86: Pro UV1:(1,80+0,50)*0,80*0,40
C87: Pro UV2:(1,80+0,50)*0,80*0,40 | E87: 0.736 | M87: Pro UV2:(1,80+0,50)*0,80*0,40
C88: Pro UV3:(2,50+0,50)*0,80*0,40 | E88: 0.96 | M88: Pro UV3:(2,50+0,50)*0,80*0,40
C89: Pro UV4:(1,90+0,50)*0,80*0,40 | E89: 0.768 | M89: Pro UV4:(1,90+0,50)*0,80*0,40
C90: Pro UV5:(4,40+0,50)*0,80*0,40 | E90: 1.568 | M90: Pro UV5:(4,40+0,50)*0,80*0,40
C91: Pro ŽL1:2,00*0,80*0,40 | E91: 0.64 | M91: Pro ŽL1:2,00*0,80*0,40
A92: 9 | B92: 175100020RAA | C92: Obsyp potrubí štěrkopískem včetně dovozu štěrkopísku | D92: m3 | E92: 4.9295 | G92: =E92*F92 -> 0 | H92: 1.873 | I92: =E92*H92 -> 9.2329535 | J92: 0 | K92: =E92*J92 -> 0 | O92: 2 | AA92: 1 | AB92: 1 | AC92: 1 | AZ92: 1 | BA92: =IF(AZ92=1,G92,0) -> 0 | BB92: =IF(AZ92=2,G92,0) -> 0 | BC92: =IF(AZ92=3,G92,0) -> 0 | BD92: =IF(AZ92=4,G92,0) -> 0 | BE92: =IF(AZ92=5,G92,0) -> 0 | CA92: 1 | CB92: 1
C93: Pro UV1:1,80*(0,80*(0,15+0,30)-0,075^2*Pi) | E93: 0.6162 | M93: Pro UV1:1,80*(0,80*(0,15+0,30)-0,075^2*Pi)
C94: Pro UV2:1,80*(0,80*(0,15+0,30)-0,075^2*Pi) | E94: 0.6162 | M94: Pro UV2:1,80*(0,80*(0,15+0,30)-0,075^2*Pi)
C95: Pro UV3:2,50*(0,80*(0,15+0,30)-0,075^2*Pi) | E95: 0.8558 | M95: Pro UV3:2,50*(0,80*(0,15+0,30)-0,075^2*Pi)
C96: Pro UV4:1,90*(0,80*(0,15+0,30)-0,075^2*Pi) | E96: 0.6504 | M96: Pro UV4:1,90*(0,80*(0,15+0,30)-0,075^2*Pi)
C97: Pro UV5:4,40*(0,80*(0,15+0,30)-0,075^2*Pi) | E97: 1.5062 | M97: Pro UV5:4,40*(0,80*(0,15+0,30)-0,075^2*Pi)
C98: Pro ŽL1:2,00*(0,80*(0,15+0,30)-0,075^2*Pi) | E98: 0.6847 | M98: Pro ŽL1:2,00*(0,80*(0,15+0,30)-0,075^2*Pi)
A99: 10 | B99: 199000002R00 | C99: Poplatek za skládku horniny 1- 7 | D99: m3 | E99: 14.196 | G99: =E99*F99 -> 0 | H99: 0 | I99: =E99*H99 -> 0 | J99: 0 | K99: =E99*J99 -> 0 | O99: 2 | AA99: 1 | AB99: 1 | AC99: 1 | AZ99: 1 | BA99: =IF(AZ99=1,G99,0) -> 0 | BB99: =IF(AZ99=2,G99,0) -> 0 | BC99: =IF(AZ99=3,G99,0) -> 0 | BD99: =IF(AZ99=4,G99,0) -> 0 | BE99: =IF(AZ99=5,G99,0) -> 0 | CA99: 1 | CB99: 1
C100: Výkopy: | E100: 0 | M100: Výkopy:
C101: Začátek provozního součtu | E101: 0 | M101: Začátek provozního součtu
C102: Pro UV1:(1,80+0,50)*0,80*(1,85-0,40) | E102: 2.668 | M102: Pro UV1:(1,80+0,50)*0,80*(1,85-0,40)
C103: Pro UV2:(1,80+0,50)*0,80*(1,85-0,40) | E103: 2.668 | M103: Pro UV2:(1,80+0,50)*0,80*(1,85-0,40)
C104: Pro UV3:(2,50+0,50)*0,80*(1,85-0,40) | E104: 3.48 | M104: Pro UV3:(2,50+0,50)*0,80*(1,85-0,40)
C105: Pro UV4:(1,90+0,50)*0,80*(1,85-0,40) | E105: 2.784 | M105: Pro UV4:(1,90+0,50)*0,80*(1,85-0,40)
C106: Pro UV5:(4,40+0,50)*0,80*(1,85-0,40) | E106: 5.684 | M106: Pro UV5:(4,40+0,50)*0,80*(1,85-0,40)
C107: Pro ŽL1:2,00*0,80*(1,85-0,40) | E107: 2.32 | M107: Pro ŽL1:2,00*0,80*(1,85-0,40)
C108: Konec provozního součtu | E108: 19.604 | M108: Konec provozního součtu
C109: V hornině tř. 3 - 4 :19,6040 | E109: 19.604 | M109: V hornině tř. 3 - 4 :19,6040
C110: Odpočet zásypů zeminou:-5,4080 | E110: -5.408 | M110: Odpočet zásypů zeminou:-5,4080
B111: Celkem za | C111: 1 Zemní práce | G111: =SUM(G7:G110) -> 0 | I111: =SUM(I7:I110) -> 24.4267295 | K111: =SUM(K7:K110) -> 0 | O111: 4 | BA111: =SUM(BA7:BA110) -> 0 | BB111: =SUM(BB7:BB110) -> 0 | BC111: =SUM(BC7:BC110) -> 0 | BD111: =SUM(BD7:BD110) -> 0 | BE111: =SUM(BE7:BE110) -> 0
A112: Díl: | B112: 45 | C112: Podkladní a vedlejší konstrukce | O112: 1
A113: 11 | B113: 451572111R00 | C113: Lože pod potrubí z kameniva těženého 0 - 4 mm | D113: m3 | E113: 1.152 | G113: =E113*F113 -> 0 | H113: 0.43051 | I113: =E113*H113 -> 0.49594752 | J113: 0 | K113: =E113*J113 -> 0 | O113: 2 | AA113: 1 | AB113: 1 | AC113: 1 | AZ113: 1 | BA113: =IF(AZ113=1,G113,0) -> 0 | BB113: =IF(AZ113=2,G113,0) -> 0 | BC113: =IF(AZ113=3,G113,0) -> 0 | BD113: =IF(AZ113=4,G113,0) -> 0 | BE113: =IF(AZ113=5,G113,0) -> 0 | CA113: 1 | CB113: 1
C114: Pro UV1:1,80*0,80*0,10 | E114: 0.144 | M114: Pro UV1:1,80*0,80*0,10
C115: Pro UV2:1,80*0,80*0,10 | E115: 0.144 | M115: Pro UV2:1,80*0,80*0,10
C116: Pro UV3:2,50*0,80*0,10 | E116: 0.2 | M116: Pro UV3:2,50*0,80*0,10
C117: Pro UV4:1,90*0,80*0,10 | E117: 0.152 | M117: Pro UV4:1,90*0,80*0,10
C118: Pro UV5:4,40*0,80*0,10 | E118: 0.352 | M118: Pro UV5:4,40*0,80*0,10
C119: Pro ŽL1:2,00*0,80*0,10 | E119: 0.16 | M119: Pro ŽL1:2,00*0,80*0,10
B120: Celkem za | C120: 45 Podkladní a vedlejší konstrukce | G120: =SUM(G112:G119) -> 0 | I120: =SUM(I112:I119) -> 0.49594752 | K120: =SUM(K112:K119) -> 0 | O120: 4 | BA120: =SUM(BA112:BA119) -> 0 | BB120: =SUM(BB112:BB119) -> 0 | BC120: =SUM(BC112:BC119) -> 0 | BD120: =SUM(BD112:BD119) -> 0 | BE120: =SUM(BE112:BE119) -> 0
A121: Díl: | B121: 5 | C121: Komunikace | O121: 1
A122: 12 | B122: 597092211RS4 | C122: Žlab odvodňovací ACO MultiDrain V 150 S dl.1000 mm typ 2, šířka 185 mm, spád 215-220 mm | D122: kus | E122: 5 | G122: =E122*F122 -> 0 | H122: 0.12045 | I122: =E122*H122 -> 0.60225 | J122: 0 | K122: =E122*J122 -> 0 | O122: 2 | AA122: 1 | AB122: 1 | AC122: 1 | AZ122: 1 | BA122: =IF(AZ122=1,G122,0) -> 0 | BB122: =IF(AZ122=2,G122,0) -> 0 | BC122: =IF(AZ122=3,G122,0) -> 0 | BD122: =IF(AZ122=4,G122,0) -> 0 | BE122: =IF(AZ122=5,G122,0) -> 0 | CA122: 1 | CB122: 1
C123: Položka je určena pro montáž a dodávku odvodňovacího žlabu z polymerického betonu s integrovanou ochranou hran z pozink. oceli s bezpečnostní drážkou ACO DRAIN (SF) , pro vodotěsnou pokládku, včetně osazení do betonového lože. Žlab slouží k odvedení povrchové vody ze zpevněných ploch. Zatížení A15, B 125, C 250, D 400, E 600. Stavební výška 215-220 mm, šířka žlabu 185 mm, délka 1000 mm. typ 2 | L123: Položka je určena pro montáž a dodávku odvodňovacího žlabu z polymerického betonu s integrovanou ochranou hran z pozink. oceli s bezpečnostní drážkou ACO DRAIN (SF) , pro vodotěsnou pokládku, včetně osazení do betonového lože. Žlab slouží k odvedení povrchové vody ze zpevněných ploch. Zatížení A15, B 125, C 250, D 400, E 600. Stavební výška 215-220 mm, šířka žlabu 185 mm, délka 1000 mm. typ 2 | O123: 3
A124: 13 | B124: 597092232RS5 | C124: Čelo žlabu pro přípojku DN150 ACO MultiDrain V 150 pro stavební výšku 20. | D124: kus | E124: 2 | G124: =E124*F124 -> 0 | H124: 0.0042 | I124: =E124*H124 -> 0.0084 | J124: 0 | K124: =E124*J124 -> 0 | O124: 2 | AA124: 1 | AB124: 1 | AC124: 1 | AZ124: 1 | BA124: =IF(AZ124=1,G124,0) -> 0 | BB124: =IF(AZ124=2,G124,0) -> 0 | BC124: =IF(AZ124=3,G124,0) -> 0 | BD124: =IF(AZ124=4,G124,0) -> 0 | BE124: =IF(AZ124=5,G124,0) -> 0 | CA124: 1 | CB124: 1
A125: 14 | B125: 597092253RV4 | C125: Krycí rošt ACO Drainlock V 150 S, C 250,dl.500 mm s podélnými pruty v mřížkové optice, tvárná litina | D125: kus | E125: 10 | G125: =E125*F125 -> 0 | H125: 0.00557 | I125: =E125*H125 -> 0.0557 | J125: 0 | K125: =E125*J125 -> 0 | O125: 2 | AA125: 1 | AB125: 1 | AC125: 1 | AZ125: 1 | BA125: =IF(AZ125=1,G125,0) -> 0 | BB125: =IF(AZ125=2,G125,0) -> 0 | BC125: =IF(AZ125=3,G125,0) -> 0 | BD125: =IF(AZ125=4,G125,0) -> 0 | BE125: =IF(AZ125=5,G125,0) -> 0 | CA125: 1 | CB125: 1
C126: Položka je určena pro osazení a dodávku krycího roštu z litiny. Zatížení C 250. Stavební délka 500 mm, šířka 173 mm. | L126: Položka je určena pro osazení a dodávku krycího roštu z litiny. Zatížení C 250. Stavební délka 500 mm, šířka 173 mm. | O126: 3
B127: Celkem za | C127: 5 Komunikace | G127: =SUM(G121:G126) -> 0 | I127: =SUM(I121:I126) -> 0.66635 | K127: =SUM(K121:K126) -> 0 | O127: 4 | BA127: =SUM(BA121:BA126) -> 0 | BB127: =SUM(BB121:BB126) -> 0 | BC127: =SUM(BC121:BC126) -> 0 | BD127: =SUM(BD121:BD126) -> 0 | BE127: =SUM(BE121:BE126) -> 0
A128: Díl: | B128: 8 | C128: Trubní vedení | O128: 1
A129: 15 | B129: 871311111RRX | C129: Montáž trubek z PVC/PP ve výkopu DN 150 mm | D129: m | E129: 14.4 | G129: =E129*F129 -> 0 | H129: 0.0001 | I129: =E129*H129 -> 0.00144 | J129: 0 | K129: =E129*J129 -> 0 | O129: 2 | AA129: 1 | AB129: 0 | AC129: 0 | AZ129: 1 | BA129: =IF(AZ129=1,G129,0) -> 0 | BB129: =IF(AZ129=2,G129,0) -> 0 | BC129: =IF(AZ129=3,G129,0) -> 0 | BD129: =IF(AZ129=4,G129,0) -> 0 | BE129: =IF(AZ129=5,G129,0) -> 0 | CA129: 1 | CB129: 0
C130: Položka je určena pro montáž potrubí z PVC nabo PP těsněných gumovým kroužkem. Volba položky se řídí vnějším průměrem trubky. V položce jsou zakalkulovány i náklady na montáž tvarovek. V položce nejsou zakalkulovány náklady na dodání trubek a tvarovek; tyto materiály se oceňují ve specifikaci. | L130: Položka je určena pro montáž potrubí z PVC nabo PP těsněných gumovým kroužkem. Volba položky se řídí vnějším průměrem trubky. V položce jsou zakalkulovány i náklady na montáž tvarovek. V položce nejsou zakalkulovány náklady na dodání trubek a tvarovek; tyto materiály se oceňují ve specifikaci. | O130: 3
C131: Pro UV1:1,80 | E131: 1.8 | M131: Pro UV1:1,80
C132: Pro UV2:1,80 | E132: 1.8 | M132: Pro UV2:1,80
C133: Pro UV3:2,50 | E133: 2.5 | M133: Pro UV3:2,50
C134: Pro UV4:1,90 | E134: 1.9 | M134: Pro UV4:1,90
C135: Pro UV5:4,40 | E135: 4.4 | M135: Pro UV5:4,40
C136: Pro ŽL1:2,00 | E136: 2 | M136: Pro ŽL1:2,00
A137: 16 | B137: 877395122RT2 | C137: Montáž nalepovací tvar. z plastu na potrubí DN 400 včetně dodávky odbočky nalepovací PVC 400/160 mm | D137: kus | E137: 3 | G137: =E137*F137 -> 0 | H137: 0.00636 | I137: =E137*H137 -> 0.01908 | J137: 0 | K137: =E137*J137 -> 0 | O137: 2 | AA137: 1 | AB137: 1 | AC137: 1 | AZ137: 1 | BA137: =IF(AZ137=1,G137,0) -> 0 | BB137: =IF(AZ137=2,G137,0) -> 0 | BC137: =IF(AZ137=3,G137,0) -> 0 | BD137: =IF(AZ137=4,G137,0) -> 0 | BE137: =IF(AZ137=5,G137,0) -> 0 | CA137: 1 | CB137: 1
C138: Položka je určena pro montáž nalepovací odbočné tvarovky na potrubí z kanalizačních trub z PP a PVC. | L138: Položka je určena pro montáž nalepovací odbočné tvarovky na potrubí z kanalizačních trub z PP a PVC. | O138: 3
C139: V položce montáže nalepovací odbočné tvarovky jsou zakalkulovány i náklady na dodání nalepovacích tvarovek. | L139: V položce montáže nalepovací odbočné tvarovky jsou zakalkulovány i náklady na dodání nalepovacích tvarovek. | O139: 3
C140: Pro UV1:1 | E140: 1 | M140: Pro UV1:1
C141: Pro UV2:1 | E141: 1 | M141: Pro UV2:1
C142: Pro UV3:1 | E142: 1 | M142: Pro UV3:1
A143: 17 | B143: 892571111R00 | C143: Zkouška těsnosti kanalizace DN do 200, vodou | D143: m | E143: 14.4 | G143: =E143*F143 -> 0 | H143: 0 | I143: =E143*H143 -> 0 | J143: 0 | K143: =E143*J143 -> 0 | O143: 2 | AA143: 1 | AB143: 1 | AC143: 1 | AZ143: 1 | BA143: =IF(AZ143=1,G143,0) -> 0 | BB143: =IF(AZ143=2,G143,0) -> 0 | BC143: =IF(AZ143=3,G143,0) -> 0 | BD143: =IF(AZ143=4,G143,0) -> 0 | BE143: =IF(AZ143=5,G143,0) -> 0 | CA143: 1 | CB143: 1
C144: V položce jsou zakalkulovány náklady na napuštění vodou a dodání vody pro zkoušku těsnosti. | L144: V položce jsou zakalkulovány náklady na napuštění vodou a dodání vody pro zkoušku těsnosti. | O144: 3
C145: Pro UV1:1,80 | E145: 1.8 | M145: Pro UV1:1,80
C146: Pro UV2:1,80 | E146: 1.8 | M146: Pro UV2:1,80
C147: Pro UV3:2,50 | E147: 2.5 | M147: Pro UV3:2,50
C148: Pro UV4:1,90 | E148: 1.9 | M148: Pro UV4:1,90
C149: Pro UV5:4,40 | E149: 4.4 | M149: Pro UV5:4,40
C150: Pro ŽL1:2,00 | E150: 2 | M150: Pro ŽL1:2,00
A151: 18 | B151: 892601121R00 | C151: Čištění kanalizační stoky do DN 200, do 15 m | D151: úsek | E151: 6 | G151: =E151*F151 -> 0 | H151: 0 | I151: =E151*H151 -> 0 | J151: 0 | K151: =E151*J151 -> 0 | O151: 2 | AA151: 1 | AB151: 1 | AC151: 1 | AZ151: 1 | BA151: =IF(AZ151=1,G151,0) -> 0 | BB151: =IF(AZ151=2,G151,0) -> 0 | BC151: =IF(AZ151=3,G151,0) -> 0 | BD151: =IF(AZ151=4,G151,0) -> 0 | BE151: =IF(AZ151=5,G151,0) -> 0 | CA151: 1 | CB151: 1
C152: V položce je zakalkulováno: | L152: V položce je zakalkulováno: | O152: 3
C153: a) otevření a uzavření revizních šachet a čisticích kusů | L153: a) otevření a uzavření revizních šachet a čisticích kusů | O153: 3
C154: b) natažení vysokotlakých hadic k místu odkud se bude kanalizace čistit | L154: b) natažení vysokotlakých hadic k místu odkud se bude kanalizace čistit | O154: 3
C155: c) vyčištění potrubí tlakovou vodou nebo motorovým pérem. | L155: c) vyčištění potrubí tlakovou vodou nebo motorovým pérem. | O155: 3
C156: Pro UV1:1 | E156: 1 | M156: Pro UV1:1
C157: Pro UV2:1 | E157: 1 | M157: Pro UV2:1
C158: Pro UV3:1 | E158: 1 | M158: Pro UV3:1
C159: Pro UV4:1 | E159: 1 | M159: Pro UV4:1
C160: Pro UV5:1 | E160: 1 | M160: Pro UV5:1
C161: Pro ŽL1:1 | E161: 1 | M161: Pro ŽL1:1
A162: 19 | B162: 895941311RT2 | C162: Zřízení vpusti uliční z dílců typ UVB - 50 včetně dodávky dílců pro uliční vpusti TB -Q | D162: kus | E162: 5 | G162: =E162*F162 -> 0 | H162: 3.05967 | I162: =E162*H162 -> 15.29835 | J162: 0 | K162: =E162*J162 -> 0 | O162: 2 | AA162: 1 | AB162: 1 | AC162: 1 | AZ162: 1 | BA162: =IF(AZ162=1,G162,0) -> 0 | BB162: =IF(AZ162=2,G162,0) -> 0 | BC162: =IF(AZ162=3,G162,0) -> 0 | BD162: =IF(AZ162=4,G162,0) -> 0 | BE162: =IF(AZ162=5,G162,0) -> 0 | CA162: 1 | CB162: 1
C163: Dodávka prvků dle TZ projektové dokumentace včetně kalového koše A4 | L163: Dodávka prvků dle TZ projektové dokumentace včetně kalového koše A4 | O163: 3
C164: UV1 - UV5:5 | E164: 5 | M164: UV1 - UV5:5
A165: 20 | B165: 899202111R00 | C165: Osazení mříží litinových s rámem do 100 kg včetně dodávky mříže D400 500 x 500 KM12P | D165: kus | E165: 5 | G165: =E165*F165 -> 0 | H165: 0.07936 | I165: =E165*H165 -> 0.3968 | J165: 0 | K165: =E165*J165 -> 0 | O165: 2 | AA165: 1 | AB165: 0 | AC165: 0 | AZ165: 1 | BA165: =IF(AZ165=1,G165,0) -> 0 | BB165: =IF(AZ165=2,G165,0) -> 0 | BC165: =IF(AZ165=3,G165,0) -> 0 | BD165: =IF(AZ165=4,G165,0) -> 0 | BE165: =IF(AZ165=5,G165,0) -> 0 | CA165: 1 | CB165: 0
C166: Položka je určena pro osazení mříží litinových včetně rámů a košů na bahno. | L166: Položka je určena pro osazení mříží litinových včetně rámů a košů na bahno. | O166: 3
C167: UV1 - UV5:5 | E167: 5 | M167: UV1 - UV5:5
A168: 21 | B168: 286111903 | C168: Trubka kanalizační PVC SN min. 12 DN 150 | D168: kus | E168: 15.7392 | G168: =E168*F168 -> 0 | H168: 0.0306 | I168: =E168*H168 -> 0.48161952 | K168: =E168*J168 -> 0 | O168: 2 | AA168: 3 | AB168: 1 | AC168: 286111903 | AZ168: 1 | BA168: =IF(AZ168=1,G168,0) -> 0 | BB168: =IF(AZ168=2,G168,0) -> 0 | BC168: =IF(AZ168=3,G168,0) -> 0 | BD168: =IF(AZ168=4,G168,0) -> 0 | BE168: =IF(AZ168=5,G168,0) -> 0 | CA168: 3 | CB168: 1
C169: Jedná se o plnostěnné kanalizační trubky DN 150 – DN 400, min. SN 12 kN/m2 , zvenčí i zevnitř hladké. Jsou opatřeny hrdlem, v němž je vložen vysoce elastický jazýčkový kroužek. konce trubek (dříků) jsou opatřeny zkosením pod úhlem 15°. Způsob použití trubek je „U“ dle normy ČSN EN 1401-1, tj. mimo budovy. Spolehlivá funkce těsnění je jištěna výztužným kroužkem z elastomeru. Je tak zamezeno vypad-nutí nebo vytlačení kroužku při manipulaci a montáži. Tento systém zaručuje při správné montáži | L169: Jedná se o plnostěnné kanalizační trubky DN 150 – DN 400, min. SN 12 kN/m2 , zvenčí i zevnitř hladké. Jsou opatřeny hrdlem, v němž je vložen vysoce elastický jazýčkový kroužek. konce trubek (dříků) jsou opatřeny zkosením pod úhlem 15°. Způsob použití trubek je „U“ dle normy ČSN EN 1401-1, tj. mimo budovy. Spolehlivá funkce těsnění je jištěna výztužným kroužkem z elastomeru. Je tak zamezeno vypad-nutí nebo vytlačení kroužku při manipulaci a montáži. Tento systém zaručuje při správné montáži | O169: 3
C170: dokonalou těsnost do výšky vodního sloupce 5 metrů. | L170: dokonalou těsnost do výšky vodního sloupce 5 metrů. | O170: 3
C171: Teplota při pokládce: min. -10 °C, max. 50 °C | L171: Teplota při pokládce: min. -10 °C, max. 50 °C | O171: 3
C172: Max. teplota média: trvale do 40 °C, krátkodobě do 60 °C | L172: Max. teplota média: trvale do 40 °C, krátkodobě do 60 °C | O172: 3
C173: Orientační výška krytí: min. 0,5 m, max. 10 m | L173: Orientační výška krytí: min. 0,5 m, max. 10 m | O173: 3
C174: Max. rychlost média: 12 m/s | L174: Max. rychlost média: 12 m/s | O174: 3
C175: Pro UV1:1,80*1,093 | E175: 1.9674 | M175: Pro UV1:1,80*1,093
C176: Pro UV2:1,80*1,093 | E176: 1.9674 | M176: Pro UV2:1,80*1,093
C177: Pro UV3:2,50*1,093 | E177: 2.7325 | M177: Pro UV3:2,50*1,093
C178: Pro UV4:1,90*1,093 | E178: 2.0767 | M178: Pro UV4:1,90*1,093
C179: Pro UV5:4,40*1,093 | E179: 4.8092 | M179: Pro UV5:4,40*1,093
C180: Pro ŽL1:2,00*1,093 | E180: 2.186 | M180: Pro ŽL1:2,00*1,093
A181: 22 | B181: 286506003 | C181: Koleno kanalizační PVC SDR 34 DN 150/45° | D181: kus | E181: 12.18 | G181: =E181*F181 -> 0 | H181: 0.00127 | I181: =E181*H181 -> 0.0154686 | K181: =E181*J181 -> 0 | O181: 2 | AA181: 3 | AB181: 1 | AC181: 286506003 | AZ181: 1 | BA181: =IF(AZ181=1,G181,0) -> 0 | BB181: =IF(AZ181=2,G181,0) -> 0 | BC181: =IF(AZ181=3,G181,0) -> 0 | BD181: =IF(AZ181=4,G181,0) -> 0 | BE181: =IF(AZ181=5,G181,0) -> 0 | CA181: 3 | CB181: 1
C182: Tvarovky kanalizačního systému PVC SDR 34 | L182: Tvarovky kanalizačního systému PVC SDR 34 | O182: 3
C183: Teplota při pokládce: min. -10 °C, max. 50 °C | L183: Teplota při pokládce: min. -10 °C, max. 50 °C | O183: 3
C184: Max. teplota média: trvale do 40 °C, krátkodobě do 60 °C | L184: Max. teplota média: trvale do 40 °C, krátkodobě do 60 °C | O184: 3
C185: Orientační výška krytí: min. 0,5 m, max. 10 m | L185: Orientační výška krytí: min. 0,5 m, max. 10 m | O185: 3
C186: Max. rychlost média: 12 m/s | L186: Max. rychlost média: 12 m/s | O186: 3
C187: Pro UV1:2*1,015 | E187: 2.03 | M187: Pro UV1:2*1,015
C188: Pro UV2:2*1,015 | E188: 2.03 | M188: Pro UV2:2*1,015
C189: Pro UV3:2*1,015 | E189: 2.03 | M189: Pro UV3:2*1,015
C190: Pro UV4:2*1,015 | E190: 2.03 | M190: Pro UV4:2*1,015
C191: Pro UV5:2*1,015 | E191: 2.03 | M191: Pro UV5:2*1,015
C192: Pro ŽL1:2*1,015 | E192: 2.03 | M192: Pro ŽL1:2*1,015
B193: Celkem za | C193: 8 Trubní vedení | G193: =SUM(G128:G192) -> 0 | I193: =SUM(I128:I192) -> 16.21275812 | K193: =SUM(K128:K192) -> 0 | O193: 4 | BA193: =SUM(BA128:BA192) -> 0 | BB193: =SUM(BB128:BB192) -> 0 | BC193: =SUM(BC128:BC192) -> 0 | BD193: =SUM(BD128:BD192) -> 0 | BE193: =SUM(BE128:BE192) -> 0
A194: Díl: | B194: 99 | C194: Staveništní přesun hmot | O194: 1
A195: 23 | B195: 998276101R00 | C195: Přesun hmot, trubní vedení plastová, otevř. výkop | D195: t | E195: 41.80178514 | G195: =E195*F195 -> 0 | H195: 0 | I195: =E195*H195 -> 0 | K195: =E195*J195 -> 0 | O195: 2 | AA195: 7 | AB195: 1 | AC195: 2 | AZ195: 1 | BA195: =IF(AZ195=1,G195,0) -> 0 | BB195: =IF(AZ195=2,G195,0) -> 0 | BC195: =IF(AZ195=3,G195,0) -> 0 | BD195: =IF(AZ195=4,G195,0) -> 0 | BE195: =IF(AZ195=5,G195,0) -> 0 | CA195: 7 | CB195: 1
C196: Položka je určena pro trubní vedení (vodovod nebo kanalizace) hloubené nebo ražené z trub z plastických hmot nebo sklolaminátových včetně drobných objektů. Platnost položky je vymezena pro nejmenší skladovací plochu 50 m2 + 1,30 m2/t, pro největší dopravní vzdálenost 15 m od hrany výkopu na povrchu nebo 15 m od okraje šachty k těžišti skládek na povrchu. | L196: Položka je určena pro trubní vedení (vodovod nebo kanalizace) hloubené nebo ražené z trub z plastických hmot nebo sklolaminátových včetně drobných objektů. Platnost položky je vymezena pro nejmenší skladovací plochu 50 m2 + 1,30 m2/t, pro největší dopravní vzdálenost 15 m od hrany výkopu na povrchu nebo 15 m od okraje šachty k těžišti skládek na povrchu. | O196: 3
B197: Celkem za | C197: 99 Staveništní přesun hmot | G197: =SUM(G194:G196) -> 0 | I197: =SUM(I194:I196) -> 0 | K197: =SUM(K194:K196) -> 0 | O197: 4 | BA197: =SUM(BA194:BA196) -> 0 | BB197: =SUM(BB194:BB196) -> 0 | BC197: =SUM(BC194:BC196) -> 0 | BD197: =SUM(BD194:BD196) -> 0 | BE197: =SUM(BE194:BE196) -> 0

Sheet 306 3236306.1 KL
A1: POLOŽKOVÝ ROZPOČET
A2: Rozpočet | C2: 3236/306.1 | D2: Prodloužení vodovodu | F2: JKSO | G2: 827.11.A1
A4: Objekt | F4: SKP
A5: 306 | C5: Prodloužení vodovodu, přípojky | F5: Měrná jednotka | G5: m
A6: Stavba | F6: Počet jednotek | G6: 0
A7: 3236 | C7: Bytová zóna Hruštice - Károvsko - Etapa VII. | F7: Náklady na m.j. | G7: =IF(G6=0,,ROUND((F30+F32)/G6,1)) -> 0
A8: Projektant | C8: PROFES PROJEKT spol.s r.o. | F8: Typ rozpočtu
A9: Zpracovatel projektu
A10: Objednatel | C10: Město TURNOV
A11: Dodavatel | C11: . | F11: Zakázkové číslo
A12: Rozpočtoval | F12: Počet listů
A13: ROZPOČTOVÉ NÁKLADY
A14: Základní rozpočtové náklady
B15: HSV celkem | C15: ='306 3236306.1 Rek'!E11 -> 0
A16: Z | B16: PSV celkem | C16: ='306 3236306.1 Rek'!F11 -> 0
A17: R | B17: M práce celkem | C17: ='306 3236306.1 Rek'!H11 -> 0
A18: N | B18: M dodávky celkem | C18: ='306 3236306.1 Rek'!G11 -> 0
A19: ZRN celkem | C19: =SUM(C15:C18) -> 0
A21: HZS | C21: ='306 3236306.1 Rek'!I11 -> 0
A22: ZRN+HZS | C22: =C19+C21 -> 0
A23: ZRN+ost.náklady+HZS | C23: =C22+G23 -> 0
A24: Vypracoval | D24: Za zhotovitele | F24: Za objednatele
A25: Jméno : | D25: Jméno : | F25: Jméno :
A26: Datum : | D26: Datum : | F26: Datum :
A28: Podpis : | D28: Podpis: | F28: Podpis:
A30: Základ pro DPH | C30: 21 | D30: % | F30: =C23-F32 -> 0
A31: DPH | C31: =C30 -> 21 | D31: % | F31: =ROUND(PRODUCT(F30,C31/100),0) -> 0
A32: Základ pro DPH | C32: 0 | D32: % | F32: 0
A33: DPH | C33: =C32 -> 0 | D33: % | F33: =ROUND(PRODUCT(F32,C33/100),0) -> 0
A34: CENA ZA OBJEKT CELKEM | F34: =ROUND(SUM(F30:F33),0) -> 0
A36: Poznámka :

Sheet 306 3236306.1 Rek
A1: Stavba : | C1: 3236 Bytová zóna Hruštice - Károvsko - Etapa VII. | G1: Rozpočet : | H1: 3236/306.1
A2: Objekt : | C2: 306 Prodloužení vodovodu, přípojky | G2: Prodloužení vodovodu
A4: REKAPITULACE STAVEBNÍCH DÍLŮ
B6: Stavební díl | E6: HSV | F6: PSV | G6: Dodávka | H6: Montáž | I6: HZS
A7: ='306 3236306.1 Pol'!B7 -> 1 | B7: ='306 3236306.1 Pol'!C7 -> Zemní práce | E7: ='306 3236306.1 Pol'!BA71 -> 0 | F7: ='306 3236306.1 Pol'!BB71 -> 0 | G7: ='306 3236306.1 Pol'!BC71 -> 0 | H7: ='306 3236306.1 Pol'!BD71 -> 0 | I7: ='306 3236306.1 Pol'!BE71 -> 0
A8: ='306 3236306.1 Pol'!B72 -> 45 | B8: ='306 3236306.1 Pol'!C72 -> Podkladní a vedlejší konstrukce | E8: ='306 3236306.1 Pol'!BA77 -> 0 | F8: ='306 3236306.1 Pol'!BB77 -> 0 | G8: ='306 3236306.1 Pol'!BC77 -> 0 | H8: ='306 3236306.1 Pol'!BD77 -> 0 | I8: ='306 3236306.1 Pol'!BE77 -> 0
A9: ='306 3236306.1 Pol'!B78 -> 8 | B9: ='306 3236306.1 Pol'!C78 -> Trubní vedení | E9: ='306 3236306.1 Pol'!BA365 -> 0 | F9: ='306 3236306.1 Pol'!BB365 -> 0 | G9: ='306 3236306.1 Pol'!BC365 -> 0 | H9: ='306 3236306.1 Pol'!BD365 -> 0 | I9: ='306 3236306.1 Pol'!BE365 -> 0
A10: ='306 3236306.1 Pol'!B366 -> 99 | B10: ='306 3236306.1 Pol'!C366 -> Staveništní přesun hmot | E10: ='306 3236306.1 Pol'!BA369 -> 0 | F10: ='306 3236306.1 Pol'!BB369 -> 0 | G10: ='306 3236306.1 Pol'!BC369 -> 0 | H10: ='306 3236306.1 Pol'!BD369 -> 0 | I10: ='306 3236306.1 Pol'!BE369 -> 0
B11: CELKEM OBJEKT | E11: =SUM(E7:E10) -> 0 | F11: =SUM(F7:F10) -> 0 | G11: =SUM(G7:G10) -> 0 | H11: =SUM(H7:H10) -> 0 | I11: =SUM(I7:I10) -> 0

Sheet 306 3236306.1 Pol
A1: Položkový rozpočet
A3: Stavba : | C3: 3236 Bytová zóna Hruštice - Károvsko - Etapa VII. | E3: Rozpočet: | F3: ='306 3236306.1 Rek'!H1 -> 3236/306.1
A4: Objekt : | C4: 306 Prodloužení vodovodu, přípojky | E4: ='306 3236306.1 Rek'!G2 -> Prodloužení vodovodu
A6: P.č. | B6: Číslo položky | C6: Název položky | D6: MJ | E6: množství | F6: cena / MJ | G6: celkem (Kč) | H6: Jednotková hmotnost | I6: Celková hmotnost | J6: Jednotková dem.hmot. | K6: Celková dem.hmot.
A7: Díl: | B7: 1 | C7: Zemní práce | O7: 1
A8: 1 | B8: 120001101RRX | C8: Příplatek za ztížení vykopávky v blízkosti vedení | D8: m3 | E8: 9.6614 | G8: =E8*F8 -> 0 | H8: 0 | I8: =E8*H8 -> 0 | J8: 0 | K8: =E8*J8 -> 0 | O8: 2 | AA8: 1 | AB8: 1 | AC8: 1 | AZ8: 1 | BA8: =IF(AZ8=1,G8,0) -> 0 | BB8: =IF(AZ8=2,G8,0) -> 0 | BC8: =IF(AZ8=3,G8,0) -> 0 | BD8: =IF(AZ8=4,G8,0) -> 0 | BE8: =IF(AZ8=5,G8,0) -> 0 | CA8: 1 | CB8: 1
C9: Včetně ruční dokopávky a ručního výkopu. | L9: Včetně ruční dokopávky a ručního výkopu. | O9: 3
C10: Součástí položky je i případná potřeba dočasnéhon zajištění potrubí a kabelových vedení ve výkopu. | L10: Součástí položky je i případná potřeba dočasnéhon zajištění potrubí a kabelových vedení ve výkopu. | O10: 3
C11: Výkopy: | E11: 0 | M11: Výkopy:
C12: Začátek provozního součtu | E12: 0 | M12: Začátek provozního součtu
C13: Řad "Np" TLT DN100:39,80*0,80*(1,60-0,40) | E13: 38.208 | M13: Řad "Np" TLT DN100:39,80*0,80*(1,60-0,40)
C14: Řad "Nv" TLT DN100:62,40*0,80*((1,50+1,64)/2-0,40) | E14: 58.4064 | M14: Řad "Nv" TLT DN100:62,40*0,80*((1,50+1,64)/2-0,40)
C15: Konec provozního součtu | E15: 96.6144 | M15: Konec provozního součtu
C16: V hornině tř. 3 - 4 - 10%:96,6144*0,1 | E16: 9.6614 | M16: V hornině tř. 3 - 4 - 10%:96,6144*0,1
A17: 2 | B17: 132201211RRX | C17: Hloubení rýh š.do 200 cm hor.3 do 100 m3,STROJNĚ | D17: m3 | E17: 48.3072 | G17: =E17*F17 -> 0 | H17: 0 | I17: =E17*H17 -> 0 | J17: 0 | K17: =E17*J17 -> 0 | O17: 2 | AA17: 1 | AB17: 1 | AC17: 1 | AZ17: 1 | BA17: =IF(AZ17=1,G17,0) -> 0 | BB17: =IF(AZ17=2,G17,0) -> 0 | BC17: =IF(AZ17=3,G17,0) -> 0 | BD17: =IF(AZ17=4,G17,0) -> 0 | BE17: =IF(AZ17=5,G17,0) -> 0 | CA17: 1 | CB17: 1
C18: Položka obsahuje hloubení rýh traktorbagrem, naložení výkopku na dopravní prostředek pro svislé, nebo vodorovné přemístění, popř. přemístění výkopku do 3 m (po povrchu území), případné zajištění rypadel polštáři, udržování pracoviště a ochranu výkopiště proti stékání srážkové vody z okolního terénu i s jejím odvodněním, nebo odvedením, přesekání a odstranění kořenů ve výkopišti, odstranění napadávek, urovnání dna výkopu. | L18: Položka obsahuje hloubení rýh traktorbagrem, naložení výkopku na dopravní prostředek pro svislé, nebo vodorovné přemístění, popř. přemístění výkopku do 3 m (po povrchu území), případné zajištění rypadel polštáři, udržování pracoviště a ochranu výkopiště proti stékání srážkové vody z okolního terénu i s jejím odvodněním, nebo odvedením, přesekání a odstranění kořenů ve výkopišti, odstranění napadávek, urovnání dna výkopu. | O18: 3
C19: Součástí položky je i zřízení a odstranění pažení rýhy v souladu s předpisy BOZP. | L19: Součástí položky je i zřízení a odstranění pažení rýhy v souladu s předpisy BOZP. | O19: 3
C20: Začátek provozního součtu | E20: 0 | M20: Začátek provozního součtu
C21: Řad "Np" TLT DN100:39,80*0,80*(1,60-0,40) | E21: 38.208 | M21: Řad "Np" TLT DN100:39,80*0,80*(1,60-0,40)
C22: Řad "Nv" TLT DN100:62,40*0,80*((1,50+1,64)/2-0,40) | E22: 58.4064 | M22: Řad "Nv" TLT DN100:62,40*0,80*((1,50+1,64)/2-0,40)
C23: Konec provozního součtu | E23: 96.6144 | M23: Konec provozního součtu
C24: V hornině tř. 3 - 50%:96,6144*0,5 | E24: 48.3072 | M24: V hornině tř. 3 - 50%:96,6144*0,5
A25: 3 | B25: 132201219R00 | C25: Přípl.za lepivost,hloubení rýh 200cm,hor.3,STROJNĚ | D25: m3 | E25: 24.1536 | G25: =E25*F25 -> 0 | H25: 0 | I25: =E25*H25 -> 0 | J25: 0 | K25: =E25*J25 -> 0 | O25: 2 | AA25: 1 | AB25: 1 | AC25: 1 | AZ25: 1 | BA25: =IF(AZ25=1,G25,0) -> 0 | BB25: =IF(AZ25=2,G25,0) -> 0 | BC25: =IF(AZ25=3,G25,0) -> 0 | BD25: =IF(AZ25=4,G25,0) -> 0 | BE25: =IF(AZ25=5,G25,0) -> 0 | CA25: 1 | CB25: 1
C26: Začátek provozního součtu | E26: 0 | M26: Začátek provozního součtu
C27: Řad "Np" TLT DN100:39,80*0,80*(1,60-0,40) | E27: 38.208 | M27: Řad "Np" TLT DN100:39,80*0,80*(1,60-0,40)
C28: Řad "Nv" TLT DN100:62,40*0,80*((1,50+1,64)/2-0,40) | E28: 58.4064 | M28: Řad "Nv" TLT DN100:62,40*0,80*((1,50+1,64)/2-0,40)
C29: Konec provozního součtu | E29: 96.6144 | M29: Konec provozního součtu
C30: V hornině tř. 3 - 50%:96,6144*0,5*0,5 | E30: 24.1536 | M30: V hornině tř. 3 - 50%:96,6144*0,5*0,5
A31: 4 | B31: 132301211RRX | C31: Hloubení rýh š.do 200 cm hor.4 do 100 m3, STROJNĚ | D31: m3 | E31: 48.3072 | G31: =E31*F31 -> 0 | H31: 0 | I31: =E31*H31 -> 0 | J31: 0 | K31: =E31*J31 -> 0 | O31: 2 | AA31: 1 | AB31: 1 | AC31: 1 | AZ31: 1 | BA31: =IF(AZ31=1,G31,0) -> 0 | BB31: =IF(AZ31=2,G31,0) -> 0 | BC31: =IF(AZ31=3,G31,0) -> 0 | BD31: =IF(AZ31=4,G31,0) -> 0 | BE31: =IF(AZ31=5,G31,0) -> 0 | CA31: 1 | CB31: 1
C32: Položka obsahuje hloubení rýh traktorbagrem, naložení výkopku na dopravní prostředek pro svislé, nebo vodorovné přemístění, popř. přemístění výkopku do 3 m (po povrchu území), případné zajištění rypadel polštáři, udržování pracoviště a ochranu výkopiště proti stékání srážkové vody z okolního terénu i s jejím odvodněním, nebo odvedením, přesekání a odstranění kořenů ve výkopišti, odstranění napadávek, urovnání dna výkopu. | L32: Položka obsahuje hloubení rýh traktorbagrem, naložení výkopku na dopravní prostředek pro svislé, nebo vodorovné přemístění, popř. přemístění výkopku do 3 m (po povrchu území), případné zajištění rypadel polštáři, udržování pracoviště a ochranu výkopiště proti stékání srážkové vody z okolního terénu i s jejím odvodněním, nebo odvedením, přesekání a odstranění kořenů ve výkopišti, odstranění napadávek, urovnání dna výkopu. | O32: 3
C33: Součástí položky je i zřízení a odstranění pažení rýhy v souladu s předpisy BOZP. | L33: Součástí položky je i zřízení a odstranění pažení rýhy v souladu s předpisy BOZP. | O33: 3
C34: Začátek provozního součtu | E34: 0 | M34: Začátek provozního součtu
C35: Řad "Np" TLT DN100:39,80*0,80*(1,60-0,40) | E35: 38.208 | M35: Řad "Np" TLT DN100:39,80*0,80*(1,60-0,40)
C36: Řad "Nv" TLT DN100:62,40*0,80*((1,50+1,64)/2-0,40) | E36: 58.4064 | M36: Řad "Nv" TLT DN100:62,40*0,80*((1,50+1,64)/2-0,40)
C37: Konec provozního součtu | E37: 96.6144 | M37: Konec provozního součtu
C38: V hornině tř. 4 - 50%:96,6144*0,5 | E38: 48.3072 | M38: V hornině tř. 4 - 50%:96,6144*0,5
A39: 5 | B39: 132301219R00 | C39: Přípl.za lepivost,hloubení rýh 200cm,hor.4,STROJNĚ | D39: m3 | E39: 24.1536 | G39: =E39*F39 -> 0 | H39: 0 | I39: =E39*H39 -> 0 | J39: 0 | K39: =E39*J39 -> 0 | O39: 2 | AA39: 1 | AB39: 1 | AC39: 1 | AZ39: 1 | BA39: =IF(AZ39=1,G39,0) -> 0 | BB39: =IF(AZ39=2,G39,0) -> 0 | BC39: =IF(AZ39=3,G39,0) -> 0 | BD39: =IF(AZ39=4,G39,0) -> 0 | BE39: =IF(AZ39=5,G39,0) -> 0 | CA39: 1 | CB39: 1
C40: Začátek provozního součtu | E40: 0 | M40: Začátek provozního součtu
C41: Řad "Np" TLT DN100:39,80*0,80*(1,60-0,40) | E41: 38.208 | M41: Řad "Np" TLT DN100:39,80*0,80*(1,60-0,40)
C42: Řad "Nv" TLT DN100:62,40*0,80*((1,50+1,64)/2-0,40) | E42: 58.4064 | M42: Řad "Nv" TLT DN100:62,40*0,80*((1,50+1,64)/2-0,40)
C43: Konec provozního součtu | E43: 96.6144 | M43: Konec provozního součtu
C44: V hornině tř. 4 - 50%:96,6144*0,5*0,5 | E44: 24.1536 | M44: V hornině tř. 4 - 50%:96,6144*0,5*0,5
A45: 6 | B45: 162701105RSZ | C45: Vodorovné přemístění výkopku z hor.1-7 na skládku zhotovitele | D45: m3 | E45: 66.4064 | G45: =E45*F45 -> 0 | H45: 0 | I45: =E45*H45 -> 0 | J45: 0 | K45: =E45*J45 -> 0 | O45: 2 | AA45: 1 | AB45: 1 | AC45: 1 | AZ45: 1 | BA45: =IF(AZ45=1,G45,0) -> 0 | BB45: =IF(AZ45=2,G45,0) -> 0 | BC45: =IF(AZ45=3,G45,0) -> 0 | BD45: =IF(AZ45=4,G45,0) -> 0 | BE45: =IF(AZ45=5,G45,0) -> 0 | CA45: 1 | CB45: 1
C46: Výkopy: | E46: 0 | M46: Výkopy:
C47: Začátek provozního součtu | E47: 0 | M47: Začátek provozního součtu
C48: Řad "Np" TLT DN100:39,80*0,80*(1,60-0,40) | E48: 38.208 | M48: Řad "Np" TLT DN100:39,80*0,80*(1,60-0,40)
C49: Řad "Nv" TLT DN100:62,40*0,80*((1,50+1,64)/2-0,40) | E49: 58.4064 | M49: Řad "Nv" TLT DN100:62,40*0,80*((1,50+1,64)/2-0,40)
C50: Konec provozního součtu | E50: 96.6144 | M50: Konec provozního součtu
C51: V hornině tř. 3 - 4:96,6144 | E51: 96.6144 | M51: V hornině tř. 3 - 4:96,6144
C52: Odpočet zásypů zeminou:-30,2080 | E52: -30.208 | M52: Odpočet zásypů zeminou:-30,2080
A53: 7 | B53: 174100050RAA | C53: Zásyp jam,rýh a šachet štěrkodrtí fr. 0-63 mm včetně dovozu štěrkodrtě | D53: m3 | E53: 63.9104 | G53: =E53*F53 -> 0 | H53: 1.873 | I53: =E53*H53 -> 119.7041792 | J53: 0 | K53: =E53*J53 -> 0 | O53: 2 | AA53: 1 | AB53: 1 | AC53: 1 | AZ53: 1 | BA53: =IF(AZ53=1,G53,0) -> 0 | BB53: =IF(AZ53=2,G53,0) -> 0 | BC53: =IF(AZ53=3,G53,0) -> 0 | BD53: =IF(AZ53=4,G53,0) -> 0 | BE53: =IF(AZ53=5,G53,0) -> 0 | CA53: 1 | CB53: 1
C54: Řad "Np" TLT DN100:39,80*0,80*(1,60-0,10-0,10-0,30-0,30) | E54: 25.472 | M54: Řad "Np" TLT DN100:39,80*0,80*(1,60-0,10-0,10-0,30-0,30)
C55: Řad "Nv" TLT DN100:62,40*0,80*((1,50+1,64)/2-0,10-0,10-0,30-0,30) | E55: 38.4384 | M55: Řad "Nv" TLT DN100:62,40*0,80*((1,50+1,64)/2-0,10-0,10-0,30-0,30)
A56: 8 | B56: 174101101R00 | C56: Zásyp jam, rýh, šachet se zhutněním | D56: m3 | E56: 30.208 | G56: =E56*F56 -> 0 | H56: 0 | I56: =E56*H56 -> 0 | J56: 0 | K56: =E56*J56 -> 0 | O56: 2 | AA56: 1 | AB56: 1 | AC56: 1 | AZ56: 1 | BA56: =IF(AZ56=1,G56,0) -> 0 | BB56: =IF(AZ56=2,G56,0) -> 0 | BC56: =IF(AZ56=3,G56,0) -> 0 | BD56: =IF(AZ56=4,G56,0) -> 0 | BE56: =IF(AZ56=5,G56,0) -> 0 | CA56: 1 | CB56: 1
C57: včetně strojního přemístění materiálu pro zásyp ze vzdálenosti do 10 m od okraje zásypu | L57: včetně strojního přemístění materiálu pro zásyp ze vzdálenosti do 10 m od okraje zásypu | O57: 3
C58: Řad "Np" TLT DN100:39,80*0,80*0,40 | E58: 12.736 | M58: Řad "Np" TLT DN100:39,80*0,80*0,40
C59: Řad "Nv" TLT DN100:62,40*0,80*(0,40+0,30)/2 | E59: 17.472 | M59: Řad "Nv" TLT DN100:62,40*0,80*(0,40+0,30)/2
A60: 9 | B60: 175100020RAA | C60: Obsyp potrubí štěrkopískem včetně dovozu štěrkopísku | D60: m3 | E60: 31.9013 | G60: =E60*F60 -> 0 | H60: 1.873 | I60: =E60*H60 -> 59.7511349 | J60: 0 | K60: =E60*J60 -> 0 | O60: 2 | AA60: 1 | AB60: 1 | AC60: 1 | AZ60: 1 | BA60: =IF(AZ60=1,G60,0) -> 0 | BB60: =IF(AZ60=2,G60,0) -> 0 | BC60: =IF(AZ60=3,G60,0) -> 0 | BD60: =IF(AZ60=4,G60,0) -> 0 | BE60: =IF(AZ60=5,G60,0) -> 0 | CA60: 1 | CB60: 1
C61: Řad "Np" TLT DN100:39,80*(0,80*(0,10+0,30)-0,05^2*Pi) | E61: 12.4234 | M61: Řad "Np" TLT DN100:39,80*(0,80*(0,10+0,30)-0,05^2*Pi)
C62: Řad "Nv" TLT DN100:62,40*(0,80*(0,10+0,30)-0,05^2*Pi) | E62: 19.4779 | M62: Řad "Nv" TLT DN100:62,40*(0,80*(0,10+0,30)-0,05^2*Pi)
A63: 10 | B63: 199000002R00 | C63: Poplatek za skládku horniny 1- 7 | D63: m3 | E63: 66.4064 | G63: =E63*F63 -> 0 | H63: 0 | I63: =E63*H63 -> 0 | J63: 0 | K63: =E63*J63 -> 0 | O63: 2 | AA63: 1 | AB63: 1 | AC63: 1 | AZ63: 1 | BA63: =IF(AZ63=1,G63,0) -> 0 | BB63: =IF(AZ63=2,G63,0) -> 0 | BC63: =IF(AZ63=3,G63,0) -> 0 | BD63: =IF(AZ63=4,G63,0) -> 0 | BE63: =IF(AZ63=5,G63,0) -> 0 | CA63: 1 | CB63: 1
C64: Výkopy: | E64: 0 | M64: Výkopy:
C65: Začátek provozního součtu | E65: 0 | M65: Začátek provozního součtu
C66: Řad "Np" TLT DN100:39,80*0,80*(1,60-0,40) | E66: 38.208 | M66: Řad "Np" TLT DN100:39,80*0,80*(1,60-0,40)
C67: Řad "Nv" TLT DN100:62,40*0,80*((1,50+1,64)/2-0,40) | E67: 58.4064 | M67: Řad "Nv" TLT DN100:62,40*0,80*((1,50+1,64)/2-0,40)
C68: Konec provozního součtu | E68: 96.6144 | M68: Konec provozního součtu
C69: V hornině tř. 3 - 4:96,6144 | E69: 96.6144 | M69: V hornině tř. 3 - 4:96,6144
C70: Odpočet zásypů zeminou:-30,2080 | E70: -30.208 | M70: Odpočet zásypů zeminou:-30,2080
B71: Celkem za | C71: 1 Zemní práce | G71: =SUM(G7:G70) -> 0 | I71: =SUM(I7:I70) -> 179.4553141 | K71: =SUM(K7:K70) -> 0 | O71: 4 | BA71: =SUM(BA7:BA70) -> 0 | BB71: =SUM(BB7:BB70) -> 0 | BC71: =SUM(BC7:BC70) -> 0 | BD71: =SUM(BD7:BD70) -> 0 | BE71: =SUM(BE7:BE70) -> 0
A72: Díl: | B72: 45 | C72: Podkladní a vedlejší konstrukce | O72: 1
A73: 11 | B73: 451572111R00 | C73: Lože pod potrubí z kameniva těženého 0 - 4 mm | D73: m3 | E73: 8.176 | G73: =E73*F73 -> 0 | H73: 0.43051 | I73: =E73*H73 -> 3.51984976 | J73: 0 | K73: =E73*J73 -> 0 | O73: 2 | AA73: 1 | AB73: 1 | AC73: 1 | AZ73: 1 | BA73: =IF(AZ73=1,G73,0) -> 0 | BB73: =IF(AZ73=2,G73,0) -> 0 | BC73: =IF(AZ73=3,G73,0) -> 0 | BD73: =IF(AZ73=4,G73,0) -> 0 | BE73: =IF(AZ73=5,G73,0) -> 0 | CA73: 1 | CB73: 1
C74: Řad "Np" TLT DN100:39,80*0,80*0,10 | E74: 3.184 | M74: Řad "Np" TLT DN100:39,80*0,80*0,10
C75: Řad "Nv" TLT DN100:62,40*0,80*0,10 | E75: 4.992 | M75: Řad "Nv" TLT DN100:62,40*0,80*0,10
A76: 12 | B76: 452313131R00 | C76: Bloky pro potrubí z betonu C 12/15 | D76: m3 | E76: 1.185 | G76: =E76*F76 -> 0 | H76: 2.5 | I76: =E76*H76 -> 2.9625 | J76: 0 | K76: =E76*J76 -> 0 | O76: 2 | AA76: 1 | AB76: 1 | AC76: 1 | AZ76: 1 | BA76: =IF(AZ76=1,G76,0) -> 0 | BB76: =IF(AZ76=2,G76,0) -> 0 | BC76: =IF(AZ76=3,G76,0) -> 0 | BD76: =IF(AZ76=4,G76,0) -> 0 | BE76: =IF(AZ76=5,G76,0) -> 0 | CA76: 1 | CB76: 1
B77: Celkem za | C77: 45 Podkladní a vedlejší konstrukce | G77: =SUM(G72:G76) -> 0 | I77: =SUM(I72:I76) -> 6.48234976 | K77: =SUM(K72:K76) -> 0 | O77: 4 | BA77: =SUM(BA72:BA76) -> 0 | BB77: =SUM(BB72:BB76) -> 0 | BC77: =SUM(BC72:BC76) -> 0 | BD77: =SUM(BD72:BD76) -> 0 | BE77: =SUM(BE72:BE76) -> 0
A78: Díl: | B78: 8 | C78: Trubní vedení | O78: 1
A79: 13 | B79: 851601102RT1 | C79: Montáž potrubí tlakového, tvárná litina DN 100 hrdlové, pružný spoj, ve výkopu | D79: m | E79: 102.2 | G79: =E79*F79 -> 0 | H79: 0 | I79: =E79*H79 -> 0 | J79: 0 | K79: =E79*J79 -> 0 | O79: 2 | AA79: 1 | AB79: 1 | AC79: 1 | AZ79: 1 | BA79: =IF(AZ79=1,G79,0) -> 0 | BB79: =IF(AZ79=2,G79,0) -> 0 | BC79: =IF(AZ79=3,G79,0) -> 0 | BD79: =IF(AZ79=4,G79,0) -> 0 | BE79: =IF(AZ79=5,G79,0) -> 0 | CA79: 1 | CB79: 1
C80: Řad "Np" TLT DN100:39,80 | E80: 39.8 | M80: Řad "Np" TLT DN100:39,80
C81: Řad "Nv" TLT DN100:62,40 | E81: 62.4 | M81: Řad "Nv" TLT DN100:62,40
A82: 14 | B82: 857242121R00 | C82: Montáž tvarovek litin. jednoos.přír. výkop DN 80 | D82: kus | E82: 6 | G82: =E82*F82 -> 0 | H82: 0.00022 | I82: =E82*H82 -> 0.00132 | J82: 0 | K82: =E82*J82 -> 0 | O82: 2 | AA82: 1 | AB82: 1 | AC82: 1 | AZ82: 1 | BA82: =IF(AZ82=1,G82,0) -> 0 | BB82: =IF(AZ82=2,G82,0) -> 0 | BC82: =IF(AZ82=3,G82,0) -> 0 | BD82: =IF(AZ82=4,G82,0) -> 0 | BE82: =IF(AZ82=5,G82,0) -> 0 | CA82: 1 | CB82: 1
C83: Položka je určena pro montáž litinových tvarovek na potrubí litinovém tlakovém přírubovém jednoosých v otevřeném výkopu, v otevřeném kanálu nebo v šachtě. | L83: Položka je určena pro montáž litinových tvarovek na potrubí litinovém tlakovém přírubovém jednoosých v otevřeném výkopu, v otevřeném kanálu nebo v šachtě. | O83: 3
C84: Součástí položky je i dodávka nerezových spojovacích prvků (šrouby, podložky, matky) a kompletního obandážování spojů. | L84: Součástí položky je i dodávka nerezových spojovacích prvků (šrouby, podložky, matky) a kompletního obandážování spojů. | O84: 3
C85: Řad "Np" TLT DN100: | E85: 0 | M85: Řad "Np" TLT DN100:
C86: Řad "Nv" TLT DN100: | E86: 0 | M86: Řad "Nv" TLT DN100:
C87: N DN80:2 | E87: 2 | M87: N DN80:2
C88: PPL DN80:3 | E88: 3 | M88: PPL DN80:3
C89: Q DN80:1 | E89: 1 | M89: Q DN80:1
A90: 15 | B90: 857262121R00 | C90: Montáž tvarovek litin. jednoos. přír. výkop DN 100 | D90: kus | E90: 5 | G90: =E90*F90 -> 0 | H90: 0.00041 | I90: =E90*H90 -> 0.00205 | J90: 0 | K90: =E90*J90 -> 0 | O90: 2 | AA90: 1 | AB90: 1 | AC90: 1 | AZ90: 1 | BA90: =IF(AZ90=1,G90,0) -> 0 | BB90: =IF(AZ90=2,G90,0) -> 0 | BC90: =IF(AZ90=3,G90,0) -> 0 | BD90: =IF(AZ90=4,G90,0) -> 0 | BE90: =IF(AZ90=5,G90,0) -> 0 | CA90: 1 | CB90: 1
C91: Položka je určena pro montáž litinových tvarovek na potrubí litinovém tlakovém přírubovém jednoosých v otevřeném výkopu, v otevřeném kanálu nebo v šachtě. | L91: Položka je určena pro montáž litinových tvarovek na potrubí litinovém tlakovém přírubovém jednoosých v otevřeném výkopu, v otevřeném kanálu nebo v šachtě. | O91: 3
C92: Součástí položky je i dodávka nerezových spojovacích prvků (šrouby, podložky, matky) a kompletního obandážování spojů. | L92: Součástí položky je i dodávka nerezových spojovacích prvků (šrouby, podložky, matky) a kompletního obandážování spojů. | O92: 3
C93: Řad "Np" TLT DN100: | E93: 0 | M93: Řad "Np" TLT DN100:
C94: Řad "Nv" TLT DN100: | E94: 0 | M94: Řad "Nv" TLT DN100:
C95: FFR DN100/80:1 | E95: 1 | M95: FFR DN100/80:1
C96: EU DN100:4 | E96: 4 | M96: EU DN100:4
A97: 16 | B97: 891163111R00 | C97: Montáž ventilů hlavních pro přípojky DN 25 | D97: kus | E97: 14 | G97: =E97*F97 -> 0 | H97: 2e-05 | I97: =E97*H97 -> 0.00028 | J97: 0 | K97: =E97*J97 -> 0 | O97: 2 | AA97: 1 | AB97: 1 | AC97: 1 | AZ97: 1 | BA97: =IF(AZ97=1,G97,0) -> 0 | BB97: =IF(AZ97=2,G97,0) -> 0 | BC97: =IF(AZ97=3,G97,0) -> 0 | BD97: =IF(AZ97=4,G97,0) -> 0 | BE97: =IF(AZ97=5,G97,0) -> 0 | CA97: 1 | CB97: 1
C98: Řad "Np" TLT DN100: | E98: 0 | M98: Řad "Np" TLT DN100:
C99: Řad "Nv" TLT DN100: | E99: 0 | M99: Řad "Nv" TLT DN100:
C100: Vp2 PE D 32x3,0 mm:1 | E100: 1 | M100: Vp2 PE D 32x3,0 mm:1
C101: Vp3 PE D 32x3,0 mm:1 | E101: 1 | M101: Vp3 PE D 32x3,0 mm:1
C102: Vp4 PE D 32x3,0 mm:1 | E102: 1 | M102: Vp4 PE D 32x3,0 mm:1
C103: Vp5 PE D 32x3,0 mm:1 | E103: 1 | M103: Vp5 PE D 32x3,0 mm:1
C104: Vp6 PE D 32x3,0 mm:1 | E104: 1 | M104: Vp6 PE D 32x3,0 mm:1
C105: Vs1 PE D 32x3,0 mm:1 | E105: 1 | M105: Vs1 PE D 32x3,0 mm:1
C106: Vs2 PE D 32x3,0 mm:1 | E106: 1 | M106: Vs2 PE D 32x3,0 mm:1
C107: Vs3 PE D 32x3,0 mm:1 | E107: 1 | M107: Vs3 PE D 32x3,0 mm:1
C108: Vs4 PE D 32x3,0 mm:1 | E108: 1 | M108: Vs4 PE D 32x3,0 mm:1
C109: Vs5 PE D 32x3,0 mm:1 | E109: 1 | M109: Vs5 PE D 32x3,0 mm:1
C110: Vs6 PE D 32x3,0 mm:1 | E110: 1 | M110: Vs6 PE D 32x3,0 mm:1
C111: Vs7 PE D 32x3,0 mm:1 | E111: 1 | M111: Vs7 PE D 32x3,0 mm:1
C112: Vs8 PE D 32x3,0 mm:1 | E112: 1 | M112: Vs8 PE D 32x3,0 mm:1
C113: Vs9 PE D 32x3,0 mm:1 | E113: 1 | M113: Vs9 PE D 32x3,0 mm:1
A114: 17 | B114: 891241111R00 | C114: Montáž vodovodních šoupátek ve výkopu DN 80 | D114: kus | E114: 1 | G114: =E114*F114 -> 0 | H114: 0.00022 | I114: =E114*H114 -> 0.00022 | J114: 0 | K114: =E114*J114 -> 0 | O114: 2 | AA114: 1 | AB114: 1 | AC114: 1 | AZ114: 1 | BA114: =IF(AZ114=1,G114,0) -> 0 | BB114: =IF(AZ114=2,G114,0) -> 0 | BC114: =IF(AZ114=3,G114,0) -> 0 | BD114: =IF(AZ114=4,G114,0) -> 0 | BE114: =IF(AZ114=5,G114,0) -> 0 | CA114: 1 | CB114: 1
C115: Řad "Np" TLT DN100: | E115: 0 | M115: Řad "Np" TLT DN100:
C116: Řad "Nv" TLT DN100: | E116: 0 | M116: Řad "Nv" TLT DN100:
C117: Š DN80:1 | E117: 1 | M117: Š DN80:1
A118: 18 | B118: 891243321R00 | C118: Montáž ventilů odvzdušňovacích přírub. DN 80 | D118: kus | E118: 1 | G118: =E118*F118 -> 0 | H118: 0.00079 | I118: =E118*H118 -> 0.00079 | J118: 0 | K118: =E118*J118 -> 0 | O118: 2 | AA118: 1 | AB118: 1 | AC118: 1 | AZ118: 1 | BA118: =IF(AZ118=1,G118,0) -> 0 | BB118: =IF(AZ118=2,G118,0) -> 0 | BC118: =IF(AZ118=3,G118,0) -> 0 | BD118: =IF(AZ118=4,G118,0) -> 0 | BE118: =IF(AZ118=5,G118,0) -> 0 | CA118: 1 | CB118: 1
C119: Řad "Np" TLT DN100: | E119: 0 | M119: Řad "Np" TLT DN100:
C120: Řad "Nv" TLT DN100: | E120: 0 | M120: Řad "Nv" TLT DN100:
C121: ZOH DN80/1,25:1 | E121: 1 | M121: ZOH DN80/1,25:1
A122: 19 | B122: 891247111R00 | C122: Montáž hydrantů podzemních DN 80 | D122: kus | E122: 1 | G122: =E122*F122 -> 0 | H122: 0.00011 | I122: =E122*H122 -> 0.00011 | J122: 0 | K122: =E122*J122 -> 0 | O122: 2 | AA122: 1 | AB122: 1 | AC122: 1 | AZ122: 1 | BA122: =IF(AZ122=1,G122,0) -> 0 | BB122: =IF(AZ122=2,G122,0) -> 0 | BC122: =IF(AZ122=3,G122,0) -> 0 | BD122: =IF(AZ122=4,G122,0) -> 0 | BE122: =IF(AZ122=5,G122,0) -> 0 | CA122: 1 | CB122: 1
C123: Řad "Np" TLT DN100: | E123: 0 | M123: Řad "Np" TLT DN100:
C124: Řad "Nv" TLT DN100: | E124: 0 | M124: Řad "Nv" TLT DN100:
C125: Hp DN80/1,5:1 | E125: 1 | M125: Hp DN80/1,5:1
A126: 20 | B126: 891261111R00 | C126: Montáž vodovodních šoupátek ve výkopu DN 100 | D126: kus | E126: 3 | G126: =E126*F126 -> 0 | H126: 0.00041 | I126: =E126*H126 -> 0.00123 | J126: 0 | K126: =E126*J126 -> 0 | O126: 2 | AA126: 1 | AB126: 1 | AC126: 1 | AZ126: 1 | BA126: =IF(AZ126=1,G126,0) -> 0 | BB126: =IF(AZ126=2,G126,0) -> 0 | BC126: =IF(AZ126=3,G126,0) -> 0 | BD126: =IF(AZ126=4,G126,0) -> 0 | BE126: =IF(AZ126=5,G126,0) -> 0 | CA126: 1 | CB126: 1
C127: Položka je určena pro montáž vodovodních šoupátek v otevřeném výkopu nebo v šachtách s osazením zemní soupravy (bez poklopů). V položce jsou zakalkulovány i náklady na vytvoření otvorů ve stropech šachet pro prostup zemních souprav šoupátek. | L127: Položka je určena pro montáž vodovodních šoupátek v otevřeném výkopu nebo v šachtách s osazením zemní soupravy (bez poklopů). V položce jsou zakalkulovány i náklady na vytvoření otvorů ve stropech šachet pro prostup zemních souprav šoupátek. | O127: 3
C128: Řad "Np" TLT DN100: | E128: 0 | M128: Řad "Np" TLT DN100:
C129: Řad "Nv" TLT DN100: | E129: 0 | M129: Řad "Nv" TLT DN100:
C130: Š DN100:3 | E130: 3 | M130: Š DN100:3
A131: 21 | B131: 891269111R00 | C131: Montáž navrtávacích pasů DN 100 | D131: kus | E131: 14 | G131: =E131*F131 -> 0 | H131: 0 | I131: =E131*H131 -> 0 | J131: 0 | K131: =E131*J131 -> 0 | O131: 2 | AA131: 1 | AB131: 1 | AC131: 1 | AZ131: 1 | BA131: =IF(AZ131=1,G131,0) -> 0 | BB131: =IF(AZ131=2,G131,0) -> 0 | BC131: =IF(AZ131=3,G131,0) -> 0 | BD131: =IF(AZ131=4,G131,0) -> 0 | BE131: =IF(AZ131=5,G131,0) -> 0 | CA131: 1 | CB131: 1
C132: Položka je určena pro montáž navrtávacích pasů s ventilem na potrubí z trub osinkocementových, litinových, ocelových nebo plastckých hmot. | L132: Položka je určena pro montáž navrtávacích pasů s ventilem na potrubí z trub osinkocementových, litinových, ocelových nebo plastckých hmot. | O132: 3
C133: Řad "Np" TLT DN100: | E133: 0 | M133: Řad "Np" TLT DN100:
C134: Řad "Nv" TLT DN100: | E134: 0 | M134: Řad "Nv" TLT DN100:
C135: Vp2 PE D 32x3,0 mm:1 | E135: 1 | M135: Vp2 PE D 32x3,0 mm:1
C136: Vp3 PE D 32x3,0 mm:1 | E136: 1 | M136: Vp3 PE D 32x3,0 mm:1
C137: Vp4 PE D 32x3,0 mm:1 | E137: 1 | M137: Vp4 PE D 32x3,0 mm:1
C138: Vp5 PE D 32x3,0 mm:1 | E138: 1 | M138: Vp5 PE D 32x3,0 mm:1
C139: Vp6 PE D 32x3,0 mm:1 | E139: 1 | M139: Vp6 PE D 32x3,0 mm:1
C140: Vs1 PE D 32x3,0 mm:1 | E140: 1 | M140: Vs1 PE D 32x3,0 mm:1
C141: Vs2 PE D 32x3,0 mm:1 | E141: 1 | M141: Vs2 PE D 32x3,0 mm:1
C142: Vs3 PE D 32x3,0 mm:1 | E142: 1 | M142: Vs3 PE D 32x3,0 mm:1
C143: Vs4 PE D 32x3,0 mm:1 | E143: 1 | M143: Vs4 PE D 32x3,0 mm:1
C144: Vs5 PE D 32x3,0 mm:1 | E144: 1 | M144: Vs5 PE D 32x3,0 mm:1
C145: Vs6 PE D 32x3,0 mm:1 | E145: 1 | M145: Vs6 PE D 32x3,0 mm:1
C146: Vs7 PE D 32x3,0 mm:1 | E146: 1 | M146: Vs7 PE D 32x3,0 mm:1
C147: Vs8 PE D 32x3,0 mm:1 | E147: 1 | M147: Vs8 PE D 32x3,0 mm:1
C148: Vs9 PE D 32x3,0 mm:1 | E148: 1 | M148: Vs9 PE D 32x3,0 mm:1
A149: 22 | B149: 892271111R00 | C149: Tlaková zkouška vodovodního potrubí DN 125 včetně zajištění konců potrubí | D149: m | E149: 133 | G149: =E149*F149 -> 0 | H149: 0 | I149: =E149*H149 -> 0 | J149: 0 | K149: =E149*J149 -> 0 | O149: 2 | AA149: 1 | AB149: 1 | AC149: 1 | AZ149: 1 | BA149: =IF(AZ149=1,G149,0) -> 0 | BB149: =IF(AZ149=2,G149,0) -> 0 | BC149: =IF(AZ149=3,G149,0) -> 0 | BD149: =IF(AZ149=4,G149,0) -> 0 | BE149: =IF(AZ149=5,G149,0) -> 0 | CA149: 1 | CB149: 1
C150: V položce jsou započteny náklady na přísun, montáž, demontáž a odsun zkoušecího čerpadla, napuštění tlakovou vodou a dodání vody pro tlakovou zkoušku. | L150: V položce jsou započteny náklady na přísun, montáž, demontáž a odsun zkoušecího čerpadla, napuštění tlakovou vodou a dodání vody pro tlakovou zkoušku. | O150: 3
C151: Řad "Np" TLT DN100:39,80 | E151: 39.8 | M151: Řad "Np" TLT DN100:39,80
C152: Řad "Nv" TLT DN100:62,40 | E152: 62.4 | M152: Řad "Nv" TLT DN100:62,40
C153: Přeložka řadu "V" TLT DN100:30,80 | E153: 30.8 | M153: Přeložka řadu "V" TLT DN100:30,80
A154: 23 | B154: 892273111R00 | C154: Desinfekce vodovodního potrubí DN 125 | D154: m | E154: 102.2 | G154: =E154*F154 -> 0 | H154: 0 | I154: =E154*H154 -> 0 | J154: 0 | K154: =E154*J154 -> 0 | O154: 2 | AA154: 1 | AB154: 1 | AC154: 1 | AZ154: 1 | BA154: =IF(AZ154=1,G154,0) -> 0 | BB154: =IF(AZ154=2,G154,0) -> 0 | BC154: =IF(AZ154=3,G154,0) -> 0 | BD154: =IF(AZ154=4,G154,0) -> 0 | BE154: =IF(AZ154=5,G154,0) -> 0 | CA154: 1 | CB154: 1
C155: V položce jsou zakalkulovány náklady na napuštění a vypuštění vody, dodání vody a desinfekčního prostředku a na bakteriologický rozbor vody. | L155: V položce jsou zakalkulovány náklady na napuštění a vypuštění vody, dodání vody a desinfekčního prostředku a na bakteriologický rozbor vody. | O155: 3
C156: Řad "Np" TLT DN100:39,80 | E156: 39.8 | M156: Řad "Np" TLT DN100:39,80
C157: Řad "Nv" TLT DN100:62,40 | E157: 62.4 | M157: Řad "Nv" TLT DN100:62,40
A158: 24 | B158: 899401111R00 | C158: Osazení poklopů litinových ventilových | D158: kus | E158: 14 | G158: =E158*F158 -> 0 | H158: 0.06383 | I158: =E158*H158 -> 0.89362 | J158: 0 | K158: =E158*J158 -> 0 | O158: 2 | AA158: 1 | AB158: 1 | AC158: 1 | AZ158: 1 | BA158: =IF(AZ158=1,G158,0) -> 0 | BB158: =IF(AZ158=2,G158,0) -> 0 | BC158: =IF(AZ158=3,G158,0) -> 0 | BD158: =IF(AZ158=4,G158,0) -> 0 | BE158: =IF(AZ158=5,G158,0) -> 0 | CA158: 1 | CB158: 1
C159: V položkách osazení poklopů jsou zakalkulovány i náklady na jejich podezdění nebo osazení poklopů samonivelačních. | L159: V položkách osazení poklopů jsou zakalkulovány i náklady na jejich podezdění nebo osazení poklopů samonivelačních. | O159: 3
C160: Řad "Np" TLT DN100: | E160: 0 | M160: Řad "Np" TLT DN100:
C161: Řad "Nv" TLT DN100: | E161: 0 | M161: Řad "Nv" TLT DN100:
C162: Pro Vp2 PE D 32x3,0 mm:1 | E162: 1 | M162: Pro Vp2 PE D 32x3,0 mm:1
C163: Pro Vp3 PE D 32x3,0 mm:1 | E163: 1 | M163: Pro Vp3 PE D 32x3,0 mm:1
C164: Pro Vp4 PE D 32x3,0 mm:1 | E164: 1 | M164: Pro Vp4 PE D 32x3,0 mm:1
C165: Pro Vp5 PE D 32x3,0 mm:1 | E165: 1 | M165: Pro Vp5 PE D 32x3,0 mm:1
C166: Pro Vp6 PE D 32x3,0 mm:1 | E166: 1 | M166: Pro Vp6 PE D 32x3,0 mm:1
C167: Pro Vs1 PE D 32x3,0 mm:1 | E167: 1 | M167: Pro Vs1 PE D 32x3,0 mm:1
C168: Pro Vs2 PE D 32x3,0 mm:1 | E168: 1 | M168: Pro Vs2 PE D 32x3,0 mm:1
C169: Pro Vs3 PE D 32x3,0 mm:1 | E169: 1 | M169: Pro Vs3 PE D 32x3,0 mm:1
C170: Pro Vs4 PE D 32x3,0 mm:1 | E170: 1 | M170: Pro Vs4 PE D 32x3,0 mm:1
C171: Pro Vs5 PE D 32x3,0 mm:1 | E171: 1 | M171: Pro Vs5 PE D 32x3,0 mm:1
C172: Pro Vs6 PE D 32x3,0 mm:1 | E172: 1 | M172: Pro Vs6 PE D 32x3,0 mm:1
C173: Pro Vs7 PE D 32x3,0 mm:1 | E173: 1 | M173: Pro Vs7 PE D 32x3,0 mm:1
C174: Pro Vs8 PE D 32x3,0 mm:1 | E174: 1 | M174: Pro Vs8 PE D 32x3,0 mm:1
C175: Pro Vs9 PE D 32x3,0 mm:1 | E175: 1 | M175: Pro Vs9 PE D 32x3,0 mm:1
A176: 25 | B176: 899401112R00 | C176: Osazení poklopů litinových šoupátkových | D176: kus | E176: 4 | G176: =E176*F176 -> 0 | H176: 0.11178 | I176: =E176*H176 -> 0.44712 | J176: 0 | K176: =E176*J176 -> 0 | O176: 2 | AA176: 1 | AB176: 1 | AC176: 1 | AZ176: 1 | BA176: =IF(AZ176=1,G176,0) -> 0 | BB176: =IF(AZ176=2,G176,0) -> 0 | BC176: =IF(AZ176=3,G176,0) -> 0 | BD176: =IF(AZ176=4,G176,0) -> 0 | BE176: =IF(AZ176=5,G176,0) -> 0 | CA176: 1 | CB176: 1
C177: V položkách osazení poklopů jsou zakalkulovány i náklady na jejich podezdění nebo osazení poklopů samonivelačních. | L177: V položkách osazení poklopů jsou zakalkulovány i náklady na jejich podezdění nebo osazení poklopů samonivelačních. | O177: 3
C178: Řad "Np" TLT DN100: | E178: 0 | M178: Řad "Np" TLT DN100:
C179: Řad "Nv" TLT DN100: | E179: 0 | M179: Řad "Nv" TLT DN100:
C180: Pro Š DN80:1 | E180: 1 | M180: Pro Š DN80:1
C181: Pro Š DN100:3 | E181: 3 | M181: Pro Š DN100:3
A182: 26 | B182: 899401113R00 | C182: Osazení poklopů litinových hydrantových | D182: kus | E182: 2 | G182: =E182*F182 -> 0 | H182: 0.32906 | I182: =E182*H182 -> 0.65812 | J182: 0 | K182: =E182*J182 -> 0 | O182: 2 | AA182: 1 | AB182: 1 | AC182: 1 | AZ182: 1 | BA182: =IF(AZ182=1,G182,0) -> 0 | BB182: =IF(AZ182=2,G182,0) -> 0 | BC182: =IF(AZ182=3,G182,0) -> 0 | BD182: =IF(AZ182=4,G182,0) -> 0 | BE182: =IF(AZ182=5,G182,0) -> 0 | CA182: 1 | CB182: 1
C183: V položkách osazení poklopů jsou zakalkulovány i náklady na jejich podezdění nebo osazení poklopů samonivelačních. | L183: V položkách osazení poklopů jsou zakalkulovány i náklady na jejich podezdění nebo osazení poklopů samonivelačních. | O183: 3
C184: Řad "Np" TLT DN100: | E184: 0 | M184: Řad "Np" TLT DN100:
C185: Řad "Nv" TLT DN100: | E185: 0 | M185: Řad "Nv" TLT DN100:
C186: Pro Hp DN80/1,5:1 | E186: 1 | M186: Pro Hp DN80/1,5:1
C187: Pro ZOH DN80/1,25:1 | E187: 1 | M187: Pro ZOH DN80/1,25:1
A188: 27 | B188: 899711122R00 | C188: Fólie výstražná z PVC, šířka 30 cm | D188: m | E188: 102.2 | G188: =E188*F188 -> 0 | H188: 0 | I188: =E188*H188 -> 0 | J188: 0 | K188: =E188*J188 -> 0 | O188: 2 | AA188: 1 | AB188: 1 | AC188: 1 | AZ188: 1 | BA188: =IF(AZ188=1,G188,0) -> 0 | BB188: =IF(AZ188=2,G188,0) -> 0 | BC188: =IF(AZ188=3,G188,0) -> 0 | BD188: =IF(AZ188=4,G188,0) -> 0 | BE188: =IF(AZ188=5,G188,0) -> 0 | CA188: 1 | CB188: 1
C189: Řad "Np" TLT DN100:39,80 | E189: 39.8 | M189: Řad "Np" TLT DN100:39,80
C190: Řad "Nv" TLT DN100:62,40 | E190: 62.4 | M190: Řad "Nv" TLT DN100:62,40
A191: 28 | B191: 899713111RRX | C191: Orientační tabulky na sloupku ocelovém, betonovém | D191: kus | E191: 6 | G191: =E191*F191 -> 0 | H191: 0.00024 | I191: =E191*H191 -> 0.00144 | J191: 0 | K191: =E191*J191 -> 0 | O191: 2 | AA191: 1 | AB191: 1 | AC191: 1 | AZ191: 1 | BA191: =IF(AZ191=1,G191,0) -> 0 | BB191: =IF(AZ191=2,G191,0) -> 0 | BC191: =IF(AZ191=3,G191,0) -> 0 | BD191: =IF(AZ191=4,G191,0) -> 0 | BE191: =IF(AZ191=5,G191,0) -> 0 | CA191: 1 | CB191: 1
C192: Položka platí pro orientační tabulky na vodovodních a kanalizačních řadech. V položce jsou zakalkulovány náklady na dodání a připevnění tabulky a na osazení sloupku. V položce jsou zakalkulovány náklady na zemní práce a na dodání sloupků (betonových nebo ocelových s betonovými patkami) | L192: Položka platí pro orientační tabulky na vodovodních a kanalizačních řadech. V položce jsou zakalkulovány náklady na dodání a připevnění tabulky a na osazení sloupku. V položce jsou zakalkulovány náklady na zemní práce a na dodání sloupků (betonových nebo ocelových s betonovými patkami) | O192: 3
C193: Řad "Np" TLT DN100: | E193: 0 | M193: Řad "Np" TLT DN100:
C194: Řad "Nv" TLT DN100: | E194: 0 | M194: Řad "Nv" TLT DN100:
C195: Pro Š DN80:1 | E195: 1 | M195: Pro Š DN80:1
C196: Pro Š DN100:3 | E196: 3 | M196: Pro Š DN100:3
C197: Pro Hp DN80/1,5:1 | E197: 1 | M197: Pro Hp DN80/1,5:1
C198: Pro ZOH DN80/1,25:1 | E198: 1 | M198: Pro ZOH DN80/1,25:1
A199: 29 | B199: 899731114R00 | C199: Vodič signalizační CYY 6 mm2 | D199: m | E199: 178.2 | G199: =E199*F199 -> 0 | H199: 8e-05 | I199: =E199*H199 -> 0.014256 | J199: 0 | K199: =E199*J199 -> 0 | O199: 2 | AA199: 1 | AB199: 1 | AC199: 1 | AZ199: 1 | BA199: =IF(AZ199=1,G199,0) -> 0 | BB199: =IF(AZ199=2,G199,0) -> 0 | BC199: =IF(AZ199=3,G199,0) -> 0 | BD199: =IF(AZ199=4,G199,0) -> 0 | BE199: =IF(AZ199=5,G199,0) -> 0 | CA199: 1 | CB199: 1
C200: Součástí položky je zajištění proměření vodiče a výchozí revize. | L200: Součástí položky je zajištění proměření vodiče a výchozí revize. | O200: 3
C201: Řad "Np" TLT DN100:39,80 | E201: 39.8 | M201: Řad "Np" TLT DN100:39,80
C202: Řad "Nv" TLT DN100:62,40 | E202: 62.4 | M202: Řad "Nv" TLT DN100:62,40
... 167 more rows

Sheet 306 3236306.2 KL
A1: POLOŽKOVÝ ROZPOČET
A2: Rozpočet | C2: 3236/306.2 | D2: Prodloužení vodovodu - přípojky | F2: JKSO | G2: 827.11.A1
A4: Objekt | F4: SKP
A5: 306 | C5: Prodloužení vodovodu, přípojky | F5: Měrná jednotka | G5: m
A6: Stavba | F6: Počet jednotek | G6: 0
A7: 3236 | C7: Bytová zóna Hruštice - Károvsko - Etapa VII. | F7: Náklady na m.j. | G7: =IF(G6=0,,ROUND((F30+F32)/G6,1)) -> 0
A8: Projektant | C8: PROFES PROJEKT spol.s r.o. | F8: Typ rozpočtu
A9: Zpracovatel projektu
A10: Objednatel | C10: Město TURNOV
A11: Dodavatel | C11: . | F11: Zakázkové číslo
A12: Rozpočtoval | F12: Počet listů
A13: ROZPOČTOVÉ NÁKLADY
A14: Základní rozpočtové náklady
B15: HSV celkem | C15: ='306 3236306.2 Rek'!E11 -> 0
A16: Z | B16: PSV celkem | C16: ='306 3236306.2 Rek'!F11 -> 0
A17: R | B17: M práce celkem | C17: ='306 3236306.2 Rek'!H11 -> 0
A18: N | B18: M dodávky celkem | C18: ='306 3236306.2 Rek'!G11 -> 0
A19: ZRN celkem | C19: =SUM(C15:C18) -> 0
A21: HZS | C21: ='306 3236306.2 Rek'!I11 -> 0
A22: ZRN+HZS | C22: =C19+C21 -> 0
A23: ZRN+ost.náklady+HZS | C23: =C22+G23 -> 0
A24: Vypracoval | D24: Za zhotovitele | F24: Za objednatele
A25: Jméno : | D25: Jméno : | F25: Jméno :
A26: Datum : | D26: Datum : | F26: Datum :
A28: Podpis : | D28: Podpis: | F28: Podpis:
A30: Základ pro DPH | C30: 21 | D30: % | F30: =C23-F32 -> 0
A31: DPH | C31: =C30 -> 21 | D31: % | F31: =ROUND(PRODUCT(F30,C31/100),0) -> 0
A32: Základ pro DPH | C32: 0 | D32: % | F32: 0
A33: DPH | C33: =C32 -> 0 | D33: % | F33: =ROUND(PRODUCT(F32,C33/100),0) -> 0
A34: CENA ZA OBJEKT CELKEM | F34: =ROUND(SUM(F30:F33),0) -> 0
A36: Poznámka :

Sheet 306 3236306.2 Rek
A1: Stavba : | C1: 3236 Bytová zóna Hruštice - Károvsko - Etapa VII. | G1: Rozpočet : | H1: 3236/306.2
A2: Objekt : | C2: 306 Prodloužení vodovodu, přípojky | G2: Prodloužení vodovodu - přípojky
A4: REKAPITULACE STAVEBNÍCH DÍLŮ
B6: Stavební díl | E6: HSV | F6: PSV | G6: Dodávka | H6: Montáž | I6: HZS
A7: ='306 3236306.2 Pol'!B7 -> 1 | B7: ='306 3236306.2 Pol'!C7 -> Zemní práce | E7: ='306 3236306.2 Pol'!BA230 -> 0 | F7: ='306 3236306.2 Pol'!BB230 -> 0 | G7: ='306 3236306.2 Pol'!BC230 -> 0 | H7: ='306 3236306.2 Pol'!BD230 -> 0 | I7: ='306 3236306.2 Pol'!BE230 -> 0
A8: ='306 3236306.2 Pol'!B231 -> 45 | B8: ='306 3236306.2 Pol'!C231 -> Podkladní a vedlejší konstrukce | E8: ='306 3236306.2 Pol'!BA249 -> 0 | F8: ='306 3236306.2 Pol'!BB249 -> 0 | G8: ='306 3236306.2 Pol'!BC249 -> 0 | H8: ='306 3236306.2 Pol'!BD249 -> 0 | I8: ='306 3236306.2 Pol'!BE249 -> 0
A9: ='306 3236306.2 Pol'!B250 -> 8 | B9: ='306 3236306.2 Pol'!C250 -> Trubní vedení | E9: ='306 3236306.2 Pol'!BA412 -> 0 | F9: ='306 3236306.2 Pol'!BB412 -> 0 | G9: ='306 3236306.2 Pol'!BC412 -> 0 | H9: ='306 3236306.2 Pol'!BD412 -> 0 | I9: ='306 3236306.2 Pol'!BE412 -> 0
A10: ='306 3236306.2 Pol'!B413 -> 99 | B10: ='306 3236306.2 Pol'!C413 -> Staveništní přesun hmot | E10: ='306 3236306.2 Pol'!BA416 -> 0 | F10: ='306 3236306.2 Pol'!BB416 -> 0 | G10: ='306 3236306.2 Pol'!BC416 -> 0 | H10: ='306 3236306.2 Pol'!BD416 -> 0 | I10: ='306 3236306.2 Pol'!BE416 -> 0
B11: CELKEM OBJEKT | E11: =SUM(E7:E10) -> 0 | F11: =SUM(F7:F10) -> 0 | G11: =SUM(G7:G10) -> 0 | H11: =SUM(H7:H10) -> 0 | I11: =SUM(I7:I10) -> 0

Sheet 306 3236306.2 Pol
A1: Položkový rozpočet
A3: Stavba : | C3: 3236 Bytová zóna Hruštice - Károvsko - Etapa VII. | E3: Rozpočet: | F3: ='306 3236306.2 Rek'!H1 -> 3236/306.2
A4: Objekt : | C4: 306 Prodloužení vodovodu, přípojky | E4: ='306 3236306.2 Rek'!G2 -> Prodloužení vodovodu - přípojky
A6: P.č. | B6: Číslo položky | C6: Název položky | D6: MJ | E6: množství | F6: cena / MJ | G6: celkem (Kč) | H6: Jednotková hmotnost | I6: Celková hmotnost | J6: Jednotková dem.hmot. | K6: Celková dem.hmot.
A7: Díl: | B7: 1 | C7: Zemní práce | O7: 1
A8: 1 | B8: 120001101RRX | C8: Příplatek za ztížení vykopávky v blízkosti vedení | D8: m3 | E8: 15.9276 | G8: =E8*F8 -> 0 | H8: 0 | I8: =E8*H8 -> 0 | J8: 0 | K8: =E8*J8 -> 0 | O8: 2 | AA8: 1 | AB8: 1 | AC8: 1 | AZ8: 1 | BA8: =IF(AZ8=1,G8,0) -> 0 | BB8: =IF(AZ8=2,G8,0) -> 0 | BC8: =IF(AZ8=3,G8,0) -> 0 | BD8: =IF(AZ8=4,G8,0) -> 0 | BE8: =IF(AZ8=5,G8,0) -> 0 | CA8: 1 | CB8: 1
C9: Včetně ruční dokopávky a ručního výkopu. | L9: Včetně ruční dokopávky a ručního výkopu. | O9: 3
C10: Součástí položky je i případná potřeba dočasnéhon zajištění potrubí a kabelových vedení ve výkopu. | L10: Součástí položky je i případná potřeba dočasnéhon zajištění potrubí a kabelových vedení ve výkopu. | O10: 3
C11: Výkopy: | E11: 0 | M11: Výkopy:
C12: Začátek provozního součtu | E12: 0 | M12: Začátek provozního součtu
C13: Řad "Np" TLT DN100: | E13: 0 | M13: Řad "Np" TLT DN100:
C14: Řad "Nv" TLT DN100: | E14: 0 | M14: Řad "Nv" TLT DN100:
C15: Vp2 PE D 32x3,0 mm:6,40*0,80*(1,60-0,40)+1,80*1,80*(2,00-0,15) | E15: 12.138 | M15: Vp2 PE D 32x3,0 mm:6,40*0,80*(1,60-0,40)+1,80*1,80*(2,00-0,15)
C16: Vp3 PE D 32x3,0 mm:6,40*0,80*(1,60-0,40)+1,80*1,80*(2,00-0,15) | E16: 12.138 | M16: Vp3 PE D 32x3,0 mm:6,40*0,80*(1,60-0,40)+1,80*1,80*(2,00-0,15)
C17: Vp4 PE D 32x3,0 mm:3,00*0,80*(1,60-0,40)+1,80*1,80*(2,00-0,15) | E17: 8.874 | M17: Vp4 PE D 32x3,0 mm:3,00*0,80*(1,60-0,40)+1,80*1,80*(2,00-0,15)
C18: Vp5 PE D 32x3,0 mm:5,20*0,80*(1,60-0,40)+1,80*1,80*(2,00-0,15) | E18: 10.986 | M18: Vp5 PE D 32x3,0 mm:5,20*0,80*(1,60-0,40)+1,80*1,80*(2,00-0,15)
C19: Vp6 PE D 32x3,0 mm:5,20*0,80*(1,60-0,40)+1,80*1,80*(2,00-0,15) | E19: 10.986 | M19: Vp6 PE D 32x3,0 mm:5,20*0,80*(1,60-0,40)+1,80*1,80*(2,00-0,15)
C20: Vs1 PE D 32x3,0 mm:7,10*0,80*(1,60-0,40)+1,80*1,80*(2,00-0,15) | E20: 12.81 | M20: Vs1 PE D 32x3,0 mm:7,10*0,80*(1,60-0,40)+1,80*1,80*(2,00-0,15)
C21: Vs2 PE D 32x3,0 mm:4,10*0,80*(1,60-0,40)+1,80*1,80*(2,00-0,15) | E21: 9.93 | M21: Vs2 PE D 32x3,0 mm:4,10*0,80*(1,60-0,40)+1,80*1,80*(2,00-0,15)
C22: Vs3 PE D 32x3,0 mm:5,30*0,80*(1,60-0,40)+1,80*1,80*(2,00-0,15) | E22: 11.082 | M22: Vs3 PE D 32x3,0 mm:5,30*0,80*(1,60-0,40)+1,80*1,80*(2,00-0,15)
C23: Vs4 PE D 32x3,0 mm:5,80*0,80*(1,60-0,40)+1,80*1,80*(2,00-0,15) | E23: 11.562 | M23: Vs4 PE D 32x3,0 mm:5,80*0,80*(1,60-0,40)+1,80*1,80*(2,00-0,15)
C24: Vs5 PE D 32x3,0 mm:6,10*0,80*(1,60-0,40)+1,80*1,80*(2,00-0,15) | E24: 11.85 | M24: Vs5 PE D 32x3,0 mm:6,10*0,80*(1,60-0,40)+1,80*1,80*(2,00-0,15)
C25: Vs6 PE D 32x3,0 mm:4,70*0,80*(1,60-0,40)+1,80*1,80*(2,00-0,15) | E25: 10.506 | M25: Vs6 PE D 32x3,0 mm:4,70*0,80*(1,60-0,40)+1,80*1,80*(2,00-0,15)
C26: Vs7 PE D 32x3,0 mm:6,40*0,80*(1,60-0,40)+1,80*1,80*(2,00-0,15) | E26: 12.138 | M26: Vs7 PE D 32x3,0 mm:6,40*0,80*(1,60-0,40)+1,80*1,80*(2,00-0,15)
C27: Vs8 PE D 32x3,0 mm:6,40*0,80*(1,60-0,40)+1,80*1,80*(2,00-0,15) | E27: 12.138 | M27: Vs8 PE D 32x3,0 mm:6,40*0,80*(1,60-0,40)+1,80*1,80*(2,00-0,15)
C28: Vs9 PE D 32x3,0 mm:6,40*0,80*(1,60-0,40)+1,80*1,80*(2,00-0,15) | E28: 12.138 | M28: Vs9 PE D 32x3,0 mm:6,40*0,80*(1,60-0,40)+1,80*1,80*(2,00-0,15)
C29: Konec provozního součtu | E29: 159.276 | M29: Konec provozního součtu
C30: V hornině tř. 3 - 4 - 10%:159,2760*0,1 | E30: 15.9276 | M30: V hornině tř. 3 - 4 - 10%:159,2760*0,1
A31: 2 | B31: 132201211RRX | C31: Hloubení rýh š.do 200 cm hor.3 do 100 m3,STROJNĚ | D31: m3 | E31: 79.638 | G31: =E31*F31 -> 0 | H31: 0 | I31: =E31*H31 -> 0 | J31: 0 | K31: =E31*J31 -> 0 | O31: 2 | AA31: 1 | AB31: 1 | AC31: 1 | AZ31: 1 | BA31: =IF(AZ31=1,G31,0) -> 0 | BB31: =IF(AZ31=2,G31,0) -> 0 | BC31: =IF(AZ31=3,G31,0) -> 0 | BD31: =IF(AZ31=4,G31,0) -> 0 | BE31: =IF(AZ31=5,G31,0) -> 0 | CA31: 1 | CB31: 1
C32: Položka obsahuje hloubení rýh traktorbagrem, naložení výkopku na dopravní prostředek pro svislé, nebo vodorovné přemístění, popř. přemístění výkopku do 3 m (po povrchu území), případné zajištění rypadel polštáři, udržování pracoviště a ochranu výkopiště proti stékání srážkové vody z okolního terénu i s jejím odvodněním, nebo odvedením, přesekání a odstranění kořenů ve výkopišti, odstranění napadávek, urovnání dna výkopu. | L32: Položka obsahuje hloubení rýh traktorbagrem, naložení výkopku na dopravní prostředek pro svislé, nebo vodorovné přemístění, popř. přemístění výkopku do 3 m (po povrchu území), případné zajištění rypadel polštáři, udržování pracoviště a ochranu výkopiště proti stékání srážkové vody z okolního terénu i s jejím odvodněním, nebo odvedením, přesekání a odstranění kořenů ve výkopišti, odstranění napadávek, urovnání dna výkopu. | O32: 3
C33: Součástí položky je i zřízení a odstranění pažení rýhy v souladu s předpisy BOZP. | L33: Součástí položky je i zřízení a odstranění pažení rýhy v souladu s předpisy BOZP. | O33: 3
C34: Začátek provozního součtu | E34: 0 | M34: Začátek provozního součtu
C35: Řad "Np" TLT DN100: | E35: 0 | M35: Řad "Np" TLT DN100:
C36: Řad "Nv" TLT DN100: | E36: 0 | M36: Řad "Nv" TLT DN100:
C37: Vp2 PE D 32x3,0 mm:6,40*0,80*(1,60-0,40)+1,80*1,80*(2,00-0,15) | E37: 12.138 | M37: Vp2 PE D 32x3,0 mm:6,40*0,80*(1,60-0,40)+1,80*1,80*(2,00-0,15)
C38: Vp3 PE D 32x3,0 mm:6,40*0,80*(1,60-0,40)+1,80*1,80*(2,00-0,15) | E38: 12.138 | M38: Vp3 PE D 32x3,0 mm:6,40*0,80*(1,60-0,40)+1,80*1,80*(2,00-0,15)
C39: Vp4 PE D 32x3,0 mm:3,00*0,80*(1,60-0,40)+1,80*1,80*(2,00-0,15) | E39: 8.874 | M39: Vp4 PE D 32x3,0 mm:3,00*0,80*(1,60-0,40)+1,80*1,80*(2,00-0,15)
C40: Vp5 PE D 32x3,0 mm:5,20*0,80*(1,60-0,40)+1,80*1,80*(2,00-0,15) | E40: 10.986 | M40: Vp5 PE D 32x3,0 mm:5,20*0,80*(1,60-0,40)+1,80*1,80*(2,00-0,15)
C41: Vp6 PE D 32x3,0 mm:5,20*0,80*(1,60-0,40)+1,80*1,80*(2,00-0,15) | E41: 10.986 | M41: Vp6 PE D 32x3,0 mm:5,20*0,80*(1,60-0,40)+1,80*1,80*(2,00-0,15)
C42: Vs1 PE D 32x3,0 mm:7,10*0,80*(1,60-0,40)+1,80*1,80*(2,00-0,15) | E42: 12.81 | M42: Vs1 PE D 32x3,0 mm:7,10*0,80*(1,60-0,40)+1,80*1,80*(2,00-0,15)
C43: Vs2 PE D 32x3,0 mm:4,10*0,80*(1,60-0,40)+1,80*1,80*(2,00-0,15) | E43: 9.93 | M43: Vs2 PE D 32x3,0 mm:4,10*0,80*(1,60-0,40)+1,80*1,80*(2,00-0,15)
C44: Vs3 PE D 32x3,0 mm:5,30*0,80*(1,60-0,40)+1,80*1,80*(2,00-0,15) | E44: 11.082 | M44: Vs3 PE D 32x3,0 mm:5,30*0,80*(1,60-0,40)+1,80*1,80*(2,00-0,15)
C45: Vs4 PE D 32x3,0 mm:5,80*0,80*(1,60-0,40)+1,80*1,80*(2,00-0,15) | E45: 11.562 | M45: Vs4 PE D 32x3,0 mm:5,80*0,80*(1,60-0,40)+1,80*1,80*(2,00-0,15)
C46: Vs5 PE D 32x3,0 mm:6,10*0,80*(1,60-0,40)+1,80*1,80*(2,00-0,15) | E46: 11.85 | M46: Vs5 PE D 32x3,0 mm:6,10*0,80*(1,60-0,40)+1,80*1,80*(2,00-0,15)
C47: Vs6 PE D 32x3,0 mm:4,70*0,80*(1,60-0,40)+1,80*1,80*(2,00-0,15) | E47: 10.506 | M47: Vs6 PE D 32x3,0 mm:4,70*0,80*(1,60-0,40)+1,80*1,80*(2,00-0,15)
C48: Vs7 PE D 32x3,0 mm:6,40*0,80*(1,60-0,40)+1,80*1,80*(2,00-0,15) | E48: 12.138 | M48: Vs7 PE D 32x3,0 mm:6,40*0,80*(1,60-0,40)+1,80*1,80*(2,00-0,15)
C49: Vs8 PE D 32x3,0 mm:6,40*0,80*(1,60-0,40)+1,80*1,80*(2,00-0,15) | E49: 12.138 | M49: Vs8 PE D 32x3,0 mm:6,40*0,80*(1,60-0,40)+1,80*1,80*(2,00-0,15)
C50: Vs9 PE D 32x3,0 mm:6,40*0,80*(1,60-0,40)+1,80*1,80*(2,00-0,15) | E50: 12.138 | M50: Vs9 PE D 32x3,0 mm:6,40*0,80*(1,60-0,40)+1,80*1,80*(2,00-0,15)
C51: Konec provozního součtu | E51: 159.276 | M51: Konec provozního součtu
C52: V hornině tř. 3 - 50%:159,2760*0,5 | E52: 79.638 | M52: V hornině tř. 3 - 50%:159,2760*0,5
A53: 3 | B53: 132201219R00 | C53: Přípl.za lepivost,hloubení rýh 200cm,hor.3,STROJNĚ | D53: m3 | E53: 39.819 | G53: =E53*F53 -> 0 | H53: 0 | I53: =E53*H53 -> 0 | J53: 0 | K53: =E53*J53 -> 0 | O53: 2 | AA53: 1 | AB53: 1 | AC53: 1 | AZ53: 1 | BA53: =IF(AZ53=1,G53,0) -> 0 | BB53: =IF(AZ53=2,G53,0) -> 0 | BC53: =IF(AZ53=3,G53,0) -> 0 | BD53: =IF(AZ53=4,G53,0) -> 0 | BE53: =IF(AZ53=5,G53,0) -> 0 | CA53: 1 | CB53: 1
C54: Začátek provozního součtu | E54: 0 | M54: Začátek provozního součtu
C55: Řad "Np" TLT DN100: | E55: 0 | M55: Řad "Np" TLT DN100:
C56: Řad "Nv" TLT DN100: | E56: 0 | M56: Řad "Nv" TLT DN100:
C57: Vp2 PE D 32x3,0 mm:6,40*0,80*(1,60-0,40)+1,80*1,80*(2,00-0,15) | E57: 12.138 | M57: Vp2 PE D 32x3,0 mm:6,40*0,80*(1,60-0,40)+1,80*1,80*(2,00-0,15)
C58: Vp3 PE D 32x3,0 mm:6,40*0,80*(1,60-0,40)+1,80*1,80*(2,00-0,15) | E58: 12.138 | M58: Vp3 PE D 32x3,0 mm:6,40*0,80*(1,60-0,40)+1,80*1,80*(2,00-0,15)
C59: Vp4 PE D 32x3,0 mm:3,00*0,80*(1,60-0,40)+1,80*1,80*(2,00-0,15) | E59: 8.874 | M59: Vp4 PE D 32x3,0 mm:3,00*0,80*(1,60-0,40)+1,80*1,80*(2,00-0,15)
C60: Vp5 PE D 32x3,0 mm:5,20*0,80*(1,60-0,40)+1,80*1,80*(2,00-0,15) | E60: 10.986 | M60: Vp5 PE D 32x3,0 mm:5,20*0,80*(1,60-0,40)+1,80*1,80*(2,00-0,15)
C61: Vp6 PE D 32x3,0 mm:5,20*0,80*(1,60-0,40)+1,80*1,80*(2,00-0,15) | E61: 10.986 | M61: Vp6 PE D 32x3,0 mm:5,20*0,80*(1,60-0,40)+1,80*1,80*(2,00-0,15)
C62: Vs1 PE D 32x3,0 mm:7,10*0,80*(1,60-0,40)+1,80*1,80*(2,00-0,15) | E62: 12.81 | M62: Vs1 PE D 32x3,0 mm:7,10*0,80*(1,60-0,40)+1,80*1,80*(2,00-0,15)
C63: Vs2 PE D 32x3,0 mm:4,10*0,80*(1,60-0,40)+1,80*1,80*(2,00-0,15) | E63: 9.93 | M63: Vs2 PE D 32x3,0 mm:4,10*0,80*(1,60-0,40)+1,80*1,80*(2,00-0,15)
C64: Vs3 PE D 32x3,0 mm:5,30*0,80*(1,60-0,40)+1,80*1,80*(2,00-0,15) | E64: 11.082 | M64: Vs3 PE D 32x3,0 mm:5,30*0,80*(1,60-0,40)+1,80*1,80*(2,00-0,15)
C65: Vs4 PE D 32x3,0 mm:5,80*0,80*(1,60-0,40)+1,80*1,80*(2,00-0,15) | E65: 11.562 | M65: Vs4 PE D 32x3,0 mm:5,80*0,80*(1,60-0,40)+1,80*1,80*(2,00-0,15)
C66: Vs5 PE D 32x3,0 mm:6,10*0,80*(1,60-0,40)+1,80*1,80*(2,00-0,15) | E66: 11.85 | M66: Vs5 PE D 32x3,0 mm:6,10*0,80*(1,60-0,40)+1,80*1,80*(2,00-0,15)
C67: Vs6 PE D 32x3,0 mm:4,70*0,80*(1,60-0,40)+1,80*1,80*(2,00-0,15) | E67: 10.506 | M67: Vs6 PE D 32x3,0 mm:4,70*0,80*(1,60-0,40)+1,80*1,80*(2,00-0,15)
C68: Vs7 PE D 32x3,0 mm:6,40*0,80*(1,60-0,40)+1,80*1,80*(2,00-0,15) | E68: 12.138 | M68: Vs7 PE D 32x3,0 mm:6,40*0,80*(1,60-0,40)+1,80*1,80*(2,00-0,15)
C69: Vs8 PE D 32x3,0 mm:6,40*0,80*(1,60-0,40)+1,80*1,80*(2,00-0,15) | E69: 12.138 | M69: Vs8 PE D 32x3,0 mm:6,40*0,80*(1,60-0,40)+1,80*1,80*(2,00-0,15)
C70: Vs9 PE D 32x3,0 mm:6,40*0,80*(1,60-0,40)+1,80*1,80*(2,00-0,15) | E70: 12.138 | M70: Vs9 PE D 32x3,0 mm:6,40*0,80*(1,60-0,40)+1,80*1,80*(2,00-0,15)
C71: Konec provozního součtu | E71: 159.276 | M71: Konec provozního součtu
C72: V hornině tř. 3 - 50%:159,2760*0,5*0,5 | E72: 39.819 | M72: V hornině tř. 3 - 50%:159,2760*0,5*0,5
